{"text_format":"1","workbook":"xlsx","n_sheets":35,"sheets":["Konfig_A","Start","IPC347G (Rack)","IPC547J (Rack)","IPC647E (Rack)","IPC847E (Rack)","IPC127E (Box)","IPC227E (Nanobox)","IPC227G (Nanobox)","IPC327G (Basicbox)","IPC BX-39A (Box PC)","IPC427E (Microbox)","IPC527G (Box)","IPC627E (Box)","IPC277E (Panel PC)","IPC277G (Panel PC)","IPC377G (Panel PC)","IPC477E (Panel PC)","IPC PX-39A (Panel PC)","ITP1000 (Tablet)","IPC477E PRO (Panel PC)","IPC677E (Panel PC)","IFP V2","ITC V3","IFP Basic","S7-1507S-Packages","WinCC flex-Packages","WinCC-TIA Portal  Packages ","WinCC V7 -Packages","IPC Accessories","SITOP DC UPS","Power Plugs Box Panel","Power Plugs Rack Flat Panel","DIME IPC","IPC CPU BENCHMARK"],"not_rendered":{"charts":0,"images":94,"macros":1,"external_links":14,"defined_names":1078,"comments":0,"pivot_tables":0},"unopened":[],"bounds":{"document_bytes":16777216,"sheet_cells":100000,"rows_first":2000,"rows_last":500,"rows_between":2000,"halvings":0,"cell_chars":16384,"cell_head_chars":4096},"cells_cut":0,"cells_raw":0,"read":"whole","date_system":"1900"}

{"sheet":"Konfig_A","index":0,"n_rows":29,"n_cols":2,"rows_kept":29,"cut":false,"hidden":true,"merged":[]}
[]
["NoWorkTab","DeleteTab"]
["Konfig_A","KP-Ziegner"]
["Start"]
["Language"]
["User Information"]
["Delta"]
["KP-Ziegner"]
["SITOP DC UPS"]
["Power Plugs Rack Flat Panel"]
["Power Plugs Box Panel"]
[]
[]
[]
[]
[]
[]
[]
[]
[]
[]
[]
[]
[]
[]
[]
[]
[]
["----------------------","----------------------"]

{"sheet":"Start","index":1,"n_rows":68,"n_cols":26,"rows_kept":68,"cut":false,"hidden":false,"merged":[[28,13,33,13],[27,14,27,17]]}
[null,null,null,"Ricerca per MLFB",null,null,null,null,"  Abilitare le macro per un corretto funzionamento del configuratore!",null,null,null,null,null,null,null,null,"IPC CPU Benchmark",null,21,22,"destination_row","Jump & Configure the sheet according MLFB","Default MLFB","Default MLFB"]
[null,null,null,null,null,null,null,null,null,null,null,null,null,null,null,null,"V.256",null,null,"Rumpfsuche","Lasche wohin#","Zeile wo die variable MLFB steht","1: jump & configure\n0: jump & no configuration","reset value of this page","reset value of this page","Comment"]
[null,null,null,null,null,null,null,null,null,null,null,null,null,null,null,null,null,null,null,null,null,null,null,null,null,"6AG4012-0"]
[]
[null,null,"SIMATIC Rack PC",null,"347G     ",null,"547J ",null,"647E","847E ",null,null,null,null,null,null,null,null,null,"6AG4022-0A","IPC327E (Basicbox)",5,1,"6AG4022-0AA21-0AA1","6AG4021-0AA11-0AA0"]
[null,null,null,null,null,null,null,null,null,null,null,null,null,null,null,null,null,null,null,"6AG4012-2","IPC347G (Rack)",5,1,"6AG4012-2AA10-0XX0","6ES7647-8BA11-0AA1"]
[null,null,null,null,null,null,null,null,null,null,null,null,null,null,null,null,null,null,null,"6AV7230-0","IPC377E (Panel PC)",5,1,"6AV7230-0CA20-0AA0","6ES7647-8CB11-1AA0"]
[null,null,null,null,null,null,null,null,null,null,null,null,null,null,null,null,null,null,null,"6AV7231-0","IPC377G (Panel PC)",5,1,"6AV7231-0CC21-0AA0","6AG4022-0BA21-0AA1"]
[null,null,null,null,null,null,null,null,null,null,null,null,null,null,null,null,null,null,null,"6AG4025-0","IPC527G (Box)",5,1,"6AG4025-0AB10-0AA0","6AG4141-0AA00-0AA0"]
[null,null,null,null,null,null,null,null,null,null,null,null,null,null,null,null,null,null,null,"6AG4104-4","IPC547G (Rack)",5,1,"6AG4104-4AA00-0XX0","6AG4142-1AA00-0AA0"]
[null,null,null,null,null,null,null,null,null,null,null,null,null,null,null,null,null,null,null,"6AG4104-5","IPC547J (Rack)",5,1,"6AG4104-5CX00-0AX0","6AG4025-0AB10-0AA0"]
[null,null,"SIMATIC Box PC",null,"127E ",null,"227E",null,"227G",null,"327G",null,"BX-39A","NEW!!","427E","527G ","627E",null,null,"6AG4112-2","IPC647D (Rack)",5,1,"6AG4112-2DA10-0XX0","6AG4131-2AA10-0XX0"]
[null,null,null,null,null,null,null,null,null,null,null,"N",null,null,null,null,null,null,null,"6AG4112-3","IPC647E (Rack)",5,1,"6AG4112-3AX00-0XX0","6AG4131-3AA00-8AA0"]
[null,null,null,null,null,null,null,null,null,null,null,"E",null,null,null,null,null,null,null,"6AG4114-2","IPC847D (Rack)",5,1,"6AG4114-2DA10-0XX0","6AG4132-2AA10-0XX0"]
[null,null,null,null,null,null,null,null,null,null,null,"W",null,null,null,null,null,null,null,"6AG4114-3","IPC847E (Rack)",5,1,"6AG4114-3AX00-0XX0","6AV7882-0AA10-0AA0"]
[null,null,null,null,null,null,null,null,null,null,null,"!",null,null,null,null,null,null,null,"6AG4131-2","IPC627D (Box)",5,1,"6AG4131-2AA10-0XX0","6AV7886-0AA11-1AA0"]
[null,null,null,null,null,null,null,null,null,null,null,null,null,null,null,null,null,null,null,"6AG4131-3","IPC627E (Box)",5,1,"6AG4131-3AA00-8AA0","6AV7231-0CA21-0AA0"]
[null,null,null,null,null,null,null,null,null,null,null,null,null,null,null,null,null,null,null,"6AG4132-2","IPC827D (Box)",5,1,"6AG4132-2AA10-0XX0","6AV7241-1BA00-0AA0"]
[null,null,null,null,null,null,null,null,null,null,null,null,null,null,null,null,null,null,null,"6AG4021-0A","IPC127E (Box)",5,1,"6AG4021-0AA11-0AA0","6AV7251-1BA00-0AA0"]
[null,null,null,null,null,null,null,null,null,null,null,null,null,null,null,null,null,null,null,"6ES7647-8B","IPC227E (Nanobox)",5,1,"6ES7647-8BA11-0AA1","6AV7242-1AA00-0AA0"]
[null,null,"SIMATIC Panel PC",null,"277E",null,"277G",null,"377G ",null,"477E",null,"PX-39A","NEW!!","477E PRO","ITP1000","677E",null,null,"6AV7882","IPC277E (Panel PC)",5,1,"6AV7882-0AA10-0AA0","6AV7260-0AA10-0XX0"]
[null,null,null,null,null,null,null,"  N",null,null,null,null,null,null,null,null,null,null,null,"6AG4022-0B","IPC327G (Basicbox)",5,1,"6AG4022-0BA21-0AA1","6AV7261-0AA00-8AA0"]
[null,null,null,null,null,null,null,"   E",null,null,null,null,null,null,null,null,null,null,null,"6ES7647-8C","IPC227G (Nanobox)",5,1,"6ES7647-8CB11-1AA0","6AG4012-2AA10-0XX0","6AV7200-4CA12-1EA0"]
[null,null,null,null,null,null,null,"   W",null,null,null,null,null,null,null,null,null,null,null,"6AV7886","IPC277G (Panel PC)",5,1,"6AV7886-0AA11-1AA0","6AG4104-4EA00-0XX0"]
[null,null,null,null,null,null,null,"!",null,null,null,null,null,null,null,null,null,null,null,"6AG4141","IPC427E (Microbox)",5,1,"6AG4141-0AA00-0AA0","6AG4104-5CX00-0AX0"]
[null,null,null,null,null,null,null,null,null,null,null,null,null,null,null,null,null,null,null,"6AV7241","IPC477E (Panel PC)",5,1,"6AV7241-1BA00-0AA0","6AG4112-2DA10-0XX0"]
[null,null,null,null,null,null,null,null,null,null,null,null,null,null,null,null,null,null,null,"6AV7251","IPC477E PRO (Panel PC)",5,1,"6AV7251-1BA00-0AA0","6AG4112-3AX00-0XX0"]
[null,null,null,null,null,null,null,null,null,null,null,null,null,null,null,null,null,null,null,"6AV7260","677D (Panel PC)",5,1,"6AV7260-0AA10-0XX0","6AG4114-2DA10-0XX0"]
[null,null,"SIMATIC Flat Panel",null,"IFP V2",null,null,null,null,"IFP Basic",null,null,null,null,"ITC V3 / ITC V3 PRO",null,null,null,null,"6AV7261","IPC677E (Panel PC)",5,1,"6AV7261-0AA00-8AA0","6AG4114-3AX00-0XX0"]
[null,null,null,null,null,null,null,null,null,null,null,null,null,null,null,null,null,null,null,"6AV7200-7","Thin Client Ex2",5,1,"6AV7200-7AA00-0AA0","6AV7863-1MA00-2AA0"]
[null,null,null,null,null,null,null,null,null,null,null,null,null,null,null,null,null,null,null,"6AV7200-2","Panel PC Ex OG",5,1,"6AV7200-2AB11-1DA0","6AV7862-2BC00-0AA0"]
[null,null,null,null,null,null,null,null,null,null,null,null,null,null,null,null,null,null,null,"6AV7200-3","Thin Client Ex OG",5,1,"6AV7200-3AB00-0DA0","6AV7880-0AA01-0AA2"]
[null,null,null,null,null,null,null,null,null,null,null,null,null,null,null,null,null,null,null,"6AV7200-4","Panel PC Ex2",5,1,"6AV7200-4AA12-0AA0","6AV7200-7AA00-0AA0"]
[null,null,null,null,null,null,null,null,null,null,null,null,null,null,null,null,null,null,null,"6AV7200-5","Thin Client Ex NG",5,1,"6AV7200-5AA00-0AA0","6AV7200-2AB11-1DA0"]
[null,null,null,null,null,null,null,null,null,null,null,null,null,null,null,null,null,null,null,"6AV7200-6","Panel PC Ex NG",5,1,"6AV7200-6AA10-0AA0","6AV7200-3AB00-0DA0"]
[null,null,null,null,null,null,null,null,null,null,null,null,null,null,null,null,null,null,null,"6AV7863","IFP V2",5,1,"6AV7863-5MA00-2AA0","6AV7200-4AA12-0AA0"]
[null,null,null,null,null,null,null,null,null,null,null,null,null,null,"Accessori IPC",null,"Software Packages",null,null,"6AV7861","FlatPanel",5,0,"6AV7861-2AA00-2AA0","6AV7200-5AA00-0AA0"]
[null,null,null,null,null,null,null,null,null,null,null,null,null,null,null,null,null,null,null,null,"FlatPanel(wide)",5,0,"6AV7863-2AA00-0AA0","6AV7200-6AA10-0AA0"]
[null,null,null,null,null,null,null,null,null,null,null,null,null,null,"DIME IPC   New!!",null,"S7-1507S/F     New!!",null,null,null,"IFP V1 (MT)",5,0,"6AV7863-5MA10-1AA0","6AV7863-5MA00-2AA0"]
[null,null,null,null,null,null,null,null,null,null,null,null,null,null,"SITOP DC UPS",null,"WinCC V7",null,null,"6AV7862-2B","IFP Basic",5,1,"6AV7862-2BC00-0AA0","6AV7861-2AA00-2AA0"]
[null,null,null,null,null,null,null,null,null,null,null,null,null,null,"Power Plugs (Rack PC & Flat Panel)",null,"WinCC Flexible",null,null,"6AV6646-1B","ITC V3",5,1,"6AV6646-1BA15-0AA0","6AV7863-2AA00-0AA0"]
[null,null,null,null,null,null,null,null,null,null,null,null,null,null,"Power Plugs (Box & Panel PC) ",null,"WinCC TIA Portal",null,null,"6AV7880-0","ITP1000 (Tablet)",5,1,"6AV7880-0AA02-0AA2","6AV7863-5MA10-1AA0"]
[null,null,null,null,null,null,null,null,null,null,null,null,null,null,null,null,null,null,null,null,null,"IFP Basic",5,1,"6AV7862-2BC00-0AA0"]
[null,null,null,null,null,null,null,null,null,null,null,null,null,null,null,null,null,null,null,null,null,"ITC V3",5,1,"6AV6646-1BA15-0AA0"]
[]
[]
[]
[]
[]
[]
[]
[]
[]
[]
[]
[]
[null,null,null,null,null,null,null,null,null,null,null,null,null,null,null,null,null,null,null,"til Row100 (macro relevant)"]
[null,null,null,null,null,null,null,null,null,null,null,null,null,null,null,null,null,null,null,"before publication please turn color to \"white on white\" everything right from column \"S\" "]
[]
[]
[]
[]
[]
[]
[]
[null,null,null,null,null,null,null,null,null,null,null,null,null,null,null,null,null,null,null,"0,45-1,95 rot"]
[null,null,null,null,null,null,null,null,null,null,null,null,null,null,null,null,null,null,null,"1,95-2,95 gelb"]
[null,null,null,null,null,null,null,null,null,null,null,null,null,null,null,null,null,null,null,">=2,95 grün"]

{"sheet":"IPC347G (Rack)","index":2,"n_rows":55,"n_cols":19,"rows_kept":55,"cut":false,"hidden":false,"merged":[]}
["SIMATIC IPC347G (Rack IPC)"]
[]
[null,null,null,null,null,null,null,null,null,null,null,null,null,null,null,null,null,{"$f":"$A$4&$B$4&$C$4&$D$4&$E$4&$F$4&$G$4&$H$4&$I$4&$J$4&$K$4&$L$4&$M$4&$N$4&$O$4","v":"6AG4012-2AA10-0XX0"}]
["6AG4",0,1,2,"-",2,{"$f":"IF(P5=1,G15,)&IF(P5=2,G16,)&IF(P5=3,G17,)&IF(P5=4,#REF!,)&IF(P5=5,#REF!,)&IF(P5=6,#REF!,)&IF(P5=7,#REF!,)&IF(P5=8,#REF!,)","v":"A"},{"$f":"IF(P6=1,H20,)&IF(P6=2,H21,)&IF(P6=3,H22,)&IF(P6=4,#REF!,)&IF(P6=5,H22,)&IF(P6=6,#REF!,)&IF(P6=7,#REF!,)&IF(P6=8,#REF!,)&IF(P6=9,#REF!,)&IF(P6=10,#REF!,)&IF(P6=11,#REF!,)&IF(P6=12,#REF!,)","v":"A"},{"$f":"IF(P7=1,I25,)&IF(P7=2,I26,)&IF(P7=3,I27,)&IF(P7=4,I28,)&IF(P7=5,#REF!,)","v":"1"},{"$f":"IF(P8=1,J31,)&IF(P8=2,#REF!,)&IF(P8=3,#REF!,)","v":"0"},"-",0,{"$f":"IF(P10=1,M34,)&IF(P10=2,M35,)&IF(P10=3,M36,)&IF(P10=4,#REF!,)&IF(P10=5,#REF!,)&IF(P10=6,#REF!,)","v":"X"},"X",0,null,{"$f":"\"SIMATIC IPC347G\"","v":"SIMATIC IPC347G"}]
[null,null,null,null,null,null,"|","|","|","|",null,null,"|",null,null,1,{"$f":"IF(P5=1,Q15,)&IF(P5=2,Q16,)&IF(P5=3,Q17,)","v":"Pentium G4400"}]
[null,null,null,null,null,null,"|","|","|","|",null,null,"|",null,null,1,{"$f":"IF(P6=1,Q20,)&IF(P6=2,Q21,)&IF(P6=3,Q22,)","v":"1TB HDD"}]
[null,null,null,null,null,null,"|","|","|","|",null,null,"|",null,null,1,{"$f":"IF(P7=1,Q25,)&IF(P7=2,Q26,)&IF(P7=3,Q27,)&IF(P7=4,Q28,)","v":"4GB DDR4"}]
[null,null,null,null,null,null,"|","|","|","|",null,null,"|",null,null,1,{"$f":"IF(P8=1,Q31,)","v":"350w"}]
[null,null,null,null,null,null,"|","|","|","|",null,null,"|",null,null,1,"Power Supply: 100/240 V AC industrial power supply, without power cord; "]
[null,null,null,null,null,null,"|","|","|","|",null,null,"|",null,null,1,{"$f":"IF(P10=1,Q34,)&IF(P10=2,Q35,)&IF(P10=3,Q36,)","v":"W/o operating system; driver&document in USB stick"}]
[null,null,null,null,null,null,"|","|","|","|",null,null,"|"]
[null,null,null,null,null,null,"|","|","|","|",null,null,"|",null,null,1]
[null,null,null,null,null,null,"|","|","|","|",null,null,"|"]
[null," ",null,null,null,null,"|","|","|","|",null,null,"|",null,null,null,"Processor"]
[null,null,null,null,null,null,"A","|","|","|",null,null,"|",null,null,null,"Pentium G4400",null,{"$f":"IF(AND($P$5=1,G15=\"A\"),\"X\",\"\")","v":"X"}]
[null,null,null,null,null,null,"B","|","|","|",null,null,"|",null,null,null,"Core i5-6500",null,{"$f":"IF(AND($P$5=2,G16=\"B\"),\"X\",\"\")","v":""}]
[null," ",null,null,null,null,"C","|","|","|",null,null,"|",null,null,null,"Core i7-6700",null,{"$f":"IF(AND($P$5=3,G17=\"C\"),\"X\",\"\")","v":""}]
[null,null,null,null,null,null,null,"|","|","|",null,null,"|"]
[null," ",null,null,null,null,null,"|","|","|",null,null,"|",null,null,null,"Drives"]
[null," ",null,null,null,null,null,"A","|","|",null,null,"|",null,null,null,"1TB HDD",null,{"$f":"IF(AND($P$6=1,H20=\"A\"),\"X\",\"\")","v":"X"}]
[null,null,null,null,null,null,null,"B","|","|",null,null,"|",null,null,null,"256GB SSD",null,{"$f":"IF(AND($P$6=2,H21=\"B\"),\"X\",\"\")","v":""}]
[null,null,null,null,null,null,null,"C","|","|",null,null,"|",null,null,null,"512GB SSD",null,{"$f":"IF(AND($P$6=3,H22=\"C\"),\"X\",\"\")","v":""}]
[null,null,null,null,null,null,null,null,"|","|",null,null,"|"]
[null," ",null,null,null,null,null,null,"|","|",null,null,"|",null,null,null,"RAM"]
[null," ",null,null,null," ",null,null,1,"|",null,null,"|",null,null,null,"4GB DDR4",null,{"$f":"IF(AND($P$7=1,I25=1),\"X\",\"\")","v":"X"}]
[null," ",null,null,null," ",null,null,2,"|",null,null,"|",null,null,null,"8GB DDR4",null,{"$f":"IF(AND($P$7=2,I26=2),\"X\",\"\")","v":""}]
[null,null,null,null,null,null,null,null,3,"|",null,null,"|",null,null,null,"1x16GB DDR4",null,{"$f":"IF(AND($P$7=3,I27=3),\"X\",\"\")","v":""}]
[null,null,null,null,null,null,null,null,4,"|",null,null,"|",null,null,null,"32GB DDR4(2x 16GB)",null,{"$f":"IF(AND($P$7=4,I28=4),\"X\",\"\")","v":""}]
[null,null,null,null,null,null,null,null,null,"|",null,null,"|"]
[null," ",null,null,null," ",null,null,null,"|",null,null,"|",null,null,null,"Power supply"]
[null,null,null,null,null,null,null,null,null,0,null,null,"|",null,null,null,"350w",null,"X"]
[null,null,null,null,null,null,null,null,null,null,null,null,"|"]
[null," ",null,null,null,null,null,null,null,null,null,null,"|",null,null,null,"Operating System"]
[null," ",null,null,null,null,null,null,null,null,null,null,"X",null,null,null,"W/o operating system; driver&document in USB stick",null,{"$f":"IF(AND($P$10=1,M34=\"X\"),\"X\",\"\")","v":"X"}]
[null,null,null,null,null,null,null,null,null,null,{"$f":"IF(AND(P6=12,P9=3),1,0)","v":0},null,{"$f":"IF(OR(($P$5=1),($P$5=2)),\"A\",\"#\")","v":"A"},null,null,null,"Microsoft® Windows® 10 Enterprise 2019 LTSC, 64-bit, Multi-Language (Pentium/i3/i5)",null,{"$f":"IF(AND($P$10=2,M35=\"A\"),\"X\",\"\")","v":""}]
[null,null,null,null,null,null,null,null,null,null,{"$f":"IF(AND(P6=12,P9=4),1,0)","v":0},null,{"$f":"IF(OR($P$5=3),\"B\",\"#\")","v":"#"},null,null,null,"Microsoft® Windows® 10 Enterprise 2019 LTSC, 64-bit, Multi-Language(i7)",null,{"$f":"IF(AND($P$10=3,M36=\"B\"),\"X\",\"\")","v":""}]
[]
[null,null,null,null,null,null,null,null,null,null,null,null,null,null,null,null,"Base version",null,"X"]
[null,null,null,null,null,null,null,null,null,null,null,null,null,null,null,null,null,"Listino:"]
[]
[]
[]
["Preferred configurations (available from stock):"]
[]
[]
[null,null,null,null,null,null,null,null,null,null,null,null,null,null,null,null,"6AG4012-2AA10-0XX0"]
["6AG4",0,1,2,"-",2,"A","A",1,0,"-",0,"X","X",0,null,"Processor; Intel® Pentium® G4400 (2C/2T;3M Cache, 3.30 GHz)\nDrive (SATA): 1x 1TB HDD;\nMain Memory: 4 GB DDR4 SDRAM (1x 4 GB);\nW/o operating system;\n350W Power Supply"]
[null,null,null,null,null,null,null,null,null,null,null,null,null,null,null,null,"6AG4012-2AA10-0AX0"]
["6AG4",0,1,2,"-",2,"A","A",1,0,"-",0,"A","X",0,null,"Processor; Intel® Pentium® G4400 (2C/2T;3M Cache, 3.30 GHz)\nDrive (SATA): 1x 1TB HDD;\nMain Memory: 4 GB DDR4 SDRAM (1x 4 GB);\nWindows 10 IOT Enterprise Value(Pentium/i3/i5);\n350W Power Supply"]
[null,null,null,null,null,null,null,null,null,null,null,null,null,null,null,null,"6AG4012-2BA10-0AX0"]
["6AG4",0,1,2,"-",2,"B","A",1,0,"-",0,"A","X",0,null,"Processor: Intel® Core™ i5-6500 (4C/4T;6M Cache, 3.60 GHz);\nDrive (SATA): 1x 1TB HDD;\nMain Memory: 4 GB DDR4 SDRAM;\nWindows 10 IOT Enterprise Value(Pentium/i3/i5);\n350W Power Supply"]
[null,null,null,null,null,null,null,null,null,null,null,null,null,null,null,null,"6AG4012-2BA20-0AX0"]
["6AG4",0,1,2,"-",2,"B","A",2,0,"-",0,"A","X",0,null,"Processor: Intel® Core™ i5-6500 (4C/4T;6M Cache, 3.60 GHz);\nDrive (SATA): 1x 1TB HDD, internally mounted;\nMain Memory: 8 GB DDR4 SDRAM;\nWindows 10 IOT Enterprise Value(Pentium/i3/i5);\n350W Power Supply"]
[null,null,null,null,null,null,null,null,null,null,null,null,null,null,null,null,"6AG4012-2CA20-0BX0"]
["6AG4",0,1,2,"-",2,"C","A",2,0,"-",0,"B","X",0,null,"Processor: Intel Core i7-6700 - 4 Cores / 8 Threads);\nDrive (SATA): 1x 1TB HDD;\nMain Memory: 8 GB DDR4 SDRAM;\nWindows 10 IOT Enterprise High End(i7);\n350W Power Supply "]

{"sheet":"IPC547J (Rack)","index":3,"n_rows":122,"n_cols":20,"rows_kept":122,"cut":false,"hidden":false,"merged":[]}
["SIMATIC IPC547J",null,null,null,null,null,null,null,null,null,null,null,null,null,null,null,""]
[]
[null,null,null,null,null,null,null,null,null,null,null,null,null,null,null,null,{"$f":"IF(E46,F46,\"\")","v":""}]
[]
["6AG4",1,0,4,"-",5,{"$f":"IF(P6=1,G20,)&IF(P6=2,G21,)&IF(P6=3,G22,)&IF(P6=4,G23,)&IF(P6=5,G24,)&IF(P6=6,G25,)&IF(P6=7,G26,)&IF(P6=8,G27,)&IF(P6=9,G28,)","v":"C"},{"$f":"IF(P7=1,H31,)&IF(P7=2,H32,)&IF(P7=3,H33,)&IF(P7=4,H34,)&IF(P7=5,H35,)&IF(P7=6,H36,)&IF(P7=7,H37,)&IF(P7=8,H38,)&IF(P7=9,H39,)&IF(P7=10,H40,)&IF(P7=11,H41,)&IF(P7=12,H42,)&IF(P7=13,H43,)&IF(P7=14,H44,)&IF(P7=15,H45,)&IF(P7=16,H46,)","v":"A"},{"$f":"IF(P8=1,I49,IF(P8=2,I50,IF(P8=3,I51,IF(P8=4,I52,IF(P8=5,I53,)))))","v":"0"},{"$f":"IF(P9=1,J56,IF(P9=2,J57,IF(P9=3,J58,IF(P9=4,J59,IF(P9=5,J60,IF(P9=6,J61,IF(P9=7,J62,IF(P9=8,J63,))))))))","v":0},"-",{"$f":"IF(P10=1,L66,IF(P10=2,L67,IF(P10=3,L68,IF(P10=4,L69,IF(P10=5,L70,IF(P10=6,L71,))))))","v":0},{"$f":"IF(P11=1,M74,IF(P11=2,M75,IF(P11=3,M76,IF(P11=4,M77,IF(P11=5,M78,IF(P11=6,M79,IF(P11=7,M80,)))))))","v":"A"},{"$f":"IF(P12=1,N83,IF(P12=2,N84,IF(P12=3,N85,IF(P12=4,N86,))))","v":"X"},{"$f":"IF(P13=1,O89,IF(P13=2,O90,IF(P13=3,O91,IF(P13=4,O92,IF(P13=5,O93,IF(P13=6,O94,IF(P13=7,O95)))))))","v":0},null,"SIMATIC IPC547J (Rack PC, 19\", 4U)",{"$f":"$A$5&$B$5&$C$5&$D$5&$E$5&$F$5&$G$5&$H$5&$I$5&$J$5&$K$5&$L$5&$M$5&$N$5&$O$5","v":"6AG4104-5CA00-0AX0"}]
[null,null,null,null,null,null,"|","|","|","|",null,"|","|","|","|",1,{"$f":"IF(P6=1,Q20,)&IF(P6=2,Q21,)&IF(P6=3,Q22,)&IF(P6=4,Q23,)&IF(P6=5,Q24,)&IF(P6=6,Q25,)&IF(P6=7,Q26,)&IF(P6=8,Q27,)&IF(P6=9,Q28,)","v":"Core i3-10100E (4C/8T, 3.2 (3.8) GHz, 6 MB Cache) / MB (Chipset H410, 2x Gbit Ethernet, 1x DVI-D, 1x DisplayPort, 4x USB 2.0, 2x USB 3.1 Gen.2, 1x USB 2.0 intern);"}]
[null,null,null,null,null,null,"|","|","|","|",null,"|","|","|","|",1,{"$f":"IF(P7=1,Q31,)&IF(P7=2,Q32,)&IF(P7=3,Q33,)&IF(P7=4,Q34,)&IF(P7=5,Q35,)&IF(P7=6,Q36,)&IF(P7=7,Q37,)&IF(P7=8,Q38,)&IF(P7=9,Q39,)&IF(P7=10,Q40,)&IF(P7=11,Q41,)&IF(P7=12,Q42,)&IF(P7=13,Q43,)&IF(P7=14,Q44,)&IF(P7=15,Q45,)&IF(P7=16,Q46,)","v":"1 TB HDD 3.5\" SATA"}]
[null,null,null,null,null,null,"|","|","|","|",null,"|","|","|","|",1,{"$f":"IF(P8=1,Q49,IF(P8=2,Q50,IF(P8=3,Q51,IF(P8=4,Q52,IF(P8=5,Q53)))))","v":"Housing(short) with drive cage type B (for internally mounted / 0,2 g vibration, 2 g shock)blue chromated"}]
[null,null,null,null,null,null,"|","|","|","|",null,"|","|","|","|",1,{"$f":"IF(P9=1,Q56,IF(P9=2,Q57,IF(P9=3,Q58,IF(P9=4,Q59,IF(P9=5,Q60,IF(P9=6,Q61,IF(P9=7,Q62,IF(P9=8,Q63))))))))","v":"100/240V AC industrial power supply, without power cord;"}]
[null,null,null,null,null,null,"|","|","|","|",null,"|","|","|","|",1,{"$f":"IF(P10=1,Q66,IF(P10=2,Q67,IF(P10=3,Q68,IF(P10=4,Q69,IF(P10=5,Q70,IF(P10=6,Q71))))))","v":"4 GB DDR4 SDRAM (1x 4 GB), Single Channel;"}]
[null,null,null,null,null,null,"|","|","|","|",null,"|","|","|","|",1,{"$f":"IF(P11=1,Q74,IF(P11=2,Q75,IF(P11=3,Q76,IF(P11=4,Q77,IF(P11=5,Q78,IF(P11=6,Q79,IF(P11=7,Q80)))))))","v":"without extensions"}]
[null,null,null,null,null,null,"|","|","|","|",null,"|","|","|","|",4,{"$f":"IF(P12=1,Q83,IF(P12=2,Q84,IF(P12=3,Q85,IF(P12=4,Q86))))","v":"without operating System"}]
[null,null,null,null,null,null,"|","|","|","|",null,"|","|","|","|",1,{"$f":"IF(P13=1,Q89,IF(P13=2,Q90,IF(P13=3,Q91,IF(P13=4,Q92,IF(P13=5,Q93,IF(P13=6,Q94,IF(P13=7,Q95)))))))","v":"without extensions"}]
[null,null,null,null,null,null,"|","|","|","|",null,"|","|","|","|",null,"Interfaces: 2x USB3.1 Gen1(Type A) frontside; , 1x COM (RS 232, 9-pol); Audio"]
[null,null,null,null,null,null,"|","|","|","|",null,"|","|","|","|",null,"7 expansion slots: 5x PCI-Express, 2x PCI"]
[null,null,null,null,null,null,"|","|","|","|",null,"|","|","|","|",null,"Watchdog, Temperature and Fan Control; Board Retainer"]
[null,null,null,null,null,null,"|","|","|","|",null,"|","|","|","|"]
[null,null,null,null,null,null,"|","|","|","|",null,"|","|","|","|"]
[null,null,null,null,null,null,"|","|","|","|",null,"|","|","|","|",null,"Processor / Board"]
[null,null,null,null,null,null,{"$f":"IF(OR(($P$11=6)),\"!\",\"C\")","v":"C"},"|","|","|",null,"|","|","|","|",null,"Core i3-10100E (4C/8T, 3.2 (3.8) GHz, 6 MB Cache) / MB (Chipset H410, 2x Gbit Ethernet, 1x DVI-D, 1x DisplayPort, 4x USB 2.0, 2x USB 3.1 Gen.2, 1x USB 2.0 intern);",null,{"$f":"IF($P$6=1,\"X\",\"\")","v":"X"},"."]
[null,null,null,null,null,null,{"$f":"IF(OR(($P$11=6)),\"!\",\"D\")","v":"D"},"|","|","|",null,"|","|","|","|",null,"Core i5-10500E (6C/12T, 3.1 (4.2) GHz, 12 MB Cache) / MB (Chipset H410, 2x Gbit Ethernet, 1x DVI-D, 1x DisplayPort, 4x USB 2.0, 2x USB 3.1 Gen.2, 1x USB 2.0 intern);",null,{"$f":"IF($P$6=2,\"X\",\"\")","v":""},"."]
[null,null,null,null,null,null,{"$f":"IF(OR(($P$11=6)),\"!\",\"E\")","v":"E"},"|","|","|",null,"|","|","|","|",null,"Core i7-10700E (8C/16T, 2.9 (4.5) GHz, 16 MB Cache) / MB (Chipset H410, 2x Gbit Ethernet, 1x DVI-D, 1x DisplayPort, 4x USB 2.0, 2x USB 3.1 Gen.2, 1x USB 2.0 intern);",null,{"$f":"IF($P$6=3,\"X\",\"\")","v":""},"."]
[null,null,null,null,null,null,{"$f":"IF(OR(($P$11=6)),\"!\",\"F\")","v":"F"},"|","|","|",null,"|","|","|","|",null,"Core i9-10900E (10C/20T, 2.8 (4.7) GHz, 20 MB Cache) / MB (Chipset H410, 2x Gbit Ethernet, 1x DVI-D, 1x DisplayPort, 4x USB 2.0, 2x USB 3.1 Gen.2, 1x USB 2.0 intern);",null,{"$f":"IF($P$6=4,\"X\",\"\")","v":""},"."]
[null,null,null,null,null,null,"G","|","|","|",null,"|","|","|","|",null,"Core i3-10100E (4C/8T, 3.2 (3.8) GHz, 6 MB Cache) / MB (Chipset W480E, 3x Gbit Ethernet, 1x DVI-D, 2x DisplayPort, 6x USB 3.1 Gen.2, 2x USB 2.0 intern, M.2 Slot intern);",null,{"$f":"IF($P$6=5,\"X\",\"\")","v":""},"."]
[null,null,null,null,null,null,"H","|","|","|",null,"|","|","|","|",null,"Core i5-10500E (6C/12T, 3.1 (4.2) GHz, 12 MB Cache) / MB (Chipset W480E, 3x Gbit Ethernet, 1x DVI-D, 2x DisplayPort, 6x USB 3.1 Gen.2, 2x USB 2.0 intern, M.2 Slot intern);iAMT",null,{"$f":"IF($P$6=6,\"X\",\"\")","v":""},"."]
[null,null,null,null,null,null,"J","|","|","|",null,"|","|","|","|",null,"Core i7-10700E (8C/16T, 2.9 (4.5) GHz, 16 MB Cache) / MB (Chipset W480E, 3x Gbit Ethernet, 1x DVI-D, 2x DisplayPort, 6x USB 3.1 Gen.2, 2x USB 2.0 intern, M.2 Slot intern);iAMT",null,{"$f":"IF($P$6=7,\"X\",\"\")","v":""},"."]
[null,null,null,null,null,null,"K","|","|","|",null,"|","|","|","|",null,"Core i9-10900E (10C/20T, 2.8 (4.7) GHz, 20 MB Cache) / MB (Chipset W480E, 3x Gbit Ethernet, 1x DVI-D, 2x DisplayPort, 6x USB 3.1 Gen.2, 2x USB 2.0 intern, M.2 Slot intern);iAMT",null,{"$f":"IF($P$6=8,\"X\",\"\")","v":""},"."]
[null,null,null,null,null,null,"L","|","|","|",null,"|","|","|","|",null,"Xeon W-1270E (8C/16T, 3.4 (4.8) GHz, 16 MB Cache) / MB (Chipset W480E, 3x Gbit Ethernet, 1x DVI-D, 2x DisplayPort, 6x USB 3.1 Gen.2, 2x USB 2.0 intern, M.2 Slot intern);iAMT",null,{"$f":"IF($P$6=9,\"X\",\"\")","v":""},"."]
[null,null,null,null,null,null,null,"|","|","|",null,"|","|","|","|"]
[null,null,null,null,null,null,null,"|","|","|",null,"|","|","|","|",null,"Drives"]
[null,null,null,null,null,null,null,"A","|","|",null,"|","|","|","|",null,"1 TB HDD 3.5\" SATA",null,{"$f":"IF($P$7=1,\"X\",\"\")","v":"X"},"."]
[null,null,null,null,null,null,null,"B","|","|",null,"|","|","|","|",null,"2x 1 TB HDD 3.5\" SATA",null,{"$f":"IF($P$7=2,\"X\",\"\")","v":""},"."]
[null,null,null,null,null,null,null,"C","|","|",null,"|","|","|","|",null,"1 TB HDD 3.5\" SATA + 960 GB SSD 2.5\" SATA (for OS, if M.2 SSD does not order)",null,{"$f":"IF($P$7=3,\"X\",\"\")","v":""},"."]
[null,null,null,null,null,null,null,"D","|","|",null,"|","|","|","|",null,"480 GB SSD 2.5\" SATA",null,{"$f":"IF($P$7=4,\"X\",\"\")","v":""},"."]
[null,null,null,null,null,null,null,"E","|","|",null,"|","|","|","|",null,"2x 480 GB SSD 2.5\" SATA",null,{"$f":"IF($P$7=5,\"X\",\"\")","v":""},"."]
[null,null,null,null,null,null,null,"F","|","|",null,"|","|","|","|",null,"960 GB SSD 2.5\" SATA",null,{"$f":"IF($P$7=6,\"X\",\"\")","v":""},"."]
[null,null,null,null,null,null,null,{"$f":"IF(OR(($P$6=1),($P$6=2),($P$6=3),($P$6=4)),\"!\",\"G\")","v":"!"},"|","|",null,"|","|","|","|",null,"RAID1, 2x 1 TB HDD 3.5\" SATA, [only with W480 Chipset]",null,{"$f":"IF($P$7=7,\"X\",\"\")","v":""},"."]
[null,null,null,null,null,null,null,{"$f":"IF(OR(($P$6=1),($P$6=2),($P$6=3),($P$6=4)),\"!\",\"H\")","v":"!"},"|","|",null,"|","|","|","|",null,"RAID1, 2x 480 GB SSD 2.5\" SATA, [only with W480 Chipset]",null,{"$f":"IF($P$7=8,\"X\",\"\")","v":""},"."]
[null,null,null,null,null,null,null,{"$f":"IF(OR(($P$6=1),($P$6=2),($P$6=3),($P$6=4)),\"!\",\"J\")","v":"!"},"|","|",null,"|","|","|","|",null,"RAID1, 2x 960 GB SSD 2.5\" SATA, [only with W480 Chipset]",null,{"$f":"IF($P$7=9,\"X\",\"\")","v":""},"."]
["Capacità aumentata",null,null,null,null,null,null,{"$f":"IF(OR(($P$6=1),($P$6=2),($P$6=3),($P$6=4)),\"!\",\"K\")","v":"!"},"|","|",null,"|","|","|","|",null,"RAID1, 2x 2 TB HDD [Enterprise] 3.5\" SATA , [only with W480 Chipset]",null,{"$f":"IF($P$7=10,\"X\",\"\")","v":""},"."]
["Capacità aumentata",null,null,null,null,null,null,{"$f":"IF(OR(($P$6=1),($P$6=2),($P$6=3),($P$6=4)),\"!\",\"L\")","v":"!"},"|","|",null,"|","|","|","|",null,"RAID1, 2x 4 TB HDD [Enterprise] 3.5\" SATA , [only with W480 Chipset]",null,{"$f":"IF($P$7=11,\"X\",\"\")","v":""},"."]
["Capacità aumentata",null,null,null,null,null,null,{"$f":"IF(OR(($P$6=1),($P$6=2),($P$6=3),($P$6=4)),\"!\",\"M\")","v":"!"},"|","|",null,"|","|","|","|",null,"RAID1, 2x 4 TB HDD [Enterprise] 3.5\" SATA + 4 TB HDD [Enterprise] 3.5\" SATA as HotSpare, [only with W480 Chipset]",null,{"$f":"IF($P$7=12,\"X\",\"\")","v":""},"."]
["Capacità aumentata",null,null,null,null,null,null,{"$f":"IF(OR(($P$6=1),($P$6=2),($P$6=3),($P$6=4)),\"!\",\"N\")","v":"!"},"|","|",null,"|","|","|","|",null,"RAID1, 2x 4 TB HDD [Enterprise] 3.5\" SATA + 960 GB SSD 2.5\" SATA (for OS, if M.2 SSD does not order), [only with W480 Chipset]",null,{"$f":"IF($P$7=13,\"X\",\"\")","v":""},"."]
["Capacità aumentata",null,null,null,null,null,null,{"$f":"IF(OR(($P$6=1),($P$6=2),($P$6=3),($P$6=4)),\"!\",\"P\")","v":"!"},"|","|",null,"|","|","|","|",null,"RAID5, 3x 4 TB HDD [Enterprise] 3.5\" SATA , [only with W480 Chipset]",null,{"$f":"IF($P$7=14,\"X\",\"\")","v":""},"."]
["Capacità aumentata",null,null,null,null,null,null,{"$f":"IF(OR(($P$6=1),($P$6=2),($P$6=3),($P$6=4)),\"!\",\"Q\")","v":"!"},"|","|",null,"|","|","|","|",null,"RAID5, 3x 4 TB HDD [Enterprise] 3.5\" SATA  + 4 TB HDD [Enterprise] 3.5\" SATA as HotSpare, [only with W480 Chipset]",null,{"$f":"IF($P$7=15,\"X\",\"\")","v":""},"."]
[null,null,null,null,{"$f":"IF(AND(OR(P11=1,P11=2,P11=5,P11=6),OR(P12=1,P12=2,P12=3),P7=16),1,0)","v":0},"CONFIGURATION NOT POSSIBLE: Operating system is only with HDD/SSD drives available",null,"X","|","|",null,"|","|","|","|",null,"without drives",null,{"$f":"IF($P$7=16,\"X\",\"\")","v":""},"."]
[null,null,null,null,null,null,null,null,"|","|",null,"|","|","|","|"]
[null,null,null,null,null,null,null,null,"|","|",null,"|","|","|","|",null,"Type of Housing"]
[null,null,null,null,null,null,null,null,{"$f":"IF(OR(($P$7=12),($P$7=13),($P$7=14),($P$7=15)),\"!\",\"0\")","v":"0"},"|",null,"|","|","|","|",null,"Housing(short) with drive cage type B (for internally mounted / 0,2 g vibration, 2 g shock)blue chromated",null,{"$f":"IF($P$8=1,\"X\",\"\")","v":"X"},"."]
[null,null,null,null,null,null,null,null,{"$f":"IF(OR(($P$7=15)),\"!\",\"1\")","v":"1"},"|",null,"|","|","|","|",null,"Housing with drive cage type B (for internally mounted / 0,5 g vibration, 5 g shock)blue chromated",null,{"$f":"IF($P$8=2,\"X\",\"\")","v":""},"."]
[null,null,null,null,null,null,null,null,{"$f":"IF(OR(($P$7=15)),\"!\",\"2\")","v":"2"},"|",null,"|","|","|","|",null,"Housing with drive cage type B (for internally mounted / 0,5 g vibration, 5 g shock)painted",null,{"$f":"IF($P$8=3,\"X\",\"\")","v":""},"."]
[null,null,null,null,null,null,null,null,3,"|",null,"|","|","|","|",null,"Housing with drive cage type A (for frontside mounted removable tray)blue chromated",null,{"$f":"IF($P$8=4,\"X\",\"\")","v":""},"."]
[null,null,null,null,null,null,null,null,4,"|",null,"|","|","|","|",null,"Housing with drive cage type A (for frontside mounted removable tray)painted",null,{"$f":"IF($P$8=5,\"X\",\"\")","v":""},"."]
[null,null,null,null,null,null,null,null,null,"|",null,"|","|","|","|"]
[null,null,null,null,null,null,null,null,null,"|",null,"|","|","|","|",null,"Power supplies"]
[null,null,null,null,null,null,null,null,null,0,null,"|","|","|","|",null,"100/240V AC industrial power supply, without power cord;",null,{"$f":"IF($P$9=1,\"X\",\"\")","v":"X"},"."]
[null,null,null,null,null,null,null,null,null,1,null,"|","|","|","|",null,"100/240V AC industrial power supply, power cord Europe;",null,{"$f":"IF($P$9=2,\"X\",\"\")","v":""},"."]
[null,null,null,null,null,null,null,null,null,2,null,"|","|","|","|",null,"100/240V AC industrial power supply, power cord USA;",null,{"$f":"IF($P$9=3,\"X\",\"\")","v":""},"."]
[null,null,null,null,null,null,null,null,null,3,null,"|","|","|","|",null,"100/240V AC industrial power supply, power cord China;",null,{"$f":"IF($P$9=4,\"X\",\"\")","v":""},"."]
[null,null,null,null,null,null,null,null,null,{"$f":"IF(OR(($P$11=6),($P$8=1)),\"!\",\"4\")","v":"!"},null,"|","|","|","|",null,"2x 100/240V AC redundant industrial power supply, without power cord;",null,{"$f":"IF($P$9=5,\"X\",\"\")","v":""},"."]
[null,null,null,null,null,null,null,null,null,{"$f":"IF(OR(($P$11=6),($P$8=1)),\"!\",\"5\")","v":"!"},null,"|","|","|","|",null,"2x 100/240V AC redundant industrial power supply, 2x power cord Europe;",null,{"$f":"IF($P$9=6,\"X\",\"\")","v":""},"."]
["NEW",null,null,null,null,null,null,null,null,{"$f":"IF(OR(($P$11=6),($P$8=1)),\"!\",\"6\")","v":"!"},null,"|","|","|","|",null,"100/240V AC industrial power supply, 850W, without power cord;",null,{"$f":"IF($P$9=7,\"X\",\"\")","v":""},"."]
["NEW",null,null,null,null,null,null,null,null,{"$f":"IF(OR(($P$11=6),($P$8=1)),\"!\",\"7\")","v":"!"},null,"|","|","|","|",null,"100/240V AC industrial power supply, 850W, power cord Europe;",null,{"$f":"IF($P$9=8,\"X\",\"\")","v":""},"."]
[null,null,null,null,null,null,null,null,null,null,null,"|","|","|","|"]
[null,null,null,null,null,null,null,null,null,null,null,"|","|","|","|",null,"Main Memory"]
[null,null,null,null,null,null,null,null,null,null,null,0,"|","|","|",null,"4 GB DDR4 SDRAM (1x 4 GB), Single Channel;",null,{"$f":"IF($P$10=1,\"X\",\"\")","v":"X"},"."]
[null,null,null,null,null,null,null,null,null,null,null,1,"|","|","|",null,"8 GB DDR4 SDRAM (2x 4 GB), Dual Channel;",null,{"$f":"IF($P$10=2,\"X\",\"\")","v":""},"."]
[null,null,null,null,null,null,null,null,null,null,null,2,"|","|","|",null,"16 GB DDR4 SDRAM (2x 8 GB), Dual Channel;",null,{"$f":"IF($P$10=3,\"X\",\"\")","v":""},"."]
[null,null,null,null,null,null,null,null,null,null,null,3,"|","|","|",null,"32 GB DDR4 SDRAM (2x 16 GB), Dual Channel;",null,{"$f":"IF($P$10=4,\"X\",\"\")","v":""},"."]
[null,null,null,null,null,null,null,null,null,null,null,4,"|","|","|",null,"64 GB DDR4 SDRAM (2x 32 GB), Dual Channel;",null,{"$f":"IF($P$10=5,\"X\",\"\")","v":""},"."]
[null,null,null,null,null,null,null,null,null,null,null,{"$f":"IF(OR(($P$6=1),($P$6=2),($P$6=3),($P$6=4)),\"!\",\"5\")","v":"!"},"|","|","|",null,"128 GB DDR4 SDRAM (4x 32 GB), Dual Channel;[only with W480 Chipset]",null,{"$f":"IF($P$10=6,\"X\",\"\")","v":""},"."]
[null,null,null,null,null,null,null,null,null,null,null,null,"|","|","|"]
[null,null,null,null,null,null,null,null,null,null,null,null,"|","|","|",null,"Extensions (Hardware)"]
[null,null,null,null,null,null,null,null,null,null,null,null,"A","|","|",null,"without extensions",null,{"$f":"IF($P$11=1,\"X\",\"\")","v":"X"},"."]
[null,null,null,null,null,null,null,null,null,null,null,null,"B","|","|",null,"COM2 port",null,{"$f":"IF($P$11=2,\"X\",\"\")","v":""},"."]
[null,{"$f":"IF(AND(OR($P$6=7,$P$6=8,$P$6=9,$P$6=10,$P$6=11,$P$6=12,),$P$11=4),1,0)","v":0},"The selected combination is not valid: PCIe x8 RAID controller only with Windows server OS or Windows 7, 64Bit"," .",null,null,null,null,null,null,null,null,{"$f":"IF(OR(($P$6=1),($P$6=2),($P$6=3),($P$6=4)),\"!\",\"C\")","v":"!"},"|","|",null,"512 GB SSD M.2 NVMe (M.2 Slot occupied)(for OS)[only with W480 Chipset]",null,{"$f":"IF($P$11=3,\"X\",\"\")","v":""},"."]
[null,{"$f":"IF(AND(OR($P$7=17,$P$7=18,$P$7=19,$P$7=20,),$P$11=5),1,0)","v":0},"The selected combination is not valid: PCIe x8 RAID controller only with Windows server OS or Windows 7, 64Bit"," .",null,null,null,null,null,null,null,null,{"$f":"IF(OR(($P$6=1),($P$6=2),($P$6=3),($P$6=4)),\"!\",\"D\")","v":"!"},"|","|",null,"1024 GB SSD M.2 NVMe (M.2 Slot occupied)(for OS)[only with W480 Chipset]",null,{"$f":"IF($P$11=4,\"X\",\"\")","v":""},"."]
[null,null,null,null,null,null,null,null,null,null,null,null,"J","|","|",null,"PCIe x16 graphics card NVIDIA Quadro P400 (3x mDP: 3x adapter mDP to DP), 2 GB (1 Slot occupied)",null,{"$f":"IF($P$11=5,\"X\",\"\")","v":""},"."]
[null,null,null,null,null,null,null,null,null,null,null,null,{"$f":"IF(OR(($P$8=1),($P$8=2),($P$8=3)),\"!\",\"K\")","v":"!"},"|","|",null,"PCIe x16 graphics card NVIDIA Quadro P2200 (4x DP), 5 GB (1 Slot occupied), [only with W480 Chipset and Housing with drive cage type A ]",null,{"$f":"IF($P$11=6,\"X\",\"\")","v":""},"."]
["NEW",null,null,null,null,null,null,null,null,null,null,null,{"$f":"IF(OR(($P$8=1),($P$9=1),($P$9=2),($P$9=3),($P$9=4),($P$9=5),($P$9=6)),\"!\",\"L\")","v":"!"},"|","|",null,"PCIe x16 graphics card NVIDIA RTX 4000 (3x DP), 8 GB (1 Slot occupied), [only with 850W PS]",null,{"$f":"IF($P$11=7,\"X\",\"\")","v":""},"."]
[null,null,null,null,null,null,null,null,null,null,null,null,null,"|","|"]
[null,null,null,null,null,null,null,null,null,null,null,null,null,"|","|",null,"Operating Systems (pre-installed and activated)"]
[null,null,null,null,null,null,null,null,null,null,null,null,null,{"$f":"IF(OR(($P$6=3),($P$6=4),($P$6=7),($P$6=8),($P$6=9)),\"!\",\"A\")","v":"A"},"|",null,"Windows 10 IoT Enterprise 2019 LTSC, Multi Language (En, Ger, Fr, It, Sp), 64 bit;[for processors Core i3 / i5]",null,{"$f":"IF($P$12=1,\"X\",\"\")","v":""},"."]
[null,null,null,null,null,null,null,null,null,null,null,null,null,{"$f":"IF(OR(($P$6=1),($P$6=2),($P$6=5),($P$6=6)),\"!\",\"B\")","v":"!"},"|",null,"Windows 10 IoT Enterprise 2019 LTSC, Multi Language (En, Ger, Fr, It, Sp), 64 bit;[for processor Core i7 / i9 / Xeon]",null,{"$f":"IF($P$12=2,\"X\",\"\")","v":""},"."]
[null,null,null,null,null,null,null,null,null,null,null,null,null,{"$f":"IF(OR(($P$6=1),($P$6=2),($P$6=3),($P$6=4),($P$6=5),($P$6=6),($P$6=7),($P$6=8)),\"!\",\"N\")","v":"!"},"|",null,"Windows Server 2019 Standard Edition 64 bit, incl. 5 clients multi language (En, Ger, Fr, It, Sp);[only with W480 Chipset and Xeon]",null,{"$f":"IF($P$12=3,\"X\",\"\")","v":""},"."]
[null,null,null,null,null,null,null,null,null,null,null,null,null,"X","|",null,"without operating System",null,{"$f":"IF($P$12=4,\"X\",\"\")","v":"X"},"."]
[null,null,null,null,null,null,null,null,null,null,null,null,null,null,"|"]
[null,null,null,null,null,null,null,null,null,null,null,null,null,null,"|",null,"Extensions (Software / Adapter / Security)"]
[null,null,null,null,null,null,null,null,null,null,null,null,null,null,0,null,"without extensions",null,{"$f":"IF($P$13=1,\"X\",\"\")","v":"X"},"."]
[null,null,null,null,null,null,null,null,null,null,null,null,null,null,1,null,"SIMATIC PC DiagMonitor Software added",null,{"$f":"IF($P$13=2,\"X\",\"\")","v":""},"."]
[null,null,null,null,null,null,null,null,null,null,null,null,null,null,2,null,"SIMATIC PC Image&Partition Creator Software  added",null,{"$f":"IF($P$13=3,\"X\",\"\")","v":""},"."]
[null,null,null,null,null,null,null,null,null,null,null,null,null,null,3,null,"SIMATIC PC DiagMonitor  & ImagePartition Creator Software  added",null,{"$f":"IF($P$13=4,\"X\",\"\")","v":""},"."]
[null,null,null,null,null,null,null,null,null,null,null,null,null,null,4,null,"adapter cable DP to VGA for onboard graphics",null,{"$f":"IF($P$13=5,\"X\",\"\")","v":""},"."]
[null,null,null,null,null,null,null,null,null,null,null,null,null,null,5,null,"adapter cable DP to DVI-D for onboard graphics",null,{"$f":"IF($P$13=6,\"X\",\"\")","v":""},"."]
[null,null,null,null,null,null,null,null,null,null,null,null,null,null,8,null,"TPM 2.0",null,{"$f":"IF($P$13=7,\"X\",\"\")","v":""},"."]
[]
[null,null,null,null,null,null,null,null,null,null,null,null,null,null,null,null," IPC base ",null,"X","."]
[]
[{"$f":"A$5","v":"6AG4"},1,0,4,"-",5,{"$f":"G5","v":"C"},{"$f":"H5","v":"A"},{"$f":"I5","v":"0"},{"$f":"J5","v":0},"-",{"$f":"L5","v":0},{"$f":"M5","v":"A"},{"$f":"N5","v":"X"},{"$f":"O5","v":0},null,null,"Total:"]
[]
[]
["Accessories:"]
[null,null,null,null,null,null,null,null,null,null,null,null,null,null,null,null,"Memory Extension"]
["6ES7648-2AL60-0QA0",null,null,null,null,null,null,null,null,null,null,null,null,null,null,null,"4 GB DDR4 DIMM (1x 4); ",null,null,"."]
["6ES7648-2AL70-0QA0",null,null,null,null,null,null,null,null,null,null,null,null,null,null,null,"8 GB DDR4 DIMM (1x 8); ",null,null,"."]
["6ES7648-2AL80-0QA0",null,null,null,null,null,null,null,null,null,null,null,null,null,null,null,"16 GB DDR4 DIMM (1x 16); ",null,null,"."]
["6ES7648-2AL81-0QA0",null,null,null,null,null,null,null,null,null,null,null,null,null,null,null,"32 GB DDR4 DIMM (1x 32); ",null,null,"."]
[]
[null,null,null,null,null,null,null,null,null,null,null,null,null,null,null,null,"Hardware accessory"]
["6ES7648-0EH00-1BA0",null,null,null,null,null,null,null,null,null,null,null,null,null,null,null,"removable tray for 3.5\" HDD (SATA/SAS) or 2.5\" SSD (SATA), w/o drive",null,null,"."]
["6ES7648-1AA00-0XK0",null,null,null,null,null,null,null,null,null,null,null,null,null,null,null,"Retainer to interlock the internal USB interface",null,null,"."]
[]
[null,null,null,null,null,null,null,null,null,null,null,null,null,null,null,null,"Mounting accessory"]
["6ES7648-1AA01-0XC0",null,null,null,null,null,null,null,null,null,null,null,null,null,null,null,"Tower Kit for converting the Rack IPC into an Industrial Tower PC for IPC547G/IPC547J",null,null,"."]
["6ES7648-1AA01-0XE0",null,null,null,null,null,null,null,null,null,null,null,null,null,null,null,"Tower Kit for converting the Rack IPC into an Industrial Tower PC for IPC547G/IPC547J (short enclosure)",null,null,"."]
[]
[null,null,null,null,null,null,null,null,null,null,null,null,null,null,null,null,"Adapter Cable"]
["6ES7648-3AF00-0XA0",null,null,null,null,null,null,null,null,null,null,null,null,null,null,null,"Adapter cable DisplayPort to DVI-D for onboard graphics",null,null,"."]
["6ES7648-3AG00-0XA0",null,null,null,null,null,null,null,null,null,null,null,null,null,null,null,"Adapter cable DisplayPort to VGA for onboard graphics",null,null,"."]
[]
[null,null,null,null,null,null,null,null,null,null,null,null,null,null,null,null," "]
[null,null,null,null,null,null,null,null,null,null,null,null,null,null,null,null,"Click here\nfor additional SIMATIC IPC accessories."]

{"sheet":"IPC647E (Rack)","index":4,"n_rows":126,"n_cols":20,"rows_kept":126,"cut":false,"hidden":false,"merged":[]}
["SIMATIC IPC647E",null,null,null,null,null,null,null,null,null,null,null,null,null,null,null,""]
[null,null,null,null,null,null,null,null,null,null,null,null,null,null,null,null,{"$f":"IF(B76,C76,\"\")","v":""}]
[null,null,null,null,null,null,null,null,null,null,null,null,null,null,null,null,{"$f":"IF(E50,F50,\"\")","v":""}]
[null,null,null,null,null,null,null,null,null,null,null,null,null,null,null,null,""]
["6AG4",1,1,2,"-",3,{"$f":"IF(P6=1,G21,)&IF(P6=2,G22,)&IF(P6=3,G23,)&IF(P6=4,G24,)&IF(P6=5,G25,)&IF(P6=6,G26,)&IF(P6=7,G27,)&IF(P6=8,G28,)&IF(P6=9,G29,)&IF(P6=10,G30,)&IF(P6=11,G31,)&IF(P6=12,G32,)&IF(P6=13,G33,)&IF(P6=14,G34,)&IF(P6=15,G35,)","v":"A"},{"$f":"IF(P7=1,H38,)&IF(P7=2,H39,)&IF(P7=3,H40,)&IF(P7=4,H41,)&IF(P7=5,H42,)&IF(P7=6,H43,)&IF(P7=7,H44,)&IF(P7=8,H45,)&IF(P7=9,H46,)&IF(P7=10,H47,)&IF(P7=11,H48,)&IF(P7=12,H49,)&IF(P7=13,H50,)","v":"A"},{"$f":"IF(P8=1,I53,IF(P8=2,I54,IF(P8=3,I55,IF(P8=4,I56,IF(P8=5,I57,IF(P8=6,I58,IF(P8=7,I59,IF(P8=8,I60))))))))","v":"0"},{"$f":"IF(P9=1,J63,IF(P9=2,J64,IF(P9=3,J65,IF(P9=4,J66,IF(P9=5,J67,IF(P9=6,J68,IF(P9=7,J69,IF(P9=8,J70,IF(P9=9,J71)))))))))","v":0},"-",{"$f":"IF(P10=1,L74,IF(P10=2,L75,IF(P10=3,L76,IF(P10=4,L77,IF(P10=5,L78)))))","v":0},{"$f":"IF(P11=1,M81,IF(P11=2,M82,IF(P11=3,M83,IF(P11=4,M84,IF(P11=5,M85,IF(P11=6,M86,IF(P11=7,M87)))))))","v":"X"},{"$f":"IF(P12=1,N90,IF(P12=2,N91,IF(P12=3,N92,IF(P12=4,N93,IF(P12=5,N94,IF(P12=6,N95,IF(P12=7,N96)))))))","v":"X"},{"$f":"IF(P13=1,O100,IF(P13=2,O101,IF(P13=3,O102,IF(P13=4,O103))))","v":0},null,"SIMATIC IPC647E (Rack PC, 19\", 2U)",{"$f":"$A$5&$B$5&$C$5&$D$5&$E$5&$F$5&$G$5&$H$5&$I$5&$J$5&$K$5&$L$5&$M$5&$N$5&$O$5","v":"6AG4112-3AA00-0XX0"}]
[{"$f":"IF(P6=9,Q29)","v":false},null,null,null,null,null,"|","|","|","|",null,"|","|","|","|",1,{"$f":"IF(P6=1,Q21,)&IF(P6=2,Q22,)&IF(P6=3,Q23,)&IF(P6=4,Q24,)&IF(P6=5,Q25,)&IF(P6=6,Q26,)&IF(P6=7,Q27,)&IF(P6=8,Q28,)&IF(P6=9,Q29,)&IF(P6=10,Q30,)&IF(P6=11,Q31,)&IF(P6=12,Q32,)&IF(P6=13,Q33,)&IF(P6=14,Q34,)&IF(P6=15,Q35,)","v":"Core i3-8100 (4C/4T, 3.6 GHz, 6 MB Cache); Board 2 Slots: 1x PCIe x16 (16 L), 1x PCIe x16 (4 L);"}]
[null,null,null,null,null,null,"|","|","|","|",null,"|","|","|","|",1,{"$f":"IF(P7=1,Q38,)&IF(P7=2,Q39,)&IF(P7=3,Q40,)&IF(P7=4,Q41,)&IF(P7=5,Q42,)&IF(P7=6,Q43,)&IF(P7=7,Q44,)&IF(P7=8,Q45,)&IF(P7=9,Q46,)&IF(P7=10,Q47,)&IF(P7=11,Q48,)&IF(P7=12,Q49,)&IF(P7=13,Q50,)","v":"1 TB HDD 3.5\" SATA"}]
[null,null,null,null,null,null,"|","|","|","|",null,"|","|","|","|",1,{"$f":"IF(P8=1,Q53,IF(P8=2,Q54,IF(P8=3,Q55,IF(P8=4,Q56,IF(P8=5,Q57,IF(P8=6,Q58,IF(P8=7,Q59,IF(P8=8,Q60))))))))","v":"Housing with drive cage type B (for internally mounted / 0,5 g vibration, 5 g shock); 100/240V AC industrial power supply"}]
[null,null,null,null,null,null,"|","|","|","|",null,"|","|","|","|",1,{"$f":"IF(P9=1,Q63,IF(P9=2,Q64,IF(P9=3,Q65,IF(P9=4,Q66,IF(P9=5,Q67,IF(P9=6,Q68,IF(P9=7,Q69,IF(P9=8,Q70,IF(P9=9,Q71)))))))))","v":"4 GB DDR4 SDRAM (1x 4 GB), Single Channel;"}]
[null,null,null,null,null,null,"|","|","|","|",null,"|","|","|","|",1,{"$f":"IF(P10=1,Q74,IF(P10=2,Q75,IF(P10=3,Q76,IF(P10=4,Q77,IF(P10=5,Q78)))))","v":"without extensions"}]
[null,null,null,null,null,null,"|","|","|","|",null,"|","|","|","|",7,{"$f":"IF(P11=1,Q81,IF(P11=2,Q82,IF(P11=3,Q83,IF(P11=4,Q84,IF(P11=5,Q85,IF(P11=6,Q86,IF(P11=7,Q87)))))))","v":"without operating System"}]
[null,null,null,null,null,null,"|","|","|","|",null,"|","|","|","|",6,{"$f":"IF(P12=1,Q90,IF(P12=2,Q91,IF(P12=3,Q92,IF(P12=4,Q93,IF(P12=5,Q94,IF(P12=6,Q95,IF(P12=7,Q96)))))))","v":"without extensions"}]
[null,null,null,null,null,null,"|","|","|","|",null,"|","|","|","|",1,{"$f":"IF(P13=1,Q100,IF(P13=2,Q101,IF(P13=3,Q102,IF(P13=4,Q103,IF(P13=5,#REF!,IF(P13=6,#REF!,IF(P13=7,#REF!,IF(P13=8,#REF!,IF(P13=9,#REF!)))))))))","v":"without power cord;"}]
[null,null,null,null,null,null,"|","|","|","|",null,"|","|","|","|",null,"Interfaces: 3x Gigabit/s Ethernet (IE/PN, RJ45); M.2 PCIe x4 (Key M) Slot internal;"]
[null,null,null,null,null,null,"|","|","|","|",null,"|","|","|","|",null,"1x DVI-D; 2x DisplayPort; 1x COM (RS 232, 9-pol); audio"]
[null,null,null,null,null,null,"|","|","|","|",null,"|","|","|","|",null,"4x USB3.1 Gen2(Type A), 2x USB3.1 Gen2(Type C) backside; 2x USB3.1 Gen1(Type A) frontside; 1x USB3.1 Gen2(Type A) internal;"]
[null,null,null,null,null,null,"|","|","|","|",null,"|","|","|","|",null,"Watchdog, Temperature and Fan Control; Board Retainer"]
[null,null,null,null,null,null,"|","|","|","|",null,"|","|","|","|"]
[null,null,null,null,null,null,"|","|","|","|",null,"|","|","|","|"]
[null,null,null,null,null,null,"|","|","|","|",null,"|","|","|","|",null,"Processor / Board"]
[null,null,null,null,null,null,"A","|","|","|",null,"|","|","|","|",null,"Core i3-8100 (4C/4T, 3.6 GHz, 6 MB Cache); Board 2 Slots: 1x PCIe x16 (16 L), 1x PCIe x16 (4 L);",null,{"$f":"IF($P$6=1,\"X\",\"\")","v":"X"},"."]
[null,null,null,null,null,null,"B","|","|","|",null,"|","|","|","|",null,"Core i3-8100 (4C/4T, 3.6 GHz, 6 MB Cache); Board 4 Slots: 2x PCI, 2x PCIe x16 (8 L);",null,{"$f":"IF($P$6=2,\"X\",\"\")","v":""},"."]
[null,null,null,null,null,null,"C","|","|","|",null,"|","|","|","|",null,"Core i3-8100 (4C/4T, 3.6 GHz, 6 MB Cache); Board 4 Slots: 2x PCIe x16 (8 L), 1x PCIe x16 (4 L), 1x PCIe x16 (1 L);",null,{"$f":"IF($P$6=3,\"X\",\"\")","v":""},"."]
[null,null,null,null,null,null,"D","|","|","|",null,"|","|","|","|",null,"Core i5-8500 (6C/6T, 3.0 (4.1) GHz, 9 MB Cache, TB, AMT); Board 2 Slots: 1x PCIe x16 (16 L), 1x PCIe x16 (4 L);",null,{"$f":"IF($P$6=4,\"X\",\"\")","v":""},"."]
[null,null,null,null,null,null,"E","|","|","|",null,"|","|","|","|",null,"Core i5-8500 (6C/6T, 3.0 (4.1) GHz, 9 MB Cache, TB, AMT); Board 4 Slots: 2x PCI, 2x PCIe x16 (8 L);",null,{"$f":"IF($P$6=5,\"X\",\"\")","v":""},"."]
[null,null,null,null,null,null,"F","|","|","|",null,"|","|","|","|",null,"Core i5-8500 (6C/6T, 3.0 (4.1) GHz, 9 MB Cache, TB, AMT); Board 4 Slots: 2x PCIe x16 (8 L), 1x PCIe x16 (4 L), 1x PCIe x16 (1 L);",null,{"$f":"IF($P$6=6,\"X\",\"\")","v":""},"."]
[null,null,null,null,null,null,"G","|","|","|",null,"|","|","|","|",null,"Core i7-8700 (6C/12T, 3.2 (4.6) GHz, 12 MB Cache, TB, AMT); Board 2 Slots: 1x PCIe x16 (16 L), 1x PCIe x16 (4 L);",null,{"$f":"IF($P$6=7,\"X\",\"\")","v":""},"."]
[null,null,null,null,null,null,"H","|","|","|",null,"|","|","|","|",null,"Core i7-8700 (6C/12T, 3.2 (4.6) GHz, 12 MB Cache, TB, AMT); Board 4 Slots: 2x PCI, 2x PCIe x16 (8 L);",null,{"$f":"IF($P$6=8,\"X\",\"\")","v":""},"."]
[null,null,null,null,null,null,"J","|","|","|",null,"|","|","|","|",null,"Core i7-8700 (6C/12T, 3.2 (4.6) GHz, 12 MB Cache, TB, AMT); Board 4 Slots: 2x PCIe x16 (8 L), 1x PCIe x16 (4 L), 1x PCIe x16 (1 L);",null,{"$f":"IF($P$6=9,\"X\",\"\")","v":""},"."]
[null,null,null,null,null,null,"K","|","|","|",null,"|","|","|","|",null,"Xeon E-2176G (6C/12T, 3.7 (4.7) GHz, 12 MB Cache, TB, AMT); Board 2 Slots: 1x PCIe x16 (16 L), 1x PCIe x16 (4 L);",null,{"$f":"IF($P$6=10,\"X\",\"\")","v":""},"."]
[null,null,null,null,null,null,"L","|","|","|",null,"|","|","|","|",null,"Xeon E-2176G (6C/12T, 3.7 (4.7) GHz, 12 MB Cache, TB, AMT); Board 4 Slots: 2x PCI, 2x PCIe x16 (8 L);",null,{"$f":"IF($P$6=11,\"X\",\"\")","v":""},"."]
[null,null,null,null,null,null,"M","|","|","|",null,"|","|","|","|",null,"Xeon E-2176G (6C/12T, 3.7 (4.7) GHz, 12 MB Cache, TB, AMT); Board 4 Slots: 2x PCIe x16 (8 L), 1x PCIe x16 (4 L), 1x PCIe x16 (1 L);",null,{"$f":"IF($P$6=12,\"X\",\"\")","v":""},"."]
[null,null,null,null,null,null,"N","|","|","|",null,"|","|","|","|",null,"Xeon E-2278GE (8C/16T, 3.3 (4.7) GHz, 16 MB Cache, TB, AMT); Board 2 Slots: 1x PCIe x16 (16 L), 1x PCIe x16 (4 L);",null,{"$f":"IF($P$6=13,\"X\",\"\")","v":""},"."]
[null,null,null,null,null,null,"Q","|","|","|",null,"|","|","|","|",null,"Xeon E-2278GE (8C/16T, 3.3 (4.7) GHz, 16 MB Cache, TB, AMT); Board 4 Slots: 2x PCI, 2x PCIe x16 (8 L);",null,{"$f":"IF($P$6=14,\"X\",\"\")","v":""},"."]
[null,null,null,null,null,null,"R","|","|","|",null,"|","|","|","|",null,"Xeon E-2278GE (8C/16T, 3.3 (4.7) GHz, 16 MB Cache, TB, AMT); Board 4 Slots: 2x PCIe x16 (8 L), 1x PCIe x16 (4 L), 1x PCIe x16 (1 L);",null,{"$f":"IF($P$6=15,\"X\",\"\")","v":""},"."]
[null,null,null,null,null,null,null,"|","|","|",null,"|","|","|","|"]
[null,null,null,null,null,null,null,"|","|","|",null,"|","|","|","|",null,"Drives"]
[null,null,null,null,null,null,null,"A","|","|",null,"|","|","|","|",null,"1 TB HDD 3.5\" SATA",null,{"$f":"IF($P$7=1,\"X\",\"\")","v":"X"},"."]
[null,null,null,null,null,null,null,"B","|","|",null,"|","|","|","|",null,"2x 1 TB HDD 3.5\" SATA",null,{"$f":"IF($P$7=2,\"X\",\"\")","v":""},"."]
[null,null,null,null,null,null,null,"C","|","|",null,"|","|","|","|",null,"RAID1, 2x 1 TB HDD 3.5\" SATA",null,{"$f":"IF($P$7=3,\"X\",\"\")","v":""},"."]
["Capacità aumentata",null,null,null,null,null,null,"D","|","|",null,"|","|","|","|",null,"RAID1, 2x 2 TB HDD [Enterprise] 3.5\" SATA ",null,{"$f":"IF($P$7=4,\"X\",\"\")","v":""},"."]
["Capacità aumentata",null,null,null,null,null,null,"E","|","|",null,"|","|","|","|",null,"RAID1, 2x 4 TB HDD [Enterprise] 3.5\" SATA ",null,{"$f":"IF($P$7=5,\"X\",\"\")","v":""},"."]
["Capacità aumentata",null,null,null,null,null,null,"K","|","|",null,"|","|","|","|",null,"RAID1, 2x 2 TB HDD [Enterprise] 3.5\" SAS; PCIe x8 RAID controller incl. ZMCP-Modul (1 Slot occupied)",null,{"$f":"IF($P$7=6,\"X\",\"\")","v":""},"."]
["Capacità aumentata",null,null,null,null,null,null,"L","|","|",null,"|","|","|","|",null,"RAID1, 2x 2 TB HDD [Enterprise] 3.5\" SAS; PCIe x8 RAID controller incl. ZMCP-Modul (1 Slot occupied) + 480 GB SSD 2.5\" SATA internally mounted",null,{"$f":"IF($P$7=7,\"X\",\"\")","v":""},"."]
["Capacità aumentata",null,null,null,null,null,null,"P","|","|",null,"|","|","|","|",null,"1 TB HDD 3.5\" SATA + 480 GB SSD 2.5\" SATA (for OS, if M.2 SSD does not order)",null,{"$f":"IF($P$7=8,\"X\",\"\")","v":""},"."]
[null,null,null,null,null,null,null,"Q","|","|",null,"|","|","|","|",null,"480 GB SSD 2.5\" SATA",null,{"$f":"IF($P$7=9,\"X\",\"\")","v":""},"."]
[null,null,null,null,null,null,null,"R","|","|",null,"|","|","|","|",null,"960 GB SSD 2.5\" SATA",null,{"$f":"IF($P$7=10,\"X\",\"\")","v":""},"."]
[null,null,null,null,null,null,null,"S","|","|",null,"|","|","|","|",null,"2x 480 GB SSD 2.5\" SATA",null,{"$f":"IF($P$7=11,\"X\",\"\")","v":""},"."]
[null,null,null,null,null,null,null,"T","|","|",null,"|","|","|","|",null,"RAID1, 2x 480 GB SSD 2.5\" SATA",null,{"$f":"IF($P$7=12,\"X\",\"\")","v":""},"."]
[null,null,null,null,{"$f":"IF(AND(OR(P11=1,P11=2,P11=3,P11=4,P11=5,P11=6),OR(P10=1,P10=2),P7=13),1,0)","v":0},"CONFIGURATION NOT POSSIBLE: Operating system is only with HDD/SSD drives available",null,"X","|","|",null,"|","|","|","|",null,"without drives",null,{"$f":"IF($P$7=13,\"X\",\"\")","v":""},"."]
[null,null,null,null,null,null,null,null,"|","|",null,"|","|","|","|"]
[null,null,null,null,null,null,null,null,"|","|",null,"|","|","|","|",null,"Type of Housing, power supplies"]
[null,null,null,null,null,null,null,null,{"$f":"IF(OR(($P$7=6),($P$7=7)),\"!\",\"0\")","v":"0"},"|",null,"|","|","|","|",null,"Housing with drive cage type B (for internally mounted / 0,5 g vibration, 5 g shock); 100/240V AC industrial power supply",null,{"$f":"IF($P$8=1,\"X\",\"\")","v":"X"}]
[null,null,null,null,null,null,null,null,1,"|",null,"|","|","|","|",null,"Housing with drive cage type A (for frontside mounted removable tray); 100/240V AC industrial power supply",null,{"$f":"IF($P$8=2,\"X\",\"\")","v":""}]
[null,null,null,null,null,null,null,null,{"$f":"IF(OR(($P$7=6),($P$7=7)),\"!\",\"2\")","v":"2"},"|",null,"|","|","|","|",null,"Housing with drive cage type B (for internally mounted / 0,5 g vibration, 5 g shock); 2x 100/240V AC redundant industrial power supply",null,{"$f":"IF($P$8=3,\"X\",\"\")","v":""}]
[null,null,null,null,null,null,null,null,3,"|",null,"|","|","|","|",null,"Housing with drive cage type A (for frontside mounted removable tray); 2x 100/240V AC redundant industrial power supply",null,{"$f":"IF($P$8=4,\"X\",\"\")","v":""}]
[null,null,null,null,null,null,null,null,{"$f":"IF(OR(($P$7=6),($P$7=7)),\"!\",\"4\")","v":"4"},"|",null,"|","|","|","|",null,"Housing with drive cage type B (for internally mounted / 0,5 g vibration, 5 g shock) + COM2 port; 100/240V AC industrial power supply",null,{"$f":"IF($P$8=5,\"X\",\"\")","v":""}]
[null,null,null,null,null,null,null,null,5,"|",null,"|","|","|","|",null,"Housing with drive cage type A (for frontside mounted removable tray) + COM2 port; 100/240V AC industrial power supply",null,{"$f":"IF($P$8=6,\"X\",\"\")","v":""}]
[null,null,null,null,null,null,null,null,{"$f":"IF(OR(($P$7=6),($P$7=7)),\"!\",\"6\")","v":"6"},"|",null,"|","|","|","|",null,"Housing with drive cage type B (for internally mounted / 0,5 g vibration, 5 g shock) + COM2 port; 2x 100/240V AC redundant industrial power supply",null,{"$f":"IF($P$8=7,\"X\",\"\")","v":""}]
[null,null,null,null,null,null,null,null,7,"|",null,"|","|","|","|",null,"Housing with drive cage type A (for frontside mounted removable tray) + COM2 port; 2x 100/240V AC redundant industrial power supply",null,{"$f":"IF($P$8=8,\"X\",\"\")","v":""}]
[null,null,null,null,null,null,null,null,null,"|",null,"|","|","|","|"]
[null,null,null,null,null,null,null,null,null,"|",null,"|","|","|","|",null,"Main Memory"]
[null,null,null,null,null,null,null,null,null,0,null,"|","|","|","|",null,"4 GB DDR4 SDRAM (1x 4 GB), Single Channel;",null,{"$f":"IF($P$9=1,\"X\",\"\")","v":"X"},"."]
[null,null,null,null,null,null,null,null,null,1,null,"|","|","|","|",null,"8 GB DDR4 SDRAM (2x 4 GB), Dual Channel;",null,{"$f":"IF($P$9=2,\"X\",\"\")","v":""},"."]
[null,null,null,null,null,null,null,null,null,2,null,"|","|","|","|",null,"16 GB DDR4 SDRAM (2x 8 GB), Dual Channel;",null,{"$f":"IF($P$9=3,\"X\",\"\")","v":""},"."]
[null,null,null,null,null,null,null,null,null,3,null,"|","|","|","|",null,"32 GB DDR4 SDRAM (2x 16 GB), Dual Channel;",null,{"$f":"IF($P$9=4,\"X\",\"\")","v":""},"."]
[null,null,null,null,null,null,null,null,null,4,null,"|","|","|","|",null,"64 GB DDR4 SDRAM (4x 16 GB), Dual Channel;",null,{"$f":"IF($P$9=5,\"X\",\"\")","v":""},"."]
[null,null,null,null,null,null,null,null,null,5,null,"|","|","|","|",null,"128 GB DDR4 SDRAM (4x 32 GB), Dual Channel;",null,{"$f":"IF($P$9=6,\"X\",\"\")","v":""},"."]
[null,null,null,null,null,null,null,null,null,{"$f":"IF(OR(($P$6=4),($P$6=5),($P$6=6),($P$6=7),($P$6=8),($P$6=9)),\"!\",\"6\")","v":"6"},null,"|","|","|","|",null,"16 GB DDR4 SDRAM (2x 8 GB), Dual Channel; ECC [only with Core i3 / Xeon]",null,{"$f":"IF($P$9=7,\"X\",\"\")","v":""},"."]
[null,null,null,null,null,null,null,null,null,{"$f":"IF(OR(($P$6=4),($P$6=5),($P$6=6),($P$6=7),($P$6=8),($P$6=9)),\"!\",\"7\")","v":"7"},null,"|","|","|","|",null,"32 GB DDR4 SDRAM (2x 16 GB), Dual Channel; ECC [only with Core i3 / Xeon]",null,{"$f":"IF($P$9=8,\"X\",\"\")","v":""},"."]
[null,null,null,null,null,null,null,null,null,{"$f":"IF(OR(($P$6=4),($P$6=5),($P$6=6),($P$6=7),($P$6=8),($P$6=9)),\"!\",\"8\")","v":"8"},null,"|","|","|","|",null,"64 GB DDR4 SDRAM (4x 16 GB), Dual Channel; ECC [only with Core i3 / Xeon]",null,{"$f":"IF($P$9=9,\"X\",\"\")","v":""},"."]
[null,null,null,null,null,null,null,null,null,null,null,"|","|","|","|"]
[null,null,null,null,null,null,null,null,null,null,null,"|","|","|","|",null,"Extensions (Hardware)"]
[null,null,null,null,null,null,null,null,null,null,null,0,"|","|","|",null,"without extensions",null,{"$f":"IF($P$10=1,\"X\",\"\")","v":"X"},"."]
[null,null,null,null,null,null,null,null,null,null,null,2,"|","|","|",null,"PCIe x16 graphics card NVIDIA P400 (3x mDP: 3x adapter mDP to DP), 2 GB (1 Slot occupied)",null,{"$f":"IF($P$10=2,\"X\",\"\")","v":""},"."]
[null,{"$f":"IF(AND(OR($P$7=17,$P$7=18,$P$7=19,$P$7=20),OR($P$9=1,$P$9=3),$P$10=5),1,0)","v":0},"The selected combination is not valid: PCIe x8 RAID controller not with 7 PCI slots board and graphics card",".",null,null,null,null,null,null,null,4,"|","|","|",null,"512 GB SSD M.2 NVMe (M.2 Slot occupied) (for OS)",null,{"$f":"IF($P$10=3,\"X\",\"\")","v":""},"."]
[null,null,null,null,null,null,null,null,null,null,null,5,"|","|","|",null,"512 GB SSD M.2 NVMe (M.2 Slot occupied) (for OS) + PCIe x16 graphics card NVIDIA P400 (3x mDP: 3x adapter mDP to DP), 2 GB (1 Slot occupied)",null,{"$f":"IF($P$10=4,\"X\",\"\")","v":""},"."]
[null,null,null,null,null,null,null,null,null,null,null,6,"|","|","|",null,"1024 GB SSD M.2 NVMe (M.2 Slot occupied) (for OS)",null,{"$f":"IF($P$10=5,\"X\",\"\")","v":""},"."]
[null,null,null,null,null,null,null,null,null,null,null,null,"|","|","|"]
[null,null,null,null,null,null,null,null,null,null,null,null,"|","|","|",null,"Operating Systems (pre-installed and activated)"]
[null,null,null," .",null,null,null,null,null,null,null,null,{"$f":"IF(OR(($P$6=7),($P$6=8),($P$6=9),($P$6=10),($P$6=11),($P$6=12),($P$6=13),($P$6=14),($P$6=15)),\"!\",\"A\")","v":"A"},"|","|",null,"Windows 10 Enterprise 2016 LTSB, Multi Language (En, Ger, Fr, It, Sp), 64 bit;[for processors Core i3 / Core i5]",null,{"$f":"IF($P$11=1,\"X\",\"\")","v":""},"."]
[null,null,null," .",null,null,null,null,null,null,null,null,{"$f":"IF(OR(($P$6=1),($P$6=2),($P$6=3),($P$6=4),($P$6=5),($P$6=6),($P$6=13),($P$6=14),($P$6=15)),\"!\",\"B\")","v":"!"},"|","|",null,"Windows 10 Enterprise 2016 LTSB, Multi Language (En, Ger, Fr, It, Sp), 64 bit;[for processor Core i7 / Xeon]",null,{"$f":"IF($P$11=2,\"X\",\"\")","v":""},"."]
[null,{"$f":"IF(AND(OR($P$6=7,$P$6=8,$P$6=9,$P$6=10,$P$6=11,$P$6=12,),$P$11=4),1,0)","v":0},"The selected combination is not valid: PCIe x8 RAID controller only with Windows server OS or Windows 7, 64Bit"," .",null,null,null,null,null,null,null,null,{"$f":"IF(OR(($P$6=7),($P$6=8),($P$6=9),($P$6=10),($P$6=11),($P$6=12),($P$6=13),($P$6=14),($P$6=15)),\"!\",\"C\")","v":"C"},"|","|",null,"Windows 10 IoT Enterprise 2019 LTSC, Multi Language (En, Ger, Fr, It, Sp), 64 bit;[for processors Core i3 / Core i5]",null,{"$f":"IF($P$11=3,\"X\",\"\")","v":""},"."]
[null,{"$f":"IF(AND(OR($P$7=17,$P$7=18,$P$7=19,$P$7=20,),$P$11=5),1,0)","v":0},"The selected combination is not valid: PCIe x8 RAID controller only with Windows server OS or Windows 7, 64Bit"," .",null,null,null,null,null,null,null,null,{"$f":"IF(OR(($P$6=1),($P$6=2),($P$6=3),($P$6=4),($P$6=5),($P$6=6)),\"!\",\"D\")","v":"!"},"|","|",null,"Windows 10 IoT Enterprise 2019 LTSC, Multi Language (En, Ger, Fr, It, Sp), 64 bit;[for processor Core i7 / Xeon]",null,{"$f":"IF($P$11=4,\"X\",\"\")","v":""},"."]
[null,null,null,null,null,null,null,null,null,null,null,null,{"$f":"IF(OR(($P$6=13),($P$6=14),($P$6=15)),\"!\",\"H\")","v":"H"},"|","|",null,"Windows Server 2016 Standard Edition 64 bit, incl. 5 clients multi language (En, Ger, Fr, It, Sp);",null,{"$f":"IF($P$11=5,\"X\",\"\")","v":""},"."]
[null,null,null,null,null,null,null,null,null,null,null,null,"J","|","|",null,"Windows Server 2019 Standard Edition 64 bit, incl. 5 clients multi language (En, Ger, Fr, It, Sp);",null,{"$f":"IF($P$11=6,\"X\",\"\")","v":""},"."]
[null,null,null,null,null,null,null,null,null,null,null,null,"X","|","|",null,"without operating System",null,{"$f":"IF($P$11=7,\"X\",\"\")","v":"X"},"."]
[null,null,null,null,null,null,null,null,null,null,null,null,null,"|","|"]
[null,null,null,null,null,null,null,null,null,null,null,null,null,"|","|",null,"Extensions (Software / Adapter / Security)"]
[null,null,null,null,null,null,null,null,null,null,null,null,null,"A","|",null,"SIMATIC PC DiagMonitor Software added",null,{"$f":"IF($P$12=1,\"X\",\"\")","v":""},"."]
[null,null,null,null,null,null,null,null,null,null,null,null,null,"B","|",null,"SIMATIC PC Image&Partition Creator Software  added",null,{"$f":"IF($P$12=2,\"X\",\"\")","v":""},"."]
[null,null,null,null,null,null,null,null,null,null,null,null,null,"C","|",null,"SIMATIC PC DiagMonitor  & ImagePartition Creator Software  added",null,{"$f":"IF($P$12=3,\"X\",\"\")","v":""},"."]
[null,null,null,null,null,null,null,null,null,null,null,null,null,"H","|",null,"adapter cable DP to VGA for onboard graphics",null,{"$f":"IF($P$12=4,\"X\",\"\")","v":""},"."]
[null,null,null,null,null,null,null,null,null,null,null,null,null,"J","|",null,"adapter cable DP to DVI-D for onboard graphics",null,{"$f":"IF($P$12=5,\"X\",\"\")","v":""},"."]
[null,null,null,null,null,null,null,null,null,null,null,null,null,"X","|",null,"without extensions",null,{"$f":"IF($P$12=6,\"X\",\"\")","v":"X"},"."]
[null,null,null,null,null,null,null,null,null,null,null,null,null,"Y","|",null,"TPM 2.0",null,{"$f":"IF($P$12=7,\"X\",\"\")","v":""},"."]
[null,null,null,null,null,null,null,null,null,null,null,null,null,null,"|"]
[null,null,null,null,null,null,null,null,null,null,null,null,null,null,"|"]
[null,null,null,null,null,null,null,null,null,null,null,null,null,null,"|",null,"Country-specific types"]
[null,null,null,null,null,null,null,null,null,null,null,null,null,null,0,null,"without power cord;",null,{"$f":"IF($P$13=1,\"X\",\"\")","v":"X"},"."]
[null,null,null,null,null,null,null,null,null,null,null,null,null,null,1,null,"power cord Europe;",null,{"$f":"IF($P$13=2,\"X\",\"\")","v":""},"."]
[null,null,null,null,null,null,null,null,null,null,null,null,null,null,2,null,"power cord USA;",null,{"$f":"IF($P$13=3,\"X\",\"\")","v":""},"."]
[null,null,null,null,null,null,null,null,null,null,null,null,null,null,3,null,"power cord China;",null,{"$f":"IF($P$13=4,\"X\",\"\")","v":""},"."]
[]
[null,null,null,null,null,null,null,null,null,null,null,null,null,null,null,null," IPC base ",null,"X","."]
[]
[{"$f":"A$5","v":"6AG4"},1,1,2,"-",3,{"$f":"G5","v":"A"},{"$f":"H5","v":"A"},{"$f":"I5","v":"0"},{"$f":"J5","v":0},"-",{"$f":"L5","v":0},{"$f":"M5","v":"X"},{"$f":"N5","v":"X"},{"$f":"O5","v":0},null,null,"Total:"]
[]
[]
["Accessories:"]
[null,null,null,null,null,null,null,null,null,null,null,null,null,null,null,null,"Memory Extension"]
["6ES7648-2AL60-0QA0",null,null,null,null,null,null,null,null,null,null,null,null,null,null,null,"4 GB DDR4 DIMM (1x 4); "]
["6ES7648-2AL70-0QA0",null,null,null,null,null,null,null,null,null,null,null,null,null,null,null,"8 GB DDR4 DIMM (1x 8); "]
["6ES7648-2AL80-0QA0",null,null,null,null,null,null,null,null,null,null,null,null,null,null,null,"16 GB DDR4 DIMM (1x 16); "]
["6ES7648-2AL81-0QA0",null,null,null,null,null,null,null,null,null,null,null,null,null,null,null,"32 GB DDR4 DIMM (1x 32); "]
[]
[null,null,null,null,null,null,null,null,null,null,null,null,null,null,null,null,"HW Accessory"]
["6ES7648-0EH00-1BA0",null,null,null,null,null,null,null,null,null,null,null,null,null,null,null,"Tray for low-profile removable frame for 3.5\" HDD (SATA/SAS) and 2.5\" SSD (SATA), w/o drive"]
["6ES7648-1AA00-0XK0",null,null,null,null,null,null,null,null,null,null,null,null,null,null,null,"Retainer for the interlocking of the internal USB interface"]
[]
[null,null,null,null,null,null,null,null,null,null,null,null,null,null,null,null,"Adapter Cable"]
["6ES7648-3AF00-0XA0",null,null,null,null,null,null,null,null,null,null,null,null,null,null,null,"Adapter cable DisplayPort to DVI-D"]
["6ES7648-3AG00-0XA0",null,null,null,null,null,null,null,null,null,null,null,null,null,null,null,"Adapter cable DisplayPort to VGA"]
[]
[]
[null,null,null,null,null,null,null,null,null,null,null,null,null,null,null,null,"Click here\nfor additional SIMATIC IPC accessories."]

{"sheet":"IPC847E (Rack)","index":5,"n_rows":133,"n_cols":20,"rows_kept":133,"cut":false,"hidden":false,"merged":[]}
["SIMATIC IPC847E",null,null,null,null,null,null,null,null,null,null,null,null,null,null,null,""]
[null,null,null,null,null,null,null,null,null,null,null,null,null,null,null,null,""]
[null,null,null,null,null,null,null,null,null,null,null,null,null,null,null,null,{"$f":"IF(E56,F56,\"\")","v":""}]
[null,null,null,null,null,null,null,null,null,null,null,null,null,null,null,null,""]
["6AG4",1,1,4,"-",3,{"$f":"IF(P6=1,G21,)&IF(P6=2,G22,)&IF(P6=3,G23,)&IF(P6=4,G24,)&IF(P6=5,G25,)&IF(P6=6,G26,)&IF(P6=7,G27,)&IF(P6=8,G28,)&IF(P6=9,G29,)&IF(P6=10,G30,)&IF(P6=11,G31,)&IF(P6=12,G32,)&IF(P6=13,G33,)&IF(P6=14,G34,)&IF(P6=15,G35,)","v":"A"},{"$f":"IF(P7=1,H38,)&IF(P7=2,H39,)&IF(P7=3,H40,)&IF(P7=4,H41,)&IF(P7=5,H42,)&IF(P7=6,H43,)&IF(P7=7,H44,)&IF(P7=8,H45,)&IF(P7=9,H46,)&IF(P7=10,H47,)&IF(P7=11,H48,)&IF(P7=12,H49,)&IF(P7=13,H50,)&IF(P7=14,H51,)&IF(P7=15,H52,)&IF(P7=16,H53,)&IF(P7=17,H54,)&IF(P7=18,H55,)&IF(P7=19,H56,)","v":"A"},{"$f":"IF(P8=1,I59,IF(P8=2,I60,IF(P8=3,I61,IF(P8=4,I62,IF(P8=5,I63,IF(P8=6,I64,IF(P8=7,I65,IF(P8=8,I66,IF(P8=9,I67)))))))))","v":"0"},{"$f":"IF(P9=1,J70,IF(P9=2,J71,IF(P9=3,J72,IF(P9=4,J73,IF(P9=5,J74,IF(P9=6,J75,IF(P9=7,J76,IF(P9=8,J77,IF(P9=9,J78)))))))))","v":0},"-",{"$f":"IF(P10=1,L81,IF(P10=2,L82,IF(P10=3,L83,IF(P10=4,L84,IF(P10=5,L85,IF(P10=6,L86,IF(P10=7,L87,IF(P10=8,L88))))))))","v":0},{"$f":"IF(P11=1,M91,IF(P11=2,M92,IF(P11=3,M93,IF(P11=4,M94,IF(P11=5,M95,IF(P11=6,M96,IF(P11=7,M97)))))))","v":"X"},{"$f":"IF(P12=1,N100,IF(P12=2,N101,IF(P12=3,N102,IF(P12=4,N103,IF(P12=5,N104,IF(P12=6,N105,IF(P12=7,N106)))))))","v":"X"},{"$f":"IF(P13=1,O110,IF(P13=2,O111,IF(P13=3,O112,IF(P13=4,O113))))","v":0},null,"SIMATIC IPC847E (Rack PC, 19\", 4U)",{"$f":"$A$5&$B$5&$C$5&$D$5&$E$5&$F$5&$G$5&$H$5&$I$5&$J$5&$K$5&$L$5&$M$5&$N$5&$O$5","v":"6AG4114-3AA00-0XX0"}]
[null,null,null,null,null,null,"|","|","|","|",null,"|","|","|","|",1,{"$f":"IF(P6=1,Q21,)&IF(P6=2,Q22,)&IF(P6=3,Q23,)&IF(P6=4,Q24,)&IF(P6=5,Q25,)&IF(P6=6,Q26,)&IF(P6=7,Q27,)&IF(P6=8,Q28,)&IF(P6=9,Q29,)&IF(P6=10,Q30,)&IF(P6=11,Q31,)&IF(P6=12,Q32,)&IF(P6=13,Q33,)&IF(P6=14,Q34,)&IF(P6=15,Q35,)","v":"Core i3-8100 (4C/4T, 3.6 GHz, 6 MB Cache); Board 9 Slots: 7x PCI, 2x PCIe x16 (8 L);"}]
[null,null,null,null,null,null,"|","|","|","|",null,"|","|","|","|",1,{"$f":"IF(P7=1,Q38,)&IF(P7=2,Q39,)&IF(P7=3,Q40,)&IF(P7=4,Q41,)&IF(P7=5,Q42,)&IF(P7=6,Q43,)&IF(P7=7,Q44,)&IF(P7=8,Q45,)&IF(P7=9,Q46,)&IF(P7=10,Q47,)&IF(P7=11,Q48,)&IF(P7=12,Q49,)&IF(P7=13,Q50,)&IF(P7=14,Q51,)&IF(P7=15,Q52,)&IF(P7=16,Q53,)&IF(P7=17,Q54,)&IF(P7=18,Q55,)&IF(P7=19,Q56,)","v":"1 TB HDD 3.5\" SATA"}]
[null,null,null,null,null,null,"|","|","|","|",null,"|","|","|","|",1,{"$f":"IF(P8=1,Q59,IF(P8=2,Q60,IF(P8=3,Q61,IF(P8=4,Q62,IF(P8=5,Q63,IF(P8=6,Q64,IF(P8=7,Q65,IF(P8=8,Q66,IF(P8=9,Q67)))))))))","v":"Housing with drive cage type B (for internally mounted / 0,5 g vibration, 5 g shock); 100/240V AC industrial power supply"}]
[null,null,null,null,null,null,"|","|","|","|",null,"|","|","|","|",1,{"$f":"IF(P9=1,Q70,IF(P9=2,Q71,IF(P9=3,Q72,IF(P9=4,Q73,IF(P9=5,Q74,IF(P9=6,Q75,IF(P9=7,Q76,IF(P9=8,Q77,IF(P9=9,Q78)))))))))","v":"4 GB DDR4 SDRAM (1x 4 GB), Single Channel;"}]
[null,null,null,null,null,null,"|","|","|","|",null,"|","|","|","|",1,{"$f":"IF(P10=1,Q81,IF(P10=2,Q82,IF(P10=3,Q83,IF(P10=4,Q84,IF(P10=5,Q85,IF(P10=6,Q86,IF(P10=7,Q87,IF(P10=8,Q88))))))))","v":"without extensions"}]
[null,null,null,null,null,null,"|","|","|","|",null,"|","|","|","|",7,{"$f":"IF(P11=1,Q91,IF(P11=2,Q92,IF(P11=3,Q93,IF(P11=4,Q94,IF(P11=5,Q95,IF(P11=6,Q96,IF(P11=7,Q97)))))))","v":"without operating System"}]
[null,null,null,null,null,null,"|","|","|","|",null,"|","|","|","|",6,{"$f":"IF(P12=1,Q100,IF(P12=2,Q101,IF(P12=3,Q102,IF(P12=4,Q103,IF(P12=5,Q104,IF(P12=6,Q105,IF(P12=7,Q106)))))))","v":"without extensions"}]
[null,null,null,null,null,null,"|","|","|","|",null,"|","|","|","|",1,{"$f":"IF(P13=1,Q110,IF(P13=2,Q111,IF(P13=3,Q112,IF(P13=4,Q113,IF(P13=5,#REF!,IF(P13=6,#REF!,IF(P13=7,#REF!,IF(P13=8,#REF!,IF(P13=9,#REF!)))))))))","v":"without power cord;"}]
[null,null,null,null,null,null,"|","|","|","|",null,"|","|","|","|",null,"Interfaces: 3x Gigabit/s Ethernet (IE/PN, RJ45);"]
[null,null,null,null,null,null,"|","|","|","|",null,"|","|","|","|",null,"1x DVI-D; 2x DisplayPort; 1x COM (RS 232, 9-pol); audio"]
[null,null,null,null,null,null,"|","|","|","|",null,"|","|","|","|",null,"4x USB3.1 Gen2(Type A), 2x USB3.1 Gen2(Type C) backside; 2x USB3.1 Gen1(Type A) frontside; 1x USB3.1 Gen2(Type A) internal;"]
[null,null,null,null,null,null,"|","|","|","|",null,"|","|","|","|",null,"Watchdog, Temperature and Fan Control; Board Retainer"]
[null,null,null,null,null,null,"|","|","|","|",null,"|","|","|","|"]
[null,null,null,null,null,null,"|","|","|","|",null,"|","|","|","|"]
[null,null,null,null,null,null,"|","|","|","|",null,"|","|","|","|",null,"Processor / Board"]
[null,null,null,null,null,null,"A","|","|","|",null,"|","|","|","|",null,"Core i3-8100 (4C/4T, 3.6 GHz, 6 MB Cache); Board 9 Slots: 7x PCI, 2x PCIe x16 (8 L);",null,{"$f":"IF($P$6=1,\"X\",\"\")","v":"X"},"."]
[null,null,null,null,null,null,"B","|","|","|",null,"|","|","|","|",null,"Core i3-8100 (4C/4T, 3.6 GHz, 6 MB Cache); Board 11 Slots: 3x PCI, 1x PCIe x16 (8 L), 5x PCIe x16 (4 L), 2x PCIe x4 (4 L);",null,{"$f":"IF($P$6=2,\"X\",\"\")","v":""},"."]
[null,null,null,null,null,null,"C","|","|","|",null,"|","|","|","|",null,"Core i3-8100 (4C/4T, 3.6 GHz, 6 MB Cache); Board 11 Slots: 3x PCI, 1x PCIe x16 (16 L), 3x PCIe x16 (4 L), 2x PCIe x16 (1 L), 2x PCIe x4 (4 L); ",null,{"$f":"IF($P$6=3,\"X\",\"\")","v":""},"."]
[null,null,null,null,null,null,"D","|","|","|",null,"|","|","|","|",null,"Core i5-8500 (6C/6T, 3.0 (4.1) GHz, 9 MB Cache, TB, AMT); Board 9 Slots: 7x PCI, 2x PCIe x16 (8 L);",null,{"$f":"IF($P$6=4,\"X\",\"\")","v":""},"."]
[null,null,null,null,null,null,"E","|","|","|",null,"|","|","|","|",null,"Core i5-8500 (6C/6T, 3.0 (4.1) GHz, 9 MB Cache, TB, AMT); Board 11 Slots: 3x PCI, 1x PCIe x16 (8 L), 5x PCIe x16 (4 L), 2x PCIe x4 (4 L);",null,{"$f":"IF($P$6=5,\"X\",\"\")","v":""},"."]
[null,null,null,null,null,null,"F","|","|","|",null,"|","|","|","|",null,"Core i5-8500 (6C/6T, 3.0 (4.1) GHz, 9 MB Cache, TB, AMT); Board 11 Slots: 3x PCI, 1x PCIe x16 (16 L), 3x PCIe x16 (4 L), 2x PCIe x16 (1 L), 2x PCIe x4 (4 L); ",null,{"$f":"IF($P$6=6,\"X\",\"\")","v":""},"."]
[null,null,null,null,null,null,"G","|","|","|",null,"|","|","|","|",null,"Core i7-8700 (6C/12T, 3.2 (4.6) GHz, 12 MB Cache, TB, AMT); Board 9 Slots: 7x PCI, 2x PCIe x16 (8 L);",null,{"$f":"IF($P$6=7,\"X\",\"\")","v":""},"."]
[null,null,null,null,null,null,"H","|","|","|",null,"|","|","|","|",null,"Core i7-8700 (6C/12T, 3.2 (4.6) GHz, 12 MB Cache, TB, AMT); Board 11 Slots: 3x PCI, 1x PCIe x16 (8 L), 5x PCIe x16 (4 L), 2x PCIe x4 (4 L);",null,{"$f":"IF($P$6=8,\"X\",\"\")","v":""},"."]
[null,null,null,null,null,null,"J","|","|","|",null,"|","|","|","|",null,"Core i7-8700 (6C/12T, 3.2 (4.6) GHz, 12 MB Cache, TB, AMT); Board 11 Slots: 3x PCI, 1x PCIe x16 (16 L), 3x PCIe x16 (4 L), 2x PCIe x16 (1 L), 2x PCIe x4 (4 L); ",null,{"$f":"IF($P$6=9,\"X\",\"\")","v":""},"."]
[null,null,null,null,null,null,"K","|","|","|",null,"|","|","|","|",null,"Xeon E-2176G (6C/12T, 3.7 (4.7) GHz, 12 MB Cache, TB, AMT); Board 9 Slots: 7x PCI, 2x PCIe x16 (8 L);",null,{"$f":"IF($P$6=10,\"X\",\"\")","v":""},"."]
[null,null,null,null,null,null,"L","|","|","|",null,"|","|","|","|",null,"Xeon E-2176G (6C/12T, 3.7 (4.7) GHz, 12 MB Cache, TB, AMT); Board 11 Slots: 3x PCI, 1x PCIe x16 (8 L), 5x PCIe x16 (4 L), 2x PCIe x4 (4 L);",null,{"$f":"IF($P$6=11,\"X\",\"\")","v":""},"."]
[null,null,null,null,null,null,"M","|","|","|",null,"|","|","|","|",null,"Xeon E-2176G (6C/12T, 3.7 (4.7) GHz, 12 MB Cache, TB, AMT); Board 11 Slots: 3x PCI, 1x PCIe x16 (16 L), 3x PCIe x16 (4 L), 2x PCIe x16 (1 L), 2x PCIe x4 (4 L); ",null,{"$f":"IF($P$6=12,\"X\",\"\")","v":""},"."]
[null,null,null,null,null,null,"N","|","|","|",null,"|","|","|","|",null,"Xeon E-2278GE (8C/16T, 3.3 (4.7) GHz, 16 MB Cache, TB, AMT); Board 9 Slots: 7x PCI, 2x PCIe x16 (8 L);",null,{"$f":"IF($P$6=13,\"X\",\"\")","v":""},"."]
[null,null,null,null,null,null,"Q","|","|","|",null,"|","|","|","|",null,"Xeon E-2278GE (8C/16T, 3.3 (4.7) GHz, 16 MB Cache, TB, AMT); Board 11 Slots: 3x PCI, 1x PCIe x16 (8 L), 5x PCIe x16 (4 L), 2x PCIe x4 (4 L);",null,{"$f":"IF($P$6=14,\"X\",\"\")","v":""},"."]
[null,null,null,null,null,null,"R","|","|","|",null,"|","|","|","|",null,"Xeon E-2278GE (8C/16T, 3.3 (4.7) GHz, 16 MB Cache, TB, AMT); Board 11 Slots: 3x PCI, 1x PCIe x16 (16 L), 3x PCIe x16 (4 L), 2x PCIe x16 (1 L), 2x PCIe x4 (4 L); ",null,{"$f":"IF($P$6=15,\"X\",\"\")","v":""},"."]
[null,null,null,null,null,null,null,"|","|","|",null,"|","|","|","|"]
[null,null,null,null,null,null,null,"|","|","|",null,"|","|","|","|",null,"Drives"]
[null,null,null,null,null,null,null,"A","|","|",null,"|","|","|","|",null,"1 TB HDD 3.5\" SATA",null,{"$f":"IF($P$7=1,\"X\",\"\")","v":"X"},"."]
[null,null,null,null,null,null,null,"B","|","|",null,"|","|","|","|",null,"2x 1 TB HDD 3.5\" SATA",null,{"$f":"IF($P$7=2,\"X\",\"\")","v":""},"."]
[null,null,null,null,null,null,null,"C","|","|",null,"|","|","|","|",null,"RAID1, 2x 1 TB HDD 3.5\" SATA",null,{"$f":"IF($P$7=3,\"X\",\"\")","v":""},"."]
["Capacità aumentata",null,null,null,null,null,null,"D","|","|",null,"|","|","|","|",null,"RAID1, 2x 2 TB HDD [Enterprise] 3.5\" SATA ",null,{"$f":"IF($P$7=4,\"X\",\"\")","v":""},"."]
["Capacità aumentata",null,null,null,null,null,null,"E","|","|",null,"|","|","|","|",null,"RAID1, 2x 4 TB HDD [Enterprise] 3.5\" SATA ",null,{"$f":"IF($P$7=5,\"X\",\"\")","v":""},"."]
["Capacità aumentata",null,null,null,null,null,null,"F","|","|",null,"|","|","|","|",null,"RAID1, 2x 4 TB HDD [Enterprise] 3.5\" SATA + 4 TB HDD [Enterprise] 3.5\" SATA as HotSpare",null,{"$f":"IF($P$7=6,\"X\",\"\")","v":""},"."]
["Capacità aumentata",null,null,null,null,null,null,"G","|","|",null,"|","|","|","|",null,"RAID1, 2x 4 TB HDD [Enterprise] 3.5\" SATA + 480 GB SSD 2.5\" SATA (for OS, if M.2 SSD does not order)",null,{"$f":"IF($P$7=7,\"X\",\"\")","v":""},"."]
["Capacità aumentata",null,null,null,null,null,null,"H","|","|",null,"|","|","|","|",null,"RAID5, 3x 4 TB HDD [Enterprise] 3.5\" SATA ",null,{"$f":"IF($P$7=8,\"X\",\"\")","v":""},"."]
["Capacità aumentata",null,null,null,null,null,null,"J","|","|",null,"|","|","|","|",null,"RAID5, 3x 4 TB HDD [Enterprise] 3.5\" SATA  + 4 TB HDD [Enterprise] 3.5\" SATA as HotSpare",null,{"$f":"IF($P$7=9,\"X\",\"\")","v":""},"."]
[null,null,null,null,null,null,null,"K","|","|",null,"|","|","|","|",null,"RAID1, 2x 2 TB HDD [Enterprise] 3.5\" SAS; PCIe x8 RAID controller incl. ZMCP-Modul (1 Slot occupied)",null,{"$f":"IF($P$7=10,\"X\",\"\")","v":""},"."]
[null,null,null,null,null,null,null,"L","|","|",null,"|","|","|","|",null,"RAID1, 2x 2 TB HDD [Enterprise] 3.5\" SAS; PCIe x8 RAID controller incl. ZMCP-Modul (1 Slot occupied) + 480 GB SSD 2.5\" SATA",null,{"$f":"IF($P$7=11,\"X\",\"\")","v":""},"."]
[null,null,null,null,null,null,null,"M","|","|",null,"|","|","|","|",null,"RAID5, 3x 2 TB HDD [Enterprise] 3.5\" SAS; PCIe x8 RAID controller incl. ZMCP-Modul (1 Slot occupied)",null,{"$f":"IF($P$7=12,\"X\",\"\")","v":""},"."]
[null,null,null,null,null,null,null,"N","|","|",null,"|","|","|","|",null,"RAID5, 3x 2 TB HDD [Enterprise] 3.5\" SAS  + 2 TB HDD [Enterprise] 3.5\" SAS as HotSpare; PCIe x8 RAID controller incl. ZMCP-Modul (1 Slot occupied)",null,{"$f":"IF($P$7=13,\"X\",\"\")","v":""},"."]
[null,null,null,null,null,null,null,"P","|","|",null,"|","|","|","|",null,"1 TB HDD 3.5\" SATA + 480 GB SSD 2.5\" SATA (for OS, if M.2 SSD does not order)",null,{"$f":"IF($P$7=14,\"X\",\"\")","v":""},"."]
[null,null,null,null,null,null,null,"Q","|","|",null,"|","|","|","|",null,"480 GB SSD 2.5\" SATA",null,{"$f":"IF($P$7=15,\"X\",\"\")","v":""},"."]
[null,null,null,null,null,null,null,"R","|","|",null,"|","|","|","|",null,"960 GB SSD 2.5\" SATA",null,{"$f":"IF($P$7=16,\"X\",\"\")","v":""},"."]
[null,null,null,null,null,null,null,"S","|","|",null,"|","|","|","|",null,"2x 480 GB SSD 2.5\" SATA",null,{"$f":"IF($P$7=17,\"X\",\"\")","v":""},"."]
[null,null,null,null,null,null,null,"T","|","|",null,"|","|","|","|",null,"RAID1, 2x 480 GB SSD 2.5\" SATA",null,{"$f":"IF($P$7=18,\"X\",\"\")","v":""},"."]
[null,null,null,null,{"$f":"IF(AND(OR(P11=1,P11=2,P11=3,P11=4,P11=5,P11=6),OR(P10=1,P10=2,P10=3,P10=4,P10=8),P7=19),1,0)","v":0},"CONFIGURATION NOT POSSIBLE: Operating system is only with HDD/SSD drives available",null,"X","|","|",null,"|","|","|","|",null,"without drives",null,{"$f":"IF($P$7=19,\"X\",\"\")","v":""},"."]
[null,null,null,null,null,null,null,null,"|","|",null,"|","|","|","|"]
[null,null,null,null,null,null,null,null,"|","|",null,"|","|","|","|",null,"Type of Housing, power supplies"]
[null,null,null,null,null,null,null,null,{"$f":"IF(OR(($P$7=9),($P$7=10),($P$7=11),($P$7=12),($P$7=13)),\"!\",\"0\")","v":"0"},"|",null,"|","|","|","|",null,"Housing with drive cage type B (for internally mounted / 0,5 g vibration, 5 g shock); 100/240V AC industrial power supply",null,{"$f":"IF($P$8=1,\"X\",\"\")","v":"X"},"."]
[null,null,null,null,null,null,null,null,1,"|",null,"|","|","|","|",null,"Housing with drive cage type A (for frontside mounted removable tray); 100/240V AC industrial power supply",null,{"$f":"IF($P$8=2,\"X\",\"\")","v":""},"."]
[null,null,null,null,null,null,null,null,{"$f":"IF(OR(($P$7=9),($P$7=10),($P$7=11),($P$7=12),($P$7=13)),\"!\",\"2\")","v":"2"},"|",null,"|","|","|","|",null,"Housing with drive cage type B (for internally mounted / 0,5 g vibration, 5 g shock); 2x 100/240V AC redundant industrial power supply",null,{"$f":"IF($P$8=3,\"X\",\"\")","v":""},"."]
[null,null,null,null,null,null,null,null,3,"|",null,"|","|","|","|",null,"Housing with drive cage type A (for frontside mounted removable tray); 2x 100/240V AC redundant industrial power supply",null,{"$f":"IF($P$8=4,\"X\",\"\")","v":""},"."]
[null,null,null,null,null,null,null,null,{"$f":"IF(OR(($P$7=9),($P$7=10),($P$7=11),($P$7=12),($P$7=13)),\"!\",\"4\")","v":"4"},"|",null,"|","|","|","|",null,"Housing with drive cage type B (for internally mounted / 0,5 g vibration, 5 g shock) + COM2 port; 100/240V AC industrial power supply",null,{"$f":"IF($P$8=5,\"X\",\"\")","v":""},"."]
[null,null,null,null,null,null,null,null,5,"|",null,"|","|","|","|",null,"Housing with drive cage type A (for frontside mounted removable tray) + COM2 port; 100/240V AC industrial power supply",null,{"$f":"IF($P$8=6,\"X\",\"\")","v":""},"."]
[null,null,null,null,null,null,null,null,{"$f":"IF(OR(($P$7=9),($P$7=10),($P$7=11),($P$7=12),($P$7=13)),\"!\",\"6\")","v":"6"},"|",null,"|","|","|","|",null,"Housing with drive cage type B (for internally mounted / 0,5 g vibration, 5 g shock) + COM2 port; 2x 100/240V AC redundant industrial power supply",null,{"$f":"IF($P$8=7,\"X\",\"\")","v":""},"."]
[null,null,null,null,null,null,null,null,7,"|",null,"|","|","|","|",null,"Housing with drive cage type A (for frontside mounted removable tray) + COM2 port; 2x 100/240V AC redundant industrial power supply",null,{"$f":"IF($P$8=8,\"X\",\"\")","v":""},"."]
["NEW",null,null,null,null,null,null,null,8,"|",null,"|","|","|","|",null,"Housing with drive cage type A (for frontside mounted removable tray) + COM2 port; 100/240V AC industrial power supply, 850W",null,{"$f":"IF($P$8=9,\"X\",\"\")","v":""},"."]
[null,null,null,null,null,null,null,null,null,"|",null,"|","|","|","|"]
[null,null,null,null,null,null,null,null,null,"|",null,"|","|","|","|",null,"Main Memory"]
[null,null,null,null,null,null,null,null,null,0,null,"|","|","|","|",null,"4 GB DDR4 SDRAM (1x 4 GB), Single Channel;",null,{"$f":"IF($P$9=1,\"X\",\"\")","v":"X"},"."]
[null,null,null,null,null,null,null,null,null,1,null,"|","|","|","|",null,"8 GB DDR4 SDRAM (2x 4 GB), Dual Channel;",null,{"$f":"IF($P$9=2,\"X\",\"\")","v":""},"."]
[null,null,null,null,null,null,null,null,null,2,null,"|","|","|","|",null,"16 GB DDR4 SDRAM (2x 8 GB), Dual Channel;",null,{"$f":"IF($P$9=3,\"X\",\"\")","v":""},"."]
[null,null,null,null,null,null,null,null,null,3,null,"|","|","|","|",null,"32 GB DDR4 SDRAM (2x 16 GB), Dual Channel;",null,{"$f":"IF($P$9=4,\"X\",\"\")","v":""},"."]
[null,null,null,null,null,null,null,null,null,4,null,"|","|","|","|",null,"64 GB DDR4 SDRAM (4x 16 GB), Dual Channel;",null,{"$f":"IF($P$9=5,\"X\",\"\")","v":""},"."]
[null,null,null,null,null,null,null,null,null,5,null,"|","|","|","|",null,"128 GB DDR4 SDRAM (4x 32 GB), Dual Channel;",null,{"$f":"IF($P$9=6,\"X\",\"\")","v":""},"."]
[null,null,null,null,null,6,null,null,null,{"$f":"IF(OR(($P$6=4),($P$6=5),($P$6=6),($P$6=7),($P$6=8),($P$6=9)),\"!\",\"6\")","v":"6"},null,"|","|","|","|",null,"16 GB DDR4 SDRAM (2x 8 GB), Dual Channel; ECC [only with Core i3 / Xeon]",null,{"$f":"IF($P$9=7,\"X\",\"\")","v":""},"."]
[null,null,null,null,null,null,null,null,null,{"$f":"IF(OR(($P$6=4),($P$6=5),($P$6=6),($P$6=7),($P$6=8),($P$6=9)),\"!\",\"7\")","v":"7"},null,"|","|","|","|",null,"32 GB DDR4 SDRAM (2x 16 GB), Dual Channel; ECC [only with Core i3 / Xeon]",null,{"$f":"IF($P$9=8,\"X\",\"\")","v":""},"."]
[null,null,null,null,null,null,null,null,null,{"$f":"IF(OR(($P$6=4),($P$6=5),($P$6=6),($P$6=7),($P$6=8),($P$6=9)),\"!\",\"8\")","v":"8"},null,"|","|","|","|",null,"64 GB DDR4 SDRAM (4x 16 GB), Dual Channel; ECC [only with Core i3 / Xeon]",null,{"$f":"IF($P$9=9,\"X\",\"\")","v":""},"."]
[null,null,null,null,null,null,null,null,null,null,null,"|","|","|","|"]
[null,null,null,null,null,null,null,null,null,null,null,"|","|","|","|",null,"Extensions (Hardware)"]
[null,null,null,null,null,null,null,null,null,null,null,0,"|","|","|",null,"without extensions",null,{"$f":"IF($P$10=1,\"X\",\"\")","v":"X"},"."]
[null,null,null,null,null,null,null,null,null,null,null,1,"|","|","|",null,"PCIe x4 carrier board for SSD M.2 NVMe module without SSD (1 Slot occupied)",null,{"$f":"IF($P$10=2,\"X\",\"\")","v":""},"."]
[null,null,null,null,null,null,null,null,null,null,null,2,"|","|","|",null,"PCIe x16 graphics card NVIDIA P400 (3x mDP: 3x adapter mDP to DP), 2 GB (1 Slot occupied)",null,{"$f":"IF($P$10=3,\"X\",\"\")","v":""},"."]
[null,null,null,null,null,null,null,null,null,null,null,{"$f":"IF(AND(OR($H$5=\"K\",$H$5=\"L\",$H$5=\"M\",$H$5=\"N\"),OR($G$5=\"A\",$G$5=\"D\",$G$5=\"G\",$G$5=\"K\")),\"*\",3)","v":3},"|","|","|",null,"PCIe x4 carrier board for SSD M.2 NVMe module without SSD (1 Slot occupied) + PCIe x16 graphics card NVIDIA P400 (3x mDP: 3x adapter mDP to DP), 2 GB (1 Slot occupied)",null,{"$f":"IF($P$10=4,\"X\",\"\")","v":""},"."]
[null,null,null,null,null,null,null,null,null,null,null,4,"|","|","|",null,"512 GB SSD M.2 NVMe on PCIe x4 carrier board (1 Slot occupied) (for OS)",null,{"$f":"IF($P$10=5,\"X\",\"\")","v":""},"."]
[null,null,null,null,null,null,null,null,null,null,null,{"$f":"IF(AND(OR($H$5=\"K\",$H$5=\"L\",$H$5=\"M\",$H$5=\"N\"),OR($G$5=\"A\",$G$5=\"D\",$G$5=\"G\",$G$5=\"K\")),\"*\",5)","v":5},"|","|","|",null,"512 GB SSD M.2 NVMe on PCIe x4 carrier board (1 Slot occupied) (for OS) + PCIe x16 graphics card NVIDIA P400 (3x mDP: 3x adapter mDP to DP), 2 GB (1 Slot occupied)",null,{"$f":"IF($P$10=6,\"X\",\"\")","v":""},"."]
[null,null,null,null,null,null,null,null,null,null,null,6,"|","|","|",null,"1024 GB SSD M.2 NVMe on PCIe x4 carrier board (1 Slot occupied) (for OS)",null,{"$f":"IF($P$10=7,\"X\",\"\")","v":""},"."]
["NEW",null,null,null,null,null,null,null,null,null,null,{"$f":"IF(OR(($P$8=1),($P$8=2),($P$8=3),($P$8=4),($P$8=5),($P$8=6),($P$8=7),($P$8=8)),\"!\",\"7\")","v":"!"},"|","|","|",null,"PCIe x16 graphics card NVIDIA RTX 4000 (3x DP), 8 GB (1 Slot occupied) [only with 850W PS]",null,{"$f":"IF($P$10=8,\"X\",\"\")","v":""},"."]
[null,null,null,null,null,null,null,null,null,null,null,null,"|","|","|"]
[null,null,null,null,null,null,null,null,null,null,null,null,"|","|","|",null,"Operating Systems (pre-installed and activated)"]
[null,null,null,null,null,null,null,null,null,null,null,null,{"$f":"IF(OR(($P$6=7),($P$6=8),($P$6=9),($P$6=10),($P$6=11),($P$6=12),($P$6=13),($P$6=14),($P$6=15),($P$10=8)),\"!\",\"A\")","v":"A"},"|","|",null,"Windows 10 Enterprise 2016 LTSB, Multi Language (En, Ger, Fr, It, Sp), 64 bit;[for processors Core i3 / Core i5]",null,{"$f":"IF($P$11=1,\"X\",\"\")","v":""},"."]
[null,null,null,null,null,null,null,null,null,null,null,null,{"$f":"IF(OR(($P$6=1),($P$6=2),($P$6=3),($P$6=4),($P$6=5),($P$6=6),($P$6=13),($P$6=14),($P$6=15),($P$10=8)),\"!\",\"B\")","v":"!"},"|","|",null,"Windows 10 Enterprise 2016 LTSB, Multi Language (En, Ger, Fr, It, Sp), 64 bit;[for processor Core i7 / Xeon]",null,{"$f":"IF($P$11=2,\"X\",\"\")","v":""},"."]
[null,{"$f":"IF(AND(OR($P$6=7,$P$6=8,$P$6=9,$P$6=10,$P$6=11,$P$6=12,),$P$11=4),1,0)","v":0},"The selected combination is not valid: PCIe x8 RAID controller only with Windows server OS or Windows 7, 64Bit"," .",null,null,null,null,null,null,null,null,{"$f":"IF(OR(($P$6=7),($P$6=8),($P$6=9),($P$6=10),($P$6=11),($P$6=12),($P$6=13),($P$6=14),($P$6=15)),\"!\",\"C\")","v":"C"},"|","|",null,"Windows 10 IoT Enterprise 2019 LTSC, Multi Language (En, Ger, Fr, It, Sp), 64 bit;[for processors Core i3 / Core i5]",null,{"$f":"IF($P$11=3,\"X\",\"\")","v":""},"."]
[null,{"$f":"IF(AND(OR($P$7=17,$P$7=18,$P$7=19,$P$7=20,),$P$11=5),1,0)","v":0},"The selected combination is not valid: PCIe x8 RAID controller only with Windows server OS or Windows 7, 64Bit"," .",null,null,null,null,null,null,null,null,{"$f":"IF(OR(($P$6=1),($P$6=2),($P$6=3),($P$6=4),($P$6=5),($P$6=6)),\"!\",\"D\")","v":"!"},"|","|",null,"Windows 10 IoT Enterprise 2019 LTSC, Multi Language (En, Ger, Fr, It, Sp), 64 bit;[for processor Core i7 / Xeon]",null,{"$f":"IF($P$11=4,\"X\",\"\")","v":""},"."]
[null,null,null,null,null,null,null,null,null,null,null,null,{"$f":"IF(OR(($P$6=13),($P$6=14),($P$6=15),($P$10=8)),\"!\",\"H\")","v":"H"},"|","|",null,"Windows Server 2016 Standard Edition 64 bit, incl. 5 clients multi language (En, Ger, Fr, It, Sp);",null,{"$f":"IF($P$11=5,\"X\",\"\")","v":""},"."]
[null,null,null,null,null,null,null,null,null,null,null,null,"J","|","|",null,"Windows Server 2019 Standard Edition 64 bit, incl. 5 clients multi language (En, Ger, Fr, It, Sp);",null,{"$f":"IF($P$11=6,\"X\",\"\")","v":""},"."]
[null,null,null,null,null,null,null,null,null,null,null,null,"X","|","|",null,"without operating System",null,{"$f":"IF($P$11=7,\"X\",\"\")","v":"X"},"."]
[null,null,null,null,null,null,null,null,null,null,null,null,null,"|","|"]
[null,null,null,null,null,null,null,null,null,null,null,null,null,"|","|",null,"Extensions (Software / Adapter / Security)"]
[null,null,null,null,null,null,null,null,null,null,null,null,null,"A","|",null,"SIMATIC PC DiagMonitor Software added",null,{"$f":"IF($P$12=1,\"X\",\"\")","v":""},"."]
[null,null,null,null,null,null,null,null,null,null,null,null,null,"B","|",null,"SIMATIC PC Image&Partition Creator Software  added",null,{"$f":"IF($P$12=2,\"X\",\"\")","v":""},"."]
[null,null,null,null,null,null,null,null,null,null,null,null,null,"C","|",null,"SIMATIC PC DiagMonitor  & ImagePartition Creator Software  added",null,{"$f":"IF($P$12=3,\"X\",\"\")","v":""},"."]
[null,null,null,null,null,null,null,null,null,null,null,null,null,"H","|",null,"adapter cable DP to VGA for onboard graphics",null,{"$f":"IF($P$12=4,\"X\",\"\")","v":""},"."]
[null,null,null,null,null,null,null,null,null,null,null,null,null,"J","|",null,"adapter cable DP to DVI-D for onboard graphics",null,{"$f":"IF($P$12=5,\"X\",\"\")","v":""},"."]
[null,null,null,null,null,null,null,null,null,null,null,null,null,"X","|",null,"without extensions",null,{"$f":"IF($P$12=6,\"X\",\"\")","v":"X"},"."]
[null,null,null,null,null,null,null,null,null,null,null,null,null,"Y","|",null,"TPM 2.0",null,{"$f":"IF($P$12=7,\"X\",\"\")","v":""},"."]
[null,null,null,null,null,null,null,null,null,null,null,null,null,null,"|"]
[null,null,null,null,null,null,null,null,null,null,null,null,null,null,"|"]
[null,null,null,null,null,null,null,null,null,null,null,null,null,null,"|",null,"Country-specific types"]
[null,null,null,null,null,null,null,null,null,null,null,null,null,null,0,null,"without power cord;",null,{"$f":"IF($P$13=1,\"X\",\"\")","v":"X"},"."]
[null,null,null,null,null,null,null,null,null,null,null,null,null,null,1,null,"power cord Europe;",null,{"$f":"IF($P$13=2,\"X\",\"\")","v":""},"."]
[null,null,null,null,null,null,null,null,null,null,null,null,null,null,2,null,"power cord USA;",null,{"$f":"IF($P$13=3,\"X\",\"\")","v":""},"."]
[null,null,null,null,null,null,null,null,null,null,null,null,null,null,3,null,"power cord China;",null,{"$f":"IF($P$13=4,\"X\",\"\")","v":""},"."]
[]
[null,null,null,null,null,null,null,null,null,null,null,null,null,null,null,null," IPC base ",null,"X","."]
[]
[{"$f":"A$5","v":"6AG4"},1,1,4,"-",3,{"$f":"G5","v":"A"},{"$f":"H5","v":"A"},{"$f":"I5","v":"0"},{"$f":"J5","v":0},"-",{"$f":"L5","v":0},{"$f":"M5","v":"X"},{"$f":"N5","v":"X"},{"$f":"O5","v":0},null,null,"Total:"]
[]
[]
["Accessories:"]
[null,null,null,null,null,null,null,null,null,null,null,null,null,null,null,null,"Memory Extension"]
["6ES7648-2AL60-0QA0",null,null,null,null,null,null,null,null,null,null,null,null,null,null,null,"4 GB DDR4 DIMM (1x 4); "]
["6ES7648-2AL70-0QA0",null,null,null,null,null,null,null,null,null,null,null,null,null,null,null,"8 GB DDR4 DIMM (1x 8); "]
["6ES7648-2AL80-0QA0",null,null,null,null,null,null,null,null,null,null,null,null,null,null,null,"16 GB DDR4 DIMM (1x 16); "]
["6ES7648-2AL81-0QA0",null,null,null,null,null,null,null,null,null,null,null,null,null,null,null,"32 GB DDR4 DIMM (1x 32); "]
[]
[null,null,null,null,null,null,null,null,null,null,null,null,null,null,null,null,"HW Accessory"]
["6ES7648-0EH00-1BA0",null,null,null,null,null,null,null,null,null,null,null,null,null,null,null,"Tray for low-profile removable frame for 3.5\" HDD (SATA/SAS) and 2.5\" SSD (SATA), w/o drive"]
["6ES7648-1AA00-0XK0",null,null,null,null,null,null,null,null,null,null,null,null,null,null,null,"Retainer for the interlocking of the internal USB interface"]
[]
[null,null,null,null,null,null,null,null,null,null,null,null,null,null,null,null,"Adapter Cable"]
["6ES7648-3AF00-0XA0",null,null,null,null,null,null,null,null,null,null,null,null,null,null,null,"Adapter cable DisplayPort to DVI-D"]
["6ES7648-3AG00-0XA0",null,null,null,null,null,null,null,null,null,null,null,null,null,null,null,"Adapter cable DisplayPort to VGA"]

{"sheet":"IPC127E (Box)","index":6,"n_rows":44,"n_cols":20,"rows_kept":44,"cut":false,"hidden":false,"merged":[]}
["SIMATIC IPC127E"]
[]
[null,null,null,null,null,null,null,null,null,null,null,null,null,null,null,null,{"$f":"IF(F23,G23,\"\")&IF(F24,G24,\"\")","v":""}]
[{"$f":"+A34","v":""}]
["6AG4",0,2,1,"-",0,"A",{"$f":"IF(P6=1,H12,)&IF(P6=2,H13,)&IF(P6=3,H14,)&IF(P6=4,H15,)","v":"A"},1,{"$f":"IF(P7=1,J18,)&IF(P7=2,J19,)","v":"1"},"-",{"$f":"IF(P8=1,L22,)&IF(P8=2,L23,)&IF(P8=3,L24,)","v":"0"},{"$f":"IF(P9=1,M27,)&IF(P9=2,M28,)&IF(P9=3,M29,)","v":"A"},"A",0,null,{"$f":"A1","v":"SIMATIC IPC127E"},{"$f":"$A$5&$B$5&$C$5&$D$5&$E$5&$F$5&$G$5&$H$5&$I$5&$J$5&$K$5&$L$5&$M$5&$N$5&$O$5","v":"6AG4021-0AA11-0AA0"}]
[null,null,null,null,null,null,null,"|",null,"|",null,"|","|",null,null,1,{"$f":"IF(P6=1,Q12,)&IF(P6=2,Q13,)&IF(P6=3,Q14,)&IF(P6=4,Q15,)","v":"Atom E3930 (2C/2T) / 2 GB RAM"}]
[null,null,null,null,null,null,null,"|",null,"|",null,"|","|",null,null,1,{"$f":"IF(P7=1,Q18,)&IF(P7=2,Q19,)","v":"Base"}]
[null,null,null,null,null,null,{"$f":"IF(P8=12,#REF!,IF(P8=13,#REF!,IF(P8=15,#REF!,IF(P8=16,#REF!,IF(P8=17,#REF!,\"\")))))","v":""},"|",null,"|",null,"|","|",null,null,1,{"$f":"IF(P8=1,Q22,)&IF(P8=2,Q23,)&IF(P8=3,Q24,)","v":"without operating system"}]
[null,null,null,null,null,null,null,"|",null,"|",null,"|","|",null,null,1,{"$f":"IF(P9=1,Q27,)&IF(P9=2,Q28,)&IF(P9=3,Q29,)","v":"32 GB SSD"}]
[null,null,null,null,null,null,null,"|",null,"|",null,"|","|"]
[null," ",null,null,null,null,null,"|",null,"|",null,"|","|",null,null,null,"Processor / RAM / TPM"]
[null,null,null,null,null,null,null,"A",null,"|",null,"|","|",null,null,null,"Atom E3930 (2C/2T) / 2 GB RAM",null,{"$f":"IF($P$6=1,\"X\",\"\")","v":"X"},"."]
[null,null,null,null,null,null,null,"B",null,"|",null,"|","|",null,null,null,"Atom E3940 (4C/4T) / 4 GB RAM",null,{"$f":"IF($P$6=2,\"X\",\"\")","v":""},"."]
[null,null,null,null,null,null,null,"C",null,"|",null,"|","|",null,null,null,"Atom E3930 (2C/2T) / 2 GB RAM / TPM",null,{"$f":"IF($P$6=3,\"X\",\"\")","v":""},"."]
[null,null,null,null,null,null,null,"D",null,"|",null,"|","|",null,null,null,"Atom E3940 (4C/4T) / 4 GB RAM / TPM",null,{"$f":"IF($P$6=4,\"X\",\"\")","v":""},"."]
[null,null,null,null,null,null,null,null,null,"|",null,"|","|"]
[null,null,null,null,null,null,null,null,null,"|",null,"|","|",null,null,null,"Box Type"]
[null,null,null,null,null,null,null,null,null,1,null,"|","|",null,null,null,"Base",null,{"$f":"IF($P$7=1,\"X\",\"\")","v":"X"},"."]
[null,null,null,null,null,null,null,null,null,2,null,"|","|",null,null,null,"Extended",null,{"$f":"IF($P$7=2,\"X\",\"\")","v":""},"."]
[null,null,null,null,null,null,null,null,null,null,null,"|","|"]
[null,null,null,null,null,null,null,null,null,null,null,"|","|",null,null,null,"Operating system"]
[null,null,null,null,null,null,null,null,null,null,null,0,"|",null,null,null,"without operating system",null,{"$f":"IF($P$8=1,\"X\",\"\")","v":"X"},"."]
[null,null,null,null,null,{"$f":"IF(AND($P$8=2,$P$9=1),1,0)","v":0},"Windows 10 only with SSD >= 64 GB"," ",null,null,null,1,"|",null,null,null,"Windows 10 IoT Enterprise 2016 LTSB, 64Bit, MUI (Ger, En, Es, Fr, It)",null,{"$f":"IF($P$8=2,\"X\",\"\")","v":""},"."]
[null,null,null,null,null,{"$f":"IF(AND($P$8=3,$P$9=1),1,0)","v":0},"Windows 10 only with SSD >= 64 GB"," ",null,null,null,2,"|",null,null,null,"Windows 10 IoT Enterprise 2019 LTSC, 64Bit, MUI (Ger, En, Es, Fr, It)",null,{"$f":"IF($P$8=3,\"X\",\"\")","v":""},"."]
[null,null,null,null,null,null,null,null,null,null,null,null,"|"]
[null,null,null,null,null,null,null,null,null,null,null,null,"|",null,null,null,"Drive"]
[null,null,null,null,null,null,null,null,null,null,null,null,"A",null,null,null,"32 GB SSD",null,{"$f":"IF($P$9=1,\"X\",\"\")","v":"X"},"."]
[null,null,null,null,null,null,null,null,null,null,null,null,"B",null,null,null,"64 GB SSD",null,{"$f":"IF($P$9=2,\"X\",\"\")","v":""},"."]
[null,null,null,null,null,null,null,null,null,null,null,null,"C",null,null,null,"128 GB SSD",null,{"$f":"IF($P$9=3,\"X\",\"\")","v":""},"."]
[]
[null,null,null,null,null,null,null,null,null,null,null,null,null,null,null,null,"Base version",null,"X","."]
[]
["6ES7",6,4,7," - ",{"$f":"F5","v":0},"A","A",1,"1","-","0","A","A",0,null,null,"Totale:"]
[""]
[]
["Mounting accessories"]
[]
["6AG4021-0AA20-0AA1",null,null,null,null,null,null,null,null,null,null,null,null,null,null,null,"DIN-Rail"]
["6AG4021-0AA20-0AA2",null,null,null,null,null,null,null,null,null,null,null,null,null,null,null,"Wall-mount"]
["6AG4021-0AA20-0AA3",null,null,null,null,null,null,null,null,null,null,null,null,null,null,null,"Book-mount Base"]
["6AG4021-0AA20-0AA4",null,null,null,null,null,null,null,null,null,null,null,null,null,null,null,"Book-mount Extended"]
["6AG4021-0AA20-0AA5",null,null,null,null,null,null,null,null,null,null,null,null,null,null,null,"Book-mount DIN-Rail"]
[]
[null,null,null,null,null,null,null,null,null,null,null,null,null,null,null,null,"Click here\nfor additional SIMATIC IPC accessories."]

{"sheet":"IPC227E (Nanobox)","index":7,"n_rows":87,"n_cols":20,"rows_kept":87,"cut":false,"hidden":false,"merged":[]}
["SIMATIC IPC227E  (Nanobox PC)"]
[null,null,null,null,null,null,null,null,null,null,null,null,null,null,null,null,{"$f":"IF(D21,E21,\"\")&IF(D30,E30,\"\")&IF(D54,E54,\"\")","v":""}]
[null,null,null,null,null,null,null,null,null,null,null,null,null,null,null,null,{"$f":"IF(F40,G40,\"\")&IF(F41,G41,\"\")&IF(F42,G42,\"\")&IF(F43,G43,\"\")&IF(F44,G44,\"\")&IF(F45,G45,\"\")&IF(F46,G46,\"\")&IF(F47,G47,\"\")","v":""}]
[null,null,null,null,null,null,null,null,null,null,null,null,null,null,null,null,{"$f":"IF(F63,G63,\"\")&IF(F64,G64,\"\")","v":""}]
["6ES7",6,4,7,"-",8,"B",{"$f":"IF(P6=1,H17,)&IF(P6=2,H18,)&IF(P6=3,H19,)&IF(P6=4,H20,)&IF(P6=5,H21,)","v":"A"},{"$f":"IF(P7=1,I24,)&IF(P7=2,I25,)&IF(P7=3,I26,)&IF(P7=4,I27,)&IF(P7=5,I28,)&IF(P7=6,I29,)&IF(P7=7,I30,)","v":"1"},{"$f":"IF(P8=1,J33,)&IF(P8=2,J34,)&IF(P8=3,J35,)&IF(P8=4,J36,)","v":"1"},"-",{"$f":"IF(P9=1,L39,)&IF(P9=2,L40,)&IF(P9=3,L41,)&IF(P9=4,L42,)&IF(P9=5,L43,)&IF(P9=6,L44,)&IF(P9=7,L45,)&IF(P9=8,L46,)&IF(P9=9,L47,)","v":"0"},{"$f":"IF(P10=1,M50,)&IF(P10=2,M51,)&IF(P10=3,M52,)&IF(P10=4,M53,)&IF(P10=5,M54,)&IF(P10=6,M55,)&IF(P10=7,M56,)&IF(P10=8,M57,)&IF(P10=9,M58,)&IF(P10=10,M59,)","v":"A"},{"$f":"IF(P11=1,N62,)&IF(P11=2,N63,)&IF(P11=3,N64,)","v":"A"},{"$f":"IF(P12=1,O67,)&IF(P12=2,O68,)&IF(P12=3,O69,)&IF(P12=4,O70,)&IF(P12=5,O71,)&IF(P12=6,O72,)&IF(P12=7,O73,)","v":"1"},null,{"$f":"\"SIMATIC IPC227E  (Nanobox PC)\"","v":"SIMATIC IPC227E  (Nanobox PC)"},{"$f":"$A$5&$B$5&$C$5&$D$5&$E$5&$F$5&$G$5&$H$5&$I$5&$J$5&$K$5&$L$5&$M$5&$N$5&$O$5","v":"6ES7647-8BA11-0AA1"}]
[null,null,null,null,null,null,null,"|","|","|",null,"|","|","|","|",1,{"$f":"IF(P6=1,Q17,)&IF(P6=2,Q18,)&IF(P6=3,Q19,)&IF(P6=4,Q20,)&IF(P6=5,Q21,)","v":"Celeron N2807 (2C/2T)"}]
[null,null,null,null,null,null,null,"|","|","|",null,"|","|","|","|",1,{"$f":"IF(P7=1,Q24,)&IF(P7=2,Q25,)&IF(P7=3,Q26,)&IF(P7=4,Q27,)&IF(P7=5,Q28,)&IF(P7=6,Q29,)&IF(P7=7,Q30,)","v":"2 GB RAM"}]
[null,null,null,null,null,null,null,"|","|","|",null,"|","|","|","|",1,{"$f":"IF(P8=1,Q33,)&IF(P8=2,Q34,)&IF(P8=3,Q35,)&IF(P8=4,Q36,)","v":"Box: Base / without COM"}]
[null,null,null,null,null,null,{"$f":"IF(P9=12,#REF!,IF(P9=13,#REF!,IF(P9=15,#REF!,IF(P9=16,#REF!,IF(P9=17,#REF!,\"\")))))","v":""},"|","|","|",null,"|","|","|","|",1,{"$f":"IF(P9=1,Q39,)&IF(P9=2,Q40,)&IF(P9=3,Q41,)&IF(P9=4,Q42,)&IF(P9=5,Q43,)&IF(P9=6,Q44,)&IF(P9=7,Q45,)&IF(P9=8,Q46,)&IF(P9=9,Q47,)","v":"without Windows operating system"}]
[null,null,null,null,null,null,null,"|","|","|",null,"|","|","|","|",1,{"$f":"IF(P10=1,Q50,)&IF(P10=2,Q51,)&IF(P10=3,Q52,)&IF(P10=4,Q53,)&IF(P10=5,Q54,)&IF(P10=6,Q55,)&IF(P10=7,Q56,)&IF(P10=8,Q57,)&IF(P10=9,Q58,)&IF(P10=10,Q59,)","v":"without drive, with CFast-Slot"}]
[null,null,null,null,null,null,null,"|","|","|",null,"|","|","|","|",1,{"$f":"IF(P11=1,Q62,)&IF(P11=2,Q63,)&IF(P11=3,Q64,)","v":"without SIMATIC Software"}]
[null,null,null,null,null,null,null,"|","|","|",null,"|","|","|","|",1,{"$f":"IF(P12=1,Q67,)&IF(P12=2,Q68,)&IF(P12=3,Q69,)&IF(P12=4,Q70,)&IF(P12=5,Q71,)&IF(P12=6,Q72,)","v":"DIN-Rail"}]
[null,null,null,null,null,null,null,"|","|","|",null,"|","|","|","|"]
[null,null,null,null,null,null,null,"|","|","|",null,"|","|","|","|"]
[null,null,null,null,null,null,null,"|","|","|",null,"|","|","|","|"]
[null," ",null,null,null,null,null,"|","|","|",null,"|","|","|","|",null,"Processor / TPM"]
[null,null,null,null,null,null,null,"A","|","|",null,"|","|","|","|",null,"Celeron N2807 (2C/2T)",null,{"$f":"IF($P$6=1,\"X\",\"\")","v":"X"},"."]
[null,null,null,null,null,null,null,"B","|","|",null,"|","|","|","|",null,"Celeron N2930 (4C/4T) (Consigliato per SW Controller)",null,{"$f":"IF($P$6=2,\"X\",\"\")","v":""},"."]
[null,null,null,null,null,null,null,"C","|","|",null,"|","|","|","|",null,"Celeron N2807 (2C/2T) / TPM",null,{"$f":"IF($P$6=3,\"X\",\"\")","v":""},"."]
[null,null,null,null,null,null,null,"D","|","|",null,"|","|","|","|",null,"Celeron N2930 (4C/4T) / TPM",null,{"$f":"IF($P$6=4,\"X\",\"\")","v":""},"."]
[null,null,null,{"$f":"IF(AND(($P$6=5),OR(($P$7<7),($P$8>2),($P$10<>5),($P$12>3))),1,0)","v":0},"ET-variant only with: Celeron E3845 ET / 4 GB RAM ET / 60 GB SSD ET; w/o PCIe-variants; w/o ATEX/IECEx/cULus options"," ",null,"E","|","|",null,"|","|","|","|",null,"Atom E3845 ET (4C/4T) / TPM",null,{"$f":"IF($P$6=5,\"X\",\"\")","v":""},"."]
[null,null,null,null,null,null,null,null,"|","|",null,"|","|","|","|"]
[null,null,null,null,null,null,null,null,"|","|",null,"|","|","|","|",null,"RAM / NVRAM"]
[null,null,null,null,null,null,null,null,1,"|",null,"|","|","|","|",null,"2 GB RAM",null,{"$f":"IF($P$7=1,\"X\",\"\")","v":"X"},"."]
[null,null,null,null,null,null,null,null,2,"|",null,"|","|","|","|",null,"4 GB RAM",null,{"$f":"IF($P$7=2,\"X\",\"\")","v":""},"."]
[null,null,null,null,null,null,null,null,3,"|",null,"|","|","|","|",null,"8 GB RAM",null,{"$f":"IF($P$7=3,\"X\",\"\")","v":""},"."]
[null,null,null,null,null,null,null,null,4,"|",null,"|","|","|","|",null,"2 GB RAM / NVRAM",null,{"$f":"IF($P$7=4,\"X\",\"\")","v":""},"."]
[null,null,null,null,null,null,null,null,5,"|",null,"|","|","|","|",null,"4 GB RAM / NVRAM (Necessario per SW Controller)",null,{"$f":"IF($P$7=5,\"X\",\"\")","v":""},"."]
[null,null,null,null,null,null,null,null,6,"|",null,"|","|","|","|",null,"8 GB RAM / NVRAM (Necessario per SW Controller)",null,{"$f":"IF($P$7=6,\"X\",\"\")","v":""},"."]
[null,null,null,{"$f":"IF(AND(($P$7=7),OR(($P$6<5),($P$8>2),($P$10<>5),($P$12>3))),1,0)","v":0},"ET-variant only with: Celeron E3845 ET / 4 GB RAM ET / 60 GB SSD ET; w/o PCIe-variants; w/o ATEX/IECEx/cULus options"," ",null,null,7,"|",null,"|","|","|","|",null,"4 GB RAM ET / NVRAM",null,{"$f":"IF($P$7=7,\"X\",\"\")","v":""},"."]
[null,null,null,null,null,null,null,null,null,"|",null,"|","|","|","|"]
[null,null,null,null,null,null,null,null,null,"|",null,"|","|","|","|",null,"Box type / COM Interface"]
[null,null,null,null,null,null,null,null,null,1,null,"|","|","|","|",null,"Box: Base / without COM",null,{"$f":"IF($P$8=1,\"X\",\"\")","v":"X"},"."]
[null,null,null,null,null,null,null,null,null,2,null,"|","|","|","|",null,"Box: Base / with COM1/2",null,{"$f":"IF($P$8=2,\"X\",\"\")","v":""},"."]
[null,null,null,null,null,null,null,null,null,3,null,"|","|","|","|",null,"Box: PCIe / without COM (Necessario per CP1625 o CP5622)",null,{"$f":"IF($P$8=3,\"X\",\"\")","v":""},"."]
[null,null,null,null,null,null,null,null,null,4,null,"|","|","|","|",null,"Box: PCIe / with COM1/2 (Necessario per CP1625 o CP 5622)",null,{"$f":"IF($P$8=4,\"X\",\"\")","v":""},"."]
[null,null,null,null,null,null,null,null,null,null,null,"|","|","|","|"]
[null,null,null,null,null,null,null,null,null,null,null,"|","|","|","|",null,"Operating system"]
[null,null,null,null,null,null,null,null,null,null,null,0,"|","|","|",null,"without Windows operating system",null,{"$f":"IF($P$9=1,\"X\",\"\")","v":"X"},"."]
[null,null,null,null,null,{"$f":"IF(OR(AND($P$9=2,$P$10=1),AND($P$9=2,$P$10=6)),1,0)","v":0},"WES7E (32/64 bit) with SSD, HDD or CFast from 8 GB"," ",null,null,null,1,"|","|","|",null,"Windows Embedded Standard 7 E SP1, english, 32Bit",null,{"$f":"IF($P$9=2,\"X\",\"\")","v":""},"."]
[null,null,null,null,null,{"$f":"IF(OR(AND($P$9=3,$P$10=1),AND($P$9=3,$P$10=6),AND($P$9=3,$P$10=7)),1,0)","v":0},"WES7P (32 bit) with SSD, HDD or CFast from 16 GB"," ",null,null,null,2,"|","|","|",null,"Windows Embedded Standard 7 E SP1, english, 64Bit",null,{"$f":"IF($P$9=3,\"X\",\"\")","v":""},"."]
[null,null,null,null,null,{"$f":"IF(OR(AND($P$9=4,$P$10=1),AND($P$9=4,$P$10=6),AND($P$9=4,$P$10=7)),1,0)","v":0},"WES7P (32 bit) with SSD, HDD or CFast from 16 GB"," ",null,null,null,3,"|","|","|",null,"Windows Embedded Standard 7 P SP1, MUI, 32Bit",null,{"$f":"IF($P$9=4,\"X\",\"\")","v":""},"."]
[null,null,null,null,null,{"$f":"IF(OR(AND($P$9=5,$P$10=1),AND($P$9=5,$P$10=6),AND($P$9=5,$P$10=7)),1,0)","v":0},"WES7P (64 bit) with SSD, HDD or CFast from 16 GB"," ",null,null,null,4,"|","|","|",null,"Windows Embedded Standard 7 P SP1, MUI, 64Bit",null,{"$f":"IF($P$9=5,\"X\",\"\")","v":""},"."]
[null,null,null,null,null,{"$f":"IF(AND($L$5=\"5\",OR($M$5=\"A\",$M$5=\"K\",$M$5=\"L\",$M$5=\"M\",$M$5=\"N\",)),1,0)","v":0},"W7 only with SSD / HDD"," ",null,null,null,5,"|","|","|",null,"Windows7 Ultimate SP1, 32Bit, MUI (En, Ger, Es, Fr, It)",null,{"$f":"IF($P$9=6,\"X\",\"\")","v":""},"."]
[null,null,null,null,null,{"$f":"IF(AND($L$5=\"6\",OR($M$5=\"A\",$M$5=\"K\",$M$5=\"L\",$M$5=\"M\",$M$5=\"N\",)),1,0)","v":0},"W7 only with SSD / HDD"," ",null,null,null,6,"|","|","|",null,"Windows7 Ultimate SP1, 64Bit, MUI (En, Ger, Es, Fr, It)",null,{"$f":"IF($P$9=7,\"X\",\"\")","v":""},"."]
[null,null,null,null,null,{"$f":"IF(AND($L$5=\"7\",OR($M$5=\"A\",$M$5=\"K\",$M$5=\"L\",$M$5=\"M\",)),1,0)","v":0},"W10 only with SSD / HDD / 128 GB CFast"," ",null,null,null,7,"|","|","|",null,"Windows 10 IoT Enterprise 2016 LTSB, 64Bit, MUI (Ger, En, Es, Fr, It)",null,{"$f":"IF($P$9=8,\"X\",\"\")","v":""},"."]
[null,null,null,null,null,{"$f":"IF(AND($L$5=\"8\",OR($M$5=\"A\",$M$5=\"K\",$M$5=\"L\",$M$5=\"M\",)),1,0)","v":0},"W10 only with SSD / HDD / 128 GB CFast"," ",null,null,null,8,"|","|","|",null,"Windows 10 IoT Enterprise 2019 LTSC, 64Bit, MUI (Ger, En, Es, Fr, It) (Consigliato)",null,{"$f":"IF($P$9=9,\"X\",\"\")","v":""},"."]
[null,null,null,null,null,null,null,null,null,null,null,null,"|","|","|"]
[null,null,null,null,null,null,null,null,null,null,null,null,"|","|","|",null,"Drive"]
[null,null,null,null,null,null,null,null,null,null,null,null,"A","|","|",null,"without drive, with CFast-Slot",null,{"$f":"IF($P$10=1,\"X\",\"\")","v":"X"},"."]
[null,null,null,null,null,null,null,null,null,null,null,null,"C","|","|",null,"240 GB SSD (Consigliato per SW Controller)",null,{"$f":"IF($P$10=2,\"X\",\"\")","v":""},"."]
[null,null,null,null,null,null,null,null,null,null,null,null,"D","|","|",null,"480 GB SSD (Consigliato per SW Controller)",null,{"$f":"IF($P$10=3,\"X\",\"\")","v":""},"."]
[null,null,null,null,null," ",null,null,null,null,null,null,"E","|","|",null,"256 GB Eco SSD",null,{"$f":"IF($P$10=4,\"X\",\"\")","v":""},"."]
[null,null,null,{"$f":"IF(AND(($P$10=5),OR(($P$6<5),($P$7<7),($P$8>2),($P$12>3))),1,0)","v":0},"ET-variant only with: Celeron E3845 ET / 4 GB RAM ET / 60 GB SSD ET; w/o PCIe-variants; w/o ATEX/IECEx/cULus options"," ",null,null,null,null,null,null,"H","|","|",null,"60 GB SSD ET",null,{"$f":"IF($P$10=5,\"X\",\"\")","v":""},"."]
[null,null,null,null,null,null,null,null,null,null,null,null,"K","|","|",null,"4 GB Cfast OBSOLETA!! Non usare",null,{"$f":"IF($P$10=6,\"X\",\"\")","v":""},"."]
[null,null,null,null,null,null,null,null,null,null,null,null,"L","|","|",null,"8 GB CFast",null,{"$f":"IF($P$10=7,\"X\",\"\")","v":""},"."]
[null,null,null,null,null,null,null,null,null,null,null,null,"M","|","|",null,"16 GB CFast",null,{"$f":"IF($P$10=8,\"X\",\"\")","v":""},"."]
[null,null,null,null,null,null,null,null,null,null,null,null,"N","|","|",null,"128 GB CFast",null,{"$f":"IF($P$10=9,\"X\",\"\")","v":""},"."]
[null,null,null,null,null,null,null,null," ",null,null,null,"R","|","|",null,"320 GB HDD",null,{"$f":"IF($P$10=10,\"X\",\"\")","v":""},"."]
[null,null,null,null,null,null,null,null,null,null,null,null,null,"|","|"]
[null,null,null,null,null,null,null,null,null,null,null,null,null,"|","|",null,"Software configuration"]
[null,null,null,null,null,null,null,null,null,null,null,null,null,"A","|",null,"without SIMATIC Software",null,{"$f":"IF($P$11=1,\"X\",\"\")","v":"X"},"."]
[null," ",null,null,null,{"$f":"IF(AND($P$11=12,OR($P$9>1,$P$10=1,$P$10=6,$P$10=7,$P$10=8,$P$10=9,$P$10=10)),1,0)","v":0},"SIMATIC Industrial OS only w/o Windows Operating System and with SSD"," ",null,null,null,null,null,"N","|",null,"SIMATIC Industrial OS V2",null,{"$f":"IF($P$11=2,\"X\",\"\")","v":""},"."]
[null," ",null,null,null,{"$f":"IF(AND(($P$11=13),OR(($P$6<>4),($P$7=1),($P$7=2),($P$7=4),($P$7=5),($P$9>1),($P$10=1),($P$10>3),($P$12>3))),1,0)","v":0},"Industrial Edge - SINUMERIK only with: N2930 with TPM / 8 GB RAM (w/o or with NVRAM) / w/o Operating System / 240 or 480 GB SSD / w/o ATEX"," ",null,null,null,null,null,"V","|",null,"Industrial Edge - SINUMERIK",null,{"$f":"IF($P$11=3,\"X\",\"\")","v":""},"."]
[null,null,null,null,null,null,null,null,null,null,null,null,null,null,"|"]
[null,null,null,null,null,null,null,null,null,null,null,null,null,null,"|",null,"Mounting"]
[null,null,null,null,null,null,null,null,null,null,null,null,null,null,1,null,"DIN-Rail",null,{"$f":"IF($P$12=1,\"X\",\"\")","v":"X"},"."]
[null,null,null,null,null,null,null,null,null,null,null,null,null,null,2,null,"Wall-mount",null,{"$f":"IF($P$12=2,\"X\",\"\")","v":""},"."]
[null,null,null,null,null,null,null,null,null,null,null,null,null,null,3,null,"Book-mount",null,{"$f":"IF($P$12=3,\"X\",\"\")","v":""},"."]
[null,null,null,null,null,null,null,null,null,null,null,null,null,null,4,null,"DIN-Rail with ATEX/IECEx Cat 3G Zone 2 / cULus Class I Div. 2",null,{"$f":"IF($P$12=4,\"X\",\"\")","v":""},"."]
[null,null,null,null,null,null,null,null,null,null,null,null,null,null,5,null,"Wall-mount with ATEX/IECEx Cat 3G Zone 2 / cULus Class I Div. 2",null,{"$f":"IF($P$12=5,\"X\",\"\")","v":""},"."]
[null,null,null,null,null,null,null,null,null,null,null,null,null,null,6,null,"Book-mount with ATEX/IECEx Cat 3G Zone 2 / cULus Class I Div. 2",null,{"$f":"IF($P$12=6,\"X\",\"\")","v":""},"."]
[]
[]
[null,null,null,null,null,null,null,null,null,null,null,null,null,null,null,null,"Base version",null,"X","."]
[]
["6ES7",6,4,7," - ",{"$f":"F5","v":8},"B","A","1","1","-","0","A","A","1",null,null,"Total:"]
[]
[]
["Accessories:"]
[]
[]
["6ES7648-1AA50-0XL0",null,null,null,null,null,null,null,null,null,null,null,null,null,null,null,"Strain relief set cable/connector (5 pieces)"]
["6ES7648-1AA50-0XG0",null,null,null,null,null,null,null,null,null,null,null,null,null,null,null,"Dust protection set interfaces"]
[]
[]
[null,null,null,null,null,null,null,null,null,null,null,null,null,null,null,null,"Click here\nfor additional SIMATIC IPC accessories."]

{"sheet":"IPC227G (Nanobox)","index":8,"n_rows":59,"n_cols":21,"rows_kept":59,"cut":false,"hidden":false,"merged":[]}
["SIMATIC IPC227G  (Nanobox PC)",null,null,null,null,null,null,null,null,null,null,null,null,null,null,null,null,null,null,"PREZZO DI LISTINO"]
[]
[]
[null,null,null,null,null,null,null,null,null,null,null,null,null,null,null,null,{"$f":"IF(B41,C41,\"\")","v":""}]
["6ES7",6,4,7,"-",8,"C",{"$f":"IF(P6=1,H15,)&IF(P6=2,H16,)&IF(P6=3,H17,)&IF(P6=4,H18,)&IF(P6=5,H19,)&IF(P6=6,H20,)","v":"A"},{"$f":"IF(P7=1,I23,)&IF(P7=2,I24,)&IF(P7=3,I25,)","v":"1"},{"$f":"IF(P8=1,J28,)&IF(P8=2,J29,)&IF(P8=3,J30,)","v":"1"},"-",{"$f":"IF(P9=1,L33,)&IF(P9=2,L34,)&IF(P9=3,L35,)&IF(P9=4,L36,)","v":"2"},{"$f":"IF(P10=1,M39,)","v":"A"},{"$f":"IF(P11=1,N42,)&IF(P11=2,N43,)","v":"A"},{"$f":"IF(P12=1,O46,)&IF(P12=2,O47,)&IF(P12=3,O48,)&IF(P12=4,O49,)","v":"0"},null,{"$f":"\"SIMATIC IPC227G  (Nanobox PC)\"","v":"SIMATIC IPC227G  (Nanobox PC)"},{"$f":"$A$5&$B$5&$C$5&$D$5&$E$5&$F$5&$G$5&$H$5&$I$5&$J$5&$K$5&$L$5&$M$5&$N$5&$O$5","v":"6ES7647-8CA11-2AA0"},null,{"$f":"T54","v":1375}]
[null,null,null,null,null,null,null,"|","|","|",null,"|","|","|","|",1,{"$f":"IF(P6=1,Q15,)&IF(P6=2,Q16,)&IF(P6=3,Q17,)&IF(P6=4,Q18,)&IF(P6=5,Q19,)&IF(P6=6,Q20,)","v":"Atom X6211E (2-Core)"}]
[null,null,null,null,null,null,null,"|","|","|",null,"|","|","|","|",1,{"$f":"IF(P7=1,Q23,)&IF(P7=2,Q24,)&IF(P7=3,Q25,)","v":"4 GB RAM"}]
[null,null,null,null,null,null,null,"|","|","|",null,"|","|","|","|",1,{"$f":"IF(P8=1,Q28,)&IF(P8=2,Q29,)&IF(P8=3,Q30,)","v":"without COM"}]
[null,null,null,null,null,null,{"$f":"IF(P9=12,#REF!,IF(P9=13,#REF!,IF(P9=15,#REF!,IF(P9=16,#REF!,IF(P9=17,#REF!,\"\")))))","v":""},"|","|","|",null,"|","|","|","|",2,{"$f":"IF(P9=1,Q33,)&IF(P9=2,Q34,)&IF(P9=3,Q35,)&IF(P9=4,Q36,)","v":"256 GB Eco SSD"}]
[null,null,null,null,null,null,null,"|","|","|",null,"|","|","|","|",1,{"$f":"IF(P10=1,Q39,)","v":"without HW extension"}]
[null,null,null,null,null,null,null,"|","|","|",null,"|","|","|","|",1,{"$f":"IF(P11=1,Q42,)&IF(P11=2,Q43,)","v":"without Software"}]
[null,null,null,null,null,null,null,"|","|","|",null,"|","|","|","|",1,{"$f":"IF(P12=1,Q46,)&IF(P12=2,Q47,)&IF(P12=3,Q48,)&IF(P12=4,Q49,)","v":"without mountig"}]
[null,null,null,null,null,null,null,"|","|","|",null,"|","|","|","|"]
[null," ",null,null,null,null,null,"|","|","|",null,"|","|","|","|",null,"Processor / TPM"]
[null,null,null,null,null,null,null,"A","|","|",null,"|","|","|","|",null,"Atom X6211E (2-Core)",null,{"$f":"IF($P$6=1,\"X\",\"\")","v":"X"},0,"."]
[null,null,null,null,null,null,null,"B","|","|",null,"|","|","|","|",null,"Atom X6413E (4-Core)",null,{"$f":"IF($P$6=2,\"X\",\"\")","v":""},131,"."]
[null,null,null,null,null,null,null,"C","|","|",null,"|","|","|","|",null,"Atom X6414RE (4-Core)",null,{"$f":"IF($P$6=3,\"X\",\"\")","v":""},197,"."]
[null,null,null,null,null,null,null,"D","|","|",null,"|","|","|","|",null,"Atom X6211E (2-Core) / TPM",null,{"$f":"IF($P$6=4,\"X\",\"\")","v":""},66,"."]
[null,null,null,null,null,null,null,"E","|","|",null,"|","|","|","|",null,"Atom X6413E (4-Core) / TPM",null,{"$f":"IF($P$6=5,\"X\",\"\")","v":""},197,"."]
[null,null,null,null,null,null,null,"F","|","|",null,"|","|","|","|",null,"Atom X6414RE (4-Core) / TPM",null,{"$f":"IF($P$6=6,\"X\",\"\")","v":""},262,"."]
[null,null,null,null,null,null,null,null,"|","|",null,"|","|","|","|"]
[null,null,null,null,null,null,null,null,"|","|",null,"|","|","|","|",null,"RAM"]
[null,null,null,null,null,null,null,null,1,"|",null,"|","|","|","|",null,"4 GB RAM",null,{"$f":"IF($P$7=1,\"X\",\"\")","v":"X"},0,"."]
[null,null,null,null,null,null,null,null,2,"|",null,"|","|","|","|",null,"8 GB RAM",null,{"$f":"IF($P$7=2,\"X\",\"\")","v":""},142,"."]
[null,null,null,null,null,null,null,null,3,"|",null,"|","|","|","|",null,"16 GB RAM",null,{"$f":"IF($P$7=3,\"X\",\"\")","v":""},391,"."]
[null,null,null,null,null,null,null,null,null,"|",null,"|","|","|","|"]
[null,null,null,null,null,null,null,null,null,"|",null,"|","|","|","|",null,"Hardware configuration"]
[null,null,null,null,null,null,null,null,null,1,null,"|","|","|","|",null,"without COM",null,{"$f":"IF($P$8=1,\"X\",\"\")","v":"X"},0,"."]
[null,null,null,null,null,null,null,null,null,2,null,"|","|","|","|",null,"1x COM",null,{"$f":"IF($P$8=2,\"X\",\"\")","v":""},53,"."]
[null,null,null,null,null,null,null,null,null,3,null,"|","|","|","|",null,"2x COM",null,{"$f":"IF($P$8=3,\"X\",\"\")","v":""},105,"."]
[null,null,null,null,null,null,null,null,null,null,null,"|","|","|","|"]
[null,null,null,null,null,null,null,null,null,null,null,"|","|","|","|",null,"Drive"]
[null,null,null,null,null,null,null,null,null,null,null,1,"|","|","|",null,"without drive",null,{"$f":"IF($P$9=1,\"X\",\"\")","v":""},0,"."]
[null,null,null,null,null,null,null," ",null,null,null,2,"|","|","|",null,"256 GB Eco SSD",null,{"$f":"IF($P$9=2,\"X\",\"\")","v":"X"},262,"."]
[null,null,null,null,null,null,null," ",null,null,null,3,"|","|","|",null,"240 GB SSD",null,{"$f":"IF($P$9=3,\"X\",\"\")","v":""},512,"."]
[null,null,null,null,null,null,null," ",null,null,null,4,"|","|","|",null,"480 GB SSD",null,{"$f":"IF($P$9=4,\"X\",\"\")","v":""},969,"."]
[null,null,null,null,null,null,null,null,null,null,null,null,"|","|","|"]
[null,null,null,null,null,null,null,null,null,null,null,null,"|","|","|",null,"Hardware extension"]
[null,null,null,null,null,null,null,null,null,null,null,null,"A","|","|",null,"without HW extension",null,{"$f":"IF($P$10=1,\"X\",\"\")","v":"X"},0,"."]
[null,null,null,null,null,null,null,null,null,null,null,null,null,"|","|"]
[null,null,null,null,null,null,null,null,null,null,null,null,null,"|","|",null,"Software configuration"]
[null,null,null,null,null,null,null,null,null,null,null,null,null,"A","|",null,"without Software",null,{"$f":"IF($P$11=1,\"X\",\"\")","v":"X"},0,"."]
[null,{"$f":"IF(AND(($P$11=2),($P$9=1)),1,0)","v":0},"Windows10 only with drive"," ",null,null,null," ",null,null,null,null,null,"B","|",null,"Windows 10 IoT Enterprise 2019 LTSC, 64Bit, MUI (Ger, En, Es, Fr, It)",null,{"$f":"IF($P$11=2,\"X\",\"\")","v":""},177]
[null,null,null,null,null,null,null,null,null,null,null,null,null,null,"|"]
[null,null,null,null,null,null,null,null,null,null,null,null,null,null,"|",null,"Mounting"]
[null,null,null,null,null,null,null,null,null,null,null,null,null,null,0,null,"without mountig",null,{"$f":"IF($P$12=1,\"X\",\"\")","v":"X"},0,"."]
[null,null,null,null,null,null,null,null,null,null,null,null,null,null,1,null,"DIN-Rail",null,{"$f":"IF($P$12=2,\"X\",\"\")","v":""},0,"."]
[null,null,null,null,null,null,null,null,null,null,null,null,null,null,2,null,"Wall-mount",null,{"$f":"IF($P$12=3,\"X\",\"\")","v":""},0,"."]
[null,null,null,null,null,null,null,null,null,null,null,null,null,null,3,null,"Book-mount",null,{"$f":"IF($P$12=4,\"X\",\"\")","v":""},0,"."]
[]
[]
[null,null,null,null,null,null,null,null,null,null,null,null,null,null,null,null,"Base version",null,"X",1113,"."]
[]
["6ES7",6,4,7," - ",{"$f":"F5","v":8},"C","A","1","1","-","2","A","A","0",null,null,"Summe:",null,{"$f":"IF(AND($Q$2=\"\",$Q$3=\"\",$Q$4=\"\"),SUMIF($S$15:$S$52,\"X\",T$15:T$52),\"Wrong Configuration\")","v":1375}]
[]
[]
[]
[]
[null,null,null,null,null,null,null,null,null,null,null,null,null,null,null,null,"Click here\nfor additional SIMATIC IPC accessories."]

{"sheet":"IPC327G (Basicbox)","index":9,"n_rows":49,"n_cols":20,"rows_kept":49,"cut":false,"hidden":false,"merged":[]}
["SIMATIC IPC327G  "]
[]
[null,null,null,null,null,null,null,null,null,null,null,null,null,null,null,null,""]
[null,null,null,null,null,null,null,null,null,null,null,null,null,null,null,null,{"$f":"IF(B33,C33,\"\")","v":""}]
["6AG4",0,2,2,"-",0,"B",{"$f":"IF(P6=1,H17,)&IF(P6=2,H18,)&IF(P6=3,H19,)&IF(P6=4,H20,)&IF(P6=5,#REF!,)&IF(P6=6,#REF!,)&IF(P6=7,#REF!,)","v":"C"},{"$f":"IF(P7=1,I23,)&IF(P7=2,I24,)&IF(P7=3,I25,)&IF(P7=4,#REF!,)&IF(P7=5,#REF!,)&IF(P7=6,#REF!,)&IF(P7=7,#REF!,)","v":"2"},{"$f":"IF(P8=1,J28,)&IF(P8=2,J29,)&IF(P8=3,#REF!,)&IF(P8=4,#REF!,)","v":"1"},"-",{"$f":"IF(P9=1,L32,)&IF(P9=2,L33,)&IF(P9=3,#REF!,)&IF(P9=4,#REF!,)","v":"2"},{"$f":"IF(P10=1,M36,)&IF(P10=2,M37,)&IF(P10=3,M38,)&IF(P10=4,#REF!,)","v":"B"},{"$f":"IF(P11=1,N41,)&IF(P11=2,#REF!,)&IF(P11=3,#REF!,)&IF(P11=4,#REF!,)&IF(P11=5,#REF!,)","v":"A"},{"$f":"IF(P12=1,O44,)&IF(P12=2,O45,)&IF(P12=3,#REF!,)&IF(P12=4,#REF!,)&IF(P12=5,#REF!,)&IF(P12=6,#REF!,)","v":"2"},null,{"$f":"\"SIMATIC IPC327G\"","v":"SIMATIC IPC327G"},{"$f":"$A$5&$B$5&$C$5&$D$5&$E$5&$F$5&$G$5&$H$5&$I$5&$J$5&$K$5&$L$5&$M$5&$N$5&$O$5","v":"6AG4022-0BC21-2BA2"}]
[null,null,null,null,null,null,null,"|","|","|",null,"|","|","|","|",3,{"$f":"IF(P6=1,Q17,)&IF(P6=2,Q18,)&IF(P6=3,Q19,)&IF(P6=4,Q20,)","v":"Intel Atomx6413E Processor (up to 3.0 GHz) NO Audio"}]
[null,null,null,null,null,null,null,"|","|","|",null,"|","|","|","|",1,{"$f":"IF(P7=1,Q23,)&IF(P7=2,Q24,)&IF(P7=3,Q25,)","v":"4GB RAM"}]
[null,null,null,null,null,null,null,"|","|","|",null,"|","|","|","|",1,{"$f":"IF(P8=1,Q28,)&IF(P8=2,Q29,)","v":"Basic 4x USB + 2x COM"}]
[null,null,null,null,null,null,{"$f":"IF(P9=12,#REF!,IF(P9=13,#REF!,IF(P9=15,#REF!,IF(P9=16,#REF!,IF(P9=17,#REF!,\"\")))))","v":""},"|","|","|",null,"|","|","|","|",2,{"$f":"IF(P9=1,Q32,)&IF(P9=2,Q33,)","v":"Windows 10 Enterprise LTSC 2019, 64Bit, MUI (De, En, Fr, It, Sp)"}]
[null,null,null,null,null,null,null,"|","|","|",null,"|","|","|","|",2,{"$f":"IF(P10=1,Q36,)&IF(P10=2,Q37,)&IF(P10=3,Q38,)","v":"256GB  Eco SSD"}]
[null,null,null,null,null,null,null,"|","|","|",null,"|","|","|","|",1]
[null,null,null,null,null,null,null,"|","|","|",null,"|","|","|","|",2,{"$f":"IF(P12=1,Q44,)&IF(P12=2,Q45,)","v":"Din-rail"}]
[null,null,null,null,null,null,null,"|","|","|",null,"|","|","|","|"]
[null,null,null,null,null,null,null,"|","|","|",null,"|","|","|","|"]
[null,null,null,null,null,null,null,"|","|","|",null,"|","|","|","|"]
[null," ",null,null,null,null,null,"|","|","|",null,"|","|","|","|",null,"CPU"]
[null,null,null,null,null,null,null,"A","|","|",null,"|","|","|","|",null,"Intel Atomx6413E Processor (up to 3.0 GHz) NON DISPONIBILE!",null,{"$f":"IF($P$6=1,\"X\",\"\")","v":""},"."]
[null,null,null,null,null,null,null,"B","|","|",null,"|","|","|","|",null,"Intel Atomx6413E Processor (up to 3.0 GHz)/TPM NON DISPONIBILE!",null,{"$f":"IF($P$6=2,\"X\",\"\")","v":""},"."]
[null,null,null,null,null,null,null,"C","|","|",null,"|","|","|","|",null,"Intel Atomx6413E Processor (up to 3.0 GHz) NO Audio",null,{"$f":"IF($P$6=3,\"X\",\"\")","v":"X"},"."]
[null,null,null,null,null,null,null,"D","|","|",null,"|","|","|","|",null,"Intel Atomx6413E Processor (up to 3.0 GHz) + TPM NO Audio",null,{"$f":"IF($P$6=4,\"X\",\"\")","v":""},"."]
[null,null,null,null,null,null,null,null,"|","|",null,"|","|","|","|"]
[null,null,null,null,null,null,null,null,"|","|",null,"|","|","|","|",null,"Memory"]
[null,null,null,null,null,null,null,null,2,"|",null,"|","|","|","|",null,"4GB RAM",null,{"$f":"IF($P$7=1,\"X\",\"\")","v":"X"},"."]
[null,null,null,null,null,null,null,null,3,"|",null,"|","|","|","|",null,"8GB RAM",null,{"$f":"IF($P$7=2,\"X\",\"\")","v":""},"."]
[null,null,null,null,null,null,null,null,4,"|",null,"|","|","|","|",null,"16GB RAM",null,{"$f":"IF($P$7=3,\"X\",\"\")","v":""},"."]
[null,null,null,null,null,null,null,null,null,"|",null,"|","|","|","|"]
[null,null,null,null,null,null,null,null,null,"|",null,"|","|","|","|",null,"HW extension"]
[null,null,null,null,null,null,null,null,null,1,null,"|","|","|","|",null,"Basic 4x USB + 2x COM",null,{"$f":"IF($P$8=1,\"X\",\"\")","v":"X"},"."]
[null,null,null,null,null,null,null,null,null,2,null,"|","|","|","|",null,"4x USB + 4x COM via pinheader",null,{"$f":"IF($P$8=2,\"X\",\"\")","v":""},"."]
[null,null,null,null,null,null,null,null,null,null,null,"|","|","|","|"]
[null,null,null,null,null,null,null,null,null,null,null,"|","|","|","|",null,"OS"]
[null,null,null,null,null,null,null,null,null,null,null,0,"|","|","|",null,"without Software",null,{"$f":"IF($P$9=1,\"X\",\"\")","v":""},"."]
[null,{"$f":"IF(AND(P9=2,P10=1),1,0)","v":0},"Windows10 only with drive",null,null,null,null," ",null,null,null,2,"|","|","|",null,"Windows 10 Enterprise LTSC 2019, 64Bit, MUI (De, En, Fr, It, Sp)",null,{"$f":"IF($P$9=2,\"X\",\"\")","v":"X"},"."]
[null,null,null,null,null,null,null,null,null,null,null,null,"|","|","|"]
[null,null,null,null,null,null,null,null,null,null,null,null,"|","|","|",null,"Mass storage"]
[null,null,null,null,null,null,null,null,null,null,null,null,"A","|","|",null,"without mass storage",null,{"$f":"IF($P$10=1,\"X\",\"\")","v":""},"."]
[null,null,null,null,null,null,null,null,null,null,null,null,"B","|","|",null,"256GB  Eco SSD",null,{"$f":"IF($P$10=2,\"X\",\"\")","v":"X"},"."]
[null,null,null,null,null,null,null,null,null,null,null,null,"C","|","|",null,"512GB  Eco SSD",null,{"$f":"IF($P$10=3,\"X\",\"\")","v":""},"."]
[null,null,null,null,null,null,null,null,null,null,null,null,null,"|","|"]
[null,null,null,null,null,null,null,null,null,null,null,null,null,"|","|",null,"Reserve"]
[null,null,null,null,null,null,null,null,null,null,null,null,null,"A","|",null,null,null,{"$f":"IF($P$11=1,\"X\",\"\")","v":"X"}]
[null,null,null,null,null,null,null,null,null,null,null,null,null,null,"|"]
[null,null,null,null,null,null,null,null,null,null,null,null,null,null,"|",null,"Mouting"]
[null,null,null,null,null,null,null,null,null,null,null,null,null,null,1,null,"Wall-mounting",null,{"$f":"IF($P$12=1,\"X\",\"\")","v":""}]
[null,null,null,null,null,null,null,null,null,null,null,null,null,null,2,null,"Din-rail",null,{"$f":"IF($P$12=2,\"X\",\"\")","v":"X"}]
[]
[]
[null,null,null,null,null,null,null,null,null,null,null,null,null,null,null,null,"Base",null,"X"]
[null,null,null,null,null,null,null,null,null,null,null,null,null,null,null,null,null,"Listino"]

{"sheet":"IPC BX-39A (Box PC)","index":10,"n_rows":90,"n_cols":20,"rows_kept":90,"cut":false,"hidden":false,"merged":[[0,17,3,17]]}
["SIMATIC IPC BX-39A (BoxPC)",null,null,null,null,null,null,null,null,null,null,null,null,null,null,null,{"$f":"$A$5&$B$5&$C$5&$D$5&$E$5&$F$5&$G$5&$H$5&$I$5&$J$5&$K$5&$L$5&$M$5&$N$5&$O$5","v":"6AG4142-1AA00-0AA0"},null,null,"L-Price (xxx)"]
[null,null,null,null,null,null,null,null,null,null,null,null,null,null,null,null,{"$f":"$A$5&$B$5&$C$5&$D$5&$E$5&$F$5&$G$5&$H$5&$I$5&$J$5&$K$5&$L$5&$M$5&$N$5&$O$5","v":"6AG4142-1AA00-0AA0"}]
[null,null,{"$f":"IF(OR(F5=\"#\",G5=\"#\",H5=\"#\",I5=\"#\",J5=\"#\",L5=\"#\",M5=\"#\",N5=\"#\",P5=\"#\",O5=\"#\"),1,0)","v":0},"Configuration not possible. Mind the combinations of the options",null,null,null,null,null,null,null,null,null,null,null,null,{"$f":"IF(C3, D3,\"\")","v":""}]
[" ",null,null,null,null,null,null,null,null,null,null,null,null,null,null,null," "]
["6AG4",1,4,2,"-",{"$f":"VLOOKUP(P7,A21:Q24,6,TRUE)","v":1},{"$f":"VLOOKUP(P8,A27:Q36,7,TRUE)","v":"A"},{"$f":"VLOOKUP(P9,A39:Q44,8,TRUE)","v":"A"},{"$f":"VLOOKUP(P10,A47:Q49,9,TRUE)","v":0},{"$f":"VLOOKUP(P11,A52:Q54,10,TRUE)","v":"0"},"-",{"$f":"VLOOKUP(P12,A57:Q59,12,FALSE)","v":0},{"$f":"VLOOKUP(P13,A62:Q63,13,TRUE)","v":"A"},{"$f":"VLOOKUP(P14,A66:Q67,14,TRUE)","v":"A"},{"$f":"VLOOKUP(P15,A70:Q70,15,TRUE)","v":0},null,{"$f":" \"SIMATIC IPC BX-39A\" & \" (Box PC)\"","v":"SIMATIC IPC BX-39A (Box PC)"},{"$f":"T(Q2)","v":"6AG4142-1AA00-0AA0"},null,{"$f":"T74","v":1828}]
[null,null,null,"|",null,"|","|","|","|","|",null,"|","|","|","|",1,{"$f":"VLOOKUP(P6,A18:Q18,17,FALSE)","v":"Standard-Device"}]
[null,null,null,"|",null,"|","|","|","|","|",null,"|","|","|","|",1,{"$f":"VLOOKUP(P7,A21:Q24,17,FALSE)","v":"Intel Celeron 6600HLE (2,1 GHz, 2C/2T)"}," "]
[null,null,null,"|",null,"|","|","|","|","|",null,"|","|","|","|",1,{"$f":"VLOOKUP(P8,A27:Q36,17,FALSE)","v":"without mounting material"}]
[null,null,null,"|",null,"|","|","|","|","|",null,"|","|","|","|",1,{"$f":"VLOOKUP(P9,A39:Q44,17,FALSE)","v":"4GB"}]
[null,null,null,"|",null,"|","|","|","|","|",null,"|","|","|","|",1,{"$f":"VLOOKUP(P10,A47:Q49,17,FALSE)","v":"without SSD 1"}]
[null,null,null,"|",null,"|","|","|","|","|",null,"|","|","|","|",1,{"$f":"VLOOKUP(P11,A52:Q54,17,FALSE)","v":"without SSD 2"}]
[null,null,null,"|",null,"|","|","|","|","|",null,"|","|","|","|",1,{"$f":"VLOOKUP(P12,A57:Q59,17,FALSE)","v":"without operating system (Edge-option with OS)"}]
[null,null,null,"|",null,"|","|","|","|","|",null,"|","|","|","|",1,{"$f":"VLOOKUP(P13,A62:Q63,17,FALSE)","v":"without Option 1"}]
[null,null,null,"|",null,"|","|","|","|","|",null,"|","|","|","|",1,{"$f":"VLOOKUP(P14,A66:Q67,17,FALSE)","v":"Restore-Stick Image with D&D and Software-Image (if selected) only via OSD (Online Portal)"}]
[null,null,null,"|",null,"|","|","|","|","|",null,"|","|","|","|",1,{"$f":"VLOOKUP(P15,A70:Q70,17,FALSE)","v":"24V DC Industry-power supply (Premium, NAU, isolated with hold-up time)"}]
[null,null,null,"|",null,"|","|","|","|","|",null,"|","|","|","|",null," "]
[null,null,null,"|",null,"|","|","|","|","|",null,"|","|","|","|",null,"Device"]
[1,null,null,2,null,"|","|","|","|","|",null,"|","|","|","|",null,"Standard-Device",null,{"$f":"IF($P$6=1,1,\"\")","v":1},0]
[null,null,null,null,null,"|","|","|","|","|",null,"|","|","|","|"]
[null,null,null,null,null,"|","|","|","|","|",null,"|","|","|","|",null,"Processor"]
[1,null,null,null,null,1,"|","|","|","|",null,"|","|","|","|",null,"Intel Celeron 6600HLE (2,1 GHz, 2C/2T)",null,{"$f":"IF($P$7=1,1,\"\")","v":1},66]
[2,null,null,null,null,3,"|","|","|","|",null,"|","|","|","|",null,"Intel Xeon W-11155MLE (1,8/3,1 GHz, 4C/8T)",null,{"$f":"IF($P$7=2,1,\"\")","v":""},512]
[3,null,null,null,null,5,"|","|","|","|",null,"|","|","|","|",null,"Intel Xeon W-11555MLE (1,9/4,4 GHz, 6C/12T)",null,{"$f":"IF($P$7=3,1,\"\")","v":""},721]
[4,null,null,null,null,7,"|","|","|","|",null,"|","|","|","|",null,"Intel Xeon W-11865MLE (1,5/4,5 GHz, 8C/16T)",null,{"$f":"IF($P$7=4,1,\"\")","v":""},1178]
[null,null,null,null,null,null,"|","|","|","|",null,"|","|","|","|"]
[null,null,null,null,null,null,"|","|","|","|",null,"|","|","|","|",null,"Mounting / PCIe"]
[1,null,null,null,null,null,"A","|","|","|",null,"|","|","|","|",null,"without mounting material",null,{"$f":"IF($P$8=1,1,\"\")","v":1},0]
[2,null,null,null,null,null,"B","|","|","|",null,"|","|","|","|",null,"DIN-Rail",null,{"$f":"IF($P$8=2,1,\"\")","v":""},27]
[3,null,null,null,null,null,"C","|","|","|",null,"|","|","|","|",null,"Wall-mount",null,{"$f":"IF($P$8=3,1,\"\")","v":""},27]
[4,null,null,null,null,null,"D","|","|","|",null,"|","|","|","|",null,"Book-mount",null,{"$f":"IF($P$8=4,1,\"\")","v":""},27]
[5,null,null,null,null,null,"F","|","|","|",null,"|","|","|","|",null,"1 x PCIe and DIN-Rail",null,{"$f":"IF($P$8=5,1,\"\")","v":""},157]
[6,null,null,null,null,null,"G","|","|","|",null,"|","|","|","|",null,"1 x PCIe and Wall-mount",null,{"$f":"IF($P$8=6,1,\"\")","v":""},157]
[7,null,null,null,null,null,"H","|","|","|",null,"|","|","|","|",null,"1 x PCIe and Book-mount",null,{"$f":"IF($P$8=7,1,\"\")","v":""},157]
[8,null,null,null,null,null,"J","|","|","|",null,"|","|","|","|",null,"2 x PCIe and DIN-Rail",null,{"$f":"IF($P$8=8,1,\"\")","v":""},289]
[9,null,null,null,null,null,"K","|","|","|",null,"|","|","|","|",null,"2 x PCIe and Wall-mount",null,{"$f":"IF($P$8=9,1,\"\")","v":""},289]
[10,null,null,null,null,null,"L","|","|","|",null,"|","|","|","|",null,"2 x PCIe and Book-mount",null,{"$f":"IF($P$8=10,1,\"\")","v":""},289]
[" ",null,null,null,null,null,null,"|","|","|",null,"|","|","|","|"]
[null,null,null,null,null,null," ","|","|","|",null,"|","|","|","|",null,"RAM"]
[1,null,null,null,null,null,null,"A","|","|",null,"|","|","|","|",null,"4GB",null,{"$f":"IF($P$9=1,1,\"\")","v":1},0]
[2,null,null,null,null,null,null,"B","|","|",null,"|","|","|","|",null,"8GB",null,{"$f":"IF($P$9=2,1,\"\")","v":""},164]
[3,null,null,null,null,null,null,"C","|","|",null,"|","|","|","|",null,"16GB",null,{"$f":"IF($P$9=3,1,\"\")","v":""},452]
[4,null,null,null,null,null,null,"D","|","|",null,"|","|","|","|",null,"32GB",null,{"$f":"IF($P$9=4,1,\"\")","v":""},1067]
[5,null,null,null,null,null,null,"E","|","|",null,"|","|","|","|",null,"16GB with ECC",null,{"$f":"IF($P$9=5,1,\"\")","v":""},883]
[6,null,null,null,".",null,null,"F","|","|",null,"|","|","|","|",null,"32GB with ECC",null,{"$f":"IF($P$9=6,1,\"\")","v":""},1668]
[null,null,null,null,null,null,null,null,"|","|",null,"|","|","|","|",null," "]
[null,null,null,null,null,null,null,null,"|","|",null,"|","|","|","|",null,"SSD 1 in Simatic IPC Slider (incl. OS, if selected)"]
[1,null,null,null,null,null,null,null,0,"|",null,"|","|","|","|",null,"without SSD 1",null,{"$f":"IF($P$10=1,1,\"\")","v":1},0]
[2," ",null,null," ",null,null,null,1,"|",null,"|","|","|","|",null,"M.2 SSD 256 GB Eco",null,{"$f":"IF($P$10=2,1,\"\")","v":""},262]
[3,null,null,null," ",null,null,null,2,"|",null,"|","|","|","|",null,"M.2 SSD 512 GB Eco",null,{"$f":"IF($P$10=3,1,\"\")","v":""},512]
[null,null,null,null,null,null,null,null,null,"|",null,"|","|","|","|"]
[null,null,null,null,null,null,null,null,null,"|",null,"|","|","|","|",null,"Drive 2 in Simatic IPC Slider"]
[1,null,null,null,null,null,null,null,null,{"$f":"IF($P$10<8,\"0\",\"#\")","v":"0"},null,"|","|","|","|",null,"without SSD 2",null,{"$f":"IF($P$11=1,1,\"\")","v":1},0]
[2,null,null,null,null,null,null,null,null,{"$f":"IF($P$10<8,\"1\",\"#\")","v":"1"},null,"|","|","|","|",null,"M.2 SSD 256 GB Eco",null,{"$f":"IF($P$11=2,1,\"\")","v":""},262]
[3,null,{"$f":"IF(OR($P$13<3,$P$13=1,$P$13=2,$P$13=8,$P$13=9,$P$13=12)*OR($P$12<3,$P$12>5),1,0)","v":1},null,null,null,null,null,null,{"$f":"IF(OR($P$10<>8),\"2\",\"#\")","v":"2"},null,"|","|","|","|",null,"M.2 SSD 512 GB Eco",null,{"$f":"IF($P$11=3,1,\"\")","v":""},512]
[" ",null,null,null,null,null,null,null,null,null,null,"|","|","|","|"]
[null,null,null,null,null,null,null,null,null,null,null,"|","|","|","|",null,"Software configuration"]
[1,null,null,null,null,null,null,null,null,null,null,0,"|","|","|",null,"without operating system (Edge-option with OS)",null,{"$f":"IF($P$12=1,1,\"\")","v":1},0]
[2,null,null,null,null,null,null,null,null,null,null,{"$f":"IF($P$7<>4,\"1\",\"#\")","v":"1"},"|","|","|",null,"Windows 10 Enterprise 2021 LTSC with processors Celeron, W-11155MLE, W-11555MLE",null,{"$f":"IF($P$12=2,1,\"\")","v":""},227]
[3,null,null,null,null,null,null,null,null,null,null,{"$f":"IF($P$7=4,\"2\",\"#\")","v":"#"},"|","|","|",null,"Windows 10 Enterprise 2021 LTSC with processor W-11865MLE",null,{"$f":"IF($P$12=3,1,\"\")","v":""},340]
[null,null,null,null,null,null,null,null,null,null,null,null,"|","|","|"]
[null,null,null,null,null,null," ",null,null,null,null,null,"|","|","|",null,"Option 1"]
[1,null,null,null,null,null,null,null,null,null," ",null,"A","|","|",null,"without Option 1",null,{"$f":"IF($P$13=1,1,\"\")","v":1},0]
[2,null,null,null,null,null,null,null,null,null,null,null,"B","|","|",null,"additional 1 x Com (RS232/485/422)",null,{"$f":"IF($P$13=2,1,\"\")","v":""},66]
[null,null,null,null,null,null,null,null,null,null,null,null,null,"|","|"]
[null,null,null,null,null,null,null,null,null,null,null,null,null,"|","|",null,"Option 2"]
[1,null,null,null,null,null," "," "," "," "," "," "," ","A","|",null,"Restore-Stick Image with D&D and Software-Image (if selected) only via OSD (Online Portal)",null,{"$f":"IF($P$14=1,1,\"\")","v":1},0]
[2,null,null,null,null,null,null,null,null,null,null,null,null,"B","|",null,"USB-Restore-Stick with D&D and Software-Image (if selected)",null,{"$f":"IF($P$14=2,1,\"\")","v":""},66]
[null,null,null,null,null,null," "," "," "," "," "," "," "," ","|"," "]
[null,null,null,null,null,null," "," "," "," "," "," "," ",null,"|",null,"Power Supply"]
[1,null,null,null,null,null,null,null,null,null,null,null,null,null,0,null,"24V DC Industry-power supply (Premium, NAU, isolated with hold-up time)",null,{"$f":"IF($P$15=1,1,\"\")","v":1},66]
[]
[null,null,null,null,null,null,null,null,null,null,null,null,null,null,null,null,"Base device",null,1,1696]
[]
[null,null,null,null,null,null,null,null,null,null,null,null,null,null,null,null,null,"Total:",null,{"$f":"SUMPRODUCT(S9:S72,T9:T72)","v":1828}]
[]
[]
[]
["Accessories:"]
["6ES7648-0EK00-0GA1",null,null,null,null,null,null,null,null,null,null,null,null,null,null,null,"SIMATIC IPC Slider (long) for M.2 SSD, w/o SSD",null,null,35]
["6ES7648-0EK10-0GA3",null,null,null,null,null,null,null,null,null,null,null,null,null,null,null,"SIMATIC IPC Slider (long) for M.2 SSD, with 256 GB Eco",null,null,243]
["6ES7648-0EK20-0GA3",null,null,null,null,null,null,null,null,null,null,null,null,null,null,null,"SIMATIC IPC Slider (long) for M.2 SSD, with 512 GB Eco",null,null,440]
["6ES7648-2AK70-0RA0",null,null,null,null,null,null,null,null,null,null,null,null,null,null,null,"RAM  8 GB (1x 8 GB) DDR4 3200, SDRAM, SO-DIMM",null,null,327]
["6ES7648-2AK80-0RA0",null,null,null,null,null,null,null,null,null,null,null,null,null,null,null,"RAM  16 GB (1x 16 GB) DDR4 3200, SDRAM, SO-DIMM",null,null,654]
["6ES7648-2AK81-0RA0",null,null,null,null,null,null,null,null,null,null,null,null,null,null,null,"RAM   32 GB (1x 32 GB) DDR4 3200, SDRAM, SO-DIMM",null,null,1300]
["6ES7648-2AK80-1RA0",null,null,null,null,null,null,null,null,null,null,null,null,null,null,null,"RAM   16 GB (1x 16 GB) DDR4 3200, SDRAM, SO-DIMM with ECC",null,null,1003]
["6ES7648-2AK81-1RA0",null,null,null,null,null,null,null,null,null,null,null,null,null,null,null,"RAM   32 GB (1x 32 GB) DDR4 3200, SDRAM, SO-DIMM with ECC",null,null,2000]
["6ES7648-1AA22-0YM0",null,null,null,null,null,null,null,null,null,null,null,null,null,null,null,"Mounting set DIN-rail IPC BX-39A",null,null,54.5]
["6ES7648-1AA22-0YN0",null,null,null,null,null,null,null,null,null,null,null,null,null,null,null,"Mounting set Wallmount IPC BX-39A",null,null,54.5]
["6ES7648-1AA22-0YP0",null,null,null,null,null,null,null,null,null,null,null,null,null,null,null,"Mounting set Bookmount IPC BX-39A",null,null,54.5]
["6ES7648-1AA20-0YL0",null,null,null,null,null,null,null,null,null,null,null,null,null,null,null,"Accessory cable strain-relief IPC BX-39A",null,null,54.5]

{"sheet":"IPC427E (Microbox)","index":11,"n_rows":114,"n_cols":20,"rows_kept":114,"cut":false,"hidden":false,"merged":[]}
["SIMATIC IPC427E (Box PC)",null,null,null,null,null,null,null,null,null,null,null,null,null,null,null," "]
[null,null,null,null,null,null,null,null,null,null,null,null,null,null,null,null,{"$f":"$A$5&$B$5&$C$5&$D$5&$E$5&$F$5&$G$5&$H$5&$I$5&$J$5&$K$5&$L$5&$M$5&$N$5&$O$5","v":"6AG4141-0AA00-0AA0"}]
[null,null,{"$f":"IF(OR(F5=\"#\",G5=\"#\",H5=\"#\",I5=\"#\",J5=\"#\",L5=\"#\",M5=\"#\",N5=\"#\",P5=\"#\",O5=\"#\"),1,0)","v":0},"Configuration not possible. Mind the combinations of the options",null,null,null,null,null,null,null,null,null,null,null," ",{"$f":"IF(C3,D3,\"\")","v":""}]
[]
["6AG4",1,4,1,"-",{"$f":"VLOOKUP(P6,A18:Q22,6,TRUE)","v":0},{"$f":"VLOOKUP(P7,A25:Q31,7,TRUE)","v":"A"},{"$f":"VLOOKUP(P8,A34:Q43,8,TRUE)","v":"A"},{"$f":"VLOOKUP(P9,A46:Q52,9,TRUE)","v":0},{"$f":"VLOOKUP(P10,A55:Q63,10,TRUE)","v":0},"-",{"$f":"VLOOKUP(P11,A66:Q71,12,FALSE)","v":0},{"$f":"VLOOKUP(P12,A74:Q78,13,TRUE)","v":"A"},{"$f":"VLOOKUP(P13,A81:Q84,14,TRUE)","v":"A"},{"$f":"VLOOKUP(P14,A87:Q88,15,TRUE)","v":0},null,"SIMATIC IPC427E (Box PC)",{"$f":"A5&B5&C5&D5&E5&F5&G5&H5&I5&J5&K5&L5&M5&N5&O5","v":"6AG4141-0AA00-0AA0"}]
[null,null,null,null,null,"|","|","|","|","|",null,"|","|","|","|",1,{"$f":"VLOOKUP(P6,A18:Q22,17,FALSE)","v":"Celeron G3902E; 2x Gigabit Ethernet (IE/PN)"}]
[null,null,null,null,null,"|","|","|","|","|",null,"|","|","|","|",1,{"$f":"VLOOKUP(P7,A25:Q31,17,FALSE)","v":"without mounting material"}]
[null,null,null,null,null,"|","|","|","|","|",null,"|","|","|","|",1,{"$f":"VLOOKUP(P8,A34:Q43,17,FALSE)","v":"4GB"}]
[null,null,null,null,null,"|","|","|","|","|",null,"|","|","|","|",1,{"$f":"VLOOKUP(P9,A46:Q52,17,FALSE)","v":"no RS232/485, without PCIe"}]
[null,null,null,null,null,"|","|","|","|","|",null,"|","|","|","|",1,{"$f":"VLOOKUP(P10,A55:Q63,17,FALSE)","v":"without Windows Operating system"}]
[null,null,null,null,null,"|","|","|","|","|",null,"|","|","|","|",1,{"$f":"VLOOKUP(P11,A66:Q71,17,FALSE)","v":"without external mass storage"}]
[null,null,null,null,null,"|","|","|","|","|",null,"|","|","|","|",1,{"$f":"VLOOKUP(P12,A74:Q78,17,FALSE)","v":"without internal mass storage"}]
[null,null,null,null,null,"|","|","|","|","|",null,"|","|","|","|",1,{"$f":"VLOOKUP(P13,A81:Q84,17,FALSE)","v":"without SIMATIC Software"}]
[null,null,null,null,null,"|","|","|","|","|",null,"|","|","|","|",1,{"$f":"VLOOKUP(P14,A87:Q88,17,FALSE)","v":"24V DC industrial power supply"}]
[null,null,null,null,null,"|","|","|","|","|",null,"|","|","|","|",null," "]
[null,null,null,null,null,"|","|","|","|","|",null,"|","|","|","|"]
[null,null,null,null,null,"|","|","|","|","|",null,"|","|","|","|",null,"Processor and Fieldbus"]
[1,null,null,null,null,0,"|","|","|","|",null,"|","|","|","|",null,"Celeron G3902E; 2x Gigabit Ethernet (IE/PN)",null,{"$f":"IF($P$6=1,1,\"\")","v":1},"."]
[2,null,null,null,null,1,"|","|","|","|",null,"|","|","|","|",null,"Celeron G3902E; 3x Gigabit Ethernet (IE/PN)",null,{"$f":"IF($P$6=2,1,\"\")","v":""},"."]
[3,null,null,null,null,3,"|","|","|","|",null,"|","|","|","|",null,"Core i3-6102E; 3x Gigabit Ethernet (IE/PN)",null,{"$f":"IF($P$6=3,1,\"\")","v":""},"."]
[4,null,null,null,null,5,"|","|","|","|",null,"|","|","|","|",null,"Core i5-6442EQ; 3x Gigabit Ethernet (IE/PN) (Consigliato per SW Controller)",null,{"$f":"IF($P$6=4,1,\"\")","v":""},"."]
[5,null,null,null,null,7,"|","|","|","|",null,"|","|","|","|",null,"XEON E3-1505L; 3x Gigabit Ethernet (IE/PN) (Consigliato per SW Controller)",null,{"$f":"IF($P$6=5,1,\"\")","v":""},"."]
[null,null,null,null,null,null,"|","|","|","|",null,"|","|","|","|"]
[null,null,null,null,null,null,"|","|","|","|",null,"|","|","|","|",null,"Mounting"]
[1,null,null,null,null,null,"A","|","|","|",null,"|","|","|","|",null,"without mounting material",null,{"$f":"IF($P$7=1,1,\"\")","v":1},"."]
[2,null,null,null,null,null,"B","|","|","|",null,"|","|","|","|",null,"DIN-Rail",null,{"$f":"IF($P$7=2,1,\"\")","v":""},"."]
[3,null,null,null,null,null,"C","|","|","|",null,"|","|","|","|",null,"Wall-mount",null,{"$f":"IF($P$7=3,1,\"\")","v":""},"."]
[4,null,null,null,null,null,"D","|","|","|",null,"|","|","|","|",null,"Book-mount",null,{"$f":"IF($P$7=4,1,\"\")","v":""},"."]
[5,null,null,null,null,null,"F","|","|","|",null,"|","|","|","|",null,"DIN-Rail with ATEX/IECEx/UL HazLoc",null,{"$f":"IF($P$7=5,1,\"\")","v":""},"."]
[6,null,null,null,null,null,"G","|","|","|",null,"|","|","|","|",null,"Wall-mount with ATEX/IECEx/UL HazLoc",null,{"$f":"IF($P$7=6,1,\"\")","v":""},"."]
[7,null,null,null,null,null,"H","|","|","|",null,"|","|","|","|",null,"Book-mount with ATEX/IECEx/UL HazLoc",null,{"$f":"IF($P$7=7,1,\"\")","v":""},"."]
[null,null,null,null,null,null,null,"|","|","|",null,"|","|","|","|"]
[null,null,null,null,null,null," ","|","|","|",null,"|","|","|","|",null,"Ram/NVRAM/ECC"]
[1,null,null,null,null,null,null,"A","|","|",null,"|","|","|","|",null,"4GB",null,{"$f":"IF($P$8=1,1,\"\")","v":1},"."]
[2,null,null,null,null,null,null,"B","|","|",null,"|","|","|","|",null,"8GB",null,{"$f":"IF($P$8=2,1,\"\")","v":""},"."]
[3,null,null,null,null,null,null,"C","|","|",null,"|","|","|","|",null,"16GB",null,{"$f":"IF($P$8=3,1,\"\")","v":""},"."]
[4,null,null,null,null,null,null,{"$f":"IF($P$6<>4,\"D\",\"#\")","v":"D"},"|","|",null,"|","|","|","|",null,"8GB with ECC ",null,{"$f":"IF($P$8=4,1,\"\")","v":""},"."]
[5,null,{"$f":"IF(AND($P$6<>7,P7=5),1,0)","v":0},"Arbeitsspeicher mit ECC nur in Verbindung mit Core i7 mit IE/PN (Option \"6\")",".",null,null,{"$f":"IF($P$6<>4,\"E\",\"#\")","v":"E"},"|","|",null,"|","|","|","|",null,"16GB with ECC",null,{"$f":"IF($P$8=5,1,\"\")","v":""},"."]
[6,null,{"$f":"IF(AND($P$6<>7,P8=5),1,0)","v":0},"Arbeitsspeicher mit ECC nur in Verbindung mit Core i7 mit IE/PN (Option \"6\")",".",null,null,"F","|","|",null,"|","|","|","|",null,"4GB and NVRAM (Necessario per SW Controller)",null,{"$f":"IF($P$8=6,1,\"\")","v":""},"."]
[7,null,{"$f":"IF(AND($P$6<>7,P9=5),1,0)","v":0},"Arbeitsspeicher mit ECC nur in Verbindung mit Core i7 mit IE/PN (Option \"6\")",".",null,null,"G","|","|",null,"|","|","|","|",null,"8GB and NVRAM (Necessario per SW Controller)",null,{"$f":"IF($P$8=7,1,\"\")","v":""},"."]
[8,null,{"$f":"IF(AND($P$6<>7,P10=5),1,0)","v":0},"Arbeitsspeicher mit ECC nur in Verbindung mit Core i7 mit IE/PN (Option \"6\")",".",null,null,"H","|","|",null,"|","|","|","|",null,"16GB and NVRAM (Necessario per SW Controller)",null,{"$f":"IF($P$8=8,1,\"\")","v":""},"."]
[9,null,{"$f":"IF(AND($P$6<>7,P12=5),1,0)","v":0},"Arbeitsspeicher mit ECC nur in Verbindung mit Core i7 mit IE/PN (Option \"6\")",".",null,null,{"$f":"IF($P$6<>4,\"J\",\"#\")","v":"J"},"|","|",null,"|","|","|","|",null,"8GB with ECC and NVRAM (Necessario per SW Controller)",null,{"$f":"IF($P$8=9,1,\"\")","v":""},"."]
[10,null,{"$f":"IF(AND($P$6<>7,P13=5),1,0)","v":0},"Arbeitsspeicher mit ECC nur in Verbindung mit Core i7 mit IE/PN (Option \"6\")",".",null,null,{"$f":"IF($P$6<>4,\"K\",\"#\")","v":"K"},"|","|",null,"|","|","|","|",null,"16GB with ECC and NVRAM (Necessario per SW Controller)",null,{"$f":"IF($P$8=10,1,\"\")","v":""},"."]
[null,null,null,null,null,null,null," ","|","|",null,"|","|","|","|"]
[null,null,null,null,null,null,null,null,"|","|",null,"|","|","|","|",null,"Extension (HW)"]
[1,null,null,null,null,null,null,null,0,"|",null,"|","|","|","|",null,"no RS232/485, without PCIe",null,{"$f":"IF($P$9=1,1,\"\")","v":1},"."]
[2,null,null,null,null,null,null,null,1,"|",null,"|","|","|","|",null,"no RS232/485 and one PCIe (Necessario per CP1625 o CP5622)",null,{"$f":"IF($P$9=2,1,\"\")","v":""},"."]
[3,null,null,null,null,null,null,null,2,"|",null,"|","|","|","|",null,"no RS232/485 and two PCIe (Necessario per CP1625 o CP5622)",null,{"$f":"IF($P$9=3,1,\"\")","v":""},"."]
[4,null,null,null,null,null,null,null,3,"|",null,"|","|","|","|",null,"two RS232/485 and without PCIe",null,{"$f":"IF($P$9=4,1,\"\")","v":""},"."]
[5,null,null,null,null,null,null,null,4,"|",null,"|","|","|","|",null,"two RS232/485 and one PCIe (Necessario per CP1625 o CP5622)",null,{"$f":"IF($P$9=5,1,\"\")","v":""},"."]
[6,null,null,null,null,null,null,null,5,"|",null,"|","|","|","|",null,"two RS232/485 and two PCIe (Necessario per CP1625 o CP5622)",null,{"$f":"IF($P$9=6,1,\"\")","v":""},"."]
[7,null,null,null,null,null,null,null,{"$f":"IF(OR(($P$7>4),($P$10=2),($P$10=3),($P$10=4),($P$10=5),($P$10=8),($P$10=9),),\"#\",\"6\")","v":"6"},"|",null,"|","|","|","|",7,"two RS232/RS485 and two PCIe (x4 and x1), PCIe x4 with AI Accelerator",null,{"$f":"IF($P$9=7,1,\"\")","v":""},"."]
[null,null,null,null,null,null,null,null,null,"|",null,"|","|","|","|"]
[null,null,null,null,null,null,null,null,null,"|",null,"|","|","|","|",null,"Operating system"]
[1,null,{"$f":"IF(P10<>2,1,0)","v":1},null,null,null,null,null,null,0,null,"|","|","|","|",null,"without Windows Operating system",null,{"$f":"IF($P$10=1,1,\"\")","v":1},"."]
[2,null,{"$f":"IF(OR($P$12<3)*OR($P$11<3,$P$11>5),1,0)","v":1},"Multitouch only with Windows7 or WES7P",null,null,null,null,null,1,null,"|","|","|","|",null,"Windows Embedded Standard 7 E SP1, englisch, 32Bit",null,{"$f":"IF($P$10=2,1,\"\")","v":""},"."]
[3,null,{"$f":"IF(OR($P$12<3)*OR($P$11<3,$P$11>5),1,0)","v":1},"Windows 7 (32bit, 64bit) only with SSD oder HDD",".",null,null,null,null,2,null,"|","|","|","|",null,"Windows Embedded Standard 7 E SP1, englisch, 64Bit",null,{"$f":"IF($P$10=3,1,\"\")","v":""},"."]
[4,null,{"$f":"IF(AND($P$12<6,$P$10=3),1,0)","v":0},"Windows Embedded Standard only with Cfast from 8GB (WES7-E, 32bit) / from 16 GB (WES7-E, 64bit and WES7-P, 32bit) or SSD or HDD",".",null,null,null,null,3,null,"|","|","|","|",null,"Windows Embedded Standard 7 P SP1, MUI, 64Bit, Multitouch",null,{"$f":"IF($P$10=4,1,\"\")","v":""},"."]
[5,null,{"$f":"IF(AND($P$12<6,$P$10=3),1,0)","v":0},"Windows 7 (32bit, 64bit) only with SSD oder HDD",".",null,null,null,null,4,null,"|","|","|","|",null,"Windows7 Ultimate SP1, 64Bit, MUI (de, en, es, fr, it)",null,{"$f":"IF($P$10=5,1,\"\")","v":""},"."]
[6,null,null,null,null,null,null,null,null,{"$f":"IF($P$6<>5,\"5\",\"#\")","v":"5"},null,"|","|","|","|",null,"Windows 10 IoT Enterprise 2019 LTSC (64Bit) for Processors Celeron, i3 and i5 (Consigliato)",null,{"$f":"IF($P$10=6,1,\"\")","v":""},"."]
[7,null,null,null,null,null,null,null,null,{"$f":"IF($P$6=5,\"6\",\"#\")","v":"#"},null,"|","|","|","|",null,"Windows 10 IoT Enterprise 2019 LTSC (64Bit) for Processor Xeon (Consigliato)",null,{"$f":"IF($P$10=7,1,\"\")","v":""},"."]
[8,null,{"$f":"IF(AND($P$12<6,$P$10=3),1,0)","v":0},"SIMATIC RT-Advanced and WinAC-Bundles only with WES7-E, 32 Bit and RAM from 4GB, CFast from 8GB or SSD",".",null,null,null,null,{"$f":"IF($P$6<>5,\"7\",\"#\")","v":"7"},null,"|","|","|","|",null,"Windows 10 Enterprise 2016 LTSB (64Bit) for Processors Celeron, i3 and i5",null,{"$f":"IF($P$10=8,1,\"\")","v":""},"."]
[9,null,{"$f":"IF(AND($P$12<6,$P$10=3),1,0)","v":0},"SIMATIC RT-Advanced and WinAC-Bundles only with WES7-E, 32 Bit and RAM from 4GB, CFast from 8GB or SSD",".",null,null,null,null,{"$f":"IF($P$6=5,\"8\",\"#\")","v":"#"},null,"|","|","|","|",null,"Windows 10 Enterprise 2016 LTSB (64Bit) for Processor Xeon",null,{"$f":"IF($P$10=9,1,\"\")","v":""},"."]
[null,null,null,null,null,null,null,null,null,null,null,"|","|","|","|",null," "]
[null,null,null,null,null,null,null,null,null,null,null,"|","|","|","|",null,"Drive changeable (accessible)"]
[1,null,null,null,null,null,null,null,null,null,null,0,"|","|","|",null,"without external mass storage",null,{"$f":"IF($P$11=1,1,\"\")","v":1},"."]
[2,null,null,null,null,null,null,null,null,null,null,1,"|","|","|",null,"CFAST 2GB, without Operating system",null,{"$f":"IF($P$11=2,1,\"\")","v":""},"."]
[3,null,null,null,null,null,null,null,null,null,null,2,"|","|","|",null,"CFAST 4GB, without Operating system",null,{"$f":"IF($P$11=3,1,\"\")","v":""},"."]
[4,null,null,null,null,null,null,null,null,null,null,3,"|","|","|",null,"CFAST 8GB (only optional with operating system/SW, if no internal mass storage)",null,{"$f":"IF($P$11=4,1,\"\")","v":""},"."]
[5,null,null,null,null,null,null,null,null,null,null,4,"|","|","|",null,"CFAST 16GB (only optional with operating system/SW, if no internal mass storage)",null,{"$f":"IF($P$11=5,1,\"\")","v":""},"."]
[6,null,null,null,null,null,null,null,null,null,null,5,"|","|","|",null,"CFAST 128GB (only optional with operating system/SW, if no internal mass storage)",null,{"$f":"IF($P$11=6,1,\"\")","v":""},"."]
[null,null,null,null,null,null,null,null,null,null,null,null,"|","|","|"]
[null,null,null,null,null,null," ",null,null,null,null,null,"|","|","|",null,"Drive internal (not accessible)"]
[1,null,null,null,null,null,null,null,null,null,null,null,{"$f":"IF(OR(AND($P$10=2,$P$11>3),AND($P$10=3,$P$11>4),AND($P$10=4,$P$11>4),AND($P$10>5,$P$11=6),$P$10=1),\"A\",\"#\")","v":"A"},"|","|",null,"without internal mass storage",null,{"$f":"IF($P$12=1,1,\"\")","v":1},"."]
[2,null,null,null,null,null,null,null,null,null,null,null,"D","|","|",null,"256 GB Eco SSD",null,{"$f":"IF($P$12=2,1,\"\")","v":""},"."]
[3,null,null,null,null,null,null,null,null,null,null,null,"F","|","|",null,"240 GB SSD (Consigliato per SW Controller)",null,{"$f":"IF($P$12=3,1,\"\")","v":""},"."]
[4,null,null,null,null,null,null,null,null,null,null,null,"G","|","|",null,"480 GB SSD (Consigliato per SW Controller)",null,{"$f":"IF($P$12=4,1,\"\")","v":""},"."]
[5,null," ",null,null,null,null,null,null,null,null,null,{"$f":"IF($P$7<5,\"J\",\"#\")","v":"J"},"|","|",null,"HDD 320GB",null,{"$f":"IF($P$12=5,1,\"\")","v":""},"."]
[null,null,null,null,null,null,null,null,null,null,null,null,null,"|","|"]
[null,null,null,null,null,null," "," "," "," ",null," "," ","|","|",null,"Software Configuration preinstalled (Bundles)"]
[1,null,null,null,null,null," "," "," "," "," "," "," ","A","|",null,"without SIMATIC Software",null,{"$f":"IF($P$13=1,1,\"\")","v":1},"."]
[13,null,null,null,null,null,null,null,null,null,null,null,null,"#","|",null,"SIMATIC Industrial OS V2",null,{"$f":"IF($P$13=13,1,\"\")","v":""},"."]
[15,null,null,null,null,null,null,null,null,null,null,null,null,{"$f":"IF(AND(($P$6=4),(OR(($P$7=2),($P$7=4))),($P$8=3),($P$9=4),($P$10=1),($P$11=1),($P$12=4),($P$14=2)),\"V\",\"#\")","v":"#"},"|",null,"Industrial Edge - SINUMERIK",null,{"$f":"IF($P$13=15,1,\"\")","v":""},"."]
[16,null,null,null,null,null,null,null,null,null,null,null,null,{"$f":"IF(AND(($P$7=4),($P$9=2),($P$10=8),($P$11=1),($P$12=3),($P$14=1),OR(AND(($P$6=4),($P$8=2)),AND(($P$6=2),($P$8=1)))),\"X\",\"#\")","v":"#"},"|",null,"SINUMERIK PCU Basesoftware on IPC",null,{"$f":"IF($P$13=16,1,\"\")","v":""},"."]
[null,null,null,null,null,null,null,null,null,null,null,null,null,null,"|"]
[null,null,null,null,null,null," "," "," "," "," "," "," ",null,"|",null,"Power supply"]
[1,null,null,null,null,null,null,null,null,null,null,null,null,null,0,null,"24V DC industrial power supply",null,{"$f":"IF($P$14=1,1,\"\")","v":1},"."]
[2,null,{"$f":"IF($P$14=2,1,0)","v":0},"IPCs with TPM (Trusted Platform Module) only with Win 7; Option is not sold to China and Russia.",".",null,null,null,null,null,null,null,null,null,8,null,"24V DC industrial power supply and TPM",null,{"$f":"IF($P$14=2,1,\"\")","v":""},"."]
[]
[null,null,null,null,null,null,null,null,null,null,null,null,null,null,null,null,"Base version",null,1,"."]
[]
[null,null,null,null,null,null,null,null,null,null,null,null,null,null,null,null,null,"Total:"]
[]
[]
[null,null,null,null,null,null,null,null,null,null,null,null,null,null,null,null,"Versions of bundle software - preinstalled (dep. on config.), incl. license"]
[null,null,null,null,null,null,null,null,null,null,null,null,null,null,null,null,"- Windows Embedded Standard 7-E SP1 64-bit (WES7 SP1)\n- SIMATIC WinCC Runtime Advanced V15 including recipes and logging, \n- SIMATIC CPU1507S V2.5"]
[]
[]
["Accessories:"]
[null,null,null,null,null,null,null,null,null,null,null,null,null,null,null,null," "]
[]
["6ES7648-1AA21-0YM0",null,null,null,null,null,null,null," ",null,null,null,null,null,null,null,"Mounting set DIN-Rail for SIMATIC IPC427E"]
["6ES7648-1AA20-0YN0",null,null,null,null,null,null,null,null,null,null,null,null,null,null,null,"Mounting set Wall-mount for SIMATIC IPC427D/E"]
["6ES7648-1AA20-0YP0",null,null,null,null,null,null,null,null,null,null,null,null,null,null,null,"Mounting set Book-mount for SIMATIC IPC427D/E"]
[]
["6ES7648-2AK70-0PA0",null,null,null,null,null,null,null,null,null,null,null,null,null,null,null,"Speichererweiterung 8 GB DDR4 2400SDRAM, SODIMM "]
["6ES7648-2AK80-0PA0",null,null,null,null,null,null,null,null,null,null,null,null,null,null,null,"Speichererweiterung 16 GB DDR4 2400SDRAM, SODIMM "]
["6ES7648-2AK70-1PA0",null,null,null,null,null,null,null,null,null,null,null,null,null,null,null,"Speichererweiterung 8 GB DDR4 2400SDRAM, SODIMM with ECC"]
["6ES7648-2AK80-1PA0",null,null,null,null,null,null,null,null,null,null,null,null,null,null,null,"Speichererweiterung 16 GB DDR4 2400SDRAM, SODIMM with ECC"]
[]
[null,null,null,null,null,null,null,null,null,null,null,null,null,null,null,null,"Adapter Cable"]
["6ES7648-3AF00-0XA0",null,null,null,null,null,null,null,null,null,null,null,null,null,null,null,"Adapter cable DisplayPort to DVI-D"]
[]
[null,null,null,null,null,null,null,null,null,null,null,null,null,null,null,null,"Click here\nfor additional SIMATIC IPC accessories."]

{"sheet":"IPC527G (Box)","index":12,"n_rows":79,"n_cols":20,"rows_kept":79,"cut":false,"hidden":false,"merged":[]}
["SIMATIC IPC527G (Basic IPC)"]
[null,null,null,null,null,null,null,"",null,null,null,null,{"$f":"IF(P9=11,\"\",IF(P9=12,#REF!,IF(P9=13,#REF!,IF(P9=14,\"\",IF(P9=15,#REF!,IF(P9=50,#REF!,IF(P9=17,#REF!,\"\")))))))","v":""},null,null,null,""]
[null,null,null,null,null,null,null,null,null,null,null,null,null,null,null,null,{"$f":"IF(E26,F26,\"\")&IF(E37,F37,\"\")&IF(E38,F38,\"\")&IF(E39,F39,\"\")&IF(E40,F40,\"\")","v":""}]
[]
["6AG4",0,2,5,"-",0,{"$f":"IF(P6=1,G17,)&IF(P6=2,G18,)&IF(P6=3,G19,)","v":"A"},{"$f":"IF(P7=1,H22,)&IF(P7=2,H23,)&IF(P7=3,H24,)&IF(P7=4,H25,)&IF(P7=5,H26,)","v":"B"},{"$f":"IF(P8=1,I29,)&IF(P8=2,I30,)&IF(P8=3,I31,)","v":"1"},0,"-",{"$f":"IF(P9=1,L34,)&IF(P9=2,L35,)&IF(P9=3,L36,)&IF(P9=4,L37,)&IF(P9=5,L38,)&IF(P9=6,L39,)&IF(P9=7,L40,)","v":"0"},{"$f":"IF(P10=1,M43,)&IF(P10=2,M44,)&IF(P10=3,M45,)","v":"A"},{"$f":"IF(P11=1,N48,)&IF(P11=2,N49,)&IF(P11=3,N50,)&IF(P11=4,N51,)","v":"A"},0,null,{"$f":"\"SIMATIC IPC527G\"","v":"SIMATIC IPC527G"},{"$f":"$A$5&$B$5&$C$5&$D$5&$E$5&$F$5&$G$5&$H$5&$I$5&$J$5&$K$5&$L$5&$M$5&$N$5&$O$5","v":"6AG4025-0AB10-0AA0"}]
[null,null,null,null,null,null,"|","|","|",null,null,"|","|","|",null,1,{"$f":"IF(P6=1,Q17,)&IF(P6=2,Q18,)&IF(P6=3,Q19,)","v":"Pentium G4400 (2C/2T, 3.3 GHz, 3 MB Cache)"}]
[null,null,null,null,null,null,"|","|","|",null,null,"|","|","|",null,1,{"$f":"IF(P7=1,Q22,)&IF(P7=2,Q23,)&IF(P7=3,Q24,)&IF(P7=4,Q25,)&IF(P7=5,Q26,)","v":"1 TB HDD"}]
[null,null,null,null,null,null,"|","|","|",null,null,"|","|","|",null,1,{"$f":"IF(P8=1,Q29,)&IF(P8=2,Q30,)","v":"4 GB DDR4"}]
[null,null,null,null,null,null,"|","|","|",null,null,"|","|","|",null,1,{"$f":"IF(P9=1,Q34,)&IF(P9=2,Q35,)&IF(P9=3,Q36,)&IF(P9=4,Q37,)&IF(P9=5,Q38,)&IF(P9=6,Q39,)&IF(P9=7,Q40,)","v":"without operating system"}]
[null,null,null,null,null,null,"|","|","|",null,null,"|","|","|",null,1,{"$f":"IF(P10=1,Q43,)&IF(P10=2,Q44,)&IF(P10=3,Q45,)","v":"1 x PCIe x16"}]
[null,null,null,null,null,null,"|","|","|",null,null,"|","|","|",null,1,{"$f":"IF(P11=1,Q48,)&IF(P11=2,Q49,)&IF(P11=3,Q50,)&IF(P11=4,Q51,)","v":"without specific extensions"}]
[null,null,null,null,null,null,"|","|","|",null,null,"|","|","|",null,1]
[null,null,null,null,null,null,"|","|","|",null,null,"|","|","|",null,0,"2 x Gbit LAN, 4 x USB3.0, 2 x RS232/485/422,\n1 x DisplayPort, 1 x VGA, 1 x Audio"]
[null,null,null,null,null,null,"|","|","|",null,null,"|","|","|",null,null,"PS 100/230V AC (without power cord)"]
[null,null,null,null,null,null,"|","|","|",null,null,"|","|","|"]
[null," ",null,null,null,null,"|","|","|",null,null,"|","|","|",null,null,"Processor"]
[null,null,null,null,null,null,"A","|","|",null,null,"|","|","|",null,null,"Pentium G4400 (2C/2T, 3.3 GHz, 3 MB Cache)",null,{"$f":"IF($P$6=1,\"X\",\"\")","v":"X"},"."]
[null,null,null,null,null,null,"C","|","|",null,null,"|","|","|",null,null,"Core i5-6500 (4C/4T, 3.2 (3.6) GHz, 6 MB Cache)",null,{"$f":"IF($P$6=2,\"X\",\"\")","v":""},"."]
[null,null,null,null,null,null,"D","|","|",null,null,"|","|","|",null,null,"Core i7-6700 (4C/8T, 3.4 (4.0) GHz, 8 MB Cache)",null,{"$f":"IF($P$6=3,\"X\",\"\")","v":""},"."]
[null," ",null,null,null,null,null,"|","|",null,null,"|","|","|"]
[null," ",null,null,null,null,null,"|","|",null,null,"|","|","|",null,null,"Drives"]
[null," ",null,null,null,null,null,"B","|",null,null,"|","|","|",null,null,"1 TB HDD",null,{"$f":"IF($P$7=1,\"X\",\"\")","v":"X"},"."]
[null,null,null,null,null,null,null,"D","|",null,null,"|","|","|",null,null,"128 GB SSD",null,{"$f":"IF($P$7=2,\"X\",\"\")","v":""},"."]
[null,null,null,null,null,null,null,"E","|",null,null,"|","|","|",null,null,"256 GB SSD",null,{"$f":"IF($P$7=3,\"X\",\"\")","v":""},"."]
[null,null,null,null,null,null,null,"F","|",null,null,"|","|","|",null,null,"512 GB SSD",null,{"$f":"IF($P$7=4,\"X\",\"\")","v":""},"."]
[null,null,null,null,{"$f":"IF(AND(OR($L$5=\"1\",$L$5=\"2\",$L$5=\"3\",$L$5=\"4\",$L$5=\"5\",$L$5=\"6\"),$H$5=\"L\"),1,0)","v":0},"Windows Operating system only with HDD or SSD; "," ","L","|",null,null,"|","|","|",null,null,"without drive, prepared for 1 x 2.5\" SATA ",null,{"$f":"IF($P$7=5,\"X\",\"\")","v":""},"."]
[null,null,null,null,null,null,null,null,"|",null,null,"|","|","|"]
[null," ",null,null,null,null,null,null,"|",null,null,"|","|","|",null,null,"RAM"]
[null," ",null,null,null," ",null,null,1,null,null,"|","|","|",null,null,"4 GB DDR4",null,{"$f":"IF($P$8=1,\"X\",\"\")","v":"X"},"."]
[null," ",null,null,null," ",null,null,2,null,null,"|","|","|",null,null,"8 GB DDR4",null,{"$f":"IF($P$8=2,\"X\",\"\")","v":""},"."]
[null,null,null,null,null,null,null,null,3,null,null,"|","|","|",null,null,"16 GB DDR4 ",null,{"$f":"IF($P$8=3,\"X\",\"\")","v":""},"."]
[null," ",null,null,null," ",null,null,null,null,null,"|","|","|"]
[null," ",null,null,null,null,null,null,null,null,null,"|","|","|",null,null,"Operating System"]
[null," ",null,null,null,null,null,null,null,null,null,0,"|","|",null,null,"without operating system",null,{"$f":"IF($P$9=1,\"X\",\"\")","v":"X"},"."]
[null,null,null,null,null,null,null,null,null,null,null,1,"|","|",null,null,"Windows 7 Ultimate 32 bit SP1, MUI",null,{"$f":"IF($P$9=2,\"X\",\"\")","v":""},"."]
[null," ",null,null,null,null,null,"  ",null,null,null,2,"|","|",null,null,"Windows 7 Ultimate 64 bit SP1, MUI",null,{"$f":"IF($P$9=3,\"X\",\"\")","v":""},"."]
[null,null,null,null,{"$f":"IF(AND(OR($G$5=\"D\"),$L$5=\"3\"),1,0)","v":0},"Wrong Operating system for this processor; "," "," ",null,null,null,3,"|","|",null,null,"Windows 10 Enterprise LTSB 2016, 64 bit, MUI, for Pentium, Core i5",null,{"$f":"IF($P$9=4,\"X\",\"\")","v":""},"."]
[null,null,null,null,{"$f":"IF(AND(OR($G$5=\"A\",$G$5=\"C\"),$L$5=\"4\"),1,0)","v":0},"Wrong Operating system for this processor; "," "," ",null,null,null,4,"|","|",null,null,"Windows 10 Enterprise LTSB 2016, 64 bit, MUI, for Core i7 ",null,{"$f":"IF($P$9=5,\"X\",\"\")","v":""},"."]
[null,null,null,null,{"$f":"IF(AND(OR($G$5=\"D\"),$L$5=\"5\"),1,0)","v":0},"Wrong Operating system for this processor; ",null,null,null,null,null,5,"|","|",null,null,"Windows 10 Enterprise LTSC 2019, 64 bit, MUI, for Pentium, Core i5",null,{"$f":"IF($P$9=6,\"X\",\"\")","v":""},"."]
[null,null,null,null,{"$f":"IF(AND(OR($G$5=\"A\",$G$5=\"C\"),$L$5=\"6\"),1,0)","v":0},"Wrong Operating system for this processor; ",null,null,null,null,null,6,"|","|",null,null,"Windows 10 Enterprise LTSC 2019, 64 bit, MUI, for Core i7",null,{"$f":"IF($P$9=7,\"X\",\"\")","v":""},"."]
[null," ",null,null,null," ",null,null,null,null,null,null,"|","|"]
[null," ",null,null,null,null,null,null,null,null,null,null,"|","|",null,null,"Expandability"]
[null," ",null,null,null,null,null,null,null,null,null,null,"A","|",null,null,"1 x PCIe x16",null,{"$f":"IF($P$10=1,\"X\",\"\")","v":"X"},"."]
[null," ",null,null,null,null,null,null,null,null,null,null,"B","|",null,null,"1 x PCIe x16; 1 x PCIe x1; 2 x PCI",null,{"$f":"IF($P$10=2,\"X\",\"\")","v":""},"."]
[null,null,null,null,null,null,null,null,null,null,null,null,"C","|",null,null,"1 x PCIe x 16, 1 x PCIe x4; 2 x PCIe x1",null,{"$f":"IF($P$10=3,\"X\",\"\")","v":""},"."]
[null,null,null,null,null,null,null,null,null,null,null,null,null,"|"]
[null," ",null,null,null,null,null,null,null,null,null,null,null,"|",null,null,"Specific extensions"]
[null," ",null,null,null,null,null,null,null,null,null,null,null,"A",null,null,"without specific extensions",null,{"$f":"IF($P$11=1,\"X\",\"\")","v":"X"},"."]
[null,null,null,null,null,null,null,null,null,null,null,null,null,"B",null,null,"2 x RS232, 2 x USB2.0 additionally",null,{"$f":"IF($P$11=2,\"X\",\"\")","v":""},"."]
[null,null,null,null,null,null,null,null,null,null,null,null,null,"C",null,null,"1 x Gbit LAN additional (1 PCIe slot occupied)",null,{"$f":"IF($P$11=3,\"X\",\"\")","v":""},"."]
[null,null,null,null,null,null,null,null,null,null,null,null,null,"D",null,null,"1 x Gbit LAN (1 PCIe slot occupied) & 2 x RS232, 2 x USB2.0 additionally",null,{"$f":"IF($P$11=4,\"X\",\"\")","v":""},"."]
[]
[null,null,null,null,null,null,null,null,null,null,null,null,null,null,null,null,"Basic configuration",null,"X","."]
[]
[{"$f":"A5","v":"6AG4"},{"$f":"B5","v":0},{"$f":"C5","v":2},{"$f":"D5","v":5}," - ",{"$f":"F5","v":0},"A","B","1",0,"-","0","A","A",0,null,null,"Total:"]
[]
["Available stock variants EC"]
[null,null,null,null,null,null,null,null,null,null,null,null,null,null,null,null,{"$f":"$A$59&$B$59&$C$59&$D$59&$E$59&$F$59&$G$59&$H$59&$I$59&$J$59&$K$59&$L$59&$M$59&$N$59&$O$59","v":"6AG4025-0AB10-0BB0"}]
["6AG4",0,2,5,"-",0,"A","B",1,0,"-",0,"B","B",0,null,"Pentium G4400 (2C/2T, 3.3 GHz, 3 MB Cache); 1 TB HDD; RAM: 4 GB DDR4\nwithout operating system; 1 x PCIe x16; 1 x PCIe x1; 2 x PCI\n2 x RS232, 2 x USB2.0 additionally"]
[null,null,null,null,null,null,null,null,null,null,null,null,null,null,null,null,{"$f":"$A$61&$B$61&$C$61&$D$61&$E$61&$F$61&$G$61&$H$61&$I$61&$J$61&$K$61&$L$61&$M$61&$N$61&$O$61","v":"6AG4025-0CB20-0BB0"}]
["6AG4",0,2,5,"-",0,"C","B",2,0,"-",0,"B","B",0,null,"Core i5-6500 (4C/4T, 3.2 (3.6) GHz, 6 MB Cache); 1 TB HDD; RAM: 8 GB DDR4\nwithout operating system; 1 x PCIe x16; 1 x PCIe x1; 2 x PCI\n2 x RS232, 2 x USB2.0 additionally"]
[null,null,null,null,null,null,null,null,null,null,null,null,null,null,null,null,{"$f":"$A$63&$B$63&$C$63&$D$63&$E$63&$F$63&$G$63&$H$63&$I$63&$J$63&$K$63&$L$63&$M$63&$N$63&$O$63","v":"6AG4025-0CB20-2BB0"}]
["6AG4",0,2,5,"-",0,"C","B",2,0,"-",2,"B","B",0,null,"Core i5-6500 (4C/4T, 3.2 (3.6) GHz, 6 MB Cache); 1 TB HDD; RAM: 8 GB DDR4\nWindows 7 Ultimate 64 bit SP1, MUI; 1 x PCIe x16; 1 x PCIe x1; 2 x PCI\n2 x RS232, 2 x USB2.0 additionally"]
[null,null,null,null,null,null,null,null,null,null,null,null,null,null,null,null,{"$f":"$A$65&$B$65&$C$65&$D$65&$E$65&$F$65&$G$65&$H$65&$I$65&$J$65&$K$65&$L$65&$M$65&$N$65&$O$65","v":"6AG4025-0CD20-0BB0"}]
["6AG4",0,2,5,"-",0,"C","D",2,0,"-",0,"B","B",0,null,"Core i5-6500 (4C/4T, 3.2 (3.6) GHz, 6 MB Cache); 128 GB SSD; RAM: 8 GB DDR4\nwithout operating system; 1 x PCIe x16; 1 x PCIe x1; 2 x PCI\n2 x RS232, 2 x USB2.0 additionally"]
[null,null,null,null,null,null,null,null,null,null,null,null,null,null,null,null,{"$f":"$A$67&$B$67&$C$67&$D$67&$E$67&$F$67&$G$67&$H$67&$I$67&$J$67&$K$67&$L$67&$M$67&$N$67&$O$67","v":"6AG4025-0CD20-2BB0"}]
["6AG4",0,2,5,"-",0,"C","D",2,0,"-",2,"B","B",0,null,"Core i5-6500 (4C/4T, 3.2 (3.6) GHz, 6 MB Cache); 128 GB SSD; RAM: 8 GB DDR4\nWindows 7 Ultimate 64 bit SP1, MUI; 1 x PCIe x16; 1 x PCIe x1; 2 x PCI\n2 x RS232, 2 x USB2.0 additionally"]
[null,null,null,null,null,null,null,null,null,null,null,null,null,null,null,null,{"$f":"$A$69&$B$69&$C$69&$D$69&$E$69&$F$69&$G$69&$H$69&$I$69&$J$69&$K$69&$L$69&$M$69&$N$69&$O$69","v":"6AG4025-0CE20-2BB0"}]
["6AG4",0,2,5,"-",0,"C","E",2,0,"-",2,"B","B",0,null,"Core i5-6500 (4C/4T, 3.2 (3.6) GHz, 6 MB Cache); 256 GB SSD; RAM: 8 GB DDR4\nWindows 7 Ultimate 64 bit SP1, MUI; 1 x PCIe x16; 1 x PCIe x1; 2 x PCI\n2 x RS232, 2 x USB2.0 additionally"]
[null,null,null,null,null,null,null,null,null,null,null,null,null,null,null,null,{"$f":"$A$71&$B$71&$C$71&$D$71&$E$71&$F$71&$G$71&$H$71&$I$71&$J$71&$K$71&$L$71&$M$71&$N$71&$O$71","v":"6AG4025-0CE20-3BB0"}]
["6AG4",0,2,5,"-",0,"C","E",2,0,"-",3,"B","B",0,null,"Core i5-6500 (4C/4T, 3.2 (3.6) GHz, 6 MB Cache); 256 GB SSD; RAM: 8 GB DDR4\nWindows 10 Enterprise LTSB 2016, 64 bit, MUI, for Pentium, Core i5; 1 x PCIe x16; 1 x PCIe x1; 2 x PCI\n2 x RS232, 2 x USB2.0 additionally"]
[null,null,null,null,null,null,null,null,null,null,null,null,null,null,null,null,{"$f":"$A$73&$B$73&$C$73&$D$73&$E$73&$F$73&$G$73&$H$73&$I$73&$J$73&$K$73&$L$73&$M$73&$N$73&$O$73","v":"6AG4025-0DF20-2BB0"}]
["6AG4",0,2,5,"-",0,"D","F",2,0,"-",2,"B","B",0,null,"Core i7-6700 (4C/8T, 3.4 (4.0) GHz, 8 MB Cache); 512 GB SSD; RAM: 8 GB DDR4\nWindows 7 Ultimate 64 bit SP1, MUI; 1 x PCIe x16; 1 x PCIe x1; 2 x PCI\n2 x RS232, 2 x USB2.0 additionally"]
[null,null,null,null,null,null,null,null,null,null,null,null,null,null,null,null,{"$f":"$A$75&$B$75&$C$75&$D$75&$E$75&$F$75&$G$75&$H$75&$I$75&$J$75&$K$75&$L$75&$M$75&$N$75&$O$75","v":"6AG4025-0DF20-4BB0"}]
["6AG4",0,2,5,"-",0,"D","F",2,0,"-",4,"B","B",0,null,"Core i7-6700 (4C/8T, 3.4 (4.0) GHz, 8 MB Cache); 512 GB SSD; RAM: 8 GB DDR4\nWindows 10 Enterprise LTSB 2016, 64 bit, MUI, for Core i7 ; 1 x PCIe x16; 1 x PCIe x1; 2 x PCI\n2 x RS232, 2 x USB2.0 additionally"]
[null,null,null,null,null,null,null,null,null,null,null,null,null,null,null,null,{"$f":"$A$77&$B$77&$C$77&$D$77&$E$77&$F$77&$G$77&$H$77&$I$77&$J$77&$K$77&$L$77&$M$77&$N$77&$O$77","v":"6AG4025-0CE20-5CA0"}]
["6AG4",0,2,5,"-",0,"C","E",2,0,"-",5,"C","A",0,null,"Core i5-6500 (4C/4T, 3.2 (3.6) GHz, 6 MB Cache); 256 GB SSD; 8 GB DDR4; Windows 10 Enterprise LTSC 2019, 64 bit, MUI, for Pentium, Core i5; 1 x PCIe x 16, 1 x PCIe x4; 2 x PCIe x1; without specific extensions"]
[null,null,null,null,null,null,null,null,null,null,null,null,null,null,null,null,{"$f":"$A$79&$B$79&$C$79&$D$79&$E$79&$F$79&$G$79&$H$79&$I$79&$J$79&$K$79&$L$79&$M$79&$N$79&$O$79","v":"6AG4025-0DE20-6CA0"}]
["6AG4",0,2,5,"-",0,"D","E",2,0,"-",6,"C","A",0,null,"Core i7-6700 (4C/8T, 3.4 (4.0) GHz, 8 MB Cache); 256 GB SSD; 8 GB DDR4; Windows 10 Enterprise LTSC 2019, 64 bit, MUI, for Core i7; 1 x PCIe x 16, 1 x PCIe x4; 2 x PCIe x1; without specific extensions"]

{"sheet":"IPC627E (Box)","index":13,"n_rows":108,"n_cols":20,"rows_kept":108,"cut":false,"hidden":false,"merged":[]}
["SIMATIC IPC627E"]
[null,null,null,null,null,null,null,null,null,null,null,null,null,null,null,null,{"$f":"IF(E41,F41,\"\")&IF(E57,F57,\"\")&IF(E58,F58,\"\")&IF(E59,F59,\"\")&IF(E60,F60,\"\")","v":""}]
[]
[]
["6AG4",1,3,1,"-",3,{"$f":"INDEX(G21:G26,P6)","v":"A"},{"$f":"INDEX(H29:H41,P7)","v":"A"},{"$f":"INDEX(I44:I48,P8)","v":0},{"$f":"INDEX(J51:J55,P9)","v":0},"-",{"$f":"INDEX(L57:L61,P10)","v":8},{"$f":"INDEX(M64:M68,P11)","v":"A"},{"$f":"INDEX(N71:N73,P12)","v":"A"},{"$f":"INDEX(O76:O83,P13)","v":0},null,"SIMATIC IPC627E (Box PC)",{"$f":"A5&B5&C5&D5&E5&F5&G5&H5&I5&J5&K5&L5&M5&N5&O5","v":"6AG4131-3AA00-8AA0"}]
[null,null,null,null,null,null,"|","|","|","|",null,"|","|","|","|",1,{"$f":"INDEX(Q21:Q26,P6)","v":"Celeron G4900 (2C/2T, 3.1GHz, 2MB Cache; VT-d);"}]
[null,null,null,null,null,null,"|","|","|","|",null,"|","|","|","|",1,{"$f":"INDEX(Q29:Q41,P7)","v":"HDD 2.5\" SATA 320 GB internal;"}]
[null,null,null,null,null,null,"|","|","|","|",null,"|","|","|","|",1,{"$f":"INDEX(Q44:Q48,P8)","v":"4 GB DDR4-2666 (1x4);"}]
[null,null,null,null,null,null,"|","|","|","|",null,"|","|","|","|",1,{"$f":"INDEX(Q51:Q55,P9)","v":"DC 24V industrial power supply;"}]
[null,null,null,null,null,null,"|","|","|","|",null,"|","|","|","|",5,{"$f":"INDEX(Q57:Q61,P10)","v":"Without operating system;"}]
[null,null,null,null,null,null,"|","|","|","|",null,"|","|","|","|",1,{"$f":"INDEX(Q64:Q68,P11)","v":"Without extension (SW);"}]
[null,null,null,null,null,null,"|","|","|","|",null,"|","|","|","|",1,{"$f":"INDEX(Q71:Q73,P12)","v":"Without extension (HW);"}]
[null,null,null,null,null,null,"|","|","|","|",null,"|","|","|","|",1,{"$f":"INDEX(Q76:Q83,P13)","v":"2x PCI;"}]
[null,null,null,null,null,null,"|","|","|","|",null,"|","|","|","|",null,"UHD Graphics on board; 2x DP; 1x DVI-D;"]
[null,null,null,null,null,null,"|","|","|","|",null,"|","|","|","|",null,"3x Gigabit Ethernet (IE/PN) RJ45;"]
[null,null,null,null,null,null,"|","|","|","|",null,"|","|","|","|",null,"6x USB 3.1 Gen.2; 1x serial (COM1);"]
[null,null,null,null,null,null,"|","|","|","|",null,"|","|","|","|",null,"RAID-Controller on board;"]
[null,null,null,null,null,null,"|","|","|","|",null,"|","|","|","|",null,"Watchdog; Temperature/Fan monitoring; "]
[null,null,null,null,null,null,"|","|","|","|",null,"|","|","|","|"]
[null,null,null,null,null,null,"|","|","|","|",null,"|","|","|","|",null,"Processor"]
[null,null,null,null,null,null,"A","|","|","|",null,"|","|","|","|",null,"Celeron G4900 (2C/2T, 3.1GHz, 2MB Cache; VT-d);",null,{"$f":"IF($P$6=1,\"X\",\"\")","v":"X"},"."]
[null,null,null,null,null,null,"B","|","|","|",null,"|","|","|","|",null,"Celeron G4900 (2C/2T, 3.1GHz, 2MB Cache; VT-d); NVRAM;",null,{"$f":"IF($P$6=2,\"X\",\"\")","v":""},"."]
[null,null,null,null,null,null,"C","|","|","|",null,"|","|","|","|",null,"Core i3-8100 (4C/4T, 3.6GHz, 6MB Cache, VT-d);",null,{"$f":"IF($P$6=3,\"X\",\"\")","v":""},"."]
[null,null,null,null,null,null,"D","|","|","|",null,"|","|","|","|",null,"Core i3-8100 (4C/4T, 3.6GHz, 6MB Cache, VT-d); NVRAM; (Consigliato per SW Controller)",null,{"$f":"IF($P$6=4,\"X\",\"\")","v":""},"."]
[null,null,null,null,null,null,"G","|","|","|",null,"|","|","|","|",null,"Core i7-8700 (6C/12T, 3.2(4.6)GHz, 12MB Cache, VT-d, AMT);",null,{"$f":"IF($P$6=5,\"X\",\"\")","v":""},"."]
[null,null,null,null,null,null,"H","|","|","|",null,"|","|","|","|",null,"Core i7-8700 (6C/12T, 3.2(4.6)GHz, 12MB Cache, VT-d, AMT); NVRAM;  (Consigliato per SW Contr.)",null,{"$f":"IF($P$6=6,\"X\",\"\")","v":""},"."]
[null,null,null,null,null,null,null,"|","|","|",null,"|","|","|","|"]
[null," ",null,null,null,null,null,"|","|","|",null,"|","|","|","|",null,"Drive"]
[null,null,null,null,null,null,null,"A","|","|",null,"|","|","|","|",null,"HDD 2.5\" SATA 320 GB internal;",null,{"$f":"IF($P$7=1,\"X\",\"\")","v":"X"},"."]
[null,null,null,null,null,null,null,"C","|","|",null,"|","|","|","|",null,"SSD 2.5\" SATA 480 GB internal; (Necessario per SW Controller)",null,{"$f":"IF($P$7=2,\"X\",\"\")","v":""},"."]
[null,null,null,null,null,null,null,"D","|","|",null,"|","|","|","|",null,"SSD 2.5\" SATA 960 GB internal; (Necessario per SW Controller)",null,{"$f":"IF($P$7=3,\"X\",\"\")","v":""},"."]
[null,null,null,null,null,null,null,"E","|","|",null,"|","|","|","|",null,"RAID1 2x SSD 2.5\" SATA 480 GB internal;",null,{"$f":"IF($P$7=4,\"X\",\"\")","v":""},"."]
[null,null,null,null,null,null,null,"G","|","|",null,"|","|","|","|",null,"RAID1 2x SSD 2.5\" SATA 480 GB in removable drive bay;",null,{"$f":"IF($P$7=5,\"X\",\"\")","v":""},"."]
[null,null,null,null,null,null,null,"H","|","|",null,"|","|","|","|",null,"RAID1 2x SSD 2.5\" SATA 960 GB in removable drive bay;",null,{"$f":"IF($P$7=6,\"X\",\"\")","v":""},"."]
[null,null,null,null,null,null,null,"J","|","|",null,"|","|","|","|",null,"M.2 SSD NVMe 512 GB;",null,{"$f":"IF($P$7=7,\"X\",\"\")","v":""},"."]
[null,null,null,null,null,null,null,"K","|","|",null,"|","|","|","|",null,"M.2 SSD NVMe 512 GB; HDD 2.5\" SATA 320 GB internal;",null,{"$f":"IF($P$7=8,\"X\",\"\")","v":""},"."]
[null,null,null,null,null,null,null,"L","|","|",null,"|","|","|","|",null,"M.2 SSD NVMe 512 GB; SSD 2.5\" SATA 480 GB internal;",null,{"$f":"IF($P$7=9,\"X\",\"\")","v":""},"."]
[null,null,null,null,null,null,null,"M","|","|",null,"|","|","|","|",null,"M.2 SSD NVMe 512 GB; SSD 2.5\" SATA 960 GB internal;",null,{"$f":"IF($P$7=10,\"X\",\"\")","v":""},"."]
[null,null,null,null,null,null,null,"Q","|","|",null,"|","|","|","|",null,"M.2 SSD NVMe 512 GB; RAID1 2x SSD 2.5\" SATA 480 GB in removable drive bay;",null,{"$f":"IF($P$7=11,\"X\",\"\")","v":""},"."]
[null,null,null,null,null,null,null,"S","|","|",null,"|","|","|","|",null,"M.2 SSD NVMe 512 GB; 2 removable drive bays w.o. media;",null,{"$f":"IF($P$7=12,\"X\",\"\")","v":""},"."]
[null,null,null,null,{"$f":"IF(AND(OR($L$5<8),$H$5=\"Y\"),1,0)","v":0},"\"Operating System requires a Mass Storage\"; "," ","Y","|","|",null,"|","|","|","|",null,"Without Drives (internal: 2x 2.5\" mounting options; incl. cables);",null,{"$f":"IF($P$7=13,\"X\",\"\")","v":""},"."]
[null,null,null,null,null,null,null,null,"|","|",null,"|","|","|","|"]
[null,null,null,null,null,null,null,null,"|","|",null,"|","|","|","|",null,"Main memory"]
[null,null,null,null,null,null,null,null,0,"|",null,"|","|","|","|",null,"4 GB DDR4-2666 (1x4);",null,{"$f":"IF($P$8=1,\"X\",\"\")","v":"X"},"."]
[null,null,null,null,null,null,null,null,1,"|",null,"|","|","|","|",null,"8 GB DDR4-2666 (2x4);",null,{"$f":"IF($P$8=2,\"X\",\"\")","v":""},"."]
[null,null,null,null,null,null,null,null,2,"|",null,"|","|","|","|",null,"16 GB DDR4-2666 (2x8);",null,{"$f":"IF($P$8=3,\"X\",\"\")","v":""},"."]
[null,null,null,null,null,null,null,null,3,"|",null,"|","|","|","|",null,"32 GB DDR4-2666 (2x16);",null,{"$f":"IF($P$8=4,\"X\",\"\")","v":""},"."]
[null,null,null,null,null,null,null,null,4,"|",null,"|","|","|","|",null,"64 GB DDR4-2666 (4x16);",null,{"$f":"IF($P$8=5,\"X\",\"\")","v":""},"."]
[null,null,null,null,null,null,null,null,null,"|",null,"|","|","|","|"]
[null,null,null,null,null,null,null,null,null,"|",null,"|","|","|","|",null,"Country specific type/ power supply"]
[null,null,null,null,null,null,null,null,null,0,null,"|","|","|","|",null,"DC 24V industrial power supply;",null,{"$f":"IF($P$9=1,\"X\",\"\")","v":"X"},"."]
[null,null,null,null,null,null,null,null,null,1,null,"|","|","|","|",null,"AC 110/230V Industrial PS with Namur; without power cord;",null,{"$f":"IF($P$9=2,\"X\",\"\")","v":""},"."]
[null,null,null,null,null,null,null,null,null,2,null,"|","|","|","|",null,"AC 110/230V Industrial PS with Namur; power cord Europe;",null,{"$f":"IF($P$9=3,\"X\",\"\")","v":""},"."]
[null,null,null,null,null,null,null,null,null,3,null,"|","|","|","|",null,"AC 110/230V Industrial PS with Namur; power cord US;",null,{"$f":"IF($P$9=4,\"X\",\"\")","v":""},"."]
[null,null,null,null,null,null,null,null,null,4,null,"|","|","|","|",null,"AC 110/230V Industrial PS with Namur; power cord China;",null,{"$f":"IF($P$9=5,\"X\",\"\")","v":""},"."]
[null,null,null,null,null,null,null,null,null,null,null,"|","|","|","|",null,"Operating system"]
[null,null,null,null,{"$f":"IF(AND(OR($G$5>\"E\"),$L$5=0),1,0)","v":0},"\"Wrong Windows 10 LTSB 2016 for Core-i7\"; "," ",null,null,null,null,0,"|","|","|",null,"Windows 10 Enterprise 2016 LTSB, 64Bit, MUI (En, Ger, Fr, It, Sp), for Celeron and i3;",null,{"$f":"IF($P$10=1,\"X\",\"\")","v":""},"."]
[null,null,null,null,{"$f":"IF(AND(OR($G$5<\"G\"),$L$5=1),1,0)","v":0},"\"Wrong 2016 LTSB  for Celeron/Core-i3\"; "," ",null,null,null,null,1,"|","|","|",null,"Windows 10 Enterprise 2016 LTSB, 64Bit, MUI (En, Ger, Fr, It, Sp), for Core i7;",null,{"$f":"IF($P$10=2,\"X\",\"\")","v":""},"."]
["new",null,null,null,{"$f":"IF(AND(OR($G$5>\"E\"),$L$5=2),1,0)","v":0},"\"Wrong Windows 10 LTSB 2016 for Core-i7\"; "," ",null,null,null,null,2,"|","|","|",null,"Windows 10 IoT Enterprise 2019 LTSC, 64Bit, MUI (En, Ger, Fr, It, Sp), for Celeron and i3; (Consigliat",null,{"$f":"IF($P$10=3,\"X\",\"\")","v":""},"."]
["new",null,null,null,{"$f":"IF(AND(OR($G$5<\"G\"),$L$5=3),1,0)","v":0},"\"Wrong 2016 LTSB  for Celeron/Core-i3\"; "," ",null,null,null,null,3,"|","|","|",null,"Windows 10 IoT Enterprise 2019 LTSC, 64Bit, MUI (En, Ger, Fr, It, Sp), for Core i7; (Consigliato)",null,{"$f":"IF($P$10=4,\"X\",\"\")","v":""},"."]
[null,null,null,null,null,null,null,null,null,null,null,8,"|","|","|",null,"Without operating system;",null,{"$f":"IF($P$10=5,\"X\",\"\")","v":"X"},"."]
[null,null,null,null,null,null,null,null,null,null,null,null,"|","|","|"]
[null,null,null,null,null,null,null,null,null,null,null,null,"|","|","|",null,"Extension (SW)"]
[null,null,null,null,null,null,null,null,null,null,null,null,"A","|","|",null,"Without extension (SW);",null,{"$f":"IF($P$11=1,\"X\",\"\")","v":"X"},"."]
[null,null,null,null,null,null,null,null,null,null,null,null,"B","|","|",null,"SIMATIC IPC DiagMonitor added; ",null,{"$f":"IF($P$11=2,\"X\",\"\")","v":""},"."]
[null,null,null,null,null,null,null,null,null,null,null,null,"C","|","|",null,"SIMATIC IPC Image&Partition Creator added; ",null,{"$f":"IF($P$11=3,\"X\",\"\")","v":""},"."]
[null,null,null,null,null,null,null,null,null,null,null,null,"D","|","|",null,"SIMATIC IPC DiagMonitor, Image&Partition Creator added; ",null,{"$f":"IF($P$11=4,\"X\",\"\")","v":""},"."]
[null,null,null,null,null,null,null,null,null,null,null,null,"X","|","|",null,"TPM-Module;",null,{"$f":"IF($P$11=5,\"X\",\"\")","v":""},"."]
[null,null,null,null,null,null,null,null,null,null,null,null,null,"|","|"]
[null,null,null,null,null,null,null,null,null,null,null,null,null,"|","|",null,"Extension (HW)"]
[null,null,null,null,null,null,null,null,null,null,null,null,null,"A","|",null,"Without extension (HW);",null,{"$f":"IF($P$12=1,\"X\",\"\")","v":"X"},"."]
[null,null,null,null,null,null,null,null,null,null,null,null,null,"B","|",null,"2x USB 2.0 (1 slot occupied);",null,{"$f":"IF($P$12=2,\"X\",\"\")","v":""},"."]
[null,null,null,null,null,null,null,null,null,null,null,null,null,"C","|",null,"Device without CMOS Battery (CR2450N);",null,{"$f":"IF($P$12=3,\"X\",\"\")","v":""},"."]
[null,null,null,null,null,null,null,null,null,null,null,null,null,null,"|"]
[null,null,null,null,null,null,null,null,null,null,null,null,null,null,"|",null,"Extension (HW)"]
[null,null,null,null,null,null,null,null,null,null,null,null,null,null,0,null,"2x PCI;",null,{"$f":"IF($P$13=1,\"X\",\"\")","v":"X"},"."]
[null,null,null,null,null,null,null,null,null,null,null,null,null,null,1,null,"1x PCIe (x16), 1x PCI;",null,{"$f":"IF($P$13=2,\"X\",\"\")","v":""},"."]
[null,null,null,null,null,null,null,null,null,null,null,null,null,null,2,null,"2x PCIe (x16, x4); (Necessario per CP1625 o CP5622)",null,{"$f":"IF($P$13=3,\"X\",\"\")","v":""},"."]
[null,null,null,null,null,null,null,null,null,null,null,null,null,null,3,null,"3x PCI, 2x PCIe (x16, x4);",null,{"$f":"IF($P$13=4,\"X\",\"\")","v":""},"."]
["New",null,null,null,null,null,null,null,null,null,null,null,null,null,4,null,"5x PCIe (1 x16, 1 x4, 3 x1); (Necessario per CP1625 o CP5622)",null,{"$f":"IF($P$13=5,\"X\",\"\")","v":""},"."]
[null,null,null,null,null,null,null,null,null,null,null,null,null,null,5,null,"2x PCI; painted housing;",null,{"$f":"IF($P$13=6,\"X\",\"\")","v":""},"."]
[null,null,null,null,null,null,null,null,null,null,null,null,null,null,6,null,"1x PCIe (x16), 1x PCI; painted housing;",null,{"$f":"IF($P$13=7,\"X\",\"\")","v":""},"."]
[null,null,null,null,null,null,null,null,null,null,null,null,null,null,7,null,"2x PCIe (x16, x4); painted housing; (Necessario per CP1625 o CP5622)",null,{"$f":"IF($P$13=8,\"X\",\"\")","v":""},"."]
[]
[null,null,null,null,null,null,null,null,null,null,null,null,null,null,null,null,null,null,"X","."]
[null,null,null,null,null,null,null,null,null,null,null,null,null,null,null,null,"base unit "]
[{"$f":"A$5","v":"6AG4"},1,3,1,"-",3,{"$f":"G5","v":"A"},{"$f":"H5","v":"A"},{"$f":"I5","v":0},{"$f":"J5","v":0},"-",{"$f":"L5","v":8},{"$f":"M5","v":"A"},{"$f":"N5","v":"A"},{"$f":"O5","v":0},null,null,"Total:"]
[]
[]
["Zubehör:"]
[]
[null,null,null,null,null,null,null,null,null,null,null,null,null,null,null,null,"Memory Extension"]
["6ES7648-2AL60-0QA0",null,null,null,null,null,null,null,null,null,null,null,null,null,null,null,"4 GB DDR4 DIMM (1x 4); "]
["6ES7648-2AL70-0QA0",null,null,null,null,null,null,null,null,null,null,null,null,null,null,null,"8 GB DDR4 DIMM (1x 8); "]
["6ES7648-2AL80-0QA0",null,null,null,null,null,null,null,null,null,null,null,null,null,null,null,"16 GB DDR4 DIMM (1x 16); "]
[]
[null,null,null,null,null,null,null,null,null,null,null,null,null,null,null,null,"Mounting Accessory"]
["6ES7648-1AA10-2YA0 ",null,null,null,null,null,null,null,null,null,null,null,null,null,null,null,"Book mounting kit for box IPC627E (2 slots), PC interface outlet top or bottom;"]
["6ES7648-1AA10-2YB0",null,null,null,null,null,null,null,null,null,null,null,null,null,null,null,"Book mounting kit front for Box IPC627E (2 slots), PC interface outlet front side;"]
["6ES7648-1AA30-2YA0 ",null,null,null,null,null,null,null,null,null,null,null,null,null,null,null,"Book mounting kit for box IPC627E (5 slots), PC interface outlet top or bottom;"]
["6ES7648-1AA30-2YB0 ",null,null,null,null,null,null,null,null,null,null,null,null,null,null,null,"Book mounting kit front for box IPC627E (5 slots), PC interface outlet front side;"]
[]
[]
[]
[]
[]
[]
[null,null,null,null,null,null,null,null,null,null,null,null,null,null,null,null,"Click here\nfor additional SIMATIC IPC accessories."]

{"sheet":"IPC277E (Panel PC)","index":14,"n_rows":89,"n_cols":20,"rows_kept":89,"cut":false,"hidden":false,"merged":[]}
["SIMATIC IPC277E (Nanopanel PC)"]
[]
[null,null,null,null,null,null,null,null,null,null,null,null,null,null,null,null,{"$f":"IF(F48,G48,\"\")&IF(F49,G49,\"\")&IF(F50,G50,\"\")&IF(F51,G51,\"\")&IF(F52,G52,\"\")&IF(F53,G53,\"\")&IF(F54,G54,\"\")&IF(F55,G55,\"\")","v":""}]
[]
["6AV7",8,8,2,"-",0,{"$f":"IF(P7=1,G21,)&IF(P7=2,G22,)&IF(P7=3,G23,)&IF(P7=4,G24,)&IF(P7=5,G25,)&IF(P7=6,G26,)&IF(P7=7,G27,)&IF(P7=8,G28,)&IF(P7=9,G29,)&IF(P7=10,G30,)","v":"A"},{"$f":"IF(P8=1,H33,)&IF(P8=2,H34,)&IF(P8=3,H35,)&IF(P8=4,H36,)","v":"A"},{"$f":"IF(P9=1,I39,)&IF(P9=2,I40,)&IF(P9=3,I41,)&IF(P9=4,I42,)&IF(P9=5,I43,)&IF(P9=6,I44,)","v":"1"},0,"-",{"$f":"IF(P10=1,L47,)&IF(P10=2,L48,)&IF(P10=3,L49,)&IF(P10=4,L50,)&IF(P10=5,L51,)&IF(P10=6,L52,)&IF(P10=7,L53,)&IF(P10=8,L54,)&IF(P10=9,L55,)","v":"0"},{"$f":"IF(P11=1,M58,)&IF(P11=2,M59,)&IF(P11=3,M60,)&IF(P11=4,M61,)&IF(P11=5,M62,)&IF(P11=6,M63,)&IF(P11=7,M64,)&IF(P11=8,M65,)","v":"A"},"A",0,null,{"$f":"\"SIMATIC IPC277E (Nanopanel PC)\"","v":"SIMATIC IPC277E (Nanopanel PC)"},{"$f":"$A$5&$B$5&$C$5&$D$5&$E$5&$F$5&$G$5&$H$5&$I$5&$J$5&$K$5&$L$5&$M$5&$N$5&$O$5","v":"6AV7882-0AA10-0AA0"}]
[null,null,null,null,null,"|","|","|","|",null,null,"|","|","|",null,1,{"$f":"Q18","v":"Standard device ."}]
[null,null,null,null,null,"|","|","|","|",null,null,"|","|","|",null,1,{"$f":"IF(P7=1,Q21,)&IF(P7=2,Q22,)&IF(P7=3,Q23,)&IF(P7=4,Q24,)&IF(P7=5,Q25,)&IF(P7=6,Q26,)&IF(P7=7,Q27,)&IF(P7=8,Q28,)&IF(P7=9,Q29,)&IF(P7=10,Q30,)","v":"7\" Singletouch (800 x 480)"}]
[null,null,null,null,null,"|","|","|","|",null,null,"|","|","|",null,1,{"$f":"IF(P8=1,Q33,)&IF(P8=2,Q34,)&IF(P8=3,Q35,)&IF(P8=4,Q36,)","v":"Celeron N2807 (2C/2T)"}]
[null,null,null,null,null,"|","|","|","|",null,null,"|","|","|",null,1,{"$f":"IF(P9=1,Q39,)&IF(P9=2,Q40,)&IF(P9=3,Q41,)&IF(P9=4,Q42,)&IF(P9=5,Q43,)&IF(P9=6,Q44,)","v":"2 GB RAM"}]
[null,null,null,null,null,"|","|","|","|",null,null,"|","|","|",null,1,{"$f":"IF(P10=1,Q47,)&IF(P10=2,Q48,)&IF(P10=3,Q49,)&IF(P10=4,Q50,)&IF(P10=5,Q51,)&IF(P10=6,Q52,)&IF(P10=7,Q53,)&IF(P10=8,Q54,)&IF(P10=9,Q55,)","v":"without Windows operating system"}]
[null,null,null,null,null,"|","|","|","|",null,null,"|","|","|",null,1,{"$f":"IF(P11=1,Q58,)&IF(P11=2,Q59,)&IF(P11=3,Q60,)&IF(P11=4,Q61,)&IF(P11=5,Q62,)&IF(P11=6,Q63,)&IF(P11=7,Q64,)&IF(P11=8,Q65,)","v":"without drive, with CFast-Slot"}]
[null,null,null,null,null,"|","|","|","|",null,null,"|","|","|",null,1,{"$f":"Q68","v":"without SIMATIC Software"}]
[null,null,null,null,null,"|","|","|","|",null,null,"|","|","|"]
[null,null,null,null,null,"|","|","|","|",null,null,"|","|","|"]
[null,null,null,null,null,"|","|","|","|",null,null,"|","|","|"]
[null,null,null,null,null,"|","|","|","|",null,null,"|","|","|"]
[null," ",null,null,null,"|","|","|","|",null,null,"|","|","|",null,null,"Device type"]
[null," ",null,null,null,0,"|","|","|",null,null,"|","|","|",null,null,"Standard device .",null,{"$f":"IF($P$6=1,\"X\",\"\")","v":"X"}]
[null," ",null,null,null,null,"|","|","|",null,null,"|","|","|"]
[null," ",null,null,null,null,"|","|","|",null,null,"|","|","|",null,null,"Front Panel"]
[null," ",null,null,null,null,"A","|","|",null,null,"|","|","|",null,null,"7\" Singletouch (800 x 480)",null,{"$f":"IF($P$7=1,\"X\",\"\")","v":"X"},"."]
[null," ",null,null,null,null,"B","|","|",null,null,"|","|","|",null,null,"9\" Singletouch (800 x 480)",null,{"$f":"IF($P$7=2,\"X\",\"\")","v":""},"."]
[null," ",null,null,null,null,"C","|","|",null,null,"|","|","|",null,null,"12\" Singletouch (1280 x 800)",null,{"$f":"IF($P$7=3,\"X\",\"\")","v":""},"."]
[null," ",null,null,null,null,"D","|","|",null,null,"|","|","|",null,null,"15\" Singletouch (1280 x 800), Front-USB",null,{"$f":"IF($P$7=4,\"X\",\"\")","v":""},"."]
[null," ",null,null,null,null,"E","|","|",null,null,"|","|","|",null,null,"19\" Singletouch (1366 x 768), Front-USB",null,{"$f":"IF($P$7=5,\"X\",\"\")","v":""},"."]
[null,null,null,null,null,null,"H","|","|",null,null,"|","|","|",null,null,"12\" Multitouch (1280 x 800; with WES7-E only ST-mode)",null,{"$f":"IF($P$7=6,\"X\",\"\")","v":""},"."]
[null,null,null,null,null,null,"F","|","|",null,null,"|","|","|",null,null,"15\" Multitouch (1366 x 768; with WES7-E only ST-mode)",null,{"$f":"IF($P$7=7,\"X\",\"\")","v":""},"."]
[null,null,null,null,null,null,"G","|","|",null,null,"|","|","|",null,null,"19\" Multitouch (1366 x 768; with WES7-E only ST-mode)",null,{"$f":"IF($P$7=8,\"X\",\"\")","v":""},"."]
[null,null,null,null,null,null,"J","|","|",null,null,"|","|","|",null,null,"15\" Multitouch (1366 x 768; ATEX/IECEx/UL HazLoc; with WES7-E only ST-mode)",null,{"$f":"IF($P$7=9,\"X\",\"\")","v":""},"."]
[null,null,null,null,null,null,"K","|","|",null,null,"|","|","|",null,null,"19\" Multitouch (1366 x 768) ATEX/IECEx/UL HazLoc; with WES7-E only ST-mode)",null,{"$f":"IF($P$7=10,\"X\",\"\")","v":""},"."]
[null,null,null,null,null,null,null,"|","|",null,null,"|","|","|"]
[null," ",null,null,null,null,null,"|","|",null,null,"|","|","|",null,null,"Processor / TPM"]
[null," ",null,null,null,null,null,"A","|",null,null,"|","|","|",null,null,"Celeron N2807 (2C/2T)",null,{"$f":"IF($P$8=1,\"X\",\"\")","v":"X"},"."]
[null," ",null,null,null,null,null,"B","|",null,null,"|","|","|",null,null,"Celeron N2930 (4C/4T) (Consigliato per SW Controller)",null,{"$f":"IF($P$8=2,\"X\",\"\")","v":""},"."]
[null," ",null,null,null,null,null,"C","|",null,null,"|","|","|",null,null,"Celeron N2807 (2C/2T) / TPM",null,{"$f":"IF($P$8=3,\"X\",\"\")","v":""},"."]
[null," ",null,null,null,null,null,"D","|",null,null,"|","|","|",null,null,"Celeron N2930 (4C/4T) / TPM",null,{"$f":"IF($P$8=4,\"X\",\"\")","v":""},"."]
[null," ",null,null,null,null,null,null,"|",null,null,"|","|","|",null,null,null,null,null," "]
[null," ",null,null,null,null,null,null,"|",null,null,"|","|","|",null,null,"RAM / NVRAM"]
[null," ",null,null,null,null,null,null,1,null,null,"|","|","|",null,null,"2 GB RAM",null,{"$f":"IF($P$9=1,\"X\",\"\")","v":"X"},"."]
[null," ",null,null,null," ",null,null,2,null,null,"|","|","|",null,null,"4 GB RAM",null,{"$f":"IF($P$9=2,\"X\",\"\")","v":""},"."]
[null," ",null,null,null," ",null,null,3,null,null,"|","|","|",null,null,"8 GB RAM",null,{"$f":"IF($P$9=3,\"X\",\"\")","v":""},"."]
[null,null,null,null,null,null,null,null,4,null,null,"|","|","|",null,null,"2 GB RAM / NVRAM",null,{"$f":"IF($P$9=4,\"X\",\"\")","v":""},"."]
[null,null,null,null,null," ",null,null,5,null,null,"|","|","|",null,null,"4 GB RAM / NVRAM (Necessario per SW Controller)",null,{"$f":"IF($P$9=5,\"X\",\"\")","v":""},"."]
[null,null,null,null,null," ",null,null,6,null,null,"|","|","|",null,null,"8 GB RAM / NVRAM (Necessario per SW Controller)",null,{"$f":"IF($P$9=6,\"X\",\"\")","v":""},"."]
[null," ",null,null,null," ",null,null,null,null,null,"|","|","|"]
[null," ",null,null,null,null,null,null,null,null,null,"|","|","|",null,null,"Operating system"]
[null," ",null,null,null,null,null,null,null,null,null,0,"|","|",null,null,"without Windows operating system",null,{"$f":"IF($P$10=1,\"X\",\"\")","v":"X"},"."]
[null," ",null,null,null,{"$f":"IF(OR(AND($P$10=2,$P$11=1),AND($P$10=2,$P$11=5)),1,0)","v":0},"WES7E (32 bit) with SSD or CFast from 8 GB","  ",null,null,null,1,"|","|",null,null,"Windows Embedded Standard 7 E SP1, english, 32Bit",null,{"$f":"IF($P$10=2,\"X\",\"\")","v":""},"."]
[null," ",null,null,null,{"$f":"IF(OR(AND($P$10=3,$P$11=1),AND($P$10=3,$P$11=5),AND($P$10=3,$P$11=6)),1,0)","v":0},"WES7E (64 bit) with SSD or CFast from 16 GB","  ",null,null,null,2,"|","|",null,null,"Windows Embedded Standard 7 E SP1, english, 64Bit",null,{"$f":"IF($P$10=3,\"X\",\"\")","v":""},"."]
[null," ",null,null,null,{"$f":"IF(OR(AND($P$10=4,$P$11=1),AND($P$10=4,$P$11=5),AND($P$10=4,$P$11=6)),1,0)","v":0},"WES7P (32 bit) with SSD or CFast from 16 GB","  ",null,null,null,3,"|","|",null,null,"Windows Embedded Standard 7 P SP1, MUI, 32Bit",null,{"$f":"IF($P$10=4,\"X\",\"\")","v":""},"."]
[null," ",null,null,null,{"$f":"IF(OR(AND($P$10=5,$P$11=1),AND($P$10=5,$P$11=5),AND($P$10=5,$P$11=6)),1,0)","v":0},"WES7P (64 bit) with SSD or CFast from 16 GB"," ",null,null,null,4,"|","|",null,null,"Windows Embedded Standard 7 P SP1, MUI, 64Bit",null,{"$f":"IF($P$10=5,\"X\",\"\")","v":""},"."]
[null," ",null,null,null,{"$f":"IF(AND($L$5=\"5\",OR($M$5=\"A\",$M$5=\"K\",$M$5=\"L\",$M$5=\"M\",$M$5=\"N\",)),1,0)","v":0},"W7 only with SSD","  ",null,null,null,5,"|","|",null,null,"Windows7 Ultimate SP1, 32Bit, MUI (En, Ger, Es, Fr, It)",null,{"$f":"IF($P$10=6,\"X\",\"\")","v":""},"."]
[null," ",null,null,null,{"$f":"IF(AND($L$5=\"6\",OR($M$5=\"A\",$M$5=\"K\",$M$5=\"L\",$M$5=\"M\",$M$5=\"N\",)),1,0)","v":0},"W7 only with SSD"," ",null,null,null,6,"|","|",null,null,"Windows7 Ultimate SP1, 64Bit, MUI (En, Ger, Es, Fr, It)",null,{"$f":"IF($P$10=7,\"X\",\"\")","v":""},"."]
[null," ",null,null,null,{"$f":"IF(AND($L$5=\"7\",OR($M$5=\"A\",$M$5=\"K\",$M$5=\"L\",$M$5=\"M\",)),1,0)","v":0},"W10 only with SSD / 128 GB CFast"," ",null,null,null,7,"|","|",null,null,"Windows 10 IoT Enterprise 2016 LTSB, 64Bit, MUI (Ger, En, Es, Fr, It)",null,{"$f":"IF($P$10=8,\"X\",\"\")","v":""},"."]
[null," ",null,null,null,{"$f":"IF(AND($L$5=\"8\",OR($M$5=\"A\",$M$5=\"K\",$M$5=\"L\",$M$5=\"M\",)),1,0)","v":0},"W10 only with SSD / 128 GB CFast"," ",null,null,null,8,"|","|",null,null,"Windows 10 IoT Enterprise 2019 LTSC, 64Bit, MUI (Ger, En, Es, Fr, It) (Consilgliato)",null,{"$f":"IF($P$10=9,\"X\",\"\")","v":""},"."]
[null," ",null,null,null," ",null,null,null,null,null,null,"|","|"]
[null," ",null,null,null,null,null,null,null,null,null,null,"|","|",null,null,"Drive"]
[null," ",null,null,null,null,null,null,null,null,null,null,"A","|",null,null,"without drive, with CFast-Slot",null,{"$f":"IF($P$11=1,\"X\",\"\")","v":"X"},"."]
[null," ",null,null,null,null,null,null,null,null,null,null,"C","|",null,null,"240 GB SSD (Consigliato per SW Controller)",null,{"$f":"IF($P$11=2,\"X\",\"\")","v":""},"."]
[null," ",null,null,null,null,null,null,null,null,null,null,"D","|",null,null,"480 GB SSD (Consigliato per SW Controller)",null,{"$f":"IF($P$11=3,\"X\",\"\")","v":""},"."]
[null," ",null,null,null,null,null,null,null,null,null,null,"E","|",null,null,"256 GB Eco SSD",null,{"$f":"IF($P$11=4,\"X\",\"\")","v":""},"."]
[null," ",null,null,null,null,null,null,null,null,null,null,"K","|",null,null,"4 GB CFast",null,{"$f":"IF($P$11=5,\"X\",\"\")","v":""},"."]
[null," ",null,null,null,null,null,null,null,null,null,null,"L","|",null,null,"8 GB CFast",null,{"$f":"IF($P$11=6,\"X\",\"\")","v":""},"."]
[null," ",null,null,null,null,null,null,null,null,null,null,"M","|",null,null,"16 GB CFast",null,{"$f":"IF($P$11=7,\"X\",\"\")","v":""},"."]
[null," ",null,null,null,null,null,null,null,null,null,null,"N","|",null,null,"128 GB CFast",null,{"$f":"IF($P$11=8,\"X\",\"\")","v":""},"."]
[null," ",null,null,null," ",null,null,null,null,null,null,null,"|"]
[null," ",null,null,null,null,null,null,null,null,null,null,null,"|",null,null,"Software configuration"]
[null," ",null,null,null,null,null,null,null,null,null,null,null,"A",null,null,"without SIMATIC Software",null,{"$f":"IF($P$12=1,\"X\",\"\")","v":"X"},"."]
[null," "]
[]
[null,null,null,null,null,null,null,null,null,null,null,null,null,null,null,null,"Base version",null,"X","."]
[]
[{"$f":"A5","v":"6AV7"},{"$f":"B5","v":8},{"$f":"C5","v":8},{"$f":"D5","v":2}," - ",{"$f":"F5","v":0},"A","A","1",0,"-","0","A","A",0,null,null,"Total:"]
[]
[]
["Accessories:"]
[]
[null,null,null,null,null,null,null,null,null,null,null,null,null,null,null,null,"Protection Slides"]
["6AV2124-6GJ00-0AX0",null,null,null,null,null,null,null,null,null,null,null,null,null,null,null,"PROTECTIVE FILM  7\" 205MM X 149MM",null,null,"."]
["6AV2124-6JJ00-0AX0",null,null,null,null,null,null,null,null,null,null,null,null,null,null,null,"PROTECTIVE FILM  9\" 265MM X 181MM",null,null,"."]
["6AV2124-6MJ00-0AX0",null,null,null,null,null,null,null,null,null,null,null,null,null,null,null,"PROTECTIVE FILM 12\" 321MM X 232MM",null,null,"."]
["6AV2124-6QJ00-0AX1",null,null,null,null,null,null,null,null,null,null,null,null,null,null,null,"PROTECTIVE FILM 15\" 368MM X 259MM",null,null,"."]
["6AV2124-6UJ00-0AX1",null,null,null,null,null,null,null,null,null,null,null,null,null,null,null,"PROTECTIVE FILM 19\" 451MM X 285MM",null,null,"."]
[]
[null,null,null,null,null,null,null,null,null,null,null,null,null,null,null,null,"Mounting Accessory"]
["6AV6671-8XK00-0AX4",null,null,null,null,null,null,null,null,null,null,null,null,null,null,null,"BRACKET CLAMP LONG CLAMP SET (10 pieces, for 15\"/19\"/22\")",null,null,"."]
[]
[]
[null,null,null,null,null,null,null,null,null,null,null,null,null,null,null,null,"Click here\nfor additional SIMATIC IPC accessories."]

{"sheet":"IPC277G (Panel PC)","index":15,"n_rows":62,"n_cols":20,"rows_kept":62,"cut":false,"hidden":false,"merged":[]}
["SIMATIC IPC277G  (Nanopanel PC)"]
[]
[]
[null,null,null,null,null,null,null,null,null,null,null,null,null,null,null,null,{"$f":"IF(B53,C53,\"\")","v":""}]
["6AV7",8,8,6,"-",{"$f":"IF(P6<22,F16,1)","v":0},{"$f":"IF(P6=1,G16,)&IF(P6=2,G17,)&IF(P6=3,G18,)&IF(P6=4,G19,)&IF(P6=5,G20,)&IF(P6=6,G21,)&IF(P6=7,G22,)","v":"A"},{"$f":"IF(P7=1,H25,)&IF(P7=2,H26,)&IF(P7=3,H27,)&IF(P7=4,H28,)&IF(P7=5,H29,)&IF(P7=6,H30,)","v":"A"},{"$f":"IF(P8=1,I33,)&IF(P8=2,I34,)&IF(P8=3,I35,)","v":"1"},{"$f":"IF(P9=1,J38,)&IF(P9=2,J39,)&IF(P9=3,J40,)","v":"1"},"-",{"$f":"IF(P10=1,L43,)&IF(P10=2,L44,)&IF(P10=3,L45,)&IF(P10=4,L46,)","v":"1"},{"$f":"IF(P11=1,M49,)","v":"A"},{"$f":"IF(P12=1,N52,)&IF(P12=2,N53,)","v":"A"},0,null,{"$f":"\"SIMATIC IPC277G  (Nanopanel PC)\"","v":"SIMATIC IPC277G  (Nanopanel PC)"},{"$f":"$A$5&$B$5&$C$5&$D$5&$E$5&$F$5&$G$5&$H$5&$I$5&$J$5&$K$5&$L$5&$M$5&$N$5&$O$5","v":"6AV7886-0AA11-1AA0"}]
[null,null,null,null,null,null,"|","|","|","|",null,"|","|","|",null,1,{"$f":"IF(P6=1,Q16,)&IF(P6=2,Q17,)&IF(P6=3,Q18,)&IF(P6=4,Q19,)&IF(P6=5,Q20,)&IF(P6=6,Q21,)&IF(P6=7,Q22,)","v":"7\" Multitouch (800 x 480)"}]
[null,null,null,null,null,null,"|","|","|","|",null,"|","|","|",null,1,{"$f":"IF(P7=1,Q25,)&IF(P7=2,Q26,)&IF(P7=3,Q27,)&IF(P7=4,Q28,)&IF(P7=5,Q29,)&IF(P7=6,Q30,)","v":"Atom X6211E (2-Core)"}]
[null,null,null,null,null,null,"|","|","|","|",null,"|","|","|",null,1,{"$f":"IF(P8=1,Q33,)&IF(P8=2,Q34,)&IF(P8=3,Q35,)","v":"4 GB RAM"}]
[null,null,null,null,null,null,"|","|","|","|",null,"|","|","|",null,1,{"$f":"IF(P9=1,Q38,)&IF(P9=2,Q39,)&IF(P9=3,Q40,)","v":"without COM"}]
[null,null,null,null,null,null,"|","|","|","|",null,"|","|","|",null,1,{"$f":"IF(P10=1,Q43,)&IF(P10=2,Q44,)&IF(P10=3,Q45,)&IF(P10=4,Q46,)","v":"without drive"}]
[null,null,null,null,null,null,"|","|","|","|",null,"|","|","|",null,1,{"$f":"IF(P11=1,Q49,)","v":"without HW extension"}]
[null,null,null,null,null,null,"|","|","|","|",null,"|","|","|",null,1,{"$f":"IF(P12=1,Q52,)&IF(P12=2,Q53,)","v":"without Software"}]
[null,null,null,null,null,null,"|","|","|","|",null,"|","|","|"]
[null,null,null,null,null,null,"|","|","|","|",null,"|","|","|"]
[null,null,null,null,null,null,"|","|","|","|",null,"|","|","|",null,null,"Front Panel"]
[null,null,null,null,null,null,"A","|","|","|",null,"|","|","|",null,null,"7\" Multitouch (800 x 480)",null,{"$f":"IF($P$6=1,\"X\",\"\")","v":"X"},"."]
[null,null,null,null,null,null,"B","|","|","|",null,"|","|","|",null,null,"10\" Multitouch (1280 x 800)",null,{"$f":"IF($P$6=2,\"X\",\"\")","v":""},"."]
[null,null,null,null,null,null,"C","|","|","|",null,"|","|","|",null,null,"12\" Multitouch (1280 x 800)",null,{"$f":"IF($P$6=3,\"X\",\"\")","v":""},"."]
[null,null,null,null,null,null,"D","|","|","|",null,"|","|","|",null,null,"15\" Multitouch (1920 x 1080)",null,{"$f":"IF($P$6=4,\"X\",\"\")","v":""},"."]
[null,null,null,null,null,null,"E","|","|","|",null,"|","|","|",null,null,"19\" Multitouch (1920 x 1080)",null,{"$f":"IF($P$6=5,\"X\",\"\")","v":""},"."]
[null,null,null,null,null,null,"F","|","|","|",null,"|","|","|",null,null,"22\" Multitouch (1920 x 1080)",null,{"$f":"IF($P$6=6,\"X\",\"\")","v":""},"."]
[null,null,null,null,null,null,"G","|","|","|",null,"|","|","|",null,null,"24\" Multitouch (1920 x 1080)",null,{"$f":"IF($P$6=7,\"X\",\"\")","v":""},"."]
[null,null,null,null,null,null,null,"|","|","|",null,"|","|","|"]
[null," ",null,null,null,null,null,"|","|","|",null,"|","|","|",null,null,"Processor / TPM"]
[null,null,null,null,null,null,null,"A","|","|",null,"|","|","|",null,null,"Atom X6211E (2-Core)",null,{"$f":"IF($P$7=1,\"X\",\"\")","v":"X"},"."]
[null,null,null,null,null,null,null,"B","|","|",null,"|","|","|",null,null,"Atom X6413E (4-Core)",null,{"$f":"IF($P$7=2,\"X\",\"\")","v":""},"."]
[null,null,null,null,null,null,null,"C","|","|",null,"|","|","|",null,null,"Atom X6414RE (4-Core)",null,{"$f":"IF($P$7=3,\"X\",\"\")","v":""},"."]
[null,null,null,null,null,null,null,"D","|","|",null,"|","|","|",null,null,"Atom X6211E (2-Core) / TPM",null,{"$f":"IF($P$7=4,\"X\",\"\")","v":""},"."]
[null,null,null,null,null,null,null,"E","|","|",null,"|","|","|",null,null,"Atom X6413E (4-Core) / TPM",null,{"$f":"IF($P$7=5,\"X\",\"\")","v":""},"."]
[null,null,null,null,null,null,null,"F","|","|",null,"|","|","|",null,null,"Atom X6414RE (4-Core) / TPM",null,{"$f":"IF($P$7=6,\"X\",\"\")","v":""},"."]
[null,null,null,null,null,null,null,null,"|","|",null,"|","|","|"]
[null,null,null,null,null,null,null,null,"|","|",null,"|","|","|",null,null,"RAM"]
[null,null,null,null,null,null,null,null,1,"|",null,"|","|","|",null,null,"4 GB RAM",null,{"$f":"IF($P$8=1,\"X\",\"\")","v":"X"},"."]
[null,null,null,null,null,null,null,null,2,"|",null,"|","|","|",null,null,"8 GB RAM",null,{"$f":"IF($P$8=2,\"X\",\"\")","v":""},"."]
[null,null,null,null,null,null,null,null,3,"|",null,"|","|","|",null,null,"16 GB RAM",null,{"$f":"IF($P$8=3,\"X\",\"\")","v":""},"."]
[null,null,null,null,null,null,null,null,null,"|",null,"|","|","|"]
[null,null,null,null,null,null,null,null,null,"|",null,"|","|","|",null,null,"Hardware configuration"]
[null,null,null,null,null,null,null,null,null,1,null,"|","|","|",null,null,"without COM",null,{"$f":"IF($P$9=1,\"X\",\"\")","v":"X"},"."]
[null,null,null,null,null,null,null,null,null,2,null,"|","|","|",null,null,"1x COM",null,{"$f":"IF($P$9=2,\"X\",\"\")","v":""},"."]
[null,null,null,null,null,null,null,null,null,3,null,"|","|","|",null,null,"2x COM",null,{"$f":"IF($P$9=3,\"X\",\"\")","v":""},"."]
[null,null,null,null,null,null,null,null,null,null,null,"|","|","|"]
[null,null,null,null,null,null,null,null,null,null,null,"|","|","|",null,null,"Drive"]
[null,null,null,null,null,null,null,null,null,null,null,1,"|","|",null,null,"without drive",null,{"$f":"IF($P$10=1,\"X\",\"\")","v":"X"},"."]
[null,null,null,null,null,null,null," ",null,null,null,2,"|","|",null,null,"256 GB Eco SSD",null,{"$f":"IF($P$10=2,\"X\",\"\")","v":""},"."]
[null,null,null,null,null,null,null," ",null,null,null,3,"|","|",null,null,"240 GB SSD",null,{"$f":"IF($P$10=3,\"X\",\"\")","v":""},"."]
[null,null,null,null,null,null,null," ",null,null,null,4,"|","|",null,null,"480 GB SSD",null,{"$f":"IF($P$10=4,\"X\",\"\")","v":""},"."]
[null,null,null,null,null,null,null,null,null,null,null,null,"|","|"]
[null,null,null,null,null,null,null,null,null,null,null,null,"|","|",null,null,"Hardware extension"]
[null,null,null,null,null,null,null,null,null,null,null,null,"A","|",null,null,"without HW extension",null,{"$f":"IF($P$11=1,\"X\",\"\")","v":"X"},"."]
[null,null,null,null,null,null,null,null,null,null,null,null,null,"|"]
[null,null,null,null,null,null,null,null,null,null,null,null,null,"|",null,null,"Software configuration"]
[null,null,null,null,null,null,null,null,null,null,null,null,null,"A",null,null,"without Software",null,{"$f":"IF($P$12=1,\"X\",\"\")","v":"X"},"."]
[null,{"$f":"IF(AND(($P$12=2),($P$10=1)),1,0)","v":0},"Windows10 only with drive"," ",null,null,null," ",null,null,null,null,null,"B",null,null,"Windows 10 IoT Enterprise 2019 LTSC, 64Bit, MUI (Ger, En, Es, Fr, It)",null,{"$f":"IF($P$12=2,\"X\",\"\")","v":""},"."]
[]
[]
[]
[null,null,null,null,null,null,null,null,null,null,null,null,null,null,null,null,"Base version",null,"X","."]
[]
[{"$f":"A5","v":"6AV7"},{"$f":"B5","v":8},{"$f":"C5","v":8},{"$f":"D5","v":6}," - ",{"$f":"F5","v":0},"A","A","1","1","-","1","A","A",0,null,null,"Total:"]
[]
[]
[null,null,null,null,null,null,null,null,null,null,null,null,null,null,null,null,"Click here\nfor additional SIMATIC IPC accessories."]

{"sheet":"IPC377G (Panel PC)","index":16,"n_rows":53,"n_cols":20,"rows_kept":53,"cut":false,"hidden":false,"merged":[]}
["SIMATIC IPC377G  "]
[]
[]
[null,null,null,null,null,null,null,null,null,null,null,null,null,null,null,null,{"$f":"IF(B41,C41,\"\")","v":""}]
["6AV7",2,3,1,"-",0,{"$f":"IF(P6=1,G19,)&IF(P6=2,G20,)&IF(P6=3,G21,)&IF(P6=4,G22,)&IF(P6=5,#REF!,)&IF(P6=6,#REF!,)&IF(P6=7,#REF!,)&IF(P6=8,#REF!,)&IF(P6=9,#REF!,)&IF(P6=10,#REF!,)&IF(P6=11,#REF!,)&IF(P6=12,#REF!,)&IF(P6=13,#REF!,)&IF(P6=14,#REF!,)&IF(P6=15,#REF!,)&IF(P6=16,#REF!,)&IF(P6=17,#REF!,)&IF(P6=18,#REF!,)&IF(P6=19,#REF!,)&IF(P6=20,#REF!,)&IF(P6=21,#REF!,)&IF(P6=22,#REF!,)&IF(P6=23,#REF!,)&IF(P6=24,#REF!,)&IF(P6=25,#REF!,)&IF(P6=26,#REF!,)&IF(P6=27,#REF!,)&IF(P6=28,#REF!,)&IF(P6=29,#REF!,)&IF(P6=30,#REF!,)&IF(P6=31,#REF!,)&IF(P6=32,#REF!,)&IF(P6=33,#REF!,)","v":"C"},{"$f":"IF(P7=1,H25,)&IF(P7=2,H26,)&IF(P7=3,H27,)&IF(P7=4,H28,)&IF(P7=5,#REF!,)&IF(P7=6,#REF!,)","v":"A"},{"$f":"IF(P8=1,I31,)&IF(P8=2,I32,)&IF(P8=3,I33,)","v":"2"},{"$f":"IF(P9=1,J36,)&IF(P9=2,J37,)&IF(P9=3,#REF!,)","v":"1"},"-",{"$f":"IF(P10=1,L40,)&IF(P10=2,L41,)&IF(P10=3,#REF!,)&IF(P10=4,#REF!,)","v":"0"},{"$f":"IF(P11=1,M44,)&IF(P11=2,M45,)&IF(P11=3,M46,)&IF(P11=4,#REF!,)","v":"A"},{"$f":"IF(P12=1,N49,)&IF(P12=2,#REF!,)&IF(P12=3,#REF!,)&IF(P12=4,#REF!,)&IF(P12=5,#REF!,)","v":"A"},0,null,"IPC377G",{"$f":"$A$5&$B$5&$C$5&$D$5&$E$5&$F$5&$G$5&$H$5&$I$5&$J$5&$K$5&$L$5&$M$5&$N$5&$O$5","v":"6AV7231-0CA21-0AA0"}]
[null,null,null,null,null,null,"|","|","|","|",null,"|","|","|",null,1,{"$f":"IF(P6=1,Q19,)&IF(P6=2,Q20,)&IF(P6=3,Q21,)&IF(P6=4,Q22,)&IF(P6=5,#REF!,)&IF(P6=6,#REF!,)&IF(P6=7,#REF!,)&IF(P6=8,#REF!,)&IF(P6=9,#REF!,)&IF(P6=10,#REF!,)&IF(P6=11,#REF!,)&IF(P6=12,#REF!,)&IF(P6=13,#REF!,)&IF(P6=14,#REF!,)&IF(P6=15,#REF!,)&IF(P6=16,#REF!,)&IF(P6=17,#REF!,)&IF(P6=18,#REF!,)&IF(P6=19,#REF!,)&IF(P6=20,#REF!,)&IF(P6=21,#REF!,)&IF(P6=22,#REF!,)&IF(P6=23,#REF!,)&IF(P6=24,#REF!,)&IF(P6=25,#REF!,)&IF(P6=26,#REF!,)&IF(P6=27,#REF!,)&IF(P6=28,#REF!,)&IF(P6=29,#REF!,)&IF(P6=30,#REF!,)&IF(P6=31,#REF!,)&IF(P6=32,#REF!,)&IF(P6=33,#REF!,)","v":"12” Touch(1280 x800)"}]
[null,null,null,null,null,null,"|","|","|","|",null,"|","|","|",null,1,{"$f":"IF(P7=1,Q25,)&IF(P7=2,Q26,)&IF(P7=3,Q27,)&IF(P7=4,Q28,)&IF(P7=5,#REF!,)&IF(P7=6,#REF!,)&IF(P7=7,#REF!,)","v":"Intel Atomx6413E Processor (up to 3.0 GHz) in preparing"}]
[null,null,null,null,null,null,"|","|","|","|",null,"|","|","|",null,1,{"$f":"IF(P8=1,Q31,)&IF(P8=2,Q32,)&IF(P8=3,Q33,)","v":"4GB RAM"}]
[null,null,null,null,null,null,"|","|","|","|",null,"|","|","|",null,1,{"$f":"IF(P9=1,Q36,)&IF(P9=2,Q37,)&IF(P9=3,#REF!,)","v":"4USB+2COM"}]
[null,null,null,null,null,null,"|","|","|","|",null,"|","|","|",null,1,{"$f":"IF(P10=1,Q40,)&IF(P10=2,Q41,)&IF(P10=3,#REF!,)&IF(P10=4,#REF!,)","v":"without Software"}]
[null,null,null,null,null,null,"|","|","|","|",null,"|","|","|",null,1,{"$f":"IF(P11=1,Q44,)&IF(P11=2,Q45,)&IF(P11=3,Q46,)&IF(P11=4,#REF!,)","v":"without mass storage"}]
[null,null,null,null,null,null,"|","|","|","|",null,"|","|","|",null,1,{"$f":"IF(P12=1,Q49,)&IF(P12=2,#REF!,)&IF(P12=3,#REF!,)&IF(P12=4,#REF!,)&IF(P12=5,#REF!,)","v":"Reserve"}]
[null,null,null,null,null,null,"|","|","|","|",null,"|","|","|"]
[null,null,null,null,null,null,"|","|","|","|",null,"|","|","|"]
[null,null,null,null,null,null,"|","|","|","|",null,"|","|","|"]
[null,null,null,null,null,null,"|","|","|","|",null,"|","|","|"]
[null,null,null,null,null,null,"|","|","|","|",null,"|","|","|"]
[null,null,null,null,null,null,"|","|","|","|",null,"|","|","|",null,null,"Display"]
[null,null,null,null,null,null,"C","|","|","|",null,"|","|","|",null,null,"12” Touch(1280 x800)",null,{"$f":"IF($P$6=1,\"X\",\"\")","v":"X"},"."]
[null,null,null,null,null,null,"D","|","|","|",null,"|","|","|",null,null,"15“ Touch(1366 x768)",null,{"$f":"IF($P$6=2,\"X\",\"\")","v":""},"."]
[null,null,null,null,null,null,"E","|","|","|",null,"|","|","|",null,null,"19” Touch(1366 x768)",null,{"$f":"IF($P$6=3,\"X\",\"\")","v":""},"."]
[null,null,null,null,null,null,"F","|","|","|",null,"|","|","|",null,null,"22“ Touch(1920 x1080)",null,{"$f":"IF($P$6=4,\"X\",\"\")","v":""},"."]
[null,null,null,null,null,null,null,"|","|","|",null,"|","|","|",null,null,null,null,null,"."]
[null," ",null,null,null,null,null,"|","|","|",null,"|","|","|",null,null,"CPU"]
[null,null,null,null,null,null,null,"A","|","|",null,"|","|","|",null,null,"Intel Atomx6413E Processor (up to 3.0 GHz) in preparing",null,{"$f":"IF($P$7=1,\"X\",\"\")","v":"X"},"."]
[null,null,null,null,null,null,null,"B","|","|",null,"|","|","|",null,null,"Intel Atomx6413E Processor (up to 3.0 GHz)/TPM  in preparing",null,{"$f":"IF($P$7=2,\"X\",\"\")","v":""},"."]
[null,null,null,null,null,null,null,"C","|","|",null,"|","|","|",null,null,"Intel Atomx6413E Processor (up to 3.0 GHz)/w/o Audio",null,{"$f":"IF($P$7=3,\"X\",\"\")","v":""},"."]
[null,null,null,null,null,null,null,"D","|","|",null,"|","|","|",null,null,"Intel Atomx6413E Processor (up to 3.0 GHz)/TPM/w/o Audio",null,{"$f":"IF($P$7=4,\"X\",\"\")","v":""},"."]
[null,null,null,null,null,null,null,null,"|","|",null,"|","|","|"]
[null,null,null,null,null,null,null,null,"|","|",null,"|","|","|",null,null,"Memory"]
[null,null,null,null,null,null,null,null,2,"|",null,"|","|","|",null,null,"4GB RAM",null,{"$f":"IF($P$8=1,\"X\",\"\")","v":"X"},"."]
[null,null,null,null,null,null,null,null,3,"|",null,"|","|","|",null,null,"8GB RAM",null,{"$f":"IF($P$8=2,\"X\",\"\")","v":""},"."]
[null,null,null,null,null,null,null,null,4,"|",null,"|","|","|",null,null,"16GB RAM",null,{"$f":"IF($P$8=3,\"X\",\"\")","v":""},"."]
[null,null,null,null,null,null,null,null,null,"|",null,"|","|","|"]
[null,null,null,null,null,null,null,null,null,"|",null,"|","|","|",null,null,"HW extension"]
[null,null,null,null,null,null,null,null,null,1,null,"|","|","|",null,null,"4USB+2COM",null,{"$f":"IF($P$9=1,\"X\",\"\")","v":"X"},"."]
[null,null,null,null,null,null,null,null,null,2,null,"|","|","|",null,null,"4USB+4COM via pinheader",null,{"$f":"IF($P$9=2,\"X\",\"\")","v":""},"."]
[null,null,null,null,null,null,null,null,null,null,null,"|","|","|"]
[null,null,null,null,null,null,null,null,null,null,null,"|","|","|",null,null,"OS"]
[null,null,null,null,null,null,null,null,null,null,null,0,"|","|",null,null,"without Software",null,{"$f":"IF($P$10=1,\"X\",\"\")","v":"X"},"."]
[null,{"$f":"IF(AND(P10=2,P11=1),1,0)","v":0},"Windows10 only with drive",null,null,null,null," ",null,null,null,2,"|","|",null,null,"Windows 10 Enterprise LTSC 2019, 64Bit, MUI (De, En, Fr, It, Sp)",null,{"$f":"IF($P$10=2,\"X\",\"\")","v":""},"."]
[null,null,null,null,null,null,null,null,null,null,null,null,"|","|"]
[null,null,null,null,null,null,null,null,null,null,null,null,"|","|",null,null,"Mass storage"]
[null,null,null,null,null,null,null,null,null,null,null,null,"A","|",null,null,"without mass storage",null,{"$f":"IF($P$11=1,\"X\",\"\")","v":"X"},"."]
[null,null,null,null,null,null,null,null,null,null,null,null,"B","|",null,null,"256G SSD",null,{"$f":"IF($P$11=2,\"X\",\"\")","v":""},"."]
[null,null,null,null,null,null,null,null,null,null,null,null,"C","|",null,null,"512G SSD",null,{"$f":"IF($P$11=3,\"X\",\"\")","v":""},"."]
[null,null,null,null,null,null,null,null,null,null,null,null,null,"|"]
[null,null,null,null,null,null,null,null,null,null,null,null,null,"|",null,null,"Reserve"]
[null,null,null,null,null,null,null,null,null,null,null,null,null,"A",null,null,"Reserve",null,{"$f":"IF($P$12=1,\"X\",\"\")","v":"X"},"."]
[null,null,null,null,null,null,null,null,null,null,null,null,null,null,null,null,"Base",null,"X","."]
[null,null,null,null,null,null,null,null,null,null,null,null,null,null,null,null,"Price",null,null," "]
[]
[{"$f":"A5","v":"6AV7"},{"$f":"B5","v":2},{"$f":"C5","v":3},{"$f":"D5","v":1}," - ",{"$f":"F5","v":0},"C","A","2","1","-","0","A","A",0]

{"sheet":"IPC477E (Panel PC)","index":17,"n_rows":111,"n_cols":21,"rows_kept":111,"cut":false,"hidden":false,"merged":[[0,17,3,17]]}
["SIMATIC IPC477E (Panel PC)",null,null,null,null,null,null,null,null,null,null,null,null,null,null,null," ",null,null,"PREZZO DI LISTINO"]
[null,null,null,null,null,null,null,null,null,null,null,null,null,null,null,null,{"$f":"$A$5&$B$5&$C$5&$D$5&$E$5&$F$5&$G$5&$H$5&$I$5&$J$5&$K$5&$L$5&$M$5&$N$5&$O$5","v":"6AV7241-1BA00-0AA0"}]
[null,null,{"$f":"IF(OR(F5=\"#\",G5=\"#\",H5=\"#\",I5=\"#\",J5=\"#\",L5=\"#\",M5=\"#\",N5=\"#\",O5=\"#\"),1,0)","v":0},"Configuration not possible. Mind the combinations of the options",null,null,null,null,null,null,null,null,null,null,null," ",{"$f":"IF(C3,D3,\"\")","v":""}]
[" ",null,null,null,null,null,null,null,null,null,null,null,null,null,null,null," "]
["6AV7",2,4,1,"-",{"$f":"VLOOKUP(P7,A21:Q24,6,TRUE)","v":1},{"$f":"VLOOKUP(P8,A27:Q38,7,TRUE)","v":"B"},{"$f":"VLOOKUP(P9,A41:Q50,8,TRUE)","v":"A"},{"$f":"VLOOKUP(P10,A53:Q60,9,TRUE)","v":0},{"$f":"VLOOKUP(P11,A63:Q71,10,TRUE)","v":0},"-",{"$f":"VLOOKUP(P12,A74:Q79,12,FALSE)","v":0},{"$f":"VLOOKUP(P13,A82:Q86,13,TRUE)","v":"A"},{"$f":"VLOOKUP(P14,A89:Q89,14,TRUE)","v":"A"},{"$f":"VLOOKUP(P15,A92:Q97,15,TRUE)","v":0},null,{"$f":" \"SIMATIC IPC477E\" & \" (Panel PC)\"","v":"SIMATIC IPC477E (Panel PC)"},{"$f":"T(Q2)","v":"6AV7241-1BA00-0AA0"},null,{"$f":"T101","v":2873}]
[null,null,null,"|",null,"|","|","|","|","|",null,"|","|","|","|",1,{"$f":"VLOOKUP(P6,A18:Q18,17,FALSE)","v":"Standard-Device"}]
[null,null,null,"|",null,"|","|","|","|","|",null,"|","|","|","|",1,{"$f":"VLOOKUP(P7,A21:Q24,17,FALSE)","v":"Celeron G3902E; 3x Gigabit Ethernet (IE/PN)"}," "]
[null,null,null,"|",null,"|","|","|","|","|",null,"|","|","|","|",1,{"$f":"VLOOKUP(P8,A27:Q38,17,FALSE)","v":"15\" Singletouch (1280 x 800) with Front-USB"}]
[null,null,null,"|",null,"|","|","|","|","|",null,"|","|","|","|",1,{"$f":"VLOOKUP(P9,A41:Q50,17,FALSE)","v":"4GB"}]
[null,null,null,"|",null,"|","|","|","|","|",null,"|","|","|","|",1,{"$f":"VLOOKUP(P10,A53:Q60,17,FALSE)","v":"no RS232/485, without PCIe"}]
[null,null,null,"|",null,"|","|","|","|","|",null,"|","|","|","|",1,{"$f":"VLOOKUP(P11,A63:Q71,17,FALSE)","v":"without Windows Operating system"}]
[null,null,null,"|",null,"|","|","|","|","|",null,"|","|","|","|",1,{"$f":"VLOOKUP(P12,A74:Q79,17,FALSE)","v":"without external mass storage"}]
[null,null,null,"|",null,"|","|","|","|","|",null,"|","|","|","|",1,{"$f":"VLOOKUP(P13,A82:Q86,17,FALSE)","v":"without internal mass storage"}]
[null,null,null,"|",null,"|","|","|","|","|",null,"|","|","|","|",1,{"$f":"VLOOKUP(P14,A89:Q89,17,FALSE)","v":"without SIMATIC Software"}]
[null,null,null,"|",null,"|","|","|","|","|",null,"|","|","|","|",1,{"$f":"VLOOKUP(P15,A92:Q97,17,FALSE)","v":"24V DC Industry power supply"}]
[null,null,null,"|",null,"|","|","|","|","|",null,"|","|","|","|",null," "]
[null,null,null,"|",null,"|","|","|","|","|",null,"|","|","|","|",null,"Building Type"]
[1,null,null,1,null,"|","|","|","|","|",null,"|","|","|","|",null,"Standard-Device",null,{"$f":"IF($P$6=1,1,\"\")","v":1},0,"."]
[null,null,null,null,null,"|","|","|","|","|",null,"|","|","|","|"]
[null,null,null,null,null,"|","|","|","|","|",null,"|","|","|","|",null,"Processor and Fieldbus"]
[1,null,null,null,null,1,"|","|","|","|",null,"|","|","|","|",null,"Celeron G3902E; 3x Gigabit Ethernet (IE/PN)",null,{"$f":"IF($P$7=1,1,\"\")","v":1},66,"."]
[2,null,null,null,null,3,"|","|","|","|",null,"|","|","|","|",null,"Core i3-6102E; 3x Gigabit Ethernet (IE/PN)",null,{"$f":"IF($P$7=2,1,\"\")","v":""},512,"."]
[3,null,null,null,null,5,"|","|","|","|",null,"|","|","|","|",null,"Core i5-6442EQ; 3x Gigabit Ethernet (IE/PN) (Consigliato per SW Controller)",null,{"$f":"IF($P$7=3,1,\"\")","v":""},719,"."]
[4,null,null,null,null,7,"|","|","|","|",null,"|","|","|","|",null,"XEON E3-1505L; 3x Gigabit Ethernet (IE/PN) (Consigliato per SW Controller)",null,{"$f":"IF($P$7=4,1,\"\")","v":""},1178,"."]
[null,null,null,null,null,null,"|","|","|","|",null,"|","|","|","|"]
[null,null,null,null,null,null,"|","|","|","|",null,"|","|","|","|",null,"Frontpanel"]
[1,null,null,null,null,null,"B","|","|","|",null,"|","|","|","|",null,"15\" Singletouch (1280 x 800) with Front-USB",null,{"$f":"IF($P$8=1,1,\"\")","v":1},252,"."]
[2,null,null,null,null,null,"D","|","|","|",null,"|","|","|","|",null,"19\" Singletouch (1366 x 768) with Front-USB",null,{"$f":"IF($P$8=2,1,\"\")","v":""},504,"."]
[3,null,null,null,null,null,"E","|","|","|",null,"|","|","|","|",null,"22\" Singletouch (1920 x 1080) with Front-USB",null,{"$f":"IF($P$8=3,1,\"\")","v":""},1007,"."]
[4,null,null,null,null,null,"G","|","|","|",null,"|","|","|","|",null,"19\" Multitouch (1920 x 1080; with WES7-E only ST-mode)",null,{"$f":"IF($P$8=4,1,\"\")","v":""},755,"."]
[5,null,null,null,null,null,"J","|","|","|",null,"|","|","|","|",null,"15\" Multitouch (1366 x 768; with WES7-E only ST-mode)",null,{"$f":"IF($P$8=5,1,\"\")","v":""},378,"."]
[6,null,null,null,null,null,"K","|","|","|",null,"|","|","|","|",null,"19\" Multitouch (1366 x 768; with WES7-E only ST-mode)",null,{"$f":"IF($P$8=6,1,\"\")","v":""},755,"."]
[7,null,null,null,null,null,"L","|","|","|",null,"|","|","|","|",null,"22\" Multitouch (1920 x 1080; with WES7-E only ST-mode)",null,{"$f":"IF($P$8=7,1,\"\")","v":""},1258,"."]
[8,null,null,null,null,null,"R","|","|","|",null,"|","|","|","|",null,"24\" Multitouch (1920 x 1080; with WES7-E only ST-mode)",null,{"$f":"IF($P$8=8,1,\"\")","v":""},1384,"."]
[9,null,null,null,null,null,"S","|","|","|",null,"|","|","|","|",null,"24\" Multitouch (1920 x 1080) Neutral Panel (with WES7-E only ST-mode)",null,{"$f":"IF($P$8=9,1,\"\")","v":""},1510,"."]
[10,null,null,null,null,null,"W","|","|","|",null,"|","|","|","|",null,"15\" Multitouch (1366 x 768) Neutral Panel (with WES7-E only ST-mode)",null,{"$f":"IF($P$8=16,1,\"\")","v":""},504,"."]
[11,null,null,null,null,null,"X","|","|","|",null,"|","|","|","|",null,"19\" Multitouch (1366 x 768) Neutral Panel (with WES7-E only ST-mode)",null,{"$f":"IF($P$8=17,1,\"\")","v":""},881,"."]
[12,null,null,null,null,null,"Y","|","|","|",null,"|","|","|","|",null,"22\" Multitouch (1920 x 1080) Neutral Panel (with WES7-E only ST-mode)",null,{"$f":"IF($P$8=18,1,\"\")","v":""},1384,"."]
[12,null,null,null,null,null,null,"|","|","|",null,"|","|","|","|"]
[null,null,null,null,null,null," ","|","|","|",null,"|","|","|","|",null,"Ram/NVRAM"]
[1,null,null,null,null,null,null,"A","|","|",null,"|","|","|","|",null,"4GB",null,{"$f":"IF($P$9=1,1,\"\")","v":1},105,"."]
[2,null,null,null,null,null,null,"B","|","|",null,"|","|","|","|",null,"8GB",null,{"$f":"IF($P$9=2,1,\"\")","v":""},289,"."]
[3,null,null,null,null,null,null,"C","|","|",null,"|","|","|","|",null,"16GB",null,{"$f":"IF($P$9=3,1,\"\")","v":""},708,"."]
[4,null,null,null,null,null,null,{"$f":"IF($P$7<>3,\"D\",\"#\")","v":"D"},"|","|",null,"|","|","|","|",null,"8GB with ECC",null,{"$f":"IF($P$9=4,1,\"\")","v":""},512,"."]
[5,null,null,null,null,null,null,{"$f":"IF($P$7<>3,\"E\",\"#\")","v":"E"},"|","|",null,"|","|","|","|",null,"16GB with ECC",null,{"$f":"IF($P$9=5,1,\"\")","v":""},1124,"."]
[6,null,{"$f":"IF(AND($P$6<>7,P10=5),1,0)","v":0},"Arbeitsspeicher mit ECC nur in Verbindung mit Core i7 mit IE/PN (Option \"6\")",".",null,null,"F","|","|",null,"|","|","|","|",null,"4GB and NVRAM (Necessario per SW Controller)",null,{"$f":"IF($P$9=6,1,\"\")","v":""},170,"."]
[7,null,{"$f":"IF(AND($P$6<>7,P11=5),1,0)","v":0},"Arbeitsspeicher mit ECC nur in Verbindung mit Core i7 mit IE/PN (Option \"6\")",".",null,null,"G","|","|",null,"|","|","|","|",null,"8GB and NVRAM (Necessario per SW Controller)",null,{"$f":"IF($P$9=7,1,\"\")","v":""},354,"."]
[8,null,{"$f":"IF(AND($P$6<>7,P12=5),1,0)","v":0},"Arbeitsspeicher mit ECC nur in Verbindung mit Core i7 mit IE/PN (Option \"6\")",".",null,null,"H","|","|",null,"|","|","|","|",null,"16GB and NVRAM (Necessario per SW Controller)",null,{"$f":"IF($P$9=8,1,\"\")","v":""},773,"."]
[9,null,{"$f":"IF(AND($P$6<>7,P14=5),1,0)","v":0},"Arbeitsspeicher mit ECC nur in Verbindung mit Core i7 mit IE/PN (Option \"6\")",".",null,null,{"$f":"IF($P$7<>3,\"J\",\"#\")","v":"J"},"|","|",null,"|","|","|","|",null,"8GB with ECC and NVRAM (Necessario per SW Controller)",null,{"$f":"IF($P$9=9,1,\"\")","v":""},576,"."]
[10,null,{"$f":"IF(AND($P$6<>7,P15=5),1,0)","v":0},"Arbeitsspeicher mit ECC nur in Verbindung mit Core i7 mit IE/PN (Option \"6\")",".",null,null,{"$f":"IF($P$7<>3,\"K\",\"#\")","v":"K"},"|","|",null,"|","|","|","|",null,"16GB with ECC and NVRAM (Necessario per SW Controller)",null,{"$f":"IF($P$9=10,1,\"\")","v":""},1190,"."]
[null,null,null,null,null,null,null,null,"|","|",null,"|","|","|","|",null," "]
[null,null,null,null,null,null,null,null,"|","|",null,"|","|","|","|",null,"Extension (HW)"]
[1,null,null,null,null,null,null,null,0,"|",null,"|","|","|","|",null,"no RS232/485, without PCIe",null,{"$f":"IF($P$10=1,1,\"\")","v":1},0,"."]
[2," ",{"$f":"IF(OR($P$8=1),1,0)","v":1},"restrictions with 12\"; not expandable, no AC-Power supply, no DVD, no HDD, not second RS232"," ",null,null,null,"1","|",null,"|","|","|","|",null,"no RS232/485 and one PCIe (Necessario per CP1625 o CP5622)",null,{"$f":"IF($P$10=2,1,\"\")","v":""},131,"."]
[3,null,{"$f":"IF(OR($P$8=1),1,0)","v":1},"restrictions with 12\"; not expandable, no AC-Power supply, no DVD, no HDD, not second RS232",null,null,null,null,"3","|",null,"|","|","|","|",null,"two RS232/485 and without PCIe",null,{"$f":"IF($P$10=3,1,\"\")","v":""},99,"."]
[4,null,{"$f":"IF(OR($P$8=1),1,0)","v":1},"restrictions with 12\"; not expandable, no AC-Power supply, no DVD, no HDD, not second RS232"," ",null,null,null,"4","|",null,"|","|","|","|",null,"two RS232/485 and one PCIe (Necessario per CP1625 o CP5622)",null,{"$f":"IF($P$10=4,1,\"\")","v":""},229,"."]
[5,null,null,null,null,null,null,null,{"$f":"IF(OR($P$8<4,$P$8=9,$P$8=10,$P$8=11,$P$8=12,$P$13=5,$P$15=2,$P$15=3,$P$15=4,$P$15=5,),\"#\",\"5\")","v":"#"},"|",null,"|","|","|","|",null,"no RS232 without PCIe with ATEX/IECEx",null,{"$f":"IF($P$10=5,1,\"\")","v":""},0,"."]
[6,null,null,null,null,null,null,null,{"$f":"IF(OR($P$8<4,$P$8=9,$P$8=10,$P$8=11,$P$8=12,$P$13=5,$P$15=2,$P$15=3,$P$15=4,$P$15=5,),\"#\",\"6\")","v":"#"},"|",null,"|","|","|","|",null,"no RS232 with PCIe with ATEX/IECEx (Necessario per CP1625 o CP5622)",null,{"$f":"IF($P$10=6,1,\"\")","v":""},131,"."]
[7,null,null,null,null,null,null,null,{"$f":"IF(OR($P$8<4,$P$8=9,$P$8=10,$P$8=11,$P$8=12,$P$13=5,$P$15=2,$P$15=3,$P$15=4,$P$15=5,),\"#\",\"7\")","v":"#"},"|",null,"|","|","|","|",null,"two RS232 without PCIe with ATEX/IECEx",null,{"$f":"IF($P$10=7,1,\"\")","v":""},99,"."]
[8,null,null,null,null,null,null,null,{"$f":"IF(OR($P$8<4,$P$8=9,$P$8=10,$P$8=11,$P$8=12,$P$13=5,$P$15=2,$P$15=3,$P$15=4,$P$15=5,),\"#\",\"8\")","v":"#"},"|",null,"|","|","|","|",null,"two RS232 with PCIe with ATEX/IECEx (Necessario per CP1625 o CP5622)",null,{"$f":"IF($P$10=8,1,\"\")","v":""},229,"."]
[null,null,null,null,null,null,null,null,null,"|",null,"|","|","|","|"]
[null,null,null,null,null,null,null,null,null,"|",null,"|","|","|","|",null,"Operating system"]
[1,null,null,null,null,null,null,null,null,0,null,"|","|","|","|",null,"without Windows Operating system",null,{"$f":"IF($P$11=1,1,\"\")","v":1},0,"."]
[2,null,{"$f":"IF(OR($P$13<3,$P$13=1,$P$13=2,$P$13=8,$P$13=9,$P$13=12)*OR($P$12<3,$P$12>5),1,0)","v":1},null,null,null,null,null,null,1,null,"|","|","|","|",null,"Windows Embedded Standard 7 E SP1, englisch, 32Bit",null,{"$f":"IF($P$11=2,1,\"\")","v":""},190,"."]
[3,null,{"$f":"IF(OR($P$13<3,$P$13=1,$P$13=2,$P$13=8,$P$13=9,$P$13=12)*OR($P$12<3,$P$12>5),1,0)","v":1},null,null,null,null,null,null,2,null,"|","|","|","|",null,"Windows Embedded Standard 7 E SP1, englisch, 64Bit",null,{"$f":"IF($P$11=3,1,\"\")","v":""},190,"."]
[4,null,{"$f":"IF(AND($P$11>2,OR($P$13<6,$P$13=9)),1,0)","v":0},null,null,null,null,null,null,3,null,"|","|","|","|",null,"Windows Embedded Standard 7 P SP1, MUI, 64Bit, Multitouch",null,{"$f":"IF($P$11=4,1,\"\")","v":""},365,"."]
[5,null,{"$f":"IF(AND($P$11>2,OR($P$13<6,$P$13=9)),1,0)","v":0},null,null,null,null,null,null,4,null,"|","|","|","|",null,"Windows7 Ultimate SP1, 64Bit, MUI (de, en, es, fr, it)",null,{"$f":"IF($P$11=5,1,\"\")","v":""},403,"."]
[6,null,null,null,null,null,null,null,null,{"$f":"IF($P$7<>4,\"5\",\"#\")","v":"5"},null,"|","|","|","|",null,"Windows 10 IoT Enterprise 2019 LTSC (64Bit) for Processors Celeron, i3 and i5 (Consigliato)",null,{"$f":"IF($P$11=6,1,\"\")","v":""},227,"."]
[7,null,null,null,null,null,null,null,null,{"$f":"IF($P$7=4,\"6\",\"#\")","v":"#"},null,"|","|","|","|",null,"Windows 10 IoT Enterprise 2019 LTSC (64Bit) for Processor Xeon (Consigliato)",null,{"$f":"IF($P$11=7,1,\"\")","v":""},340,"."]
[8,null," "," ",".",null,null,null,null,{"$f":"IF($P$7<>4,\"7\",\"#\")","v":"7"},null,"|","|","|","|",null,"Windows 10 Enterprise 2016 LTSB (64Bit) for Processors Celeron, i3 and i5",null,{"$f":"IF($P$11=8,1,\"\")","v":""},227,"."]
[9,null," "," ",".",null,null,null,null,{"$f":"IF($P$7=4,\"8\",\"#\")","v":"#"},null,"|","|","|","|",null,"Windows 10 Enterprise 2016 LTSB (64Bit) for Processor Xeon",null,{"$f":"IF($P$11=9,1,\"\")","v":""},340,"."]
[" ",null,null,null,null,null,null,null,null,null,null,"|","|","|","|"]
[null,null,null,null,null,null,null,null,null,null,null,"|","|","|","|",null,"Drive changeable (accessible)"]
[1,null,null,null,null,null,null,null,null,null,null,0,"|","|","|",null,"without external mass storage",null,{"$f":"IF($P$12=1,1,\"\")","v":1},0,"."]
[2,null,null,null,null,null,null,null,null,null,null,1,"|","|","|",null,"CFAST 2GB, without Operating system",null,{"$f":"IF($P$12=2,1,\"\")","v":""},105,"."]
[3,null,null,null,null,null,null,null,null,null,null,2,"|","|","|",null,"CFAST 4GB (only optional with operating system/SW, if no internal mass storage or HDD)",null,{"$f":"IF($P$12=3,1,\"\")","v":""},170,"."]
[4,null,null,null,null,null,null,null,null,null,null,3,"|","|","|",null,"CFAST 8GB (only optional with operating system/SW, if no internal mass storage or HDD)",null,{"$f":"IF($P$12=4,1,\"\")","v":""},316,"."]
[5,null,null,null,null,null,null,null,null,null,null,4,"|","|","|",null,"CFAST 16GB (only optional with operating system/SW, if no internal mass storage or HDD)",null,{"$f":"IF($P$12=5,1,\"\")","v":""},512,"."]
[6,null,null,null,null,null,null,null,null,null,null,5,"|","|","|",null,"CFAST 128GB (only optional with operating system/SW, if no internal mass storage)",null,{"$f":"IF($P$12=6,1,\"\")","v":""},642,"."]
[null,null,null,null,null,null,null,null,null,null,null,null,"|","|","|"]
[null,null,null,null,null,null," ",null,null,null,null,null,"|","|","|",null,"Drive internal (not accessible)"]
[1,null,null,null,null,null,null,null,null,null," ",null,{"$f":"IF(OR(AND($P$11=2,$P$12>3),AND($P$11=3,$P$12>4),AND($P$11=4,$P$12>4),AND($P$11>5,$P$12=6),$P$11=1),\"A\",\"#\")","v":"A"},"|","|",null,"without internal mass storage",null,{"$f":"IF($P$13=1,1,\"\")","v":1},0,"."]
[2,null,null,null,null,null,null,null,null,null,null,null,"D","|","|",null,"256 GB Eco SSD",null,{"$f":"IF($P$13=2,1,\"\")","v":""},262,"."]
[3,null,null,null,null,null,null,null,null,null,null,null,"F","|","|",null,"240 GB SSD",null,{"$f":"IF($P$13=3,1,\"\")","v":""},512,"."]
[4,null,null,null,null,null,null,null,null,null,null,null,"G","|","|",null,"480 GB SSD",null,{"$f":"IF($P$13=4,1,\"\")","v":""},969,"."]
[5,null,null,null,null,null,null,null,null,null,null,null,"J","|","|",null,"HDD 320GB",null,{"$f":"IF($P$13=5,1,\"\")","v":""},262,"."]
[null,null,null,null,null,null,null,null,null,null,null,null,null,"|","|"]
[null,null,null,null,null,null,null,null,null,null,null,null,null,"|","|",null,"Software Configuration preinstalled (Bundles)"]
[1,null,null,null,null,null," "," "," "," "," "," "," ","A","|",null,"without SIMATIC Software",null,{"$f":"IF($P$14=1,1,\"\")","v":1},0,"."]
[null,null,null,null,null,null," "," "," "," "," "," "," "," ","|"," ",null,null," "," "]
[null,null,null,null,null,null," "," "," "," "," "," "," ",null,"|",null,"Power supply"]
[1,null,null,null,null,null,null,null,null,null,null,null,null,null,0,null,"24V DC Industry power supply",null,{"$f":"IF($P$15=1,1,\"\")","v":1},0,"."]
[2,null,{"$f":"IF(OR($P$8=1),1,0)","v":1},"restrictions with 12\"; not expandable, no AC-Power supply, no DVD, no HDD, not second RS232"," ",null,null,null,null,null,null,null,null,null,1,null,"110/230V AC Industry power with Namur; without power cord (no BIS-certificate)",null,{"$f":"IF($P$15=2,1,\"\")","v":""},40,"."]
[3,null,{"$f":"IF(OR($P$8=1),1,0)","v":1},"restrictions with 12\"; not expandable, no AC-Power supply, no DVD, no HDD, not second RS232"," ",null,null,null,null,null,null,null,null,null,2,null,"110/230V AC Industry power with Namur; with power cord Europe (no BIS-certificate)",null,{"$f":"IF($P$15=3,1,\"\")","v":""},40,"."]
[4,null,{"$f":"IF(OR($P$8=1),1,0)","v":1},"restrictions with 12\"; not expandable, no AC-Power supply, no DVD, no HDD, not second RS232"," ",null,null,null,null,null,null,null,null,null,6,null,"110/230V AC Industry power with Namur; TPM; without power cord (no BIS-certificate)",null,{"$f":"IF($P$15=4,1,\"\")","v":""},105,"."]
[5,null,{"$f":"IF(OR($P$8=1),1,0)","v":1},"restrictions with 12\"; not expandable, no AC-Power supply, no DVD, no HDD, not second RS232"," ",null,null,null,null,null,null,null,null,null,7,null,"110/230V AC Industry power with Namur; TPM; with power cord Europe (no BIS-certificate)",null,{"$f":"IF($P$15=5,1,\"\")","v":""},105,"."]
[6,null,{"$f":"IF(OR($P$8=1),1,0)","v":1},"restrictions with 12\"; not expandable, no AC-Power supply, no DVD, no HDD, not second RS232"," ",null,null,null,null,null,null,null,null,null,8,null,"24V DC  Industry power supply and TPM",null,{"$f":"IF($P$15=6,1,\"\")","v":""},66,"."]
[null,null,null,null," "]
[null,null,null,null,null,null,null,null,null,null,null,null,null,null,null,null,null,null,1,2450,"."]
[]
[null,null,null,null,null,null,null,null,null,null,null,null,null,null,null,null,null,"Total:",null,{"$f":"SUMIF(S18:S99,\"1\",T18:T99)","v":2873}]
[]
[]
[]
["Accessories:"]
["6ES7648-2AK70-0PA0",null,null,null,null,null,null,null,null,null,null,null,null,null,null,null,"Speichererweiterung 8 GB DDR4 2400SDRAM, SODIMM ",null,null,378]
["6ES7648-2AK80-0PA0",null,null,null,null,null,null,null,null,null,null,null,null,null,null,null,"Speichererweiterung 16 GB DDR4 2400SDRAM, SODIMM ",null,null,755]
["6ES7648-2AK70-1PA0",null,null,null,null,null,null,null,null,null,null,null,null,null,null,null,"Speichererweiterung 8 GB DDR4 2400SDRAM, SODIMM with ECC",null,null,591]
["6ES7648-2AK80-1PA0",null,null,null,null,null,null,null,null,null,null,null,null,null,null,null,"Speichererweiterung 16 GB DDR4 2400SDRAM, SODIMM with ECC",null,null,1158]
[]
[null,null,null,null,null,null,null,null,null,null,null,null,null,null,null,null,"Click here\nfor additional SIMATIC IPC accessories."]

{"sheet":"IPC PX-39A (Panel PC)","index":18,"n_rows":84,"n_cols":19,"rows_kept":84,"cut":false,"hidden":false,"merged":[[0,17,3,17]]}
["SIMATIC IPC PX-39A (Panel PC)",null,null,null,null,null,null,null,null,null,null,null,null,null,null,null,{"$f":"$A$5&$B$5&$C$5&$D$5&$E$5&$F$5&$G$5&$H$5&$I$5&$J$5&$K$5&$L$5&$M$5&$N$5&$O$5","v":"6AV7242-1AA00-0AA0"}]
[null,null,null,null,null,null,null,null,null,null,null,null,null,null,null,null,{"$f":"$A$5&$B$5&$C$5&$D$5&$E$5&$F$5&$G$5&$H$5&$I$5&$J$5&$K$5&$L$5&$M$5&$N$5&$O$5","v":"6AV7242-1AA00-0AA0"}]
[null,null,{"$f":"IF(OR(F5=\"#\",G5=\"#\",H5=\"#\",I5=\"#\",J5=\"#\",L5=\"#\",M5=\"#\",N5=\"#\",O5=\"#\"),1,0)","v":0},"Configuration not possible. Mind the combinations of the options",null,null,null,null,null,null,null,null,null,null,null,null,{"$f":"IF(C3,D3,\"\")","v":""}]
[" ",null,null,null,null,8,9,10,11,12,null,13,14,15,16,null," "]
["6AV7",2,4,2,"-",{"$f":"VLOOKUP(P7,A21:Q24,6,TRUE)","v":1},{"$f":"VLOOKUP(P8,A27:Q34,7,TRUE)","v":"A"},{"$f":"VLOOKUP(P9,A37:Q42,8,TRUE)","v":"A"},{"$f":"VLOOKUP(P10,A45:Q47,9,TRUE)","v":0},{"$f":"VLOOKUP(P11,A50:Q52,10,TRUE)","v":"0"},"-",{"$f":"VLOOKUP(P12,A55:Q57,12,FALSE)","v":0},{"$f":"VLOOKUP(P13,A60:Q63,13,TRUE)","v":"A"},{"$f":"VLOOKUP(P14,A66:Q67,14,TRUE)","v":"A"},{"$f":"VLOOKUP(P15,A70:Q72,15,TRUE)","v":0},null,{"$f":" \"SIMATIC IPC PX-39A\" & \" (Panel PC)\"","v":"SIMATIC IPC PX-39A (Panel PC)"},{"$f":"$A$5&$B$5&$C$5&$D$5&$E$5&$F$5&$G$5&$H$5&$I$5&$J$5&$K$5&$L$5&$M$5&$N$5&$O$5","v":"6AV7242-1AA00-0AA0"}]
[null,null,null,"|",null,"|","|","|","|","|",null,"|","|","|","|",1,{"$f":"VLOOKUP(P6,A18:Q18,17,FALSE)","v":"Standard-Device"}]
[null,null,null,"|",null,"|","|","|","|","|",null,"|","|","|","|",1,{"$f":"VLOOKUP(P7,A21:Q24,17,FALSE)","v":"Intel Celeron 6600HLE (2,1 GHz, 2C/2T)"}," "]
[null,null,null,"|",null,"|","|","|","|","|",null,"|","|","|","|",1,{"$f":"VLOOKUP(P8,A27:Q34,17,FALSE)","v":"15\" Multi-Touch (1920 x 1080)"}]
[null,null,null,"|",null,"|","|","|","|","|",null,"|","|","|","|",1,{"$f":"VLOOKUP(P9,A37:Q42,17,FALSE)","v":"4GB"}]
[null,null,null,"|",null,"|","|","|","|","|",null,"|","|","|","|",1,{"$f":"VLOOKUP(P10,A45:Q47,17,FALSE)","v":"without 1st mass-storage"}]
[null,null,null,"|",null,"|","|","|","|","|",null,"|","|","|","|",1,{"$f":"VLOOKUP(P11,A50:Q52,17,FALSE)","v":"without 2nd mass-storage"}]
[null,null,null,"|",null,"|","|","|","|","|",null,"|","|","|","|",1,{"$f":"VLOOKUP(P12,A55:Q57,17,FALSE)","v":"without operating system (Edge-option with OS)"}]
[null,null,null,"|",null,"|","|","|","|","|",null,"|","|","|","|",1,{"$f":"VLOOKUP(P13,A60:Q63,17,FALSE)","v":"without Option 1"}]
[null,null,null,"|",null,"|","|","|","|","|",null,"|","|","|","|",1,{"$f":"VLOOKUP(P14,A66:Q67,17,FALSE)","v":"without USB-Stick (Restore-Image; D&D)"}]
[null,null,null,"|",null,"|","|","|","|","|",null,"|","|","|","|",1,{"$f":"VLOOKUP(P15,A70:Q72,17,FALSE)","v":"24V DC Industry-power supply (Premium, NAU, isolated)"}]
[null,null,null,"|",null,"|","|","|","|","|",null,"|","|","|","|",null," "]
[null,null,null,"|",null,"|","|","|","|","|",null,"|","|","|","|",null,"Device"]
[1,null,null,2,null,"|","|","|","|","|",null,"|","|","|","|",null,"Standard-Device",null,{"$f":"IF($P$6=1,1,\"\")","v":1}]
[null,null,null,null,null,"|","|","|","|","|",null,"|","|","|","|"]
[null,null,null,null,null,"|","|","|","|","|",null,"|","|","|","|",null,"Processor"]
[1,null,null,null,null,1,"|","|","|","|",null,"|","|","|","|",null,"Intel Celeron 6600HLE (2,1 GHz, 2C/2T)",null,{"$f":"IF($P$7=1,1,\"\")","v":1}]
[2,null,null,null,null,3,"|","|","|","|",null,"|","|","|","|",null,"Intel Xeon W-11155MLE (1,8/3,1 GHz, 4C/8T)",null,{"$f":"IF($P$7=2,1,\"\")","v":""}]
[3,null,null,null,null,5,"|","|","|","|",null,"|","|","|","|",null,"Intel Xeon W-11555MLE (1,9/4,4 GHz, 6C/12T)",null,{"$f":"IF($P$7=3,1,\"\")","v":""}]
[4,null,null,null,null,7,"|","|","|","|",null,"|","|","|","|",null,"Intel Xeon W-11865MLE (1,5/4,5 GHz, 8C/16T)",null,{"$f":"IF($P$7=4,1,\"\")","v":""}]
[null,null,null,null,null,null,"|","|","|","|",null,"|","|","|","|"]
[null,null,null,null,null,null,"|","|","|","|",null,"|","|","|","|",null,"Front Panel"]
[1,null,null,null,null,null,"A","|","|","|",null,"|","|","|","|",null,"15\" Multi-Touch (1920 x 1080)",null,{"$f":"IF($P$8=1,1,\"\")","v":1}]
[2,null,null,null,null,null,"B","|","|","|",null,"|","|","|","|",null,"19\" Multi-Touch (1920 x 1080)",null,{"$f":"IF($P$8=2,1,\"\")","v":""}]
[3,null,null,null,null,null,"C","|","|","|",null,"|","|","|","|",null,"22\" Multi-Touch (1920 x 1080)",null,{"$f":"IF($P$8=3,1,\"\")","v":""}]
[4,null,null,null,null,null,"D","|","|","|",null,"|","|","|","|",null,"24\" Multi-Touch (1920 x 1080)",null,{"$f":"IF($P$8=4,1,\"\")","v":""}]
[5,null,null,null,null,null,"L","|","|","|",null,"|","|","|","|",null,"15\" Multi-Touch Neutral (1920 x 1080)",null,{"$f":"IF($P$8=5,1,\"\")","v":""}]
[6,null,null,null,null,null,"M","|","|","|",null,"|","|","|","|",null,"19\" Multi-Touch Neutral (1920 x 1080)",null,{"$f":"IF($P$8=6,1,\"\")","v":""}]
[7,null,null,null,null,null,"N","|","|","|",null,"|","|","|","|",null,"22\" Multi-Touch Neutral (1920 x 1080)",null,{"$f":"IF($P$8=7,1,\"\")","v":""}]
[8,null,null,null,null,null,"P","|","|","|",null,"|","|","|","|",null,"24\" Multi-Touch Neutral (1920 x 1080)",null,{"$f":"IF($P$8=8,1,\"\")","v":""}]
[" ",null,null,null,null,null,null,"|","|","|",null,"|","|","|","|"]
[null,null,null,null,null,null," ","|","|","|",null,"|","|","|","|",null,"RAM"]
[1,null,null,null,null,null,null,"A","|","|",null,"|","|","|","|",null,"4GB",null,{"$f":"IF($P$9=1,1,\"\")","v":1}]
[2,null,null,null,null,null,null,"B","|","|",null,"|","|","|","|",null,"8GB",null,{"$f":"IF($P$9=2,1,\"\")","v":""}]
[3,null,null,null,null,null,null,"C","|","|",null,"|","|","|","|",null,"16GB",null,{"$f":"IF($P$9=3,1,\"\")","v":""}]
[4,null,null,null,null,null,null,"D","|","|",null,"|","|","|","|",null,"32GB",null,{"$f":"IF($P$9=4,1,\"\")","v":""}]
[5,null,null,null,null,null,null,"E","|","|",null,"|","|","|","|",null,"16GB with ECC",null,{"$f":"IF($P$9=5,1,\"\")","v":""}]
[6,null,null,"Arbeitsspeicher mit ECC nur in Verbindung mit Core i7 mit IE/PN (Option \"6\")",".",null,null,"F","|","|",null,"|","|","|","|",null,"32GB with ECC",null,{"$f":"IF($P$9=6,1,\"\")","v":""}]
[null,null,null,null,null,null,null,null,"|","|",null,"|","|","|","|",null," "]
[null,null,null,null,null,null,null,null,"|","|",null,"|","|","|","|",null,"Drive 1 in Simatic IPC Slider (incl. OS)"]
[1,null,null,null,null,null,null,null,0,"|",null,"|","|","|","|",null,"without 1st mass-storage",null,{"$f":"IF($P$10=1,1,\"\")","v":1}]
[2," ",null,null," ",null,null,null,1,"|",null,"|","|","|","|",null,"M.2 SSD 256 GB Eco",null,{"$f":"IF($P$10=2,1,\"\")","v":""}]
[3,null,null,null," ",null,null,null,2,"|",null,"|","|","|","|",null,"M.2 SSD 512 GB Eco",null,{"$f":"IF($P$10=3,1,\"\")","v":""}]
[null,null,null,null,null,null,null,null,null,"|",null,"|","|","|","|"]
[null,null,null,null,null,null,null,null,null,"|",null,"|","|","|","|",null,"Drive 2 in Simatic IPC Slider"]
[1,null,null,null,null,null,null,null,null,{"$f":"IF($P$10<8,\"0\",\"#\")","v":"0"},null,"|","|","|","|",null,"without 2nd mass-storage",null,{"$f":"IF($P$11=1,1,\"\")","v":1}]
[2,null,null,null,null,null,null,null,null,{"$f":"IF($P$10<8,\"1\",\"#\")","v":"1"},null,"|","|","|","|",null,"M.2 SSD 256 GB Eco",null,{"$f":"IF($P$11=2,1,\"\")","v":""}]
[3,null,null,null,null,null,null,null,null,{"$f":"IF(OR($P$10<>8),\"2\",\"#\")","v":"2"},null,"|","|","|","|",null,"M.2 SSD 512 GB Eco",null,{"$f":"IF($P$11=3,1,\"\")","v":""}]
[" ",null,null,null,null,null,null,null,null,null,null,"|","|","|","|"]
[null,null,null,null,null,null,null,null,null,null,null,"|","|","|","|",null,"Software configuration"]
[1,null,null,null,null,null,null,null,null,null,null,0,"|","|","|",null,"without operating system (Edge-option with OS)",null,{"$f":"IF($P$12=1,1,\"\")","v":1}]
[2,null,null,null,null,null,null,null,null,null,null,{"$f":"IF($P$7<>4,\"1\",\"#\")","v":"1"},"|","|","|",null,"Windows 10 Enterprise 2021 LTSC with processors Celeron, W-11155MLE, W-11555MLE",null,{"$f":"IF($P$12=2,1,\"\")","v":""}]
[3,null,null,null,null,null,null,null,null,null,null,{"$f":"IF($P$7=4,\"2\",\"#\")","v":"#"},"|","|","|",null,"Windows 10 Enterprise 2021 LTSC with processor W-11865MLE",null,{"$f":"IF($P$12=3,1,\"\")","v":""}]
[null,null,null,null,null,null,null,null,null,null,null,null,"|","|","|"]
[null,null,null,null,null,null," ",null,null,null,null,null,"|","|","|",null,"Option 1"]
[1,null,null,null,null,null,null,null,null,null," ",null,"A","|","|",null,"without Option 1",null,{"$f":"IF($P$13=1,1,\"\")","v":1}]
[2,null,null,null,null,null,null,null,null,null,null,null,"B","|","|",null,"with 1 x PCIe-Slot",null,{"$f":"IF($P$13=2,1,\"\")","v":""}]
[3,null,null,null,null,null,null,null,null,null,null,null,"C","|","|",null,"with 1 x Com (RS232/485/422)",null,{"$f":"IF($P$13=3,1,\"\")","v":""}]
[4,null,null,null,null,null,null,null,null,null,null,null,"D","|","|",null,"with 1 x PCIe-Slot and 1 x Com (RS232/485/422)",null,{"$f":"IF($P$13=4,1,\"\")","v":""}]
[null,null,null,null,null,null,null,null,null,null,null,null,null,"|","|"]
[null,null,null,null,null,null,null,null,null,null,null,null,null,"|","|",null,"Option 2"]
[1,null,null,null,null,null," "," "," "," "," "," "," ","A","|",null,"without USB-Stick (Restore-Image; D&D)",null,{"$f":"IF($P$14=1,1,\"\")","v":1}]
[2,null,null,null,null,null,null,null,null,null,null,null,null,"B","|",null,"with USB-Stick (Restore-Image; D&D)",null,{"$f":"IF($P$14=2,1,\"\")","v":""}]
[null,null,null,null,null,null," "," "," "," "," "," "," "," ","|"," ",null,null," "]
[null,null,null,null,null,null," "," "," "," "," "," "," ",null,"|",null,"Power Supply"]
[1,null,null,null,null,null,null,null,null,null,null,null,null,null,0,null,"24V DC Industry-power supply (Premium, NAU, isolated)",null,{"$f":"IF($P$15=1,1,\"\")","v":1}]
[2,null,{"$f":"IF(OR($P$8=1),1,0)","v":1},null," ",null,null,null,null,null,null,null,null,null,2,null,"110/230V AC Industrial PS with NAMUR; no power cord",null,{"$f":"IF($P$15=2,1,\"\")","v":""}]
[3,null,1,null," ",null,null,null,null,null,null,null,null,null,3,null,"110/230V AC  Industrial PS with Namur; with power cord Europe",null,{"$f":"IF($P$15=3,1,\"\")","v":""}]
[]
[null,null,null,null,null,null,null,null,null,null,null,null,null,null,null,null,null,null,1]
[]
[null,null,null,null,null,null,null,null,null,null,null,null,null,null,null,null,null,"Total:"]
[]
[]
[]
["Accessories:"]
[]
["6ES7648-0EK00-0GA1",null,null,null,null,null,null,null,null,null,null,null,null,null,null,null,"SIMATIC IPC Slider (long) for M.2 SSD, w/o SSD"]
["6ES7648-0EK10-0GA3",null,null,null,null,null,null,null,null,null,null,null,null,null,null,null,"SIMATIC IPC Slider (long) for M.2 SSD, with 256 GB Eco"]
["6ES7648-0EK20-0GA3",null,null,null,null,null,null,null,null,null,null,null,null,null,null,null,"SIMATIC IPC Slider (long) for M.2 SSD, with 512 GB Eco"]

{"sheet":"ITP1000 (Tablet)","index":19,"n_rows":74,"n_cols":20,"rows_kept":74,"cut":false,"hidden":false,"merged":[]}
["SIMATIC Industrial Tablet PC"]
[null,null,null,null,null,null,null,null,null,null,null,null,{"$f":"IF(P11=11,\"\",IF(P11=12,#REF!,IF(P11=13,#REF!,IF(P11=14,\"\",IF(P11=15,#REF!,IF(P11=16,#REF!,IF(P11=17,#REF!,\"\")))))))","v":""}]
[]
[]
["6AV7",8,8,0,"-",{"$f":"VLOOKUP(P6,A17:P18,6,TRUE)","v":0},{"$f":"VLOOKUP(P7,A21:P28,7,TRUE)","v":"A"},{"$f":"VLOOKUP(P8,A31:P32,8,TRUE)","v":"A"},{"$f":"VLOOKUP(P9,A36:Q39,9,TRUE)","v":0},{"$f":"VLOOKUP(P10,A42:P43,10,TRUE)","v":1},"-",{"$f":"VLOOKUP(P11,A47:P49,12,TRUE)","v":0},{"$f":"VLOOKUP(P12,A53:P58,13,TRUE)","v":"A"},"A",2,null,"SIMATIC ITP1000",{"$f":"$A$5&$B$5&$C$5&$D$5&$E$5&$F$5&$G$5&$H$5&$I$5&$J$5&$K$5&$L$5&$M$5&$N$5&$O$5","v":"6AV7880-0AA01-0AA2"}]
[null,null,null,null,null,"|","|","|","|","|",null,"|","|",null,null,1,{"$f":"VLOOKUP(P6,A17:Q18,17,TRUE)","v":"10\" Multitouch (1.280 x 800) with 8 Function Keys"}]
[null,null,null,null,null,"|","|","|","|","|",null,"|","|",null,null,1,{"$f":"VLOOKUP(P7,A21:Q28,17,TRUE)","v":"without"}]
[null,null,null,null,null,"|","|","|","|","|",null,"|","|",null,null,1,{"$f":"VLOOKUP(P8,A31:Q32,17,TRUE)","v":"256 GB SSD"}]
[null,null,null,null,null,"|","|","|","|","|",null,"|","|",null,null,1,{"$f":"VLOOKUP(P9,A36:Q39,17,TRUE)","v":"without operating system"}]
[null,null,null,null,null,"|","|","|","|","|",null,"|","|",null,null,1,{"$f":"VLOOKUP(P10,A42:Q43,17,TRUE)","v":"Intel Celeron G3902E (2M Cache, 1.60 GHz)"}]
[null,null,null,null,null,"|","|","|","|","|",null,"|","|",null,null,1,{"$f":"VLOOKUP(P11,A47:Q49,17,TRUE)","v":"4 GB DDR4"}]
[null,null,null,null,null,"|","|","|","|","|",null,"|","|",null,null,1,{"$f":"VLOOKUP(P12,A53:Q58,17,TRUE)","v":"110/230V power supply, power cord Europe"}]
[null,null,null,null,null,"|","|","|","|","|",null,"|","|"]
[null,null,null,null,null,"|","|","|","|","|",null,"|","|"]
[null,null,null,null,null,"|","|","|","|","|",null,"|","|"]
[null,null,null,null,null,"|","|","|","|","|",null,"|","|",null,null,null,"Display / Front"]
[1,null,null,null,null,0,"|","|","|","|",null,"|","|",null,null,null,"10\" Multitouch (1.280 x 800) with 8 Function Keys",null,{"$f":"IF($P$6=1,1,\"\")","v":1},"."]
[2,null,null,null,null,2,"|","|","|","|",null,"|","|",null,null,null,"10\" Multitouch (1920 x 1200) with 8 Function Keys",null,{"$f":"IF($P$6=2,1,\"\")","v":""},"."]
[null,null,null,null,null,null,"|","|","|","|",null,"|","|"]
[null,null,null,null,null,null,"|","|","|","|",null,"|","|",null,null,null,"Add-On Functions"]
[1,null,null,null,null,null,"A","|","|","|",null,"|","|",null,null,null,"without",null,{"$f":"IF($P$7=1,1,\"\")","v":1},"."]
[2,null,null,null,null,null,"B","|","|","|",null,"|","|",null,null,null,"Camera backside, 5 Megapixel",null,{"$f":"IF($P$7=2,1,\"\")","v":""},"."]
[3,null,null,null,null,null,"C","|","|","|",null,"|","|",null,null,null,"RFID reader",null,{"$f":"IF($P$7=3,1,\"\")","v":""},"."]
[4,null,null,null,null,null,"D","|","|","|",null,"|","|",null,null,null,"Barcode-Imager (1D/2D) ",null,{"$f":"IF($P$7=4,1,\"\")","v":""},"."]
[5,null,null,null,null,null,"E","|","|","|",null,"|","|",null,null,null,"Camera and RFID",null,{"$f":"IF($P$7=5,1,\"\")","v":""},"."]
[6,null,null,null,null,null,"F","|","|","|",null,"|","|",null,null,null,"Barcode Imager and Camera",null,{"$f":"IF($P$7=6,1,\"\")","v":""},"."]
[7,null,null,null,null,null,"G","|","|","|",null,"|","|",null,null,null,"RFID and Barcode Imager",null,{"$f":"IF($P$7=7,1,\"\")","v":""},"."]
[8,null,null,null,null,null,"H","|","|","|",null,"|","|",null,null,null,"Camera and RFID and Barcode Imager",null,{"$f":"IF($P$7=8,1,\"\")","v":""},"."]
[null,null,null,null,null,null,null,"|","|","|",null,"|","|"]
[null," ",null,null,null,null,null,"|","|","|",null,"|","|",null,null,null,"Mass storage"]
[1,null,null,null,null,null,null,"A","|","|",null,"|","|",null,null,null,"256 GB SSD",null,{"$f":"IF($P$8=1,1,\"\")","v":1},"."]
[2,null,null,null,null,null,null,"B","|","|",null,"|","|",null,null,null,"512 GB SSD",null,{"$f":"IF($P$8=2,1,\"\")","v":""},"."]
[null,null,null,null,null,null,null,null,"|","|",null,"|","|"]
[null,null,null,null,null,null,null,null,"|","|",null,"|","|"]
[null,null,null,null,null,null,null,null,"|","|",null,"|","|",null,null,null,"Operating system"]
[1,null,null,null,null,null,null,null,0,"|",null,"|","|",null,null,null,"without operating system",null,{"$f":"IF($P$9=1,1,\"\")","v":1},"."]
[2,null,null,null,null,null,null,null,1,"|",null,"|","|",null,null,null,"Windows7 Ultimate SP1, 64Bit, MUI (de, en, es, fr, it)",null,{"$f":"IF($P$9=2,1,\"\")","v":""},"."]
[3,null,null,null,null,null,null,null,2,"|",null,"|","|",null,null,null,"Windows 10 Enterprise 2016 LTSB (64Bit)",null,{"$f":"IF($P$9=3,1,\"\")","v":""},"."]
[4,null,null,null,null,null,null,null,3,"|",null,"|","|",null,null,null,"Windows 10 IoT Enterprise 2019 LTSC, 64Bit, MUI (Ger, En, Es, Fr, It)",null,{"$f":"IF($P$9=4,1,\"\")","v":""},"."]
[null,null,null,null,null,null,null,null,null,"|",null,"|","|"]
[null,null,null,null,null,null,null,null,null,"|",null,"|","|",null,null,null,"CPU"]
[1,null,null,null,null,null,null,null,null,1,null,"|","|",null,null,null,"Intel Celeron G3902E (2M Cache, 1.60 GHz)",null,{"$f":"IF($P$10=1,1,\"\")","v":1},"."]
[2,null,null,null,null,null,null,null,null,2,null,"|","|",null,null,null,"Intel Core i5-6442EQ (6M Cache, up to 2.70 GHz)",null,{"$f":"IF($P$10=2,1,\"\")","v":""},"."]
[null,null,null,null,null,null,null,null,null,null,null,"|","|"]
[null,null,null,null,null,null,null,null,null,null,null,"|","|"]
[null,null,null,null,null,null,null,null,null,null,null,"|","|",null,null,null,"Memory (RAM)"]
[1,null,null,null,null,null,null,null,null,null,null,0,"|",null,null,null,"4 GB DDR4",null,{"$f":"IF($P$11=1,1,\"\")","v":1},"."]
[2,null,null,null,null,{"$f":"IF(OR(AND($P$11=2,$P$12=1),AND($P$11=2,$P$12=4)),1,0)","v":0},"WES7E with SSD, HDD or CFast from 8 GB"," ",null,null,null,1,"|",null,null,null,"8 GB DDR4",null,{"$f":"IF($P$11=2,1,\"\")","v":""}]
[3,null,null,null,null,null,null,null,null,null,null,2,"|",null,null,null,"16 GB DDR4",null,{"$f":"IF($P$11=3,1,\"\")","v":""}]
[null,null,null,null,null,null,null,null,null,null,null,null,"|"]
[null,null,null,null,null,null,null,null,null,null,null,null,"|"]
[null,null,null,null,null,null,null,null,null,null,null,null,"|",null,null,null,"Country specific Accessories"]
[1,null,null,null,null,null,null,null,null,null,null,null,"A",null,null,null,"110/230V power supply, power cord Europe",null,1,"."]
[2,null,null,null,null,null,null,null,null,null,null,null,"B",null,null,null,"110/230V power supply, power cord UK",null,{"$f":"IF($P$12=2,\"X\",\"\")","v":""},"."]
[3,null,null,null,null,null,null,null,null,null,null,null,"C",null,null,null,"110/230V power supply, power cord CH",null,{"$f":"IF($P$12=3,\"X\",\"\")","v":""},"."]
[4,null,null,null,null,null,null,null,null,null,null,null,"D",null,null,null,"110/230V power supply, power cord USA",null,{"$f":"IF($P$12=4,\"X\",\"\")","v":""},"."]
[5,null,null,null,null,null,null,null,null,null,null,null,"E",null,null,null,"110/230V power supply, power cord Italy",null,{"$f":"IF($P$12=5,\"X\",\"\")","v":""},"."]
[6,null,null,null,null,null,null,null,null,null,null,null,"F",null,null,null,"110/230V power supply, power cord China, approval for China (CCC)",null,{"$f":"IF($P$12=6,\"X\",\"\")","v":""},"."]
[]
[]
["6AV7",8,8,0," - ",{"$f":"F5","v":0},"A","A",0,1,"-",0,"A","A",2,null,null,"Total:",null,"."]
[]
[]
[]
[]
["Accessories:"]
["Order number",null,null,null,null,null,null,null,null,null,null,null,null,null,null,null,"Description"]
["6AV7676-1AB00-0AA0",null,null,null,null,null,null,null,null,null,null,null,null,null,null,null,"Docking Station",null,null,"."]
["6AV6881-0AW11-3AA0",null,null,null,null,null,null,null,null,null,null,null,null,null,null,null,"Transport bag basis, with carrying strap and integrated stand-up, expandable",null,null,"."]
["6AV6881-0AW12-3AA0",null,null,null,null,null,null,null,null,null,null,null,null,null,null,null,"Accessory bag small, extension for ITP transport bag basis",null,null,"."]
["6AV6881-0AW13-3AA0",null,null,null,null,null,null,null,null,null,null,null,null,null,null,null,"Accessory bag medium, extension for ITP transport bag basis",null,null,"."]
["6AV6881-0AW11-2AA0",null,null,null,null,null,null,null,null,null,null,null,null,null,null,null,"Tablet Sleeve, universal bag for Laptops and Tablets",null,null,"."]
["6AV6881-0AJ21-0AA0",null,null,null,null,null,null,null,null,null,null,null,null,null,null,null,"Protective film 10\" widescreen 5 pcs",null,null,"."]
["6AV7676-3AA20-0AA0",null,null,null,null,null,null,null,null,null,null,null,null,null,null,null,"Accessory: battery pack for ITP1000 (6 months warranty)",null,null,"."]

{"sheet":"IPC477E PRO (Panel PC)","index":20,"n_rows":112,"n_cols":20,"rows_kept":112,"cut":false,"hidden":false,"merged":[[0,17,3,17]]}
["SIMATIC IPC477E PRO (Panel PC)",null,null,null,null,null,null,null,null,null,null,null,null,null,null,null," "]
[null,null,null,null,null,null,null,null,null,null,null,null,null,null,null,null,{"$f":"$A$5&$B$5&$C$5&$D$5&$E$5&$F$5&$G$5&$H$5&$I$5&$J$5&$K$5&$L$5&$M$5&$N$5&$O$5","v":"6AV7251-1BA00-0AA0"}]
[null,null,{"$f":"IF(OR(F5=\"#\",G5=\"#\",H5=\"#\",I5=\"#\",J5=\"#\",L5=\"#\",M5=\"#\",N5=\"#\",O5=\"#\"),1,0)","v":0},"Configuration not possible. Remarks below.",null,null,null,null,null,null,null,null,null,null,null," ",{"$f":"IF(C3,D3,\"\")","v":""}]
[" "]
["6AV7",2,5,1,"-",{"$f":"VLOOKUP(P7,A19:Q22,6,TRUE)","v":1},{"$f":"VLOOKUP(P8,A25:Q46,7,TRUE)","v":"B"},{"$f":"VLOOKUP(P9,A49:Q58,8,TRUE)","v":"A"},{"$f":"VLOOKUP(P10,A61:Q64,9,TRUE)","v":0},{"$f":"VLOOKUP(P11,A67:Q75,10,TRUE)","v":0},"-",{"$f":"VLOOKUP(P12,A78:Q83,12,FALSE)","v":0},{"$f":"VLOOKUP(P13,A86:Q89,13,TRUE)","v":"A"},{"$f":"VLOOKUP(P14,A92:Q92,14,TRUE)","v":"A"},{"$f":"VLOOKUP(P15,A96:Q97,15,TRUE)","v":0},null,{"$f":" \"SIMATIC IPC477E PRO\" & \" (Panel PC)\"","v":"SIMATIC IPC477E PRO (Panel PC)"},{"$f":"T(Q2)","v":"6AV7251-1BA00-0AA0"}]
[null,null,null,null,null,"|","|","|","|","|",null,"|","|","|","|",null,"IP65 fully enclosed device"]
[null,null,null,null,null,"|","|","|","|","|",null,"|","|","|","|",1,{"$f":"VLOOKUP(P7,A19:Q22,17,FALSE)","v":"Celeron G3902E; 3x Gigabit Ethernet (IE/PN)"}]
[null,null,null,null,null,"|","|","|","|","|",null,"|","|","|","|",1,{"$f":"VLOOKUP(P8,P25:Q46,2,FALSE)","v":"15\" Multi-Touch (1366 x 768)  for support arm (not expandable, flange above)"}]
[null,null,null,null,null,"|","|","|","|","|",null,"|","|","|","|",1,{"$f":"VLOOKUP(P9,P49:Q58,2,FALSE)","v":"4GB"}]
[null,null,null,null,null,"|","|","|","|","|",null,"|","|","|","|",1,{"$f":"VLOOKUP(P10,P61:Q64,2,FALSE)","v":"no RS232/485,  without PCIe"}]
[null,null,null,null,null,"|","|","|","|","|",null,"|","|","|","|",1,{"$f":"VLOOKUP(P11,A67:Q75,17,FALSE)","v":"without Operating System"}]
[null,null,null,null,null,"|","|","|","|","|",null,"|","|","|","|",1,{"$f":"VLOOKUP(P12,P78:Q83,2,FALSE)","v":"without external mass storage"}]
[null,null,null,null,null,"|","|","|","|","|",null,"|","|","|","|",1,{"$f":"VLOOKUP(P13,P86:Q89,2,FALSE)","v":"without internal mass storage"}]
[null,null,null,null,null,"|","|","|","|","|",null,"|","|","|","|",1,{"$f":"VLOOKUP(P14,P92:Q92,2,FALSE)","v":"without SIMATIC software"}]
[null,null,null,null,null,"|","|","|","|","|",null,"|","|","|","|",1,{"$f":"VLOOKUP(P15,P96:Q97,2,FALSE)","v":"24V DC Industry power supply"}]
[null,null,null,null,null,"|","|","|","|","|",null,"|","|","|","|"]
[null,null,null,null,null,"|","|","|","|","|",null,"|","|","|","|"]
[null,null,null,null,null,"|","|","|","|","|",null,"|","|","|","|",null,"Processor"]
[1,null,null,null,null,1,"|","|","|","|",null,"|","|","|","|",null,"Celeron G3902E; 3x Gigabit Ethernet (IE/PN)"," ",{"$f":"IF($P$7=1,1,\"\")","v":1},"."]
[2,null,null,null,null,3,"|","|","|","|",null,"|","|","|","|",null,"Core i3-6102E; 3x Gigabit Ethernet (IE/PN)",null,{"$f":"IF($P$7=2,1,\"\")","v":""},"."]
[3,null,null,null,null,5,"|","|","|","|",null,"|","|","|","|",null,"Core i5-6442EQ; 3x Gigabit Ethernet (IE/PN) (Consigliato per SW Controller)"," ",{"$f":"IF($P$7=3,1,\"\")","v":""},"."]
[4,null,null," ",null,7,"|","|","|","|",null,"|","|","|","|",null,"XEON E3-1505L; 3x Gigabit Ethernet (IE/PN) (Consigliato per SW Controller)"," ",{"$f":"IF($P$7=4,1,\"\")","v":""},"."]
[null,null,null,null,null,null,"|","|","|","|",null,"|","|","|","|",null," "]
[null,null,null,null,null,null,"|","|","|","|",null,"|","|","|","|",null,"Frontpanel"]
[1,null,null,null,null,null,"B","|","|","|",null,"|","|","|","|",1,"15\" Multi-Touch (1366 x 768)  for support arm (not expandable, flange above)",null,{"$f":"IF($P$8=1,1,\"\")","v":1},"."]
[2,null,null,null,null,null,"C","|","|","|",null,"|","|","|","|",2,"15\" Multi-Touch (1366 x 768) for pedestal mounting (expandable, flange below)",null,{"$f":"IF($P$8=2,1,\"\")","v":""},"."]
[3,null,null,null,null,null,"D","|","|","|",null,"|","|","|","|",3,"15\" Multi-Touch (1366 x 768) for support arm (expandable, round tube)",null,{"$f":"IF($P$8=3,1,\"\")","v":""},"."]
[4,null,null,null,null,null,"E","|","|","|",null,"|","|","|","|",4,"19\" Multi-Touch (1366 x 768)  for support arm (not expandable, flange above)",null,{"$f":"IF($P$8=4,1,\"\")","v":""},"."]
[5,null,{"$f":"IF(OR($P$11=1,$P$11=3,$P$11=4),1,0)","v":1},"Multitouch only with Windows7 or WES7P"," ",null,"F","|","|","|",null,"|","|","|","|",5,"19\" Multi-Touch (1366 x 768) for pedestal mounting (expandable, flange below)",null,{"$f":"IF($P$8=5,1,\"\")","v":""},"."]
[6,null,{"$f":"IF(OR($P$11=1,$P$11=3,$P$11=4),1,0)","v":1},null," ",null,"G","|","|","|",null,"|","|","|","|",6,"19\" Multi-Touch (1366 x 768) for support arm (expandable, round tube)",null,{"$f":"IF($P$8=6,1,\"\")","v":""},"."]
[7,null,null,null,null,null,"H","|","|","|",null,"|","|","|","|",7,"22\" Multi-Touch (1920 x 1080)  for support arm (not expandable, flange above)",null,{"$f":"IF($P$8=7,1,\"\")","v":""},"."]
[8,null,{"$f":"IF(OR($P$11=1,$P$11=3,$P$11=4),1,0)","v":1},"HMI-Ex"," ",null,"J","|","|","|",null,"|","|","|","|",8,"22\" Multi-Touch (1920 x 1080) for pedestal mounting (expandable, flange below)",null,{"$f":"IF($P$8=8,1,\"\")","v":""},"."]
[9,null,1,null," ",null,"K","|","|","|",null,"|","|","|","|",9,"22\" Multi-Touch (1920 x 1080) for support arm (expandable, round tube)",null,{"$f":"IF($P$8=9,1,\"\")","v":""},"."]
[10,null,1,null," ",null,"L","|","|","|",null,"|","|","|","|",10,"15\" MT Neutral (1366 x 768)  for support arm (not expandable, flange above)",null,{"$f":"IF($P$8=10,1,\"\")","v":""},"."]
[11,null,1,null," ",null,"M","|","|","|",null,"|","|","|","|",11,"15\" MT Neutral (1366 x 768) for pedestal mounting (expandable, flange below)",null,{"$f":"IF($P$8=11,1,\"\")","v":""},"."]
[12,null,1,null," ",null,"N","|","|","|",null,"|","|","|","|",12,"15\" MT Neutral (1366 x 768) for support arm (expandable, round tube)",null,{"$f":"IF($P$8=12,1,\"\")","v":""},"."]
[13,null,1,null," ",null,"P","|","|","|",null,"|","|","|","|",13,"19\" MT Neutral (1366 x 768)  for support arm (not expandable, flange above)",null,{"$f":"IF($P$8=13,1,\"\")","v":""},"."]
[14,null,1,null," ",null,"Q","|","|","|",null,"|","|","|","|",14,"19\" MT Neutral (1366 x 768) for pedestal mounting (expandable, flange below)",null,{"$f":"IF($P$8=14,1,\"\")","v":""},"."]
[15,null,1,null," ",null,"R","|","|","|",null,"|","|","|","|",15,"19\" MT Neutral (1366 x 768) for support arm (expandable, round tube)",null,{"$f":"IF($P$8=15,1,\"\")","v":""},"."]
[16,null,1,null," ",null,"S","|","|","|",null,"|","|","|","|",16,"22\" MT Neutral (1920 x 1080)  for support arm (not expandable, flange above)",null,{"$f":"IF($P$8=16,1,\"\")","v":""},"."]
[17,null,1,null," ",null,"T","|","|","|",null,"|","|","|","|",17,"22\" Multi-Touch (1920 x 1080) for pedestal mounting (expandable, flange below)",null,{"$f":"IF($P$8=17,1,\"\")","v":""},"."]
[18,null,1,null," ",null,"U","|","|","|",null,"|","|","|","|",18,"22\" MT Neutral (1920 x 1080) for support arm (expandable, round tube)",null,{"$f":"IF($P$8=18,1,\"\")","v":""},"."]
[19,null,1,null," ",null,"V","|","|","|",null,"|","|","|","|",19,"19\" MT (1920 x 1080), for pedestal mounting (expandable, flange below), No Ex-certificate",null,{"$f":"IF($P$8=19,1,\"\")","v":""},"."]
[20,null,1,null," ",null,"W","|","|","|",null,"|","|","|","|",20,"19\" MT (1920 x 1080), for support arm (expandable, round tube), No Ex-certificate",null,{"$f":"IF($P$8=20,1,\"\")","v":""},"."]
[21,null,1,null," ",null,"X","|","|","|",null,"|","|","|","|",21,"24\" MT (1920 x 1080),  for pedestal mounting (expandable, flange below), No marine-certificate",null,{"$f":"IF($P$8=21,1,\"\")","v":""},"."]
[22,null,1,null," ",null,"Y","|","|","|",null,"|","|","|","|",22,"24\" MT (1920 x 1080), for support arm (expandable, round tube), No marine-certificate",null,{"$f":"IF($P$8=22,1,\"\")","v":""},"."]
[null,null,null,null,null,null,null,"|","|","|",null,"|","|","|","|",null," "]
[null,null,null,null,null,null," ","|","|","|",null,"|","|","|","|",null,"RAM/NVRAM/ECC"]
[1,null,null,null,null,null,null,"A","|","|",null,"|","|","|","|",1,"4GB",null,{"$f":"IF($P$9=1,1,\"\")","v":1},"."]
[2,null,null,null,null,null,null,"B","|","|",null,"|","|","|","|",2,"8GB",null,{"$f":"IF($P$9=2,1,\"\")","v":""},"."]
[3,null,null,null,null,null,null,"C","|","|",null,"|","|","|","|",3,"16GB",null,{"$f":"IF($P$9=3,1,\"\")","v":""},"."]
[4,null,null,null,null,null,null,{"$f":"IF($P$7<>3,\"D\",\"#\")","v":"D"},"|","|",null,"|","|","|","|",4,"8GB with ECC",null,{"$f":"IF($P$9=4,1,\"\")","v":""},"."]
[5,null,null,null,null,null,null,{"$f":"IF($P$7<>3,\"E\",\"#\")","v":"E"},"|","|",null,"|","|","|","|",5,"16GB with ECC",null,{"$f":"IF($P$9=5,1,\"\")","v":""},"."]
[6,null,null,null,null,null,null,"F","|","|",null,"|","|","|","|",6,"4GB and NVRAM (Necessario per SW Controller)",null,{"$f":"IF($P$9=6,1,\"\")","v":""},"."]
[7,null,null,null,null,null,null,"G","|","|",null,"|","|","|","|",7,"8GB and NVRAM (Necessario per SW Controller)",null,{"$f":"IF($P$9=7,1,\"\")","v":""},"."]
[8,null,null,null,null,null,null,"H","|","|",null,"|","|","|","|",8,"16GB and NVRAM (Necessario per SW Controller)",null,{"$f":"IF($P$9=8,1,\"\")","v":""},"."]
[9,null,null,null,null,null,null,{"$f":"IF($P$7<>3,\"J\",\"#\")","v":"J"},"|","|",null,"|","|","|","|",9,"8GB with ECC and NVRAM (Necessario per SW Controller)",null,{"$f":"IF($P$9=9,1,\"\")","v":""},"."]
[10,null,null,null,null,null,null,{"$f":"IF($P$7<>3,\"K\",\"#\")","v":"K"},"|","|",null,"|","|","|","|",10,"16GB with ECC and NVRAM (Necessario per SW Controller)",null,{"$f":"IF($P$9=10,1,\"\")","v":""},"."]
[null,null,null,null,null,null,null,null,"|","|",null,"|","|","|","|",null," "]
[null,null,null,null,null,null,null,null,"|","|",null,"|","|","|","|",null,"Expandability/Interface"]
[1,null,0,null,null,null,null,null,0,"|",null,"|","|","|","|",1,"no RS232/485,  without PCIe",null,{"$f":"IF($P$10=1,1,\"\")","v":1},"."]
[2,null,0,null,null,null,null,null,3,"|",null,"|","|","|","|",2,"two RS232/RS485 without PCIe",null,{"$f":"IF($P$10=2,1,\"\")","v":""},"."]
[3,null,0,null,null,null,null,null,{"$f":"IF(OR(($P$8=19),($P$8=20)),\"#\",\"5\")","v":"5"},"|",null,"|","|","|","|",3,"no RS232 without PCIe with ATEX/IECEx Cat 3G Zone 2 / cULus Class I Div. 2",null,{"$f":"IF($P$10=3,1,\"\")","v":""},"."]
[4,null,0,null,null,null,null,null,{"$f":"IF(OR(($P$8=19),($P$8=20)),\"#\",\"6\")","v":"6"},"|",null,"|","|","|","|",4,"two RS232 without PCIe with ATEX/IECEx Cat 3G Zone 2 / cULus Class I Div. 2",null,{"$f":"IF($P$10=4,1,\"\")","v":""},"."]
[null,null,null,null,null,null,null,null,null,"|",null,"|","|","|","|",null," "]
[null,null,null,null,null,null,null,null,null,"|",null,"|","|","|","|",null,"Operating system"]
[1,null,null,null,null,null,null,null,null,0,null,"|","|","|","|",1,"without Operating System",null,{"$f":"IF($P$11=1,1,\"\")","v":1},"."]
[2,null,null,null,null,null,null,null,null,1,null,"|","|","|","|",2,"Windows Embedded Standard 7 SP1, English, 32Bit",null,{"$f":"IF($P$11=2,1,\"\")","v":""},"."]
[3,null,null,null,null,null,null,null,null,2,null,"|","|","|","|",3,"Windows Embedded Standard 7 SP1, English, 64Bit",null,{"$f":"IF($P$11=3,1,\"\")","v":""},"."]
[4,null,{"$f":"IF(OR($P$13<3,$P$13=1,$P$13=2,$P$13=8,$P$13=9,$P$13=12)*OR($P$12<3,$P$12>5),1,0)","v":1},null," ",null,null,null,null,3,null,"|","|","|","|",4,"Windows Embedded Standard 7 P SP1, MUI, 64Bit, Multitouch",null,{"$f":"IF($P$11=4,1,\"\")","v":""},"."]
[5,null,{"$f":"IF(OR($P$13<3,$P$13=1,$P$13=2,$P$13=8,$P$13=9,$P$13=12)*OR($P$12<3,$P$12>5),1,0)","v":1},null,null,null,null,null,null,4,null,"|","|","|","|",5,"Windows7 Ultimate SP1, 64Bit, MUI (En, Ger, Fr, It, Sp)",null,{"$f":"IF($P$11=5,1,\"\")","v":""},"."]
[6,null,null,null,null,null,null,null,null,{"$f":"IF($P$7<>4,\"5\",\"#\")","v":"5"},null,"|","|","|","|",6,"Windows 10 IoT Enterprise 2019 LTSC (64Bit) for Processors Celeron, i3 and i5 (Consigliato)",null,{"$f":"IF($P$11=6,1,\"\")","v":""},"."]
[7,null,null,null,null,null,null,null,null,{"$f":"IF($P$7=4,\"6\",\"#\")","v":"#"},null,"|","|","|","|",7,"Windows 10 IoT Enterprise 2019 LTSC (64Bit) for Processor Xeon (Consigliato)",null,{"$f":"IF($P$11=7,1,\"\")","v":""},"."]
[8,null,{"$f":"IF(OR($P$13<6,$P$13=9),1,0)","v":1},null,null,null,null,null,null,{"$f":"IF($P$7<>4,\"7\",\"#\")","v":"7"},null,"|","|","|","|",8,"Windows 10 Enterprise 2016 LTSB (64Bit) for Celeron, I3 and I5",null,{"$f":"IF($P$11=8,1,\"\")","v":""},"."]
[9,null,{"$f":"IF(OR($P$13<6,$P$13=9),1,0)","v":1},null,null,null,null,null,null,{"$f":"IF($P$7=4,\"8\",\"#\")","v":"#"},null,"|","|","|","|",9,"Windows 10 Enterprise 2016 LTSB (64Bit) for Xeon",null,{"$f":"IF($P$11=9,1,\"\")","v":""},"."]
[null,null,null,null,null,null,null,null,null,null,null,"|","|","|","|",null," "]
[null,null,null,null,null,null,null,null,null,null,null,"|","|","|","|",null,"External mass memory"]
[1,null,null,null,null,null,null,null,null,null,null,0,"|","|","|",1,"without external mass storage",null,{"$f":"IF($P$12=1,1,\"\")","v":1},"."]
[2,null,null,null,null,null,null,null,null,null,null,1,"|","|","|",2,"CFAST 2GB, without Operating system",null,{"$f":"IF($P$12=2,1,\"\")","v":""},"."]
[3,null,null,"_",null,null,null,null,null,null,null,2,"|","|","|",3,"CFAST 4GB, without Operating system",null,{"$f":"IF($P$12=3,1,\"\")","v":""},"."]
[4,null,null,null,null,null,null,null,null,null,null,3,"|","|","|",4,"CFAST 8GB (only optional with operating system/SW, if no internal mass storage or HDD)",null,{"$f":"IF($P$12=4,1,\"\")","v":""},"."]
[5,null,null,null,null,null,null,null,null,null,null,4,"|","|","|",5,"CFAST 16GB (only optional with operating system/SW, if no internal mass storage or HDD)",null,{"$f":"IF($P$12=5,1,\"\")","v":""},"."]
[6,null,{"$f":"IF(OR($P$8=1,$P$13=9,$P$13=10,$P$13=11,$P$13=12,AND($P$12=6,$P$13=9)),1,0)","v":1},null,null,null,null,null,null,null,null,5,"|","|","|",6,"CFAST 128GB (only optional with operating system/SW, if no internal mass storage)",null,{"$f":"IF($P$12=6,1,\"\")","v":""},"."]
[null,null,null,null,null,null,null,null,null,null,null,null,"|","|","|",null," "]
[null,null,null,null,null,null," ",null,null,null,null,null,"|","|","|",null,"Internal mass storage"]
[1,null,null,null,null,null,null,null,null,null," ",null,{"$f":"IF(OR(AND($P$11=2,$P$12>3),AND($P$11=3,$P$12>4),AND($P$11=4,$P$12>4),AND($P$11>5,$P$12=6),$P$11=1),\"A\",\"#\")","v":"A"},"|","|",1,"without internal mass storage",null,{"$f":"IF($P$13=1,1,\"\")","v":1},"."]
[2,null,null,null,null,null,null,null,null,null,null,null,"D","|","|",2,"256 GB Eco SSD",null,{"$f":"IF($P$13=2,1,\"\")","v":""},"."]
[3,null,null,null,null,null,null,null,null,null,null,null,"F","|","|",3,"240 GB SSD (Consigliato per SW Controller)",null,{"$f":"IF($P$13=3,1,\"\")","v":""},"."]
[4,null,null,null,null,null,null,null,null,null,null,null,"G","|","|",4,"480 GB SSD (Consigliato per SW Controller)",null,{"$f":"IF($P$13=4,1,\"\")","v":""}]
[null,null,null,null,null,null,null,null,null,null,null,null,null,"|","|",null," "]
[null,null,null,null,null,null,null,null,null,null,null,null,null,"|","|",null,"SIMATIC software pre-installed (Bundles)"]
[1,null,null,null,null,null," "," "," "," "," "," "," ","A","|",1,"without SIMATIC software",null,{"$f":"IF($P$14=1,1,\"\")","v":1}]
[null,null,null,null,null,null,null,null,null,null,null,null,null,null,"|",null," "]
[" ",null,null,null,null,null," "," "," "," "," "," "," "," ","|"," "," ",null," "]
[null,null,null,null,null,null," "," "," "," "," "," "," ",null,"|",null,"Power supply"]
[1,null,null,null,null,null,null,null,null,null,null,null,null,null,0,1,"24V DC Industry power supply",null,{"$f":"IF($P$15=1,1,\"\")","v":1}]
[2,null,{"$f":"IF($P$15=9,1,0)","v":0},"IPCs with TPM (Trusted Platform Module) only with Win 7; Option is not sold to China and Russia."," ",null,null,null,null,null,null,null,null,null,8,2,"24V DC  Industry power supply and TPM",null,{"$f":"IF($P$15=2,1,\"\")","v":""}]
[null,null,null,null," "]
[null,null,null,null,null,null,null,null,null,null,null,null,null,null,null,null,null,null,1]
[null,null,null,null,null,null,null,null,null,null,null,null,null,null,null,null,"base unit "]
[null,null,null,null,null,null,null,null,null,null,null,null,null,null,null,null,null,"Total:"]
[]
["Accessories:"]
[]
["6ES7648-2AK70-0PA0",null,null,null,null,null,null,null,null,null,null,null,null,null,null,null,"Modulo 8 GB DDR4 2400SDRAM, SODIMM "]
["6ES7648-2AK80-0PA0",null,null,null,null,null,null,null,null,null,null,null,null,null,null,null,"Modulo 16 GB DDR4 2400SDRAM, SODIMM "]
["6ES7648-2AK70-1PA0",null,null,null,null,null,null,null,null,null,null,null,null,null,null,null,"Modulo 8 GB DDR4 2400SDRAM, SODIMM with ECC"]
["6ES7648-2AK80-1PA0",null,null,null,null,null,null,null,null,null,null,null,null,null,null,null,"Modulo 16 GB DDR4 2400SDRAM, SODIMM with ECC"]
[]
[null,null,null,null,null,null,null,null,null,null,null,null,null,null,null,null,"Componenti per PC PRO"]
[]
[null,null,null,null,null,null,null,null,null,null,null,null,null,null,null,null,"Click here\nfor additional SIMATIC IPC accessories."]

{"sheet":"IPC677E (Panel PC)","index":21,"n_rows":97,"n_cols":20,"rows_kept":97,"cut":false,"hidden":false,"merged":[]}
["SIMATIC IPC677E"]
[null,null,null,null,null,null,null,null,null,null,null,null,null,null,null,null,{"$f":"IF(E47,F47,\"\")&IF(E64,F64,\"\")&IF(E65,F65,\"\")&IF(E66,F66,\"\")&IF(E67,F67,\"\")","v":""}]
[]
[]
["6AV7",2,6,1,"-",{"$f":"INDEX(F22:F24,P6)","v":0},{"$f":"INDEX(G27:G32,P7)","v":"A"},{"$f":"INDEX(H35:H47,P8)","v":"A"},{"$f":"INDEX(I50:I54,P9)","v":0},{"$f":"INDEX(J57:J61,P10)","v":0},"-",{"$f":"INDEX(L64:L68,P11)","v":8},{"$f":"INDEX(M71:M75,P12)","v":"A"},{"$f":"INDEX(N78:N80,P13)","v":"A"},{"$f":"INDEX(O83:O85,P14)","v":0},null,"SIMATIC IPC677E (Panel PC)",{"$f":"A5&B5&C5&D5&E5&F5&G5&H5&I5&J5&K5&L5&M5&N5&O5","v":"6AV7261-0AA00-8AA0"}]
[null,null,null,null,null,"|","|","|","|","|",null,"|","|","|","|",1,{"$f":"INDEX(Q22:Q24,P6)","v":"19\" Multitouch (1920 x 1080)"}]
[null,null,null,null,null,"|","|","|","|","|",null,"|","|","|","|",1,{"$f":"INDEX(Q27:Q32,P7)","v":"Celeron G4900 (2C/2T, 3.1GHz, 2MB Cache; VT-d);"}]
[null,null,null,null,null,"|","|","|","|","|",null,"|","|","|","|",1,{"$f":"INDEX(Q35:Q47,P8)","v":"HDD 2.5\" SATA 320 GB internal;"}]
[null,null,null,null,null,"|","|","|","|","|",null,"|","|","|","|",1,{"$f":"INDEX(Q50:Q54,P9)","v":"4 GB DDR4-2666 (1x4);"}]
[null,null,null,null,null,"|","|","|","|","|",null,"|","|","|","|",1,{"$f":"INDEX(Q57:Q61,P10)","v":"DC 24V industrial power supply;"}]
[null,null,null,null,null,"|","|","|","|","|",null,"|","|","|","|",5,{"$f":"INDEX(Q64:Q68,P11)","v":"Without operating system;"}]
[null,null,null,null,null,"|","|","|","|","|",null,"|","|","|","|",1,{"$f":"INDEX(Q71:Q75,P12)","v":"Without extension (SW);"}]
[null,null,null,null,null,"|","|","|","|","|",null,"|","|","|","|",1,{"$f":"INDEX(Q78:Q80,P13)","v":"Without extension (HW);"}]
[null,null,null,null,null,"|","|","|","|","|",null,"|","|","|","|",1,{"$f":"INDEX(Q83:Q85,P14)","v":"2x PCI;"}]
[null,null,null,null,null,"|","|","|","|","|",null,"|","|","|","|",null,"UHD Graphics on board; 2x DP; 1x DVI-D;"]
[null,null,null,null,null,"|","|","|","|","|",null,"|","|","|","|",null,"3x Gigabit Ethernet (IE/PN) RJ45;"]
[null,null,null,null,null,"|","|","|","|","|",null,"|","|","|","|",null,"6x USB 3.1 Gen.2; 1x serial (COM1);"]
[null,null,null,null,null,"|","|","|","|","|",null,"|","|","|","|",null,"RAID-Controller on board;"]
[null,null,null,null,null,"|","|","|","|","|",null,"|","|","|","|",null,"Watchdog; Temperature/Fan monitoring; "]
[null,null,null,null,null,"|","|","|","|","|",null,"|","|","|","|"]
[null,null,null,null,null,"|","|","|","|","|",null,"|","|","|","|",null,"Front Panel"]
[null,null,null,null,null,0,"|","|","|","|",null,"|","|","|","|",null,"19\" Multitouch (1920 x 1080)",null,{"$f":"IF($P$6=1,\"X\",\"\")","v":"X"},"."]
[null,null,null,null,null,1,"|","|","|","|",null,"|","|","|","|",null,"22\" Multitouch (1920 x 1080)",null,{"$f":"IF($P$6=2,\"X\",\"\")","v":""},"."]
[null,null,null,null,null,2,"|","|","|","|",null,"|","|","|","|",null,"24\" Multitouch (1920 x 1080)",null,{"$f":"IF($P$6=3,\"X\",\"\")","v":""},"."]
[null,null,null,null,null,null,"|","|","|","|",null,"|","|","|","|"]
[null,null,null,null,null,null,"|","|","|","|",null,"|","|","|","|",null,"Processor"]
[null,null,null,null,null,null,"A","|","|","|",null,"|","|","|","|",null,"Celeron G4900 (2C/2T, 3.1GHz, 2MB Cache; VT-d);",null,{"$f":"IF($P$7=1,\"X\",\"\")","v":"X"},"."]
[null,null,null,null,null,null,"B","|","|","|",null,"|","|","|","|",null,"Celeron G4900 (2C/2T, 3.1GHz, 2MB Cache; VT-d); NVRAM;",null,{"$f":"IF($P$7=2,\"X\",\"\")","v":""},"."]
[null,null,null,null,null,null,"C","|","|","|",null,"|","|","|","|",null,"Core i3-8100 (4C/4T, 3.6GHz, 6MB Cache, VT-d);",null,{"$f":"IF($P$7=3,\"X\",\"\")","v":""},"."]
[null,null,null,null,null,null,"D","|","|","|",null,"|","|","|","|",null,"Core i3-8100 (4C/4T, 3.6GHz, 6MB Cache, VT-d); NVRAM; (Consigliato per SW Controller)",null,{"$f":"IF($P$7=4,\"X\",\"\")","v":""},"."]
[null,null,null,null,null,null,"G","|","|","|",null,"|","|","|","|",null,"Core i7-8700 (6C/12T, 3.2(4.6)GHz, 12MB Cache, VT-d, AMT);",null,{"$f":"IF($P$7=5,\"X\",\"\")","v":""},"."]
[null,null,null,null,null,null,"H","|","|","|",null,"|","|","|","|",null,"Core i7-8700 (6C/12T, 3.2(4.6)GHz, 12MB Cache, VT-d, AMT); NVRAM; (Consigliato per SW Controll",null,{"$f":"IF($P$7=6,\"X\",\"\")","v":""},"."]
[null,null,null,null,null,null,null,"|","|","|",null,"|","|","|","|"]
[null," ",null,null,null,null,null,"|","|","|",null,"|","|","|","|",null,"Drive"]
[null,null,null,null,null,null,null,"A","|","|",null,"|","|","|","|",null,"HDD 2.5\" SATA 320 GB internal;",null,{"$f":"IF($P$8=1,\"X\",\"\")","v":"X"},"."]
[null,null,null,null,null,null,null,"C","|","|",null,"|","|","|","|",null,"SSD 2.5\" SATA 480 GB internal; (Necessario per SW Controller)",null,{"$f":"IF($P$8=2,\"X\",\"\")","v":""},"."]
[null,null,null,null,null,null,null,"D","|","|",null,"|","|","|","|",null,"SSD 2.5\" SATA 960 GB internal; (Necessario per SW Controller)",null,{"$f":"IF($P$8=3,\"X\",\"\")","v":""},"."]
[null,null,null,null,null,null,null,"E","|","|",null,"|","|","|","|",null,"RAID1 2x SSD 2.5\" SATA 480 GB internal;",null,{"$f":"IF($P$8=4,\"X\",\"\")","v":""},"."]
[null,null,null,null,null,null,null,"G","|","|",null,"|","|","|","|",null,"RAID1 2x SSD 2.5\" SATA 480 GB in removable drive bay;",null,{"$f":"IF($P$8=5,\"X\",\"\")","v":""},"."]
[null,null,null,null,null,null,null,"H","|","|",null,"|","|","|","|",null,"RAID1 2x SSD 2.5\" SATA 960 GB in removable drive bay;",null,{"$f":"IF($P$8=6,\"X\",\"\")","v":""},"."]
[null,null,null,null,null,null,null,"J","|","|",null,"|","|","|","|",null,"M.2 SSD NVMe 512 GB;",null,{"$f":"IF($P$8=7,\"X\",\"\")","v":""},"."]
[null,null,null,null,null,null,null,"K","|","|",null,"|","|","|","|",null,"M.2 SSD NVMe 512 GB; HDD 2.5\" SATA 320 GB internal;",null,{"$f":"IF($P$8=8,\"X\",\"\")","v":""},"."]
[null,null,null,null,null,null,null,"L","|","|",null,"|","|","|","|",null,"M.2 SSD NVMe 512 GB; SSD 2.5\" SATA 480 GB internal;",null,{"$f":"IF($P$8=9,\"X\",\"\")","v":""},"."]
[null,null,null,null,null,null,null,"M","|","|",null,"|","|","|","|",null,"M.2 SSD NVMe 512 GB; SSD 2.5\" SATA 960 GB internal;",null,{"$f":"IF($P$8=10,\"X\",\"\")","v":""},"."]
[null,null,null,null,null,null,null,"Q","|","|",null,"|","|","|","|",null,"M.2 SSD NVMe 512 GB; RAID1 2x SSD 2.5\" SATA 480 GB in removable drive bay;",null,{"$f":"IF($P$8=11,\"X\",\"\")","v":""},"."]
[null,null,null,null,null,null,null,"S","|","|",null,"|","|","|","|",null,"M.2 SSD NVMe 512 GB; 2 removable drive bays w.o. media;",null,{"$f":"IF($P$8=12,\"X\",\"\")","v":""},"."]
[null,null,null,null,{"$f":"IF(AND(OR($L$5<8),$H$5=\"Y\"),1,0)","v":0},"\"Operating System requires a Mass Storage\"; "," ","Y","|","|",null,"|","|","|","|",null,"Without Drives (internal: 2x 2.5\" mounting options; incl. cables);",null,{"$f":"IF($P$8=13,\"X\",\"\")","v":""},"."]
[null,null,null,null,null,null,null,null,"|","|",null,"|","|","|","|"]
[null,null,null,null,null,null,null,null,"|","|",null,"|","|","|","|",null,"Main memory"]
[null,null,null,null,null,null,null,null,0,"|",null,"|","|","|","|",null,"4 GB DDR4-2666 (1x4);",null,{"$f":"IF($P$9=1,\"X\",\"\")","v":"X"},"."]
[null,null,null,null,null,null,null,null,1,"|",null,"|","|","|","|",null,"8 GB DDR4-2666 (2x4);",null,{"$f":"IF($P$9=2,\"X\",\"\")","v":""},"."]
[null,null,null,null,null,null,null,null,2,"|",null,"|","|","|","|",null,"16 GB DDR4-2666 (2x8);",null,{"$f":"IF($P$9=3,\"X\",\"\")","v":""},"."]
[null,null,null,null,null,null,null,null,3,"|",null,"|","|","|","|",null,"32 GB DDR4-2666 (2x16);",null,{"$f":"IF($P$9=4,\"X\",\"\")","v":""},"."]
[null,null,null,null,null,null,null,null,4,"|",null,"|","|","|","|",null,"64 GB DDR4-2666 (4x16);",null,{"$f":"IF($P$9=5,\"X\",\"\")","v":""},"."]
[null,null,null,null,null,null,null,null,null,"|",null,"|","|","|","|"]
[null,null,null,null,null,null,null,null,null,"|",null,"|","|","|","|",null,"Country specific type/ power supply"]
[null,null,null,null,null,null,null,null,null,0,null,"|","|","|","|",null,"DC 24V industrial power supply;",null,{"$f":"IF($P$10=1,\"X\",\"\")","v":"X"},"."]
[null,null,null,null,null,null,null,null,null,1,null,"|","|","|","|",null,"AC 110/230V Industrial PS with Namur; without power cord;",null,{"$f":"IF($P$10=2,\"X\",\"\")","v":""},"."]
[null,null,null,null,null,null,null,null,null,2,null,"|","|","|","|",null,"AC 110/230V Industrial PS with Namur; power cord Europe;",null,{"$f":"IF($P$10=3,\"X\",\"\")","v":""},"."]
[null,null,null,null,null,null,null,null,null,3,null,"|","|","|","|",null,"AC 110/230V Industrial PS with Namur; power cord US;",null,{"$f":"IF($P$10=4,\"X\",\"\")","v":""},"."]
[null,null,null,null,null,null,null,null,null,4,null,"|","|","|","|",null,"AC 110/230V Industrial PS with Namur; power cord China;",null,{"$f":"IF($P$10=5,\"X\",\"\")","v":""},"."]
[null,null,null,null,null,null,null,null,null,null,null,"|","|","|","|"]
[null,null,null,null,null,null,null,null,null,null,null,"|","|","|","|",null,"Operating system"]
[null,null,null,null,{"$f":"IF(AND(OR($G$5>\"E\"),$L$5=0),1,0)","v":0},"\"Wrong Windows 10 LTSB 2016 for Core-i7\"; "," ",null,null,null,null,0,"|","|","|",null,"Windows 10 Enterprise 2016 LTSB, 64Bit, MUI (En, Ger, Fr, It, Sp), for Celeron and i3;",null,{"$f":"IF($P$11=1,\"X\",\"\")","v":""},"."]
[null,null,null,null,{"$f":"IF(AND(OR($G$5<\"G\"),$L$5=1),1,0)","v":0},"\"Wrong 2016 LTSB  for Celeron/Core-i3\"; "," ",null,null,null,null,1,"|","|","|",null,"Windows 10 Enterprise 2016 LTSB, 64Bit, MUI (En, Ger, Fr, It, Sp), for Core i7;",null,{"$f":"IF($P$11=2,\"X\",\"\")","v":""},"."]
[null,null,null,null,{"$f":"IF(AND(OR($G$5>\"E\"),$L$5=2),1,0)","v":0},"\"Wrong Windows 10 LTSB 2016 for Core-i7\"; "," ",null,null,null,null,2,"|","|","|",null,"Windows 10 IoT Enterprise 2019 LTSC, 64Bit, MUI (En, Ger, Fr, It, Sp), for Celeron and i3; (Consigliat",null,{"$f":"IF($P$11=3,\"X\",\"\")","v":""},"."]
[null,null,null,null,{"$f":"IF(AND(OR($G$5<\"G\"),$L$5=3),1,0)","v":0},"\"Wrong 2016 LTSB  for Celeron/Core-i3\"; "," ",null,null,null,null,3,"|","|","|",null,"Windows 10 IoT Enterprise 2019 LTSC, 64Bit, MUI (En, Ger, Fr, It, Sp), for Core i7; (Consigliato)",null,{"$f":"IF($P$11=4,\"X\",\"\")","v":""},"."]
[null,null,null,null,null,null,null,null,null,null,null,8,"|","|","|",null,"Without operating system;",null,{"$f":"IF($P$11=5,\"X\",\"\")","v":"X"},"."]
[null,null,null,null,null,null,null,null,null,null,null,null,"|","|","|"]
[null,null,null,null,null,null,null,null,null,null,null,null,"|","|","|",null,"Extension (SW)"]
[null,null,null,null,null,null,null,null,null,null,null,null,"A","|","|",null,"Without extension (SW);",null,{"$f":"IF($P$12=1,\"X\",\"\")","v":"X"},"."]
[null,null,null,null,null,null,null,null,null,null,null,null,"B","|","|",null,"SIMATIC IPC DiagMonitor added; ",null,{"$f":"IF($P$12=2,\"X\",\"\")","v":""},"."]
[null,null,null,null,null,null,null,null,null,null,null,null,"C","|","|",null,"SIMATIC IPC Image&Partition Creator added; ",null,{"$f":"IF($P$12=3,\"X\",\"\")","v":""},"."]
[null,null,null,null,null,null,null,null,null,null,null,null,"D","|","|",null,"SIMATIC IPC DiagMonitor, Image&Partition Creator added; ",null,{"$f":"IF($P$12=4,\"X\",\"\")","v":""},"."]
[null,null,null,null,null,null,null,null,null,null,null,null,"X","|","|",null,"TPM-Module;",null,{"$f":"IF($P$12=5,\"X\",\"\")","v":""},"."]
[null,null,null,null,null,null,null,null,null,null,null,null,null,"|","|"]
[null,null,null,null,null,null,null,null,null,null,null,null,null,"|","|",null,"Extension (HW)"]
[null,null,null,null,null,null,null,null,null,null,null,null,null,"A","|",null,"Without extension (HW);",null,{"$f":"IF($P$13=1,\"X\",\"\")","v":"X"},"."]
[null,null,null,null,null,null,null,null,null,null,null,null,null,"B","|",null,"2x USB 2.0 (1 slot occupied);",null,{"$f":"IF($P$13=2,\"X\",\"\")","v":""},"."]
[null,null,null,null,null,null,null,null,null,null,null,null,null,"C","|",null,"Device without CMOS Battery (CR2450N);",null,{"$f":"IF($P$13=3,\"X\",\"\")","v":""},"."]
[null,null,null,null,null,null,null,null,null,null,null,null,null,null,"|"]
[null,null,null,null,null,null,null,null,null,null,null,null,null,null,"|",null,"Extension (HW)"]
[null,null,null,null,null,null,null,null,null,null,null,null,null,null,0,null,"2x PCI;",null,{"$f":"IF($P$14=1,\"X\",\"\")","v":"X"},"."]
[null,null,null,null,null,null,null,null,null,null,null,null,null,null,1,null,"1x PCIe (x16), 1x PCI;",null,{"$f":"IF($P$14=2,\"X\",\"\")","v":""},"."]
[null,null,null,null,null,null,null,null,null,null,null,null,null,null,2,null,"2x PCIe (x16, x4); (Necessario per CP1625 o 5622)",null,{"$f":"IF($P$14=3,\"X\",\"\")","v":""},"."]
[]
[null,null,null,null,null,null,null,null,null,null,null,null,null,null,null,null,null,null,"X"]
[null,null,null,null,null,null,null,null,null,null,null,null,null,null,null,null,"base unit "]
[{"$f":"A$5","v":"6AV7"},2,6,1,"-",0,{"$f":"G5","v":"A"},{"$f":"H5","v":"A"},{"$f":"I5","v":0},{"$f":"J5","v":0},"-",{"$f":"L5","v":8},{"$f":"M5","v":"A"},{"$f":"N5","v":"A"},{"$f":"O5","v":0},null,null,"Total:"]
[]
[]
["Zubehör:"]
[]
[null,null,null,null,null,null,null,null,null,null,null,null,null,null,null,null,"Memory Extension"]
["6ES7648-2AL60-0QA0",null,null,null,null,null,null,null,null,null,null,null,null,null,null,null,"4 GB DDR4 DIMM (1x 4); "]
["6ES7648-2AL70-0QA0",null,null,null,null,null,null,null,null,null,null,null,null,null,null,null,"8 GB DDR4 DIMM (1x 8); "]
["6ES7648-2AL80-0QA0",null,null,null,null,null,null,null,null,null,null,null,null,null,null,null,"16 GB DDR4 DIMM (1x 16); "]

{"sheet":"IFP V2","index":22,"n_rows":85,"n_cols":20,"rows_kept":85,"cut":false,"hidden":false,"merged":[[0,0,0,16]]}
["SIMATIC Industrial Flat Panel Monitor V2\n (Multitouch, FullHD)"]
[]
[]
[]
["6AV7",8,6,3,"-",{"$f":"VLOOKUP(P6,A17:Q22,6,FALSE)","v":"1"},"M","A",{"$f":"VLOOKUP(P8,$A$26:$Q$32,9,FALSE)","v":0},{"$f":"VLOOKUP(P8,$A$26:$Q$32,10,FALSE)","v":0},"-",2,{"$f":"VLOOKUP(P9,$A$44:$Q$45,13,FALSE)","v":"A"},"A",0,null,{"$f":"\"SIMATIC Industrial Flat Panel Monitor \"&\"IFP\"&LEFT(VLOOKUP(P6,A17:Q22,17,TRUE),2)&\"00 \"&IF($P$9>1,\"PRO\",\"\")&IF($P$8=3, \" ETH\",\"\")","v":"SIMATIC Industrial Flat Panel Monitor IFP1200 "},{"$f":"A5&B5&C5&D5&E5&F5&G5&H5&I5&J5&K5&L5&M5&N5&O5","v":"6AV7863-1MA00-2AA0"}]
[null,null,null,null,null,"|",null,null,"|","|",null,null,"|",null,null,1,{"$f":"Q16&\" \"&VLOOKUP(P6,A17:Q22,17,TRUE)","v":"Display Size 12\" (1280x800) "}]
[null,null,null,null,null,"|",null,null,"|","|",null,null,"|",null,null,1,{"$f":"VLOOKUP(P7,A38:Q40,17,FALSE)","v":"standard up to 5m distance possible (DP/USB cable 2m included)"}]
[null,null,null,null,null,"|",null,null,"|","|",null,null,"|",null,null,1,{"$f":"IF(ISNUMBER(FIND(\"(\",VLOOKUP($P$8,$A$26:$Q$32,17,FALSE))),LEFT(VLOOKUP($P$8,$A$26:$Q$32,17,FALSE),FIND(\"(\",VLOOKUP($P$8,$A$26:$Q$32,17,FALSE))-1),VLOOKUP($P$8,$A$26:$Q$32,17,FALSE))","v":"Flush-mount"}]
[null,null,null,null,null,"|",null,null,"|","|",null,null,"|",null,null,1,{"$f":"VLOOKUP($P$9,$A$44:$Q$45,17,FALSE)","v":"standard Siemens design"}]
[null,null,null,null,null,"|",null,null,"|","|",null,null,"|",null,null,null,"DisplayPort  Interface"]
[null,null,null,null,null,"|",null,null,"|","|",null,null,"|",null,null,null,"dimmable, 2x USB at back"]
[null,null,null,null,null,"|",null,null,"|","|",null,null,"|",null,null,null,"EX Zone 2/22; marine certifications/approvals   (in preparation only built in devices)"]
[null,null,null,null,null,"|",null,null,"|","|",null,null,"|",null,null,null,"24 Volt DC, galvanical isolated"]
[null,null,null,null,null,"|",null,null,"|","|",null,null,"|"]
[null,null,null,null,null,"|",null,null,"|","|",null,null,"|"]
[null,null,null,null,null,"|",null,null,"|","|",null,null,"|",null,null,null,"Display Size"]
[1,null,null,null,null,{"$f":"IF(AND(P7<>3),\"1\",\"?\")","v":"1"},null,null,"|","|",null,null,"|",null,null,null,{"$f":"\"12\"\" (1280x800) \"","v":"12\" (1280x800) "},null,{"$f":"IF($P$6=A17,1,\"\")","v":1},"."]
[2,null,null,null,null,{"$f":"IF(P8=2,\"#\",\"5\")","v":"5"},null,null,"|","|",null,null,"|",null,null,null,{"$f":"\"15 PRO\"\" (FullHD, 1920x1080) \"","v":"15 PRO\" (FullHD, 1920x1080) "},null,{"$f":"IF($P$6=A18,1,\"\")","v":""},"."]
[3,null,null,null,null,5,null,null,"|","|",null,null,"|",null,null,null,{"$f":"\"15\"\" (FullHD, 1920x1080) \"","v":"15\" (FullHD, 1920x1080) "},null,{"$f":"IF($P$6=$A19,1,\"\")","v":""},"."]
[4,null,null,null,null,6,null,null,"|","|",null,null,"|",null,null,null,{"$f":"\"19\"\" (FullHD, 1920x1080)\"","v":"19\" (FullHD, 1920x1080)"},null,{"$f":"IF($P$6=$A20,1,\"\")","v":""},"."]
[5,null,null,null,null,4,null,null,"|","|",null,null,"|",null,null,null,{"$f":"\"22\"\" (FullHD, 1920x1080) \"","v":"22\" (FullHD, 1920x1080) "},null,{"$f":"IF($P$6=$A21,1,\"\")","v":""},"."]
[6,null,null,null,null,7,null,null,"|","|",null,null,"|",null,null,null,{"$f":"\"24\"\" (FullHD, 1920x1080) \"","v":"24\" (FullHD, 1920x1080) "},null,{"$f":"IF($P$6=$A22,1,\"\")","v":""},"."]
[6,3,3,3,3,"|",3,3,"|","|",3,null,"|",null,3]
[null,null,null,null,null,"|",null,null,"|","|",null,null,"|"]
[null,null,null,null,null,"|",null,null,"|","|",null,null,"|",null,null,null,"Mounting Options"]
[1,null,null,null,null,"|",null,null,0,0,null,null,"|",null,null,null,"Flush-mount",null,{"$f":"IF($P$8<=3,1,\"\")","v":1}]
[2,null,null,null,null,"|",null,null,1,0,null,null,"|",null,null,null,"Flush-mount",null,{"$f":"IF($P$8<=3,1,\"\")","v":1}]
[3,null,null,null,null,"|",null,null,2,0,null,null,"|",null,null,null,"Flush-mount",null,{"$f":"IF($P$8<=3,1,\"\")","v":1},"."]
[4,null,null,null,null,"|",null,null,{"$f":"IF(P6=3,\"#\",\"1\")","v":"1"},4,null,null,"|",null,null,null,"PRO suitable for pedestal mounting/extension components (flange below)",null,{"$f":"IF($P$8=A29,1,\"\")","v":""},"."]
[5,null,null,null,null,"|",null,null,{"$f":"IF(P6=3,\"#\",\"1\")","v":"1"},5,null,null,"|",null,null,null,"PRO suitable for support arm w/o extension components (flange above)",null,{"$f":"IF($P$8=A30,1,\"\")","v":""},"."]
[6,null,null,null,null,"|",null,null,{"$f":"IF(P6=3,\"#\",\"1\")","v":"1"},6,null,null,"|",null,null,null,"PRO suitable for support arm and extension components (round tube)",null,{"$f":"IF($P$8=A31,1,\"\")","v":""},"."]
[7,null,null,null,null,7,null,null,1,7,null,null,"|",null,null,null,"PRO PORTRAIT suitable for support arm and extension components (round tube)",null,{"$f":"IF($P$8=A32,1,\"\")","v":""},"."]
[null,null,null,null,null,null,null,null,"|","|",null,null,"|"]
[null,null,null,null,null,null,null,null,"|","|",null,null,"|"]
[null,null,null,null,null,null,null,null,"|","|",null,null,"|"]
[null,null,null,null,null,null,null,null,"|","|",null,null,"|"]
[null,null,null,null,null,null,null,null,"|","|",null,null,"|",null,null,null,"Special functions"]
[1,null,null,null,null,null,null,null,0,"|",null,null,"|",null,null,null,"standard up to 5m distance possible (DP/USB cable 2m included)",null,{"$f":"IF($P$7=A38,1,\"\")","v":1},"."]
[2,null,null,null,null,null,null,null,1,"|",null,null,"|",null,null,null,"extended up to 100m distance possible (HDBaseT; no cables included))",null,{"$f":"IF($P$7=A39,1,\"\")","v":""},"."]
[3,null,null,null,null,null,null,null,2,0,null,null,"|",null,null,null,"Ethernetmonitor over IP-Protokoll",null,{"$f":"IF($P$7=A40,1,\"\")","v":""},"."]
[null,null,null,null,null,null,null,null,null,null,null,null,"|"]
[null,null,null,null,null,null,null,null,null,null,null,null,"|"]
[null,null,null,null,null,null,null,null,null,null,null,null,"|",null,null,null,"Design"]
[1,null,null,null,null,null,null,null,null,null,null,null,"A",null,null,null,"standard Siemens design",null,{"$f":"IF($P$9=A44,1,\"\")","v":1},"."]
[2,null,null,null,null,null,null,null,null,null,null,null,"N",null,null,null,"neutral design, no brand",null,{"$f":"IF($P$9=A45,1,\"\")","v":""},"."]
[]
[]
[]
[]
[]
[]
[]
[]
[{"$f":"A5","v":"6AV7"},{"$f":"B5","v":8},{"$f":"C5","v":6},{"$f":"D5","v":3},"-",{"$f":"F5","v":"1"},{"$f":"G5","v":"M"},{"$f":"H5","v":"A"},{"$f":"I5","v":0},{"$f":"J5","v":0},"-",{"$f":"L5","v":2},{"$f":"M5","v":"A"},{"$f":"N5","v":"A"},{"$f":"O5","v":0},null,null,"Total:"]
[]
[]
["This configuration is a stock item"]
[""]
[]
[]
["Optionen"]
["6AV7860-3PA00-0AA0",null,null,null,null,null,null,null,null,null,null,null,null,null,null,null,"AC Power Supply module for IFP V2 100-240V AC to 24V DC 60W ; not suitable for PRO devices"]
[]
["Accessories:for standard types up to 5m"]
["6AV7860-0BH30-0AA0",null,null,null,null,null,null,null,null,null,null,null,null,null,null,null,"DVI-D-cable industrial grade 3m"]
["6AV7860-0BH50-0AA0",null,null,null,null,null,null,null,null,null,null,null,null,null,null,null,"DVI-D-cable industrial grade 5m"]
["6AV7860-0CH30-0AA0",null,null,null,null,null,null,null,null,null,null,null,null,null,null,null,"USB-cable industrial grade 3m"]
["6AV7860-0CH50-0AA0",null,null,null,null,null,null,null,null,null,null,null,null,null,null,null,"USB-cable industrial grade 5m"]
["6AV7860-0DH30-0AA0",null,null,null,null,null,null,null,null,null,null,null,null,null,null,null,"DisplayPort-cable industrial grade 3m"]
["6AV7860-0DH50-0AA0",null,null,null,null,null,null,null,null,null,null,null,null,null,null,null,"DisplayPort-cable industrial grade 5m"]
[]
["Accessories:for extended types (HDBaseT)"]
["6AV7860-1EX21-0AB1",null,null,null,null,null,null,null,null,null,null,null,null,null,null,null,"Set of Cable 10m (Cat6 Cable ;Transceiver HDBaseT; Mounting accessories, USB/DP cable)"]
["6AV7860-1EX21-5AB1",null,null,null,null,null,null,null,null,null,null,null,null,null,null,null,"Set of Cable 15m (Cat6 Cable ;Transceiver HDBaseT; Mounting accessories, USB/DP cable)"]
["6AV7860-1EX22-0AB1",null,null,null,null,null,null,null,null,null,null,null,null,null,null,null,"Set of Cable 20m (Cat6 Cable ;Transceiver HDBaseT; Mounting accessories, USB/DP cable)"]
["6AV7860-1EX23-0AB1",null,null,null,null,null,null,null,null,null,null,null,null,null,null,null,"Set of Cable 30m (Cat6 Cable ;Transceiver HDBaseT; Mounting accessories, USB/DP cable)"]
["6XV1878-2C               ",null,null,null,null,null,null,null,null,null,null,null,null,null,null,null,"CAT6A Cable, available length, min 20m , max 1000m, unconfigured, without plugs "]
["6AV7860-1EY00-0AA0",null,null,null,null,null,null,null,null,null,null,null,null,null,null,null,"Plugs CAT6 for cable self configuring, 2 pieces "]
[]
["Replacement parts from cable kits"]
["6AV7860-3EH00-0AA0",null,null,null,null,null,null,null,null,null,null,null,null,null,null,null,"Transceiver Modul (HDBaseT, without cable, with mounting accessory, usb/dp cable 0,5m)"]
["6AV7860-0EH01-0AA0",null,null,null,null,null,null,null,null,null,null,null,null,null,null,null,"CAT6 cable 10m for HDBaseT tested"]
["6AV7860-0EH01-5AA0",null,null,null,null,null,null,null,null,null,null,null,null,null,null,null,"CAT6 cable 15m for HDBaseT tested"]
["6AV7860-0EH02-0AA0",null,null,null,null,null,null,null,null,null,null,null,null,null,null,null,"CAT6 cable 20m for HDBaseT tested"]
["6AV7860-0EH03-0AA0",null,null,null,null,null,null,null,null,null,null,null,null,null,null,null,"CAT6 cable 30m for HDBaseT tested"]

{"sheet":"ITC V3","index":23,"n_rows":37,"n_cols":20,"rows_kept":37,"cut":false,"hidden":false,"merged":[]}
["Industrial Thin Client SIMATIC ITC V3"]
[]
[null,null,null,null,null,null,null,null,null,null,null,null,null,null,null,null," "]
[]
["6AV6",6,4,6,"-",1,"B",{"$f":"VLOOKUP(P8,A17:Q20,8,TRUE)","v":"A"},{"$f":"VLOOKUP(P6,A23:Q25,9,TRUE)","v":1},{"$f":"VLOOKUP(P6,A23:Q25,10,TRUE)","v":5},"-",{"$f":"VLOOKUP(P6,A23:Q25,12,TRUE)","v":0},{"$f":"VLOOKUP(P7,A28:Q29,13,TRUE)","v":"A"},"A",0,null,"SIMATIC ITC1500 V3",{"$f":"$A$5&$B$5&$C$5&$D$5&$E$5&$F$5&$G$5&$H$5&$I$5&$J$5&$K$5&$L$5&$M$5&$N$5&$O$5","v":"6AV6646-1BA15-0AA0"}]
[null,null,null,null,null,null,null,"|","|","|",null,null,"|",null,null,1,{"$f":"VLOOKUP(P6,A23:Q25,17,TRUE)","v":"15\" Display (1366x 768 Pixel)"}]
[null,null,null,null,null,null,null,"|","|","|",null,null,"|",null,null,1,{"$f":"VLOOKUP(P7,A28:Q29,17,TRUE)","v":"Standard"}]
[null,null,null,null,null,null,null,"|","|","|",null,null,"|",null,null,1,{"$f":"IF(P8=1,Q15,LEFT(Q15,34))","v":"Panel Mount"}]
[null,null,null,null,null,null,null,"|","|","|",null,null,"|",null,null,1,{"$f":"IF(P8=1,\"\",RIGHT(Q15,LEN(Q15)-35))","v":""}]
[null,null,null,null,null,null,null,"|","|","|",null,null,"|",null,null,1,"Multi-Touchscreen (capazitive-projective), Glass-front"]
[null,null,null,null,null,null,null,"|","|","|",null,null,"|",null,null,1,"DC 24V, 4x USB; Ethernet 2-ports,"]
[null,null,null,null,null,null,null,"|","|","|",null,null,"|",null,null,null,"Linux based System"]
[null,null,null,null,null,null,null,"|","|","|",null,null,"|",null,null,null,"supported protocols: RDP, VNC, Sm@rtServer,HTML5-Browser, Citrix"]
[null,null,null,null,null,null,null,"|","|","|",null,null,"|",null,null,null,"WinCC OA, Sinumerik-Anbindung (planned)"]
[null,null,null,null,null,null,null,"|","|","|",null,null,"|",null,null,null,{"$f":"VLOOKUP($P$8,$A$17:$Q$20,17,TRUE)","v":"Panel Mount"}]
[null,null,null,null,null,null,null,"|","|","|",null,null,"|",null,null,null,"Mounting Options"]
[1,null,null,null,null,null,null,"A","|","|",null,null,"|",null,null,null,"Panel Mount",null,{"$f":"IF($P$8=A17,1,\"\")","v":1},"."]
[2,null,null,null,null,null,null,"B","|","|",null,null,"|",null,null,null,"fully enclosed acc. IP65, suitable for pedestal mounting/extension components (flange below)",null,{"$f":"IF($P$8=A18,1,\"\")","v":""},"."]
[3,null,null,null,null,null,null,"C","|","|",null,null,"|",null,null,null,"fully enclosed acc. IP65, suitable for support arm w/o extension components (flange above)",null,{"$f":"IF($P$8=A19,1,\"\")","v":""},"."]
[4,null,null,null,null,null,null,"D","|","|",null,null,"|",null,null,null,"fully enclosed acc. IP65, suitable for support arm and extension components (round tube)",null,{"$f":"IF($P$8=A20,1,\"\")","v":""},"."]
[null,null,null,null,null,null,null,null,"|","|",null,null,"|"]
[null,null,null,null,null,null,null,null,"|","|",null,null,"|",null,null,null,"Display Size"]
[1,null,null,null,null,null,null,null,1,5,"-",0,"|",null,null,null,"15\" Display (1366x 768 Pixel)",null,{"$f":"IF($P$6=A23,1,\"\")","v":1},"."]
[2,null,null,null,null,null,null,null,1,8,"-",0,"|",null,null,null,"19\" Display (1366x 768 Pixel)",null,{"$f":"IF($P$6=A24,1,\"\")","v":""},"."]
[3,null,null,null,null,null,null,null,2,2,"-",1,"|",null,null,null,"22\" Display (1920 x 1080 Pixel)",null,{"$f":"IF($P$6=A25,1,\"\")","v":""},"."]
[null,null,null,null,null,null,null,null,null,null,null,null,"|"]
[null,null,null,null,null,null,null,null,null,null,null,null,"|",null,null,null,"Design "]
[1,null,null,null,null,null,null,null,null,null,null,null,"A",null,null,null,"Standard",null,{"$f":"IF($P$7=A28,1,\"\")","v":1},"."]
[2,null,null,null,null,null,null,null,null,null,null,null,"N",null,null,null,"Neutral",null,{"$f":"IF($P$7=A29,1,\"\")","v":""},"."]
[]
[null,null,null,null,null,null,null,null,null,null,null,null,null,null,null,null,null,"Total:"]
[]
[]
[]
[null,null,null,null,null,null,null,null,null,null,null,null,null,null,null,null,"System components for PRO devices"]
[]
[null,null,null,null,null,null,null,null,null,null,null,null,null,null,null,null,"Click here\nfor additional SIMATIC IPC accessories."]

{"sheet":"IFP Basic","index":24,"n_rows":25,"n_cols":19,"rows_kept":25,"cut":false,"hidden":false,"merged":[]}
["SIMATIC IFP Basic"]
[]
[]
[]
["6AV7",8,6,2,"-",2,"B",{"$f":"IF(P6=1,H13,IF(P6=2,H14,IF(P6=3,H15,IF(P6=4,H16,))))","v":"C"},0,0,"-",0,"A","A",0,null,{"$f":"\"SIMATIC IFP\"&IF(P6=1,\"1200\",)&IF(P6=2,\"1500\",)&IF(P6=3,\"1900\",)&IF(P6=4,\"2200\",)&\" Basic\"","v":"SIMATIC IFP1200 Basic"},{"$f":"$A$5&$B$5&$C$5&$D$5&$E$5&$F$5&$G$5&$H$5&$I$5&$J$5&$K$5&$L$5&$M$5&$N$5&$O$5","v":"6AV7862-2BC00-0AA0"}]
[null,null,null,null,null,null,null,null,null,null,null,null,null,null,null,1,"Display size: 12\" (resolution: 1280x800)"]
[null,null,null,null,null,null,null,null,null,null,null,null,null,null,null,null,"Graphic interfaces; 1 x DP, 1 x VGA"]
[null,null,null,null,null,null,null,null,null,null,null,null,null,null,null,null,"Operating function: Touchscreen (analog-resistive)"]
[null,null,null,null,null,null,null,null,null,null,null,null,null,null,null,null,"Power supply; 24V DC"]
[null,null,null,null,null,null,null,null,null,null,null,null,null,null,null,null,"Interfaces; 2 x USB2.0 (downstream); 1 x USB (for Touch)"]
[]
[null," ",null,null,null,null,null,null,null,null,null,null,null,null,null,null,"Display size"]
[null," ",null,null,null,null,null,"C",null,null,null,null,null,null,null,null,"12\" (resolution: 1280x800)",null,{"$f":"IF($P$6=1,\"X\",\"\")","v":"X"}]
[null," ",null,null,null,null,null,"D",null,null,null,null,null,null,null,null,"15\" (resolution 1366x768)",null,{"$f":"IF($P$6=2,\"X\",\"\")","v":""}]
[null," ",null,null,null,null,null,"E",null,null,null,null,null,null,null,null,"19\" (resolution 1366x768)",null,{"$f":"IF($P$6=3,\"X\",\"\")","v":""}]
[null,null,null,null,null,null,null,"F",null,null,null,null,null,null,null,null,"22\" (resolution 1920x1080)",null,{"$f":"IF($P$6=4,\"X\",\"\")","v":""}]
[null,null,null,null,null,null,null,null,null,null,null," "]
[]
[]
[]
["Accessories:"]
["6AV7860-0CH30-0AA0",null,null,null,null,null,null,null,null,null,null,null,null,null,null,null,"USB-cable industrial grade 3m"]
["6AV7860-0CH50-0AA0",null,null,null,null,null,null,null,null,null,null,null,null,null,null,null,"USB-cable industrial grade 5m"]
["6AV7860-0DH30-0AA0",null,null,null,null,null,null,null,null,null,null,null,null,null,null,null,"DisplayPort-cable industrial grade 3m"]
["6AV7860-0DH50-0AA0",null,null,null,null,null,null,null,null,null,null,null,null,null,null,null,"DisplayPort-cable industrial grade 5m"]

{"sheet":"S7-1507S-Packages","index":25,"n_rows":57,"n_cols":23,"rows_kept":57,"cut":false,"hidden":false,"merged":[[0,0,0,23],[9,0,9,16],[31,22,37,22],[31,1,31,10],[35,1,35,10],[56,0,56,15],[2,21,2,23],[49,1,49,10],[45,22,51,22],[1,0,1,13],[1,18,1,23],[45,1,45,10]]}
["SOFTWARE CONTROLLER per IPC"]
["S7-1507S/F Per IPC2x7E",null,null,null,null,null,null,null,null,null,null,null,null,null,null,null,"\nS7-1507S/F Standard & SW Download\n",null,"S71508S/F Standard e SW Download"]
[null,null,null,null,null,null,null,null,null,null,null,null,null,null,null,null,null,null,null,null,null,"Scheda Profinet IRT"]
[]
[]
["S7-1507S-Packages for IPC2x7E "]
[null,null,null,null,null,null,null,null,null,null,null,null,null,null,null,null,"L'elenco aggiornato dei pacchetti software con SIMATIC IPC si trova qui:"]
[null,null,null,null,null,null,null,null,null,null,null,null,null,null,null,null,"https://support.industry.siemens.com/cs/de/de/view/99860269"]
[]
["Software Controller S7-1507S Packages:"]
[]
[]
[]
[]
[null,null,null,null,null,null,null,null,null,null,null,null,null,null,null,null,"Software package with license key"]
[null,null,null,null,null,null,null,null,null,null,null,null,null,null,null,1,"working under Windows 7 und Windows 10 ONLY for 277E / 227E"]
[]
[null,null,null,null,null,null,null,null,null,null,null,null,null,null,null,null,"Package"]
[0,null,null,null,null,null,null,null,null,null,null,null,null,null,null,{"$f":"1+P18","v":1},"Standard:      Software Controller CPU 1507S","6ES7672-7AC01-6YA0",{"$f":"IF($P$13=1,1,\"\")","v":""}]
[1,null,null,null,null,null,null,null,null,null,null,null,null,null,null,{"$f":"1+P19","v":2},"Failsafe:        Software Controller CPU 1507S F","6ES7672-FAC01-6YA0",{"$f":"IF($P$13=2,1,\"\")","v":""}]
[]
[]
[]
["ATTENZIONE: PRODOTTO ABBINABILE SOLO AD UN IPC277E o IPC227E"]
[]
[]
[]
[]
["S7-1507 for SIMATIC IPCs"]
["Una sola rete PROFINET gestibile"]
[]
[null,"FORNITURA STANDARD",null,null,null,null,null,null,null,null,null,null,null,null,null,null,"SIMATIC S7-1500, Software Controller CPU 1507S Single License per 1 installazione, R-SW, SW e documentazione su DVD, License Key su chiavetta USB, R-SW Classe A, in 6 lingue (de,en,it,fr,es,zh), eseguibile su Windows 7 e Windows 10; HW di riferimento: SIMATIC IPC2x7E, IPC4x7E, IPC4x7D, IPC6x7E, IPC6x7D, IPC8x7E, IPC8x7D","6ES7672-7AC01-0YA0",null,null,null,null,"Una sola rete profinet (Scheda integrata nel PC)"]
[]
[null,"SOFTWARE DOWNLOAD",null,null,null,null,null,null,null,null,null,null,null,null,null,null,"SIMATIC S7-1500, Software Controller CPU 1507S Single License per 1 installazione, R-SW, software, documentazione e download di License Key, R-SW Classe A, in 6 lingue (de,en,it,fr,es,zh), eseguibile su Windows 7 e Windows 10; HW di riferimento: SIMATIC IPC2x7E, IPC4x7E, IPC4x7D, IPC6x7E, IPC6x7D, IPC8x7E, IPC8x7D ******************************* l'indirizzo e-mail del destinatario della merce è necessario per la fornitura","6ES7672-7AC01-0YG0"]
[]
[null,"FORNITURA STANDARD",null,null,null,null,null,null,null,null,null,null,null,null,null,null,"SIMATIC S7-1500 fail-safe Software Controller CPU 1507S F Single License per 1 installazione, R-SW, SW e documentazione su DVD, License Key su chiavetta USB, R-SW Classe A, in 6 lingue (de,en,it,fr,es,zh), eseguibile su Windows 7 e Windows 10; HW di riferimento: SIMATIC IPC2x7E, IPC4x7E, IPC4x7D, IPC6x7E, IPC8x7E, IPC627D, IPC677D, IPC827D","6ES7672-7FC01-0YA0"]
[]
[null,"SOFTWARE DOWNLOAD",null,null,null,null,null,null,null,null,null,null,null,null,null,null,"SIMATIC S7-1500 fail-safe Software Controller CPU 1507S F Single License per 1 installazione, R-SW, software, documentazione e download di License Key, R-SW Classe A, in 6 lingue (de,en,it,fr,es,zh), eseguibile su Windows 7 e Windows 10; HW di riferimento: SIMATIC IPC2x7E, IPC4x7E, IPC4x7D, IPC6x7E, IPC8x7E, IPC627D, IPC677D, IPC827D ******************************* l'indirizzo e-mail del destinatario della merce è necessario per la fornitura","6ES7672-7FC01-0YG0"]
[]
["ATTENZIONE: LE CPU 1507S/F SONO INSTALLABILI SOLO SU IPC SIMATIC 4x7E 6x7E 8x7E"]
[]
[]
["S7-1508 for SIMATIC IPCs"]
[]
[]
[null,"FORNITURA STANDARD",null,null,null,null,null,null,null,null,null,null,null,null,null,null,"SIMATIC S7-1500, Software Controller CPU 1508S, Single License per 1 installazione, R-SW, SW e documentazione su DVD, License Key su chiavetta USB, R-SW Classe A, in 6 lingue (de,en,it,fr,es,zh), eseguibile su Windows 7/10 HW di riferimento: IPC4x7E, IPC6x7E, IPC8x7E, IPC6x7D, IPC8x7D","6ES7672-8AC01-0YA0",null,null,null,null,"Fino a due reti profinet (1 Standard +  1 IRT con scheda CP1625)"]
[]
[null,"SOFTWARE DOWNLOAD",null,null,null,null,null,null,null,null,null,null,null,null,null,null,"SIMATIC S7-1500, Software Controller CPU 1508S, Single License per 1 installazione, R-SW, software, documentazione e download di License Key, R-SW Classe A, in 6 lingue (de,en,it,fr,es,zh), eseguibile su Windows 7/10, HW di riferimento: IPC4x7E, IPC6x7E, IPC8x7E, IPC6x7D, IPC8x7D ******************************* l'indirizzo e-mail del destinatario della merce è necessario per la fornitura","6ES7672-8AC01-0YG0"]
[]
[null,"FORNITURA STANDARD",null,null,null,null,null,null,null,null,null,null,null,null,null,null,"SIMATIC S7-1500 fail-safe, Software Controller CPU 1508S F Single License per 1 installazione, R-SW, SW e documentazione su DVD, License Key su chiavetta USB, R-SW Classe A, in 6 lingue (de,en,it,fr,es,zh), eseguibile su Windows 7/10 HW di riferimento: IPC4x7E, IPC6x7E, IPC8x7E, IPC627D, IPC827D, IPC677D","6ES7672-8FC01-0YA0"]
[]
[null,"SOFTWARE DOWNLOAD",null,null,null,null,null,null,null,null,null,null,null,null,null,null,"SIMATIC S7-1500 fail-safe, Software Controller CPU 1508S F Single License per 1 installazione, R-SW, software, documentazione e download di License Key, R-SW Classe A, in 6 lingue (de,en,it,fr,es,zh), eseguibile su Windows 7/10, HW di riferimento: IPC4x7E, IPC6x7E, IPC8x7E, IPC627D, IPC827D, IPC677D ******************************* l'indirizzo e-mail del destinatario della merce è necessario per la fornitura","6ES7672-8FC01-0YG0"]
[]
["ATTENZIONE: LE CPU 1508S/F SONO INSTALLABILI SOLO SU IPC SIMATIC 4x7E 6x7E 8x7E"]
[]
["SCHEDA PROFINET IRT per SW CONTROLLER"]
[null,null,null,null,null,null,null,null,null,null,null,null,null,null,null,null,"Scheda CP1625 PCIe per PROFINET IRT su sistema Software controller ","6ES7648-2CF10-1AA0"]

{"sheet":"WinCC flex-Packages","index":26,"n_rows":28,"n_cols":22,"rows_kept":28,"cut":false,"hidden":false,"merged":[]}
["SIMATIC Panel PC WinCC flexible/Package",null,null,null,null,null,null,null,null,null,null,null,null,null,null,null,null,null,null,null,null,"List of SIMATIC IPC "]
[null,null,null,null,null,null,null,null,null,null,null,null,null,null,null,null,"L'elenco aggiornato dei pacchetti software con SIMATIC IPC si trova qui:",null,null,null,null,"Simatic Box PC:"]
[null,null,null,null,null,null,null,null,null,null,null,null,null,null,null,null,"https://support.industry.siemens.com/cs/de/de/view/99860269",null,null,null,null,"IPC127E "]
[null,null,null,null,null,null,null,null,null,null,null,null,null,null,null,null,null,null,null,null,null,"IPC227D / IPC227E"]
["6AV6",6,2,3,"-",2,{"$f":"INDEX(G14:G17,P8,1)","v":"B"},"A","0","0","-","0","A","A","0",null,{"$f":"\"SIMATIC HMI, WinCC flexible Runtime Package\"","v":"SIMATIC HMI, WinCC flexible Runtime Package"},{"$f":"$A$5&$B$5&$C$5&$D$5&$E$5&$F$5&$G$5&$H$5&$I$5&$J$5&$K$5&$L$5&$M$5&$N$5&$O$5","v":"6AV6623-2BA00-0AA0"},null,null,null,"IPC327E "]
[null,null,null,null,null,null,"|",null,null,null,null,null,null,null,null,null,"for SIMATIC IPC consisting of: ",null,null,null,null,"IPC427D / IPC427E"]
[null,null,null,null,null,null,"|",null,null,null,null,null,null,null,null,null,"SIMATIC WinCC flexible latest version (RT) incl. archives and recipes",null,null,null,null,"IPC627C / IPC627D"]
[null,null,null,null,null,null,"|",null,null,null,null,null,null,null,null,1,{"$f":"INDEX(Q14:Q17,P8,1)","v":"128 Power Tags (RT)"},null,null,null,null,"IPC627E "]
[null,null,null,null,null,null,"|",null,null,null,null,null,null,null,null,null,null,null,null,null,null,"IPC827C/ IPC827D"]
[null,null,null,null,null,null,null,null,null,null,null,null,null,null,null,null,null,null,null,null,null,"IPC527G  "]
[null,null,null,null,null,null,"|",null,null,null,null,null,null,null,null,null,"Only available if ordered together with SIMATIC IPC  "]
[null,null,null,null,null,null,"|",null,null,null,null,null,null,null,null,null,null,null,null,null,null,"SIMATIC Panel PC:"]
[null,null,null,null,null,null,"|",null,null,null,null,null,null,null,null,null,"Software components",null,null,null,null,"PC277D / IPC277E"]
[null,null,null,null,null,null,"B",null,null,null,null,null,null,null,null,{"$f":"1+P13","v":1},"128 Power Tags (RT)",null,{"$f":"IF($P$8=P14,1,\"\")","v":1},".",null,"IPC377E"]
[null,null,null,null,null,null,"D",null,null,null,null,null,null,null,null,{"$f":"1+P14","v":2},"512 Power Tags (RT)",null,{"$f":"IF($P$8=P15,1,\"\")","v":""},".",null,"IPC477D (PRO) / IPC477E (PRO)"]
[null,null,null,null,null,null,"F",null,null,null,null,null,null,null,null,{"$f":"1+P15","v":3},"2048 Power Tags (RT)",null,{"$f":"IF($P$8=P16,1,\"\")","v":""},".",null,"IPC677C / IPC677D"]
[null,null,null,null,null,null,"G",null,null,null,null,null,null,null,null,{"$f":"1+P16","v":4},"4096 Power Tags (RT)",null,{"$f":"IF($P$8=P17,1,\"\")","v":""},".",null,"IPC677E "]
[null,null,null,null,null,null,null,null,null,null,null,null,null,null,null,null,null,null,null,null,null,"Panel PC Ex "]
[{"$f":"A$5","v":"6AV6"},{"$f":"B$5","v":6},{"$f":"C$5","v":2},{"$f":"D5","v":3},{"$f":"E$5","v":"-"},{"$f":"F$5","v":2},{"$f":"G5","v":"B"},"A",{"$f":"I$5","v":"0"},{"$f":"J$5","v":"0"},{"$f":"K$5","v":"-"},"0","A","A","0",null,null,"Total:",null,null,null,"SIMATIC Panel PC EX OG"]
[]
[null,null,null,null,null,null,null,null,null,null,null,null,null,null,null,null,null,null,null,null,null,"SIMATIC Rack PC:"]
[null,null,null,null,null,null,null,null,null,null,null,null,null,null,null,null,null,null,null,null,null,"IPC347E "]
[null,null,null,null,null,null,null,null,null,null,null,null,null,null,null,null,null,null,null,null,null,"IPC547E / IPC547G"]
[null,null,null,null,null,null,null,null,null,null,null,null,null,null,null,null,null,null,null,null,null,"IPC647C / IPC647D / IPC647E"]
[null,null,null,null,null,null,null,null,null,null,null,null,null,null,null,null,null,null,null,null,null,"IPC847C / IPC847D / IPC847E"]
[]
[null,null,null,null,null,null,null,null,null,null,null,null,null,null,null,null,null,null,null,null,null,"SIMATIC Industrial Tablet PC:"]
[null,null,null,null,null,null,null,null,null,null,null,null,null,null,null,null,null,null,null,null,null,"ITP1000"]

{"sheet":"WinCC-TIA Portal  Packages ","index":27,"n_rows":64,"n_cols":28,"rows_kept":64,"cut":false,"hidden":false,"merged":[]}
["WinCC Unified / Advanced / Professional   Packages  "]
[null,null,null,null,null,null,null,null,null,null,null,null,null,null,null,null,"L'elenco aggiornato dei pacchetti software con SIMATIC IPC si trova qui:"]
[null,null,null,null,null,null,null,null,null,null,null,null,null,null,null,null,"https://support.industry.siemens.com/cs/document/99860269"]
[]
["WinCC Unified V17 PC Runtime - Package "]
[]
[null,null,null,null,null,null,null,null,null,null,null,null,null,null,null,null,null,null,null,null,null,null,"IPC ABBINABILI IN PACKAGE:"]
[null,null,null,null,null,null,null,null,null,null,null,null,null,null,null,null,null,null,null,null,null,null,"IPC127E","IPC277E","IPC347G"]
[null,null,null,null,null,null,null,null,null,null,null,null,null,null,null,null,null,null,null,null,null,null,"IPC227E","IPC377G","IPC547G"]
["6AV2",1,5,5,"-",{"$f":"INDEX(F16:F22,P11,1)","v":3},{"$f":"INDEX(G16:G22,P11,1)","v":"D"},"B","0",1,"-","7","A","A","0",1,"WinCC Unified V17 PC RT Packages",{"$f":"$A$10&$B$10&$C$10&$D$10&$E$10&$F$10&$G$10&$H$10&$I$10&$J$10&$K$10&$L$10&$M$10&$N$10&$O$10","v":"6AV2155-3DB01-7AA0"},null,null,null,null,"IPC227G","IPC477E","IPC647E"]
[null,null,null,null,null,"|","|",null,null,null,null,null,null,null,null,1,{"$f":"INDEX(Q16:Q22,P11,1)","v":"150 Power Tags (RT)"},null,null,null,null,null,"IPC327G","IPC677E","IPC847E"]
[null,null,null,null,null,"|","|",null,null,null,null,null,null,null,null,3,null,null,null,null,null,null,"IPC427E",null,"IPC1047E"]
[null,null,null,null,null,"|","|",null,null,null,null,null,null,null,null,2," ",null,null,null,null,null,"IPC527G","ITP1000"]
[null,null,null,null,null,"|","|",null,null,null,null,null,null,null,null,null,null,null,null,null,null,null,"IPC627E"]
[null,null,null,null,null,"|","|",null,null,null,null,null,null,null,null,null,"Software-Package"]
[null,null,null,null,null,3,"D",null,null,null,null,null,null,null,null,{"$f":"1+P15","v":1},"150 Power Tags (RT)",null,{"$f":"IF($P$11=1,1,\"\")","v":1},null,"."]
[null,null,null,null,null,1,"E",null,null,null,null,null,null,null,null,{"$f":"1+P16","v":2},"500 Power Tags (RT)",null,{"$f":"IF($P$11=2,1,\"\")","v":""},null,"."]
[null,null,null,null,null,2,"E",null,null,null,null,null,null,null,null,{"$f":"1+P17","v":3},"1k Power Tags (RT)",null,{"$f":"IF($P$11=3,1,\"\")","v":""},null,"."]
[null,null,null,null,null,2,"M",null,null,null,null,null,null,null,null,{"$f":"1+P18","v":4},"2.5 Power Tags (RT)",null,{"$f":"IF($P$11=4,1,\"\")","v":""},null,"."]
[null,null,null,null,null,1,"F",null,null,null,null,null,null,null,null,{"$f":"1+P19","v":5},"5k Power Tags (RT)",null,{"$f":"IF($P$11=5,1,\"\")","v":""},null,"."]
[null,null,null,null,null,2,"F",null,null,null,null,null,null,null,null,6,"10k Power Tags (RT)",null,{"$f":"IF($P$11=6,1,\"\")","v":""},null,"."]
[null,null,null,null,null,1,"G",null,null,null,null,null,null,null,null,7,"50k Power Tags (RT)",null,{"$f":"IF($P$11=7,1,\"\")","v":""},null,"."]
[]
[{"$f":"A$10","v":"6AV2"},{"$f":"B$10","v":1},{"$f":"C$10","v":5},5,"-",3,"D","B","0",1,"-","7","A","A","0",null,null,"Listino:"]
[null,null,null,null,null,null,null,null,null,null,null,null,null,null,null,null,"SIMATIC WinCC Unified Packages incl WinCC Parameter Control + logging Tags "]
[]
[" WinCC Runtime Advanced  - Package "]
[]
[]
[]
[]
["6AV2",1,1,4,"-",2,{"$f":"INDEX(G38:G42,P33,1)","v":"H"},"A","0",7,"-","0","A","A","0",1,"WINCC RT Advanced V17 Packages",{"$f":"$A$32&$B$32&$C$32&$D$32&$E$32&$F$32&$G$32&$H$32&$I$32&$J$32&$K$32&$L$32&$M$32&$N$32&$O$32","v":"6AV2114-2HA07-0AA0"}]
[null,null,null,null,null,null,"|",null,null,null,null,null,null,null,null,4,{"$f":"INDEX(Q38:Q42,P33,1)","v":"4096 Power Tags (RT)"}]
[null,null,null,null,null,null,"|",null,null,null,null,null,null,null,null,3,"incl. SIMATIC WinCC Recipes + Logging for Runtime Advanced",null,null,null,null,"TUTTI I SIMATIC IPC POSSONO ESSERE ORDINATI IN PACKAGE CON WinCC Adv"]
[null,null,null,null,null,null,"|",null,null,null,null,null,null,null,null,2," "]
[null,null,null,null,null,null,"|"]
[null,null,null,null,null,null,"|",null,null,null,null,null,null,null,null,null,"Software-Package"]
[null,null,null,null,null,null,"B",null,null,null,null,null,null,null,null,{"$f":"1+P37","v":1},"128 Power Tags (RT)",null,{"$f":"IF($P$33=1,1,\"\")","v":""},null,"."]
[null,null,null,null,null,null,"D",null,null,null,null,null,null,null,null,{"$f":"1+P38","v":2},"512 Power Tags (RT)",null,{"$f":"IF($P$33=2,1,\"\")","v":""},null,"."]
[null,null,null,null,null,null,"F",null,null,null,null,null,null,null,null,{"$f":"1+P39","v":3},"2048 Power Tags (RT)",null,{"$f":"IF($P$33=3,1,\"\")","v":""},null,"."]
[null,null,null,null,null,null,"H",null,null,null,null,null,null,null,null,{"$f":"1+P40","v":4},"4096 Power Tags (RT)",null,{"$f":"IF($P$33=4,1,\"\")","v":1},null,"."]
[null,null,null,null,null,null,"K",null,null,null,null,null,null,null,null,5,"8192 Power Tags (RT)",null,{"$f":"IF($P$33=5,1,\"\")","v":""},null,"."]
[]
[{"$f":"A$32","v":"6AV2"},{"$f":"B$32","v":1},1,4,"-",2,{"$f":"G$32","v":"H"},"A","0",7,"-","0","A","A","0",null,null,"Listino:"]
[" "]
[" WinCC Runtime Professional  - Package "]
[null,null,null,null,null,null,null,null,null,null,null,null,null,null,null,null,null,null,null,null,null,null,"IPC ABBINABILI IN PACKAGE:"]
[null,null,null,null,null,null,null,null,null,null,null,null,null,null,null,null,null,null,null,null,null,null,"IPC127E","IPC277E","IPC347G"]
[null,null,null,null,null,null,null,null,null,null,null,null,null,null,null,null,null,null,null,null,null,null,"IPC227E","IPC377G","IPC547G"]
[null,null,null,null,null,null,null,null,null,null,null,null,null,null,null,null,null,null,null,null,null,null,"IPC227G","IPC477E","IPC647E",null,null,"= Solo in versione client"]
["6AV2",1,1,{"$f":"INDEX(D55:D61,P52,1)","v":5},"-",2,{"$f":"INDEX(G55:G61,P52,1)","v":"M"},{"$f":"INDEX(H55:H61,P52,1)","v":"A"},0,7,"-",0,"A","A",0,1,"WinCC Runtime Professional V17  Packages",{"$f":"$A$51&$B$51&$C$51&$D$51&$E$51&$F$51&$G$51&$H$51&$I$51&$J$51&$K$51&$L$51&$M$51&$N$51&$O$51","v":"6AV2115-2MA07-0AA0"},null,null,null,null,"IPC327G","IPC677E","IPC847E"]
[null,null,null,"|",null,null,"|","|",null,null,null,null,null,null,null,7,{"$f":"INDEX(Q55:Q61,P52,1)","v":"65536 Power Tags (RT)"},null,null,null,null,null,"IPC427E",null,"IPC1047E"]
[null,null,null,"|",null,null,"|","|",null,null,null,null,null,null,null,3," ",null,null,null,null,null,"IPC527G","ITP1000"]
[null,null,null,"|",null,null,"|","|",null,null,null,null,null,null,null,null,"Software-Package",null,null,null,null,null,"IPC627E"]
[null,null,null,7,null,null,"D","B",null,null,null,null,null,null,null,1,"Client",null,{"$f":"IF($P$52=1,1,\"\")","v":""},null,"."]
[null,null,null,5,null,null,"B","A",null,null,null,null,null,null,null,2,"128 Power Tags (RT)",null,{"$f":"IF($P$52=2,1,\"\")","v":""},null,"."]
[null,null,null,5,null,null,"D","A",null,null,null,null,null,null,null,3,"512 Power Tags (RT)",null,{"$f":"IF($P$52=3,1,\"\")","v":""},null,"."]
[null,null,null,5,null,null,"F","A",null,null,null,null,null,null,null,4,"2048 Power Tags (RT)",null,{"$f":"IF($P$52=4,1,\"\")","v":""},null,"."]
[null,null,null,5,null,null,"H","A",null,null,null,null,null,null,null,5,"4096 Power Tags (RT)",null,{"$f":"IF($P$52=5,1,\"\")","v":""},null,"."]
[null,null,null,5,null,null,"K","A",null,null,null,null,null,null,null,6,"8192 Power Tags (RT)",null,{"$f":"IF($P$52=6,1,\"\")","v":""},null,"."]
[null,null,null,5,null,null,"M","A",null,null,null,null,null,null,null,7,"65536 Power Tags (RT)",null,{"$f":"IF($P$52=7,1,\"\")","v":1},null,"."]
[]
[{"$f":"A$51","v":"6AV2"},{"$f":"B$51","v":1},1,5,"-",2,{"$f":"G$51","v":"M"},"A",0,{"$f":"J$51","v":7},"-",0,"A","A",0,null,null,"Listino:"]
[" "]

{"sheet":"WinCC V7 -Packages","index":28,"n_rows":47,"n_cols":20,"rows_kept":47,"cut":false,"hidden":false,"merged":[]}
[]
["Configurations for  WinCC- Package V7.5 SP1  "]
[null,null,null,null,null,null,null,null,null,null,null,null,null,null,null,null,"L'elenco aggiornato dei pacchetti software con SIMATIC IPC si trova qui:"]
[null,null,null,null,null,null,null,null,null,null,null,null,null,null,null,null,"https://support.industry.siemens.com/cs/de/de/view/99860269"]
[]
["6AV6",3,8,2,"-",2,{"$f":"INDEX(G13:G18,P7,1)","v":"A"},"A","0","7","-","5","A",{"$f":"INDEX(N21:N22,$P$8,1)","v":"X"},"0",null,{"$f":"IF(N6=\"V\",\"SIMATIC HMI, WinCC V7.5 SP1 Package ASIA\",\"SIMATIC HMI, WinCC V7.5 SP1 Package\")","v":"SIMATIC HMI, WinCC V7.5 SP1 Package"},{"$f":"$A$6&$B$6&$C$6&$D$6&$E$6&$F$6&$G$6&$H$6&$I$6&$J$6&$K$6&$L$6&$M$6&$N$6&$O$6","v":"6AV6382-2AA07-5AX0"}]
[null,null,null,null,null,null,"|",null,null,null,null,null,null,"|",null,1,{"$f":"INDEX(Q13:Q18,P7,1)","v":" Client"}]
[null,null,null,null,null,null,"|",null,null,null,null,null,null,"|",null,1,{"$f":"INDEX(Q21:Q22,P8,1)","v":"5 lingue (de,en,fr,es,it)"}]
[null,null,null,null,null,null,null,null,null,null,null,null,null,"|"]
[null,null,null,null,null,null,"|",null,null,null,null,null,null,"|",null,null,"Only available if ordered together with SIMATIC IPC  "]
[null,null,null,null,null,null,"|",null,null,null,null,null,null,"|"]
[null,null,null,null,null,null,"|",null,null,null,null,null,null,"|",null,null,"Software-Package"]
[null,null,null,null,null,null,"A",null,null,null,null,null,null,"|",null,{"$f":"1+P12","v":1},{"$f":"\" Client\"","v":" Client"},null,{"$f":"IF($P$7=1,1,\"\")","v":1},"."]
[null,null,null,null,null,null,"C",null,null,null,null,null,null,"|",null,{"$f":"1+P13","v":2},"128 Power Tags (RT)",null,{"$f":"IF($P$7=2,1,\"\")","v":""},"."]
[null,null,null,null,null,null,"D",null,null,null,null,null,null,"|",null,{"$f":"1+P14","v":3},"512 Power Tags (RT)",null,{"$f":"IF($P$7=3,1,\"\")","v":""},"."]
[null,null,null,null,null,null,"E",null,null,null,null,null,null,"|",null,{"$f":"1+P15","v":4},"2048 Power Tags (RT)",null,{"$f":"IF($P$7=4,1,\"\")","v":""},"."]
[null,null,null,null,null,null,"H",null,null,null,null,null,null,"|",null,{"$f":"1+P16","v":5},"8192 Power Tags (RT)",null,{"$f":"IF($P$7=5,1,\"\")","v":""},"."]
[null,null,null,null,null,null,"F",null,null,null,null,null,null,"|",null,6,"65536 Power Tags (RT)",null,{"$f":"IF($P$7=6,1,\"\")","v":""},"."]
[null,null,null,null,null,null,null,null,null,null,null,null,null,"|"]
[null,null,null,null,null,null,null,null,null,null,null,null,null,"|",null,null," "]
[null,null,null,null,null,null,null,null,null,null,null,null,null,"X",null,{"$f":"1+P8","v":2},"5 lingue (de,en,fr,es,it)",null,{"$f":"IF($P$8=1,1,\"\")","v":1}]
[null,null,null,null,null,null,null,null,null,null,null,null,null,"V",null,{"$f":"1+P21","v":3},"ASIA, 9 lingue (de, en,fr,es,it,zhs,zht,kor,jpn)",null,{"$f":"IF($P$8=2,1,\"\")","v":""}]
[null,null,null,null,null,null,null,null,null,null,null,null,null,null,null,null," "]
[]
["6AV6",{"$f":"B$55","v":0},{"$f":"C$55","v":0},{"$f":"D$55","v":0},{"$f":"E$55","v":0},{"$f":"F$55","v":0},{"$f":"G$6","v":"A"},{"$f":"H$55","v":0},{"$f":"I$55","v":0},{"$f":"J$55","v":0},{"$f":"K$55","v":0},5,{"$f":"M$55","v":0},{"$f":"N$55","v":0},{"$f":"O$55","v":0},null,null,"Total:"]
[]
[]
["Configurations for  WinCC- Package V7.4  "]
[]
[]
[]
["6AV6",3,8,2,"-",2,{"$f":"INDEX(G39:G44,P33,1)","v":"F"},"A","0","7","-","4","A","X","0",null,{"$f":"\"SIMATIC HMI, WinCC V7.4 Package\"","v":"SIMATIC HMI, WinCC V7.4 Package"},{"$f":"$A$32&$B$32&$C$32&$D$32&$E$32&$F$32&$G$32&$H$32&$I$32&$J$32&$K$32&$L$32&$M$32&$N$32&$O$32","v":"6AV6382-2FA07-4AX0"}]
[null,null,null,null,null,null,"|",null,null,null,null,null,null,null,null,6,{"$f":"INDEX(Q39:Q44,P33,1)","v":"65536 Power Tags (RT)"}]
[null,null,null,null,null,null,"|",null,null,null,null,null,null,null,null,3," "]
[null,null,null,null,null,null,"|",null,null,null,null,null,null,null,null,null," "]
[null,null,null,null,null,null,"|",null,null,null,null,null,null,null,null,null,"Only available if ordered together with SIMATIC IPC  "]
[null,null,null,null,null,null,"|"]
[null,null,null,null,null,null,"|",null,null,null,null,null,null,null,null,null,"Software-Package"]
[null,null,null,null,null,null,"A",null,null,null,null,null,null,null,null,{"$f":"1+P38","v":1},{"$f":"\" Client\"","v":" Client"},null,{"$f":"IF($P$33=1,1,\"\")","v":""},"."]
[null,null,null,null,null,null,"C",null,null,null,null,null,null,null,null,{"$f":"1+P39","v":2},"128 Power Tags (RT)",null,{"$f":"IF($P$33=2,1,\"\")","v":""},"."]
[null,null,null,null,null,null,"D",null,null,null,null,null,null,null,null,{"$f":"1+P40","v":3},"512 Power Tags (RT)",null,{"$f":"IF($P$33=3,1,\"\")","v":""},"."]
[null,null,null,null,null,null,"E",null,null,null,null,null,null,null,null,{"$f":"1+P41","v":4},"2048 Power Tags (RT)",null,{"$f":"IF($P$33=4,1,\"\")","v":""},"."]
[null,null,null,null,null,null,"H",null,null,null,null,null,null,null,null,{"$f":"1+P42","v":5},"8192 Power Tags (RT)",null,{"$f":"IF($P$33=5,1,\"\")","v":""},"."]
[null,null,null,null,null,null,"F",null,null,null,null,null,null,null,null,6,"65536 Power Tags (RT)",null,{"$f":"IF($P$33=6,1,\"\")","v":1},"."]
[]
[]
["6AV6",3,8,2,"-",2,{"$f":"G$32","v":"F"},"A","0","7","-","4","A","X","0",null,null,"Total:"]

{"sheet":"IPC Accessories","index":29,"n_rows":113,"n_cols":4,"rows_kept":113,"cut":false,"hidden":false,"merged":[]}
[null,"Order assistance for expansion components & accessories for SIMATIC IPC"]
[]
[]
[]
[]
[null,"Software components"]
[null,"Description","Order number"]
[null,"SIMATIC IPC DiagMonitor V5.1 (USB)","6ES7648-6CA15-1YX0","."]
[null,"SIMATIC IPC DiagMonitor V5.1 Download","6ES7648-6CA85-1YX0","."]
[null,"SIMATIC IPC Image & Partition Creator V3.6","6ES7648-6AA13-6YA0","."]
[null,"SIMATIC IPC FirmwareManager V4.0","6ES7648-6FA84-0YX0","."]
[null,"SIMATIC IPC FirmwareManager V4.0 for 50 devices","6ES7648-6GA84-0YX0","."]
[null,"SIMATIC IPC Remote Manager V1.3","6ES7648-6EA01-3YA0","."]
[]
[]
[]
[]
[null,"SIMATIC PC CompactFlash"]
[null,"Description","Order number"]
[null,"8 GB SIMATIC PC CompactFlash, DIAG, Industrial grade","6ES7648-2BF02-0XH0","."]
[null,"16 GB SIMATIC PC CompactFlash, DIAG, Industrial grade","6ES7648-2BF02-0XJ0","."]
[]
[null,"CFast MEMORY CARD 16GB ","6ES7648-2BF10-0XJ0","."]
[null,"CFast MEMORY CARD 30GB ","6ES7648-2BF10-0XK1","."]
[]
[]
[]
[null,"Standard keyboards"]
[null,"Description","Order number"]
[null,"Keyboard TKL-105, German layout, USB interface","6AV6881-0AU14-0AA0","."]
[null,"Keyboard TKL-105, US, international layout, USB interface","6AV6881-0AU14-1AA0","."]
[]
[]
[]
[]
[null,"Industrial keyboards"]
[null,"Description","Order number"]
[]
[null,"Industrial keyboard IP 65 with touchpad, PS/2 Interface, German key layout","6GF6710-2AC","."]
[null,"Industrial keyboard IP 65 with touchpad, PS/2 Interface, International key layout","6GF6710-2BC","."]
[]
[null,"19\" Withdrawable with trackball, PS/2 Interface, German key layout","6GF6710-3BJ","."]
[null,"19\" Withdrawable with trackball, PS/2 Interface, International key layout","6GF6710-3BK","."]
[]
[null,"Flush-mounted keyboard, with touchpad, IP65, for installation in 19\"-Cabinets, PS/2 Interface, German layout","6GF6710-3AE","."]
[null,"Flush-mounted keyboard, with touchpad, IP65, for installation in 19\"-Cabinets, PS/2 Interface, International layout","6GF6710-3BE","."]
[null,"Flush-mounted keyboard, with trackball, IP65, for installation in 19\"-Cabinets, PS/2 Interface, International layout","6GF6710-3BG","."]
[]
[]
[]
[]
[null,"SIMATIC PC Mouse"]
[null,"Description","Order number"]
[null,"SIMATIC PC USB Mouse (anthracite)\nOptical USB Mouse, 3 button wheel mouse  (BlueTrack) for SIMATIC PG and PC ","6AV2181-8AT00-0AX0","."]
[]
[]
[]
[null,"Adaptercable"]
[null,"Adaptecable DisplayPort to DVI-D","6ES7648-3AF00-0XA0","."]
[null,"Adaptecable DisplayPort to VGA","6ES7648-3AG00-0XA0","."]
[]
[]
[]
[]
[]
[null,"Touch Pen/Stylus"]
[null,"Description","Order number"]
[null,"Touch Pen/Stylus","6AV6645-7AB14-0AS0","."]
[null,"Touch pen system for multitouch devices","6AV6881-0AV21-0AA0","."]
[null,"Touch pen system for multitouch devices Pharma INOX","6AV6881-0AV22-0AA0","."]
[null,"Touchpen caps - replacement caps for capacitive touch pen system","6AV6881-0AV61-0AA0","."]
[]
[]
[]
[]
[null,"48 months service option"]
[null,"Description","Order number"]
[null,"48 months service option for SIMATIC BOX/RACK PC","6ES7648-4AB48-0AA0","."]
[null,"48 months service option for SIMATIC Panel PC","6ES7648-4AP48-0AA0","."]
[]
[]
[]
[null,"Power supply Connector for DC 24 V"]
[null,"Description","Order number"]
[null,"Power supply Connector for DC 24 V;           (5 pieces in the package)  \n2 pol.\nfor IPC227D, IPC277D WITH 7/9 inch ","A5E03604831","."]
[null,"Power supply Connector for DC 24 V;           (5 pieces in the package)  \n2 pol. \nfor  IPC427(x); HMI IPC477(x)","A5E02717632","."]
[null,"Power supply Connector for DC 24 V;           (5 pieces in the package)  \n3 pol.; \n(for IPC62X, IPC82X, HMI IPC57X, IPC67X, PCU50X, FLAT PANEL 6AV7861... )","A5E03404000","."]
[]
[]
[]
[]
[null,"System components for PRO devices"]
[null,"System components for PRO devices","Order number"]
[null,"Flange mount for PRO devices (round tube - fitting only for the variant \"suitable for support arm and extension components\"  ","6AV7674-1KF00-0AA0","."]
[null,"USB interface for the basic adapter ","6AV7674-1LX00-0AA0","."]
[null,"Extension Unit 12\" Hardwired (only suitable for wide screen PRO devices)","6AV7674-1LA31-0AA0","."]
[null,"Extension Unit 15\" Hardwired (only suitable for wide screen PRO devices)","6AV7674-1LA41-0AA0","."]
[null,"Extension Unit 19\" Hardwired (only suitable for wide screen PRO devices)","6AV7674-1LA51-0AA0","."]
[null,"Extension Unit 22\" Hardwired (only suitable for wide screen PRO devices)","6AV7674-1LA61-0AA0","."]
[null,"Extension Unit 12\" PROFINET (only suitable for wide screen PRO devices)","6AV7674-1LA32-0AA0","."]
[null,"Extension Unit 15\" PROFINET (only suitable for wide screen PRO devices)","6AV7674-1LA42-0AA0","."]
[null,"Extension Unit 19\" PROFINET (only suitable for wide screen PRO devices)","6AV7674-1LA52-0AA0","."]
[null,"Extension Unit 22\" PROFINET(only suitable for wide screen PRO devices)","6AV7674-1LA62-0AA0","."]
[null,"Emergency stop mushroom pushbutton for Extension Unit (only suitable for wide screen PRO devices)","6AV7674-1MA00-0AA0","."]
[null,"Illuminated pushbutton for Extension Unit (only suitable for wide screen PRO devices)","6AV7674-1MB00-0AA0","."]
[null,"Indicator light for Extension Unit (only suitable for wide screen PRO devices)","6AV7674-1MC00-0AA0","."]
[null,"Selector switch  for Extension Unit (only suitable for wide screen PRO devices)","6AV7674-1MD00-0AA0","."]
[null,"Key-operated switch for Extension Unit (only suitable for wide screen PRO devices)","6AV7674-1ME00-0AA0","."]
[null,"INOX keyboard IP65, 483mm wide, with NUM-Block, keyboard layout engl.,","6AV7674-1NE00-0AA0","."]
[null,"Rundrohradapter VESA 100/75","6AV6881-0AD56-0AA0","."]
[null,"Adapter set VESA 75: VESA 75-compatible systems","6AV7674-0KE00-0AA0","."]
[null,"Adapter set VESA: VESA 100-compatible systems, Rose GTN II support systems","6AV7674-0KD00-0AA0","."]
[null,"Basis adapter for all PRO-Devices (in Silver)","6AV7674-1KA00-0AA0","."]

{"sheet":"SITOP DC UPS","index":30,"n_rows":58,"n_cols":9,"rows_kept":58,"cut":false,"hidden":false,"merged":[[9,1,9,6],[34,1,34,8],[38,1,38,8]]}
["SITOP DC 24V UPS Selection Guide"]
[]
[]
[]
[]
[]
[]
["DC UPS with Battery","The right UPS solution for IPC applications in ambient temperatures around 25°C and for buffering long times and high currents"]
["IPC / power consumption in Amper (A)","Batt. Modul UPS1100\n1,2 Ah\nMLFB: \n6EP4131-0GB00-0AY0","Batt. Modul UPS1100\n2,5 Ah high temperatur\nMLFB: \n6EP4132-0GB00-0AY0","Batt. Mod. UPS1100\n3,2 Ah\nMLFB: \n6EP4133-0GB00-0AY0","Batt. Mod. UPS1100\n5 Ah LiFePo\nMLFB: \n6EP4133-0JB00-0AY0","Batt. Modul UPS1100\n7 Ah\nMLFB: \n6EP4134-0GB00-0AY0","Batt. Modul UPS1100\n12 Ah\nMLFB: \n6EP4135-0GB00-0AY0"]
["SITOP UPS1600 10A\nMLFB: 6EP4134-3AB00-1AY0 (USB) \nMLFB: 6EP4134-3AB00-2AY0 (Ethernet / PROFINET)","Buffer Time - Valid for new Batteries at 25° C"]
["SIMATIC IPC127E (0,7A)","40 min","142 min","171 min","371 min","457 min","771 min"]
["SIMATIC IPC227D/E (1,4A)","20 min","71 min","85 min","185 min","228 min","385 min"]
["SIMATIC IPC277E 7\", 9\" (1,4A)","20 min","71 min","85 min","185 min","228 min","385 min"]
["SIMATIC IPC427C/D/E (1,9A)","14 min","52 min","63 min","136 min","168 min","284 min"]
["SIMATIC IPC327E (2,5A)","11 min","40 min","48 min","104 min","128 min","216 min"]
["SIMATIC IPC377E 12\", 15\", 19\" (2,5A)","11 min","40 min","48 min","104 min","128 min","216 min"]
["SIMATIC IPC277E 12\", 15\",19\" (3,0A)","9 min","33 min","40 min","86 min","106 min","180 min"]
["SIMATIC IPC477D/E (3,4A)","9 min","30 min","40 min","82 min","94 min","176 min"]
["SIMATIC IPC627C/D/E (3,5A)","8 min","29 min","38 min","80 min","91 min","171 min"]
["SIMATIC IPC827C/D/E (3,5A)","8 min","29 min","38 min","80 min","91 min","171 min"]
[" SIMATIC IPC677C/D/E (4,8A)","5 min","18 min","26 min","60 min","60 min","112 min"]
["power consumption 5,0A","5 min","18 min","25 min","57 min","57 min","108 min"]
["power consumption 6,0A","4 min","15 min","21 min","48 min","48 min","90 min"]
["power consumption 6,5A","3 min","13 min","18 min","45 min","41 min","73 min"]
["IPC627 / IPC827 / IPC677 without power consumption of PCI(e) and USB"]
[]
[null,"Choice ('1')"]
["Battery aging 4 years at 20°C:",0,1,""]
["Battery 85% message:",0,1]
["Battery temperature less than 25°C:",0,1]
["Battery temperature +5°C:",0,1]
[null,"Performance Multiplier:",1]
[]
[]
["DC UPS with Capacitor","The right UPS solution for IPC applications at high temperatures (>40°C) with maintenance free capacitors and long lifetime (>8 years)"]
[" SITOP UPS500S Basis (kWs)\nMLFB: 6EP1933-2EC41 (2,5 kWs)\nMLFB: 6EP1933-2EC51 (5 kWs)",2.5,5,2.5,5,2.5,5,2.5,5]
["  SITOP UPS501S Expansion Module (kWs)\nMLFB: 6EP1935-5PG01 (5 kWs)","-","-","1x 5","1x 5","2x 5","2x 5","3x 5","3x 5"]
["Total Energy (kWs, Din Rail)",2.5,5,7.5,10,12.5,15,17.5,20]
["IPC (max. A in)","Buffer Time - Valid for new Capacitors at 25° C"]
["SIMATIC IPC127E (0,7A)","109 s","217 s","349 s","446 s","580 s","657 s","757 s","874 s"]
["SIMATIC IPC227D/E (1,4A)","54 s","109 s","174 s","223 s","290 s","329 s","379 s","437 s"]
["SIMATIC IPC277E 7\", 9\" (1,4A)","54 s","109 s","174 s","223 s","290 s","329 s","379 s","437 s"]
["SIMATIC IPC427C/D/E (1,9A)","40 s","80 s","128 s","164 s","214 s","242 s","279 s","322 s"]
["SIMATIC IPC327E (2,5A)","30 s","61 s","98 s","125 s","162 s","184 s","212 s","245 s"]
["SIMATIC IPC377E 12\", 15\", 19\" (2,5A)","30 s","61 s","98 s","125 s","162 s","184 s","212 s","245 s"]
["SIMATIC IPC277E 12\", 15\",19\" (3,0A)","25 s","51 s","81 s","104 s","135 s","153 s","177 s","204 s"]
["SIMATIC IPC477D/E (3,4A)","22 s","46 s","72 s","95 s","119 s","141 s","164 s","188 s"]
["SIMATIC IPC627C/D/E (3,5A)","22 s","45 s","70 s","93 s","115 s","137 s","159 s","183 s"]
["SIMATIC IPC827C/D/E (3,5A)","22 s","45 s","70 s","93 s","115 s","137 s","159 s","183 s"]
["SIMATIC IPC677C/D/E (4,8A)","16 s","32 s","51 s","68 s","84 s","99 s","116 s","135 s"]
["power consumption (5A)","15 s","31 s","49 s","65 s","81 s","95 s","111 s","130 s"]
["power consumption (6A)","12 s","26 s","40 s","55 s","67 s","80 s","94 s","106 s"]
["power consumption (6,5A)","11 s","23 s","37 s","51 s","62 s","74 s","87 s","99 s"]
["IPC627 / IPC827 / IPC677 without power consumption of PCI(e) and USB"]
[]
[null,"Choice ('1')"]
["Temperature 50°C for 8 years:",0,1]
[null,"Performance Multiplier:",1]

{"sheet":"Power Plugs Box Panel","index":31,"n_rows":25,"n_cols":4,"rows_kept":25,"cut":false,"hidden":false,"merged":[]}
["Plugs for SIMATIC BOX PC 620, 840 and Panel PC 670, 677, 870, 877 "]
[]
["Grounded Continental European plug"]
["Region:\nD / F / NL / ESP / B / A / S / FIN",null,null,"For:\nSIMATIC Box PC and Panel PC"]
["MLFB:","6ES7 900-1AA00-0XA0"]
[]
["Grounded British plug"]
["Region:\nUK",null,null,"For:\nSIMATIC Box PC and Panel PC"]
["MLFB:","6ES7 900-1BA00-0XA0"]
[]
["Grounded Swiss plug"]
["Region:\nCH",null,null,"For:\nSIMATIC Box PC and Panel PC"]
["MLFB:","6ES7 900-1CA00-0XA0"]
[]
["Grounded North American and Japanese plug"]
["Region:\nUSA",null,null,"For:\nSIMATIC Box PC and Panel PC"]
["MLFB:","6ES7 900-1DA00-0XA0"]
[]
["Grounded Italian plug"]
["Region:\nItaly",null,null,"For:\nSIMATIC Box PC and Panel PC"]
["MLFB:","6ES7 900-1EA00-0XA0"]
[]
["Grounded Chinese plug"]
["Region:\nChina",null,null,"For:\nSIMATIC Box PC and Panel PC"]
["MLFB:","6ES7 900-1FA00-0XA0"]

{"sheet":"Power Plugs Rack Flat Panel","index":32,"n_rows":25,"n_cols":4,"rows_kept":25,"cut":false,"hidden":false,"merged":[]}
["Plugs for SIMATIC Rack PC 84x / 64x / 54x / Flat Panel Monitor"]
[]
["Grounded Continental European plug"]
["Region:\nD / F / NL / ESP / B / A / S / FIN",null,null,"For:\nSIMATIC Rack PC "]
["MLFB:","6ES7 900-0AA00-0XA0"]
[]
["Grounded British plug"]
["Region:\nUK",null,null,"For:\nSIMATIC Rack PC "]
["MLFB:","6ES7 900-0BA00-0XA0"]
[]
["Grounded Swiss plug"]
["Region:\nCH",null,null,"For:\nSIMATIC Rack PC "]
["MLFB:","6ES7 900-0CA00-0XA0"]
[]
["Grounded North American and Japanese plug"]
["Region:\nUSA",null,null,"For:\nSIMATIC Rack PC "]
["MLFB:","6ES7 900-0DA00-0XA0"]
[]
["Grounded Italian plug"]
["Region:\nItaly",null,null,"For:\nSIMATIC Rack PC "]
["MLFB:","6ES7 900-0EA00-0XA0"]
[]
["Grounded Chinese plug"]
["Region:\nChina",null,null,"For:\nSIMATIC Rack PC "]
["MLFB:","6ES7900-0FA00-0XA0 "]

{"sheet":"DIME IPC","index":33,"n_rows":68,"n_cols":8,"rows_kept":68,"cut":false,"hidden":false,"merged":[[3,3,3,5],[3,6,3,7],[14,3,14,5],[14,6,14,7],[24,3,24,5],[24,6,24,7],[54,3,54,5],[54,6,54,7],[62,3,62,5],[62,6,62,7],[31,3,31,5],[31,6,31,7],[41,3,41,5],[41,6,41,7],[48,3,48,5],[48,6,48,7]]}
[]
["Tabella Dimensioni Panel PC e Display"]
[]
[null,null,null,"Dimensione IPC",null,null,"CORNICE"]
["TIPO IPC","Pollici","Single / Multitouch","Altezza","Larghezza ","Profondità","Altezza","Larghezza"]
["277E",7,"ST",146,190,77.3,158,214]
["277E",9,"ST",164,249,77.3,190,274]
["277E",12,"ST",219,308,72,241,330]
["277E",15,"ST",289,394,73,310,415]
["277E",19,"ST",317,463,82,337,483]
["277E",12,"MT",209,297,76,227,315]
["277E",15,"MT",239,380,76,257,398]
["277E",19,"MT",276,446,76,294,464]
[]
[null,null,null,"Dimensione IPC",null,null,"CORNICE"]
["TIPO IPC","Pollici","Single / Multitouch","Altezza","Larghezza ","Profondità","Altezza","Larghezza"]
["277G",7,"MT",140,196,88,158,214]
["277G",10,"MT",187,162,86,205,280]
["277G",12,"MT",219,308,95,237,326]
["277G",15,"MT",239,380,95,257,398]
["277G",19,"MT",276,446,95,294,464]
["277G",22,"MT",331,511,95,432,529]
["277G",24,"MT",345,567,95,363,685]
[]
[null,null,null,"Dimensione IPC",null,null,"CORNICE"]
["TIPO IPC","Pollici","Single / Multitouch","Altezza","Larghezza ","Profondità","Altezza","Larghezza"]
["377G",12,"ST",206,300,92,226,320]
["377G",15,"ST",239,387,100,259,406]
["377G",19,"ST",278,453,100,297,473]
["377G",22,"ST",315,521,100,335,540]
[]
[null,null,null,"Dimensione IPC",null,null,"CORNICE"]
["TIPO IPC","Pollici","Single / Multitouch","Altezza","Larghezza ","Profondità","Altezza","Larghezza"]
["477E",15,"ST",289,394,73,310,415]
["477E",19,"ST",317,463,82,337,483]
["477E",22,"ST",360,540,82,380,560]
["477E",15,"MT",239,380,81,257,398]
["477E",19,"MT",276,446,95,294,464]
["477E",22,"MT",331,511,95,432,529]
["477E",24,"MT",345,567,95,363,685]
[]
[null,null,null,"Dimensione IPC",null,null,"CORNICE"]
["TIPO IPC","Pollici","Single / Multitouch","Altezza","Larghezza ","Profondità","Altezza","Larghezza"]
["PX-39A",15,"MT",239,380,95,257,398]
["PX-39A",19,"MT",276,446,95,294,464]
["PX-39A",22,"MT",331,511,95,432,529]
["PX-39A",24,"MT",345,567,95,363,685]
[]
[null,null,null,"Dimensione IPC",null,null,"CORNICE"]
["TIPO IPC","Pollici","Single / Multitouch","Altezza","Larghezza ","Profondità","Altezza","Larghezza"]
["677E",19,"MT",276,446,95,294,464]
["677E",22,"MT",331,511,95,432,529]
["677E",24,"MT",345,567,95,363,685]
[]
[null,null,null,"Dimensione IPC",null,null,"CORNICE"]
["TIPO IPC","Pollici","Single / Multitouch","Altezza","Larghezza ","Profondità","Altezza","Larghezza"]
["IFP V2",12,"MT",219,308,95,237,326]
["IFP V2",15,"MT",239,380,95,257,398]
["IFP V2",19,"MT",276,446,95,294,464]
["IFP V2",22,"MT",331,511,95,432,529]
["IFP V2",24,"MT",345,567,95,363,685]
[]
[null,null,null,"Dimensione IPC",null,null,"CORNICE"]
["TIPO IPC","Pollici","Single / Multitouch","Altezza","Larghezza ","Profondità","Altezza","Larghezza"]
["IFP BASIC",12,"ST",206,300,92,226,320]
["IFP BASIC",15,"ST",239,387,100,259,406]
["IFP BASIC",19,"ST",278,453,100,297,473]
["IFP BASIC",22,"ST",315,521,100,335,540]

{"sheet":"IPC CPU BENCHMARK","index":34,"n_rows":45,"n_cols":9,"rows_kept":45,"cut":false,"hidden":false,"merged":[[9,7,18,14]]}
["Tabella comparativa prestazioni CPU"]
[]
[]
[null,null,null,"Processore","Punteggio","IPC"]
[null,null,null,"Celeron N2807",450,"227E / 277E"]
[null,null,null,"Celeron N2930",542,"227E / 277E"]
[null,null,null,"Celeron G3902",679,"427E / 477E"]
[null,null,null,"Atom E3930",878,"127E"]
[null,null,null,"Atom E3845 ",1058,"----"]
[null,null,null,"Celeron J1900",1137,"----",null,"Tabella delle prestazioni delle singole CPU. I dati sono indicativi e tratti dal sito https://www.cpubenchmark.net/"]
[null,null,null,"Celeron 3965U",1692,"----"]
[null,null,null,"Atom X6211E",1695,"227G / 277G"]
[null,null,null,"Atom E3940",1960,"127E"]
[null,null,null,"Core i3-4330",2098,"627D / 677D / 647D / 847E"]
[null,null,null,"Atom E3950",2101,"----"]
[null,null,null,"Core i3-6102E",2349,"427E / 477E"]
[null,null,null,"Pentium G4400",2590,"347G / 527G / 547G"]
[null,null,null,"Core i3-7100U",2722,"----"]
[null,null,null,"Celeron 6600HLE",3022,"BX-39A/PX-39A"]
[null,null,null,"Core i5-4570",3106,"627D / 677D / 647D / 847E"]
[null,null,null,"Core i5-6500",3272,"347G / 527G / 547G"]
[null,null,null,"Core i7-7600U",3670,"----",null,null," https://www.cpubenchmark.net/"]
[null,null,null,"Core i5-7300U",3751,"----"]
[null,null,null,"Core i5-6442EQ",3923,"427E / 477E"]
[null,null,null,"Atom X6413E",4070,"227G / 277G"]
[null,null,null,"Core i5-7440EQ",5711,"----"]
[null,null,null,"Core i5-7500",6065,"----"]
[null,null,null,"Xeon E3-1288L",6079,"627D / 677D / 647D / 847E"]
[null,null,null,"Xeon E3-1505L",6088,"427E / 477E"]
[null,null,null,"Core i3-8100",6164,"627E / 677E / 647E / 847E"]
[null,null,null,"Core i7-6700",6541,"347G / 527G / 547G"]
[null,null,null,"Core i7-6820EQ",6924,"----"]
[null,null,null,"Core i7-7820EQ",7453,"----"]
[null,null,null,"Core i3-10100E",8229,"547J"]
[null,null,null,"Xeon E3-1275",8421,"547G"]
[null,null,null,"Core i7-7700",8639,"----"]
[null,null,null,"Core i5-8500",9604,"627E / 677E / 647E / 847E"]
[null,null,null,"Core i5-10500E",11604,"547J"]
[null,null,null,"Xeon E-2176G",13643,"647E / 847E"]
[null,null,null,"Core i7-8700",13850,"627E / 677E / 647E / 847E"]
[null,null,null,"Xeon W-11865MLE",15958,"BX-39A /PX-39A"]
[null,null,null,"Core i7-10700E",17020,"547J"]
[null,null,null,"Xeon E-2278GE",17706,"647E / 847E"]
[null,null,null,"Xeon W1270E",18635,"547J"]
[null,null,null,"Core i9-10900E",20658,"547J"]